Workbook

Sheet Dis
H3: NTE EXPRESS
H4: DISCLAIMER

Sheet Summary
Y3: =+TODAY() -> 2018-05-31
J6: VALUATION
M7: Ke | O7: =+'Valuation & IRR'!E73 -> 10.50%
J8: =+'Valuation & IRR'!J19 -> Shareholder Pre-Tax Equity IRR | L8: =+'Valuation & IRR'!N19 -> 15.78% | M8: NPV %Cintra (million $) | O8: =+'Valuation & IRR'!M33 -> 993,694.6
J9: =+'Valuation & IRR'!J27 -> Shareholder Post-Tax Equity IRR | L9: =+'Valuation & IRR'!N27 -> 15.07% | M9: NPV %Cintra (million EUR) | O9: =+'Valuation & IRR'!M34 -> 826,563.4
C13: FREE CASH FLOW | J13: DEBT SERVICE & INTEREST INCOME | Q13: MMRA | S13: DSRA | U13: TIFIA cash trapped | W13: CF for distribution pre-tax | Y13: Corporate tax | AA13: CF for distribution post-tax
C14: Revenues | D14: OPEX | E14: Taxes | F14: CAPEX | G14: CFADS proforma | J14: Interests and fees | K14: Draws&Repayments | L14: Total Debt Service | M14: Interest Income | N14: Capitalized interest | O14: Outstanding Debt | Q14: MMRA net movements | S14: DSRA net movements | U14: TIFIA cash trapped net movements | W14: CF for distribution pre-tax | Y14: Corporate tax | AA14: CF for distribution post-tax
B15: 2018 | C15: =+INDEX($108:$108,MATCH($B15,$107:$107,0)) -> 100,675 | D15: =+INDEX($109:$109,MATCH($B15,$107:$107,0)) -> -17,117 | E15: =+INDEX($110:$110,MATCH($B15,$107:$107,0)) -> -361 | F15: =+INDEX($111:$111,MATCH($B15,$107:$107,0)) -> -2,401 | G15: =+INDEX($112:$112,MATCH($B15,$107:$107,0)) -> 80,796 | J15: =+INDEX($115:$115,MATCH($B15,$107:$107,0)) -> -27,874 | K15: =+INDEX($116:$116,MATCH($B15,$107:$107,0)) -> 0 | L15: =+INDEX($117:$117,MATCH($B15,$107:$107,0)) -> -27,874 | M15: =+INDEX($118:$118,MATCH($B15,$107:$107,0)) -> 0 | N15: =+INDEX($119:$119,MATCH($B15,$107:$107,0)) -> 36,293 | O15: =+INDEX($120:$120,MATCH($B15,$107:$107,0)) -> 1,230,268 | Q15: =+INDEX($123:$123,MATCH($B15,$107:$107,0)) -> 0 | S15: =+INDEX($124:$124,MATCH($B15,$107:$107,0)) -> 0 | U15: =+INDEX($126:$126,MATCH($B15,$107:$107,0)) -> -52,923 | W15: =+INDEX($130:$130,MATCH($B15,$107:$107,0)) -> 0 | Y15: =+INDEX($128:$128,MATCH($B15,$107:$107,0)) -> 0 | AA15: =+INDEX($134:$134,MATCH($B15,$107:$107,0)) -> 0
B16: =+B15+1 -> 2019 | C16: =+INDEX($108:$108,MATCH($B16,$107:$107,0)) -> 110,893 | D16: =+INDEX($109:$109,MATCH($B16,$107:$107,0)) -> -18,252 | E16: =+INDEX($110:$110,MATCH($B16,$107:$107,0)) -> -598 | F16: =+INDEX($111:$111,MATCH($B16,$107:$107,0)) -> -2,272 | G16: =+INDEX($112:$112,MATCH($B16,$107:$107,0)) -> 89,771 | J16: =+INDEX($115:$115,MATCH($B16,$107:$107,0)) -> -51,332 | K16: =+INDEX($116:$116,MATCH($B16,$107:$107,0)) -> 0 | L16: =+INDEX($117:$117,MATCH($B16,$107:$107,0)) -> -51,332 | M16: =+INDEX($118:$118,MATCH($B16,$107:$107,0)) -> 2,934 | N16: =+INDEX($119:$119,MATCH($B16,$107:$107,0)) -> 18,197 | O16: =+INDEX($120:$120,MATCH($B16,$107:$107,0)) -> 1,248,465 | Q16: =+INDEX($123:$123,MATCH($B16,$107:$107,0)) -> 7,436 | S16: =+INDEX($124:$124,MATCH($B16,$107:$107,0)) -> 13,121 | U16: =+INDEX($126:$126,MATCH($B16,$107:$107,0)) -> 145,304 | W16: =+INDEX($130:$130,MATCH($B16,$107:$107,0)) -> 207,235 | Y16: =+INDEX($128:$128,MATCH($B16,$107:$107,0)) -> 0 | AA16: =+INDEX($134:$134,MATCH($B16,$107:$107,0)) -> 207,235
B17: =+B16+1 -> 2020 | C17: 122,977 | D17: -19,462 | E17: -651 | F17: -3,321 | G17: 99,544 | J17: -64,058 | K17: 3,321 | L17: -60,736 | M17: 941 | N17: 0 | O17: 1,251,786 | Q17: -2,192 | S17: -3,124 | U17: 0 | W17: 34,432 | Y17: 0 | AA17: =+INDEX($134:$134,MATCH($B17,$107:$107,0)) -> 34,432
B18: 2021 | C18: 136,379 | D18: -20,752 | E18: -722 | F18: -4,856 | G18: 110,049 | J18: -60,574 | K18: 4,856 | L18: -55,719 | M18: 1,180 | N18: 0 | O18: 1,256,642 | Q18: -1,152 | S18: -1,744 | U18: 0 | W18: 52,615 | Y18: 0 | AA18: 52,615
B19: 2022 | C19: 147,990 | D19: -21,620 | E19: -784 | F19: -5,235 | G19: 120,351 | J19: -60,818 | K19: 5,235 | L19: -55,583 | M19: 1,393 | N19: 0 | O19: 1,261,876 | Q19: -1,166 | S19: -284 | U19: 0 | W19: 64,711 | Y19: -929 | AA19: 63,782
B20: 2023 | C20: 160,589 | D20: -22,524 | E20: -851 | F20: -5,644 | G20: 131,570 | J20: -61,080 | K20: 5,644 | L20: -55,436 | M20: 1,568 | N20: 0 | O20: 1,267,520 | Q20: -1,077 | S20: -398 | U20: 0 | W20: 76,226 | Y20: -1,261 | AA20: 74,965
B21: 2024 | C21: 174,260 | D21: -23,465 | E21: -924 | F21: -6,084 | G21: 143,787 | J21: -61,464 | K21: 6,084 | L21: -55,380 | M21: 1,733 | N21: 0 | O21: 1,273,604 | Q21: -879 | S21: -534 | U21: 0 | W21: 88,728 | Y21: -1,622 | AA21: 87,105
B22: 2025 | C22: 189,095 | D22: -24,446 | E22: -1,003 | F22: -6,559 | G22: 157,087 | J22: -61,915 | K22: 6,559 | L22: -55,356 | M22: 1,903 | N22: 0 | O22: 1,280,164 | Q22: -561 | S22: -1,053 | U22: 0 | W22: 102,020 | Y22: -2,015 | AA22: 100,005
B23: 2026 | C23: 205,194 | D23: -25,468 | E23: -1,088 | F23: -7,072 | G23: 171,566 | J23: -62,351 | K23: 7,072 | L23: -55,279 | M23: 2,075 | N23: 0 | O23: 1,287,235 | Q23: -114 | S23: -1,030 | U23: 0 | W23: 117,218 | Y23: -2,443 | AA23: 114,775
B24: 2027 | C24: 218,152 | D24: -26,491 | E24: -1,157 | F24: -7,113 | G24: 183,391 | J24: -62,736 | K24: 7,113 | L24: -55,623 | M24: 2,213 | N24: 0 | O24: 1,294,348 | Q24: -190 | S24: -899 | U24: 0 | W24: 128,892 | Y24: -2,778 | AA24: 126,114
B25: 2028 | C25: 231,928 | D25: -27,555 | E25: -1,230 | F25: -7,154 | G25: 195,989 | J25: -63,162 | K25: 7,154 | L25: -56,008 | M25: 2,330 | N25: 0 | O25: 1,301,502 | Q25: -373 | S25: -552 | U25: 0 | W25: 141,386 | Y25: -3,136 | AA25: 138,250
B26: 2029 | C26: 246,574 | D26: -28,662 | E26: -1,307 | F26: -7,195 | G26: 209,410 | J26: -64,020 | K26: 7,195 | L26: -56,824 | M26: 2,418 | N26: 0 | O26: 1,308,697 | Q26: -671 | S26: -448 | U26: 0 | W26: 153,884 | Y26: -3,517 | AA26: 150,367
B27: 2030 | C27: 262,146 | D27: -29,814 | E27: -1,390 | F27: -7,237 | G27: 223,705 | J27: -67,951 | K27: 7,237 | L27: -60,714 | M27: 2,579 | N27: 0 | O27: 1,315,934 | Q27: -1,095 | S27: -582 | U27: 0 | W27: 163,894 | Y27: -3,925 | AA27: 159,969
B28: 2031 | C28: 278,700 | D28: -31,011 | E28: -1,477 | F28: -7,279 | G28: 238,932 | J28: -64,699 | K28: 7,279 | L28: -57,420 | M28: 2,696 | N28: 0 | O28: 1,323,213 | Q28: -1,653 | S28: -1,364 | U28: 0 | W28: 181,192 | Y28: -4,360 | AA28: 176,832
B29: 2032 | C29: 305,795 | D29: -32,710 | E29: -1,620 | F29: -7,825 | G29: 263,640 | J29: -65,402 | K29: 7,825 | L29: -57,577 | M29: 2,840 | N29: 0 | O29: 1,331,039 | Q29: -1,802 | S29: -1,691 | U29: 0 | W29: 205,409 | Y29: -6,290 | AA29: 199,119
B30: 2033 | C30: 335,525 | D30: -34,502 | E30: -1,778 | F30: -8,412 | G30: 290,833 | J30: -66,076 | K30: 8,412 | L30: -57,663 | M30: 3,106 | N30: 0 | O30: 1,339,451 | Q30: -1,998 | S30: -2,502 | U30: 0 | W30: 231,774 | Y30: -32,171 | AA30: 199,604
B31: 2034 | C31: 368,144 | D31: -36,392 | E31: -1,951 | F31: -9,043 | G31: 320,759 | J31: -67,150 | K31: 9,043 | L31: -58,107 | M31: 3,412 | N31: 0 | O31: 1,348,494 | Q31: -2,249 | S31: -3,659 | U31: 0 | W31: 260,155 | Y31: -47,567 | AA31: 212,588
B32: 2035 | C32: 403,935 | D32: -38,385 | E32: -2,140 | F32: -9,721 | G32: 353,688 | J32: -68,473 | K32: 9,721 | L32: -58,751 | M32: 3,768 | N32: 0 | O32: 1,358,215 | Q32: -2,561 | S32: -4,976 | U32: 0 | W32: 291,167 | Y32: -52,441 | AA32: 238,727
B33: 2036 | C33: 443,205 | D33: -40,488 | E33: -2,348 | F33: -10,451 | G33: 389,919 | J33: -70,005 | K33: 10,451 | L33: -59,555 | M33: 4,074 | N33: 0 | O33: 1,368,665 | Q33: -2,943 | S33: -5,725 | U33: 0 | W33: 325,769 | Y33: -57,811 | AA33: 267,957
B34: 2037 | C34: 486,910 | D34: -42,937 | E34: -2,579 | F34: -11,403 | G34: 429,991 | J34: -71,541 | K34: 11,403 | L34: -60,138 | M34: 4,321 | N34: 0 | O34: 1,380,068 | Q34: -2,781 | S34: -7,538 | U34: 0 | W34: 363,855 | Y34: -63,787 | AA34: 300,068
B35: 2038 | C35: 534,925 | D35: -45,534 | E35: -2,834 | F35: -12,442 | G35: 474,115 | J35: -74,162 | K35: 12,442 | L35: -61,720 | M35: 4,797 | N35: 0 | O35: 1,392,511 | Q35: -2,066 | S35: -24,217 | U35: 0 | W35: 390,909 | Y35: -70,366 | AA35: 320,543
B36: 2039 | C36: 587,675 | D36: -48,289 | E36: -3,115 | F36: -13,576 | G36: 522,695 | J36: -77,735 | K36: 13,576 | L36: -64,159 | M36: 5,639 | N36: 0 | O36: 1,406,087 | Q36: -796 | S36: 13,951 | U36: 0 | W36: 477,330 | Y36: -77,607 | AA36: 399,723
B37: 2040 | C37: 645,626 | D37: -51,210 | E37: -3,419 | F37: -14,813 | G37: 576,183 | J37: -78,887 | K37: 14,813 | L37: -64,074 | M37: 5,664 | N37: 0 | O37: 1,420,900 | Q37: 1,039 | S37: -601 | U37: 0 | W37: 518,212 | Y37: -85,643 | AA37: 432,569
B38: 2041 | C38: 709,292 | D38: -54,308 | E38: -3,755 | F38: -16,163 | G38: 635,066 | J38: -76,362 | K38: 16,163 | L38: -60,198 | M38: 5,923 | N38: 0 | O38: 1,437,063 | Q38: 3,450 | S38: -842 | U38: 0 | W38: 583,399 | Y38: -119,996 | AA38: 463,403
B39: 2042 | C39: 750,383 | D39: -56,571 | E39: -3,971 | F39: -14,764 | G39: 675,077 | J39: -77,128 | K39: 14,764 | L39: -62,364 | M39: 5,965 | N39: 0 | O39: 1,451,827 | Q39: 2,802 | S39: -769 | U39: 0 | W39: 620,712 | Y39: -127,825 | AA39: 492,887
B40: 2043 | C40: 793,854 | D40: -58,928 | E40: -4,200 | F40: -13,486 | G40: 717,241 | J40: -77,828 | K40: 13,486 | L40: -64,343 | M40: 6,134 | N40: 0 | O40: 1,465,313 | Q40: 1,697 | S40: -916 | U40: 0 | W40: 659,813 | Y40: -136,192 | AA40: 523,621
B41: 2044 | C41: 839,843 | D41: -61,383 | E41: -4,442 | F41: -12,318 | G41: 761,700 | J41: -78,682 | K41: 12,318 | L41: -66,364 | M41: 6,339 | N41: 0 | O41: 1,477,631 | Q41: 102 | S41: -427 | U41: 0 | W41: 701,350 | Y41: -145,058 | AA41: 556,292
B42: 2045 | C42: 888,497 | D42: -63,940 | E42: -4,699 | F42: -11,252 | G42: 808,606 | J42: -79,053 | K42: 11,252 | L42: -67,801 | M42: 6,577 | N42: 0 | O42: 1,488,883 | Q42: -2,021 | S42: -109,608 | U42: 0 | W42: 635,752 | Y42: -154,585 | AA42: 481,167
B43: 2046 | C43: 939,969 | D43: -66,604 | E43: -4,982 | F43: -10,278 | G43: 858,105 | J43: -78,117 | K43: -100,215 | L43: -178,332 | M43: 9,007 | N43: 0 | O43: 1,388,668 | Q43: -4,722 | S43: -361 | U43: 0 | W43: 683,697 | Y43: -165,426 | AA43: 518,271
B44: 2047 | C44: 993,785 | D44: -69,494 | E44: -5,265 | F44: -11,713 | G44: 907,312 | J44: -72,631 | K44: -108,126 | L44: -180,757 | M44: 9,126 | N44: 0 | O44: 1,280,542 | Q44: -4,758 | S44: -342 | U44: 0 | W44: 730,581 | Y44: -177,196 | AA44: 553,385
B45: 2048 | C45: 1,050,682 | D45: -72,510 | E45: -5,566 | F45: -13,348 | G45: 959,258 | J45: -66,831 | K45: -122,399 | L45: -189,230 | M45: 9,465 | N45: 0 | O45: 1,158,144 | Q45: -4,012 | S45: 357 | U45: 0 | W45: 775,838 | Y45: -189,683 | AA45: 586,155
B46: 2049 | C46: 1,110,837 | D46: -75,657 | E46: -5,883 | F46: -15,212 | G46: 1,014,084 | J46: -61,063 | K46: -128,825 | L46: -189,888 | M46: 9,788 | N46: 0 | O46: 1,029,319 | Q46: -2,431 | S46: -14,410 | U46: 0 | W46: 817,143 | Y46: -202,798 | AA46: 614,346
B47: 2050 | C47: 1,174,435 | D47: -78,940 | E47: -6,220 | F47: -17,336 | G47: 1,071,938 | J47: -52,909 | K47: -150,379 | L47: -203,288 | M47: 10,382 | N47: 0 | O47: 878,940 | Q47: 51 | S47: 215 | U47: 0 | W47: 879,298 | Y47: -217,144 | AA47: 662,154
B48: 2051 | C48: 1,241,675 | D48: -82,366 | E48: -6,575 | F48: -19,757 | G48: 1,132,977 | J48: -44,802 | K48: -158,274 | L48: -203,076 | M48: 10,651 | N48: 0 | O48: 720,666 | Q48: 3,511 | S48: 127 | U48: 0 | W48: 944,190 | Y48: -232,123 | AA48: 712,067
B49: 2052 | C49: 1,299,492 | D49: -85,448 | E49: -6,879 | F49: -18,361 | G49: 1,188,804 | J49: -36,369 | K49: -166,583 | L49: -202,952 | M49: 10,806 | N49: 0 | O49: 554,083 | Q49: 2,589 | S49: 337 | U49: 0 | W49: 999,585 | Y49: -245,226 | AA49: 754,358
B50: 2053 | C50: 1,357,551 | D50: -88,645 | E50: -7,198 | F50: -17,064 | G50: 1,244,645 | J50: -27,289 | K50: -175,329 | L50: -202,618 | M50: 10,971 | N50: 0 | O50: 378,755 | Q50: 662 | S50: 250 | U50: 0 | W50: 1,053,911 | Y50: -258,524 | AA50: 795,386
B51: 2054 | C51: 1,394,941 | D51: -91,962 | E51: -7,531 | F51: -15,858 | G51: 1,279,590 | J51: -17,837 | K51: -184,533 | L51: -202,371 | M51: 11,072 | N51: 0 | O51: 194,221 | Q51: -2,475 | S51: 263 | U51: 0 | W51: 1,086,080 | Y51: -267,551 | AA51: 818,529
B52: 2055 | C52: 1,458,245 | D52: -95,403 | E52: -7,880 | F52: -14,737 | G52: 1,340,225 | J52: -7,889 | K52: -194,221 | L52: -202,110 | M52: 11,355 | N52: 0 | O52: 0 | Q52: 45,398 | S52: 201,975 | U52: 0 | W52: 1,396,843 | Y52: -282,166 | AA52: 1,114,677
B53: 2056 | C53: 1,524,536 | D53: -98,972 | E53: -8,235 | F53: -156,965 | G53: 1,260,363 | J53: 0 | K53: 0 | L53: 0 | M53: 9,643 | N53: 0 | O53: 0 | Q53: 0 | S53: 0 | U53: 0 | W53: 1,270,006 | Y53: -296,561 | AA53: 973,445
B54: 2057 | C54: 1,580,646 | D54: -102,224 | E54: -8,539 | F54: 0 | G54: 1,469,883 | J54: 0 | K54: 0 | L54: 0 | M54: 9,737 | N54: 0 | O54: 0 | Q54: 0 | S54: 0 | U54: 0 | W54: 1,479,620 | Y54: -307,652 | AA54: 1,171,969
B55: 2058 | C55: 1,638,992 | D55: -105,582 | E55: -8,853 | F55: 0 | G55: 1,524,557 | J55: 0 | K55: 0 | L55: 0 | M55: 9,624 | N55: 0 | O55: 0 | Q55: 0 | S55: 0 | U55: 0 | W55: 1,534,181 | Y55: -319,075 | AA55: 1,215,106
B56: 2059 | C56: 1,699,162 | D56: -109,050 | E56: -9,178 | F56: 0 | G56: 1,580,934 | J56: 0 | K56: 0 | L56: 0 | M56: 9,435 | N56: 0 | O56: 0 | Q56: 0 | S56: 0 | U56: 0 | W56: 1,590,369 | Y56: -330,760 | AA56: 1,259,608
B57: 2060 | C57: 1,623,778 | D57: -112,632 | E57: -9,511 | F57: 0 | G57: 1,501,635 | J57: 0 | K57: 0 | L57: 0 | M57: 8,509 | N57: 0 | O57: 0 | Q57: 0 | S57: 0 | U57: 0 | W57: 1,510,144 | Y57: -313,705 | AA57: 1,196,439
B58: 2061 | C58: 406,337 | D58: -28,685 | E58: -2,431 | F58: -97,374 | G58: 277,848 | J58: 0 | K58: 0 | L58: 0 | M58: 1,940 | N58: 0 | O58: 0 | Q58: 0 | S58: 0 | U58: 0 | W58: 279,788 | Y58: -24,747 | AA58: 255,042
C59: =+SUM(C15:C58) -> 31,174,222 | D59: =+SUM(D15:D58) -> -2,366,388 | E59: =+SUM(E15:E58) -> -167,120 | F59: =+SUM(F15:F58) -> -653,094 | G59: =+SUM(G15:G58) -> 27,987,620 | J59: =+SUM(J15:J58) -> -2,328,256 | K59: =+SUM(K15:K58) -> -1,248,465 | L59: =+SUM(L15:L58) -> -3,576,720 | M59: =+SUM(M15:M58) -> 246,032 | N59: =+SUM(N15:N58) -> 54,490 | O59: N.A | Q59: =+SUM(Q15:Q48) -> -26,175 | S59: =+SUM(S15:S48) -> -162,826 | U59: =+SUM(U15:U48) -> 92,381 | W59: N.A | Y59: N.A | AA59: N.A
E107: 2017 | F107: =+E107+1 -> 2018 | G107: 2019 | H107: 2020 | I107: 2021 | J107: 2022 | K107: 2023 | L107: 2024 | M107: 2025 | N107: 2026 | O107: 2027 | P107: 2028 | Q107: 2029 | R107: 2030 | S107: 2031 | T107: 2032 | U107: 2033 | V107: 2034 | W107: 2035 | X107: 2036 | Y107: 2037 | Z107: 2038 | AA107: 2039 | AB107: 2040 | AC107: 2041 | AD107: 2042 | AE107: 2043 | AF107: 2044 | AG107: 2045 | AH107: 2046 | AI107: 2047 | AJ107: 2048 | AK107: 2049 | AL107: 2050 | AM107: 2051 | AN107: 2052 | AO107: 2053 | AP107: 2054 | AQ107: 2055 | AR107: 2056 | AS107: 2057 | AT107: 2058 | AU107: 2059 | AV107: 2060 | AW107: 2061
B108: Revenues | E108: =+CF!R25+CF!R26+CF!R33+CF!R30 -> 0.00 | F108: =+CF!S25+CF!S26+CF!S33+CF!S30 -> 100,675.38 | G108: =+CF!T25+CF!T26+CF!T33+CF!T30 -> 110,892.63 | H108: =+CF!U25+CF!U26+CF!U33+CF!U30 -> 122,977.44 | I108: =+CF!V25+CF!V26+CF!V33+CF!V30 -> 136,379.22 | J108: =+CF!W25+CF!W26+CF!W33+CF!W30 -> 147,989.65 | K108: =+CF!X25+CF!X26+CF!X33+CF!X30 -> 160,588.51 | L108: =+CF!Y25+CF!Y26+CF!Y33+CF!Y30 -> 174,259.96 | M108: =+CF!Z25+CF!Z26+CF!Z33+CF!Z30 -> 189,095.30 | N108: =+CF!AA25+CF!AA26+CF!AA33+CF!AA30 -> 205,193.62 | O108: =+CF!AB25+CF!AB26+CF!AB33+CF!AB30 -> 218,151.69 | P108: =+CF!AC25+CF!AC26+CF!AC33+CF!AC30 -> 231,928.06 | Q108: =+CF!AD25+CF!AD26+CF!AD33+CF!AD30 -> 246,574.42 | R108: =+CF!AE25+CF!AE26+CF!AE33+CF!AE30 -> 262,145.70 | S108: =+CF!AF25+CF!AF26+CF!AF33+CF!AF30 -> 278,700.31 | T108: =+CF!AG25+CF!AG26+CF!AG33+CF!AG30 -> 305,795.33 | U108: =+CF!AH25+CF!AH26+CF!AH33+CF!AH30 -> 335,524.51 | V108: =+CF!AI25+CF!AI26+CF!AI33+CF!AI30 -> 368,143.93 | W108: =+CF!AJ25+CF!AJ26+CF!AJ33+CF!AJ30 -> 403,934.59 | X108: =+CF!AK25+CF!AK26+CF!AK33+CF!AK30 -> 443,204.78 | Y108: =+CF!AL25+CF!AL26+CF!AL33+CF!AL30 -> 486,909.91 | Z108: =+CF!AM25+CF!AM26+CF!AM33+CF!AM30 -> 534,924.86 | AA108: =+CF!AN25+CF!AN26+CF!AN33+CF!AN30 -> 587,674.65 | AB108: =+CF!AO25+CF!AO26+CF!AO33+CF!AO30 -> 645,626.17 | AC108: =+CF!AP25+CF!AP26+CF!AP33+CF!AP30 -> 709,292.39 | AD108: =+CF!AQ25+CF!AQ26+CF!AQ33+CF!AQ30 -> 750,382.91 | AE108: =+CF!AR25+CF!AR26+CF!AR33+CF!AR30 -> 793,853.87 | AF108: =+CF!AS25+CF!AS26+CF!AS33+CF!AS30 -> 839,843.18 | AG108: =+CF!AT25+CF!AT26+CF!AT33+CF!AT30 -> 888,496.73 | AH108: =+CF!AU25+CF!AU26+CF!AU33+CF!AU30 -> 939,968.86 | AI108: =+CF!AV25+CF!AV26+CF!AV33+CF!AV30 -> 993,784.82 | AJ108: =+CF!AW25+CF!AW26+CF!AW33+CF!AW30 -> 1,050,681.90 | AK108: =+CF!AX25+CF!AX26+CF!AX33+CF!AX30 -> 1,110,836.50 | AL108: =+CF!AY25+CF!AY26+CF!AY33+CF!AY30 -> 1,174,435.13 | AM108: =+CF!AZ25+CF!AZ26+CF!AZ33+CF!AZ30 -> 1,241,674.97 | AN108: =+CF!BA25+CF!BA26+CF!BA33+CF!BA30 -> 1,299,492.44 | AO108: =+CF!BB25+CF!BB26+CF!BB33+CF!BB30 -> 1,357,551.06 | AP108: =+CF!BC25+CF!BC26+CF!BC33+CF!BC30 -> 1,394,940.82 | AQ108: =+CF!BD25+CF!BD26+CF!BD33+CF!BD30 -> 1,458,244.93 | AR108: =+CF!BE25+CF!BE26+CF!BE33+CF!BE30 -> 1,524,535.84 | AS108: =+CF!BF25+CF!BF26+CF!BF33+CF!BF30 -> 1,580,645.93 | AT108: =+CF!BG25+CF!BG26+CF!BG33+CF!BG30 -> 1,638,991.53 | AU108: =+CF!BH25+CF!BH26+CF!BH33+CF!BH30 -> 1,699,161.84 | AV108: =+CF!BI25+CF!BI26+CF!BI33+CF!BI30 -> 1,623,778.30 | AW108: =+CF!BJ25+CF!BJ26+CF!BJ33+CF!BJ30 -> 406,337.47
B109: OPEX | E109: =+CF!R27 -> 0.00 | F109: =+CF!S27 -> -17,116.80 | G109: =+CF!T27 -> -18,251.72 | H109: =+CF!U27 -> -19,461.88 | I109: =+CF!V27 -> -20,752.28 | J109: =+CF!W27 -> -21,619.77 | K109: =+CF!X27 -> -22,523.52 | L109: =+CF!Y27 -> -23,465.06 | M109: =+CF!Z27 -> -24,445.95 | N109: =+CF!AA27 -> -25,467.84 | O109: =+CF!AB27 -> -26,490.99 | P109: =+CF!AC27 -> -27,555.25 | Q109: =+CF!AD27 -> -28,662.26 | R109: =+CF!AE27 -> -29,813.74 | S109: =+CF!AF27 -> -31,011.49 | T109: =+CF!AG27 -> -32,710.13 | U109: =+CF!AH27 -> -34,501.82 | V109: =+CF!AI27 -> -36,391.65 | W109: =+CF!AJ27 -> -38,384.99 | X109: =+CF!AK27 -> -40,487.52 | Y109: =+CF!AL27 -> -42,936.80 | Z109: =+CF!AM27 -> -45,534.25 | AA109: =+CF!AN27 -> -48,288.84 | AB109: =+CF!AO27 -> -51,210.06 | AC109: =+CF!AP27 -> -54,308.00 | AD109: =+CF!AQ27 -> -56,570.63 | AE109: =+CF!AR27 -> -58,927.53 | AF109: =+CF!AS27 -> -61,382.63 | AG109: =+CF!AT27 -> -63,940.01 | AH109: =+CF!AU27 -> -66,603.95 | AI109: =+CF!AV27 -> -69,494.38 | AJ109: =+CF!AW27 -> -72,510.26 | AK109: =+CF!AX27 -> -75,657.01 | AL109: =+CF!AY27 -> -78,940.33 | AM109: =+CF!AZ27 -> -82,366.13 | AN109: =+CF!BA27 -> -85,447.99 | AO109: =+CF!BB27 -> -88,645.15 | AP109: =+CF!BC27 -> -91,961.95 | AQ109: =+CF!BD27 -> -95,402.84 | AR109: =+CF!BE27 -> -98,972.49 | AS109: =+CF!BF27 -> -102,223.66 | AT109: =+CF!BG27 -> -105,581.62 | AU109: =+CF!BH27 -> -109,049.90 | AV109: =+CF!BI27 -> -112,632.10 | AW109: =+CF!BJ27 -> -28,684.60
B110: Taxes | E110: =+CF!R32 -> 0.00 | F110: =+CF!S32 -> -361.09 | G110: =+CF!T32 -> -597.59 | H110: =+CF!U32 -> -650.57 | I110: =+CF!V32 -> -722.19 | J110: =+CF!W32 -> -784.26 | K110: =+CF!X32 -> -851.32 | L110: =+CF!Y32 -> -923.96 | M110: =+CF!Z32 -> -1,002.74 | N110: =+CF!AA32 -> -1,088.16 | O110: =+CF!AB32 -> -1,156.91 | P110: =+CF!AC32 -> -1,229.86 | Q110: =+CF!AD32 -> -1,307.21 | R110: =+CF!AE32 -> -1,389.81 | S110: =+CF!AF32 -> -1,477.33 | T110: =+CF!AG32 -> -1,620.33 | U110: =+CF!AH32 -> -1,777.81 | V110: =+CF!AI32 -> -1,950.67 | W110: =+CF!AJ32 -> -2,140.44 | X110: =+CF!AK32 -> -2,348.21 | Y110: =+CF!AL32 -> -2,578.96 | Z110: =+CF!AM32 -> -2,833.54 | AA110: =+CF!AN32 -> -3,114.90 | AB110: =+CF!AO32 -> -3,419.27 | AC110: =+CF!AP32 -> -3,754.88 | AD110: =+CF!AQ32 -> -3,970.83 | AE110: =+CF!AR32 -> -4,199.94 | AF110: =+CF!AS32 -> -4,442.46 | AG110: =+CF!AT32 -> -4,699.14 | AH110: =+CF!AU32 -> -4,982.12 | AI110: =+CF!AV32 -> -5,265.28 | AJ110: =+CF!AW32 -> -5,565.77 | AK110: =+CF!AX32 -> -5,883.28 | AL110: =+CF!AY32 -> -6,220.29 | AM110: =+CF!AZ32 -> -6,574.71 | AN110: =+CF!BA32 -> -6,879.07 | AO110: =+CF!BB32 -> -7,197.61 | AP110: =+CF!BC32 -> -7,530.61 | AQ110: =+CF!BD32 -> -7,880.04 | AR110: =+CF!BE32 -> -8,235.20 | AS110: =+CF!BF32 -> -8,538.94 | AT110: =+CF!BG32 -> -8,852.82 | AU110: =+CF!BH32 -> -9,177.96 | AV110: =+CF!BI32 -> -9,511.30 | AW110: =+CF!BJ32 -> -2,430.91
B111: CAPEX | E111: =+CF!R28+CF!R29+CF!R31 -> 0.00 | F111: =+CF!S28+CF!S29+CF!S31 -> -2,401.05 | G111: =+CF!T28+CF!T29+CF!T31 -> -2,271.90 | H111: =+CF!U28+CF!U29+CF!U31 -> -3,321.34 | I111: =+CF!V28+CF!V29+CF!V31 -> -4,855.53 | J111: =+CF!W28+CF!W29+CF!W31 -> -5,234.72 | K111: =+CF!X28+CF!X29+CF!X31 -> -5,643.53 | L111: =+CF!Y28+CF!Y29+CF!Y31 -> -6,084.26 | M111: =+CF!Z28+CF!Z29+CF!Z31 -> -6,559.41 | N111: =+CF!AA28+CF!AA29+CF!AA31 -> -7,071.67 | O111: =+CF!AB28+CF!AB29+CF!AB31 -> -7,112.68 | P111: =+CF!AC28+CF!AC29+CF!AC31 -> -7,153.92 | Q111: =+CF!AD28+CF!AD29+CF!AD31 -> -7,195.40 | R111: =+CF!AE28+CF!AE29+CF!AE31 -> -7,237.12 | S111: =+CF!AF28+CF!AF29+CF!AF31 -> -7,279.09 | T111: =+CF!AG28+CF!AG29+CF!AG31 -> -7,825.08 | U111: =+CF!AH28+CF!AH29+CF!AH31 -> -8,412.04 | V111: =+CF!AI28+CF!AI29+CF!AI31 -> -9,043.02 | W111: =+CF!AJ28+CF!AJ29+CF!AJ31 -> -9,721.33 | X111: =+CF!AK28+CF!AK29+CF!AK31 -> -10,450.52 | Y111: =+CF!AL28+CF!AL29+CF!AL31 -> -11,402.94 | Z111: =+CF!AM28+CF!AM29+CF!AM31 -> -12,442.16 | AA111: =+CF!AN28+CF!AN29+CF!AN31 -> -13,576.09 | AB111: =+CF!AO28+CF!AO29+CF!AO31 -> -14,813.36 | AC111: =+CF!AP28+CF!AP29+CF!AP31 -> -16,163.39 | AD111: =+CF!AQ28+CF!AQ29+CF!AQ31 -> -14,764.03 | AE111: =+CF!AR28+CF!AR29+CF!AR31 -> -13,485.82 | AF111: =+CF!AS28+CF!AS29+CF!AS31 -> -12,318.27 | AG111: =+CF!AT28+CF!AT29+CF!AT31 -> -11,251.80 | AH111: =+CF!AU28+CF!AU29+CF!AU31 -> -10,277.66 | AI111: =+CF!AV28+CF!AV29+CF!AV31 -> -11,712.77 | AJ111: =+CF!AW28+CF!AW29+CF!AW31 -> -13,348.28 | AK111: =+CF!AX28+CF!AX29+CF!AX31 -> -15,212.15 | AL111: =+CF!AY28+CF!AY29+CF!AY31 -> -17,336.29 | AM111: =+CF!AZ28+CF!AZ29+CF!AZ31 -> -19,757.02 | AN111: =+CF!BA28+CF!BA29+CF!BA31 -> -18,360.97 | AO111: =+CF!BB28+CF!BB29+CF!BB31 -> -17,063.57 | AP111: =+CF!BC28+CF!BC29+CF!BC31 -> -15,857.84 | AQ111: =+CF!BD28+CF!BD29+CF!BD31 -> -14,737.31 | AR111: =+CF!BE28+CF!BE29+CF!BE31 -> -156,965.01 | AS111: =+CF!BF28+CF!BF29+CF!BF31 -> 0.00 | AT111: =+CF!BG28+CF!BG29+CF!BG31 -> 0.00 | AU111: =+CF!BH28+CF!BH29+CF!BH31 -> 0.00 | AV111: =+CF!BI28+CF!BI29+CF!BI31 -> 0.00 | AW111: =+CF!BJ28+CF!BJ29+CF!BJ31 -> -97,373.82
B112: CFADS | E112: =SUM(E108:E111) -> 0.00 | F112: 80,796.44 | G112: 89,771.43 | H112: 99,543.66 | I112: 110,049.22 | J112: 120,350.90 | K112: 131,570.13 | L112: 143,786.67 | M112: 157,087.20 | N112: 171,565.95 | O112: 183,391.11 | P112: 195,989.04 | Q112: 209,409.55 | R112: 223,705.03 | S112: 238,932.41 | T112: 263,639.78 | U112: 290,832.84 | V112: 320,758.60 | W112: 353,687.83 | X112: 389,918.54 | Y112: 429,991.21 | Z112: 474,114.91 | AA112: 522,694.83 | AB112: 576,183.48 | AC112: 635,066.12 | AD112: 675,077.42 | AE112: 717,240.58 | AF112: 761,699.82 | AG112: 808,605.78 | AH112: 858,105.13 | AI112: 907,312.38 | AJ112: 959,257.59 | AK112: 1,014,084.06 | AL112: 1,071,938.23 | AM112: =SUM(AM108:AM111) -> 1,132,977.10 | AN112: 1,188,804.42 | AO112: 1,244,644.73 | AP112: 1,279,590.42 | AQ112: 1,340,224.74 | AR112: 1,260,363.14 | AS112: 1,469,883.34 | AT112: 1,524,557.09 | AU112: 1,580,933.99 | AV112: 1,501,634.89 | AW112: 277,848.14
B114: Debt
B115: Interests and fees | E115: =+SUM(CF!R38:R39) -> 0.00 | F115: =+SUM(CF!S38:S39) -> -27,873.78 | G115: =+SUM(CF!T38:T39) -> -51,331.87 | H115: =+SUM(CF!U38:U39) -> -64,057.54 | I115: =+SUM(CF!V38:V39) -> -60,574.30 | J115: =+SUM(CF!W38:W39) -> -60,817.56 | K115: =+SUM(CF!X38:X39) -> -61,079.64 | L115: =+SUM(CF!Y38:Y39) -> -61,463.87 | M115: =+SUM(CF!Z38:Z39) -> -61,915.30 | N115: =+SUM(CF!AA38:AA39) -> -62,350.74 | O115: =+SUM(CF!AB38:AB39) -> -62,735.83 | P115: =+SUM(CF!AC38:AC39) -> -63,162.40 | Q115: =+SUM(CF!AD38:AD39) -> -64,019.54 | R115: =+SUM(CF!AE38:AE39) -> -67,951.26 | S115: =+SUM(CF!AF38:AF39) -> -64,699.23 | T115: =+SUM(CF!AG38:AG39) -> -65,401.83 | U115: =+SUM(CF!AH38:AH39) -> -66,075.51 | V115: =+SUM(CF!AI38:AI39) -> -67,150.39 | W115: =+SUM(CF!AJ38:AJ39) -> -68,472.75 | X115: =+SUM(CF!AK38:AK39) -> -70,005.25 | Y115: =+SUM(CF!AL38:AL39) -> -71,540.72 | Z115: =+SUM(CF!AM38:AM39) -> -74,162.49 | AA115: =+SUM(CF!AN38:AN39) -> -77,735.16 | AB115: =+SUM(CF!AO38:AO39) -> -78,887.09 | AC115: =+SUM(CF!AP38:AP39) -> -76,361.59 | AD115: =+SUM(CF!AQ38:AQ39) -> -77,128.01 | AE115: =+SUM(CF!AR38:AR39) -> -77,828.32 | AF115: =+SUM(CF!AS38:AS39) -> -78,682.40 | AG115: =+SUM(CF!AT38:AT39) -> -79,053.05 | AH115: =+SUM(CF!AU38:AU39) -> -78,117.12 | AI115: =+SUM(CF!AV38:AV39) -> -72,630.69 | AJ115: =+SUM(CF!AW38:AW39) -> -66,830.97 | AK115: =+SUM(CF!AX38:AX39) -> -61,063.06 | AL115: =+SUM(CF!AY38:AY39) -> -52,909.30 | AM115: =+SUM(CF!AZ38:AZ39) -> -44,802.48 | AN115: =+SUM(CF!BA38:BA39) -> -36,369.00 | AO115: =+SUM(CF!BB38:BB39) -> -27,289.42 | AP115: =+SUM(CF!BC38:BC39) -> -17,837.30 | AQ115: =+SUM(CF!BD38:BD39) -> -7,888.86 | AR115: =+SUM(CF!BE38:BE39) -> 0.00 | AS115: =+SUM(CF!BF38:BF39) -> 0.00 | AT115: =+SUM(CF!BG38:BG39) -> 0.00 | AU115: =+SUM(CF!BH38:BH39) -> 0.00 | AV115: =+SUM(CF!BI38:BI39) -> 0.00 | AW115: =+SUM(CF!BJ38:BJ39) -> 0.00
B116: Repayment | E116: =+SUM(CF!R37,CF!R40) -> 0.00 | F116: =+SUM(CF!S37,CF!S40) -> 0.00 | G116: =+SUM(CF!T37,CF!T40) -> 0.00 | H116: =+SUM(CF!U37,CF!U40) -> 3,321.34 | I116: =+SUM(CF!V37,CF!V40) -> 4,855.53 | J116: =+SUM(CF!W37,CF!W40) -> 5,234.72 | K116: =+SUM(CF!X37,CF!X40) -> 5,643.53 | L116: =+SUM(CF!Y37,CF!Y40) -> 6,084.26 | M116: =+SUM(CF!Z37,CF!Z40) -> 6,559.41 | N116: =+SUM(CF!AA37,CF!AA40) -> 7,071.67 | O116: =+SUM(CF!AB37,CF!AB40) -> 7,112.68 | P116: =+SUM(CF!AC37,CF!AC40) -> 7,153.92 | Q116: =+SUM(CF!AD37,CF!AD40) -> 7,195.40 | R116: =+SUM(CF!AE37,CF!AE40) -> 7,237.12 | S116: =+SUM(CF!AF37,CF!AF40) -> 7,279.09 | T116: =+SUM(CF!AG37,CF!AG40) -> 7,825.08 | U116: =+SUM(CF!AH37,CF!AH40) -> 8,412.04 | V116: =+SUM(CF!AI37,CF!AI40) -> 9,043.02 | W116: =+SUM(CF!AJ37,CF!AJ40) -> 9,721.33 | X116: =+SUM(CF!AK37,CF!AK40) -> 10,450.52 | Y116: =+SUM(CF!AL37,CF!AL40) -> 11,402.94 | Z116: =+SUM(CF!AM37,CF!AM40) -> 12,442.16 | AA116: =+SUM(CF!AN37,CF!AN40) -> 13,576.09 | AB116: =+SUM(CF!AO37,CF!AO40) -> 14,813.36 | AC116: =+SUM(CF!AP37,CF!AP40) -> 16,163.39 | AD116: =+SUM(CF!AQ37,CF!AQ40) -> 14,764.03 | AE116: =+SUM(CF!AR37,CF!AR40) -> 13,485.82 | AF116: =+SUM(CF!AS37,CF!AS40) -> 12,318.27 | AG116: =+SUM(CF!AT37,CF!AT40) -> 11,251.80 | AH116: =+SUM(CF!AU37,CF!AU40) -> -100,214.76 | AI116: =+SUM(CF!AV37,CF!AV40) -> -108,126.30 | AJ116: =+SUM(CF!AW37,CF!AW40) -> -122,398.67 | AK116: =+SUM(CF!AX37,CF!AX40) -> -128,824.60 | AL116: =+SUM(CF!AY37,CF!AY40) -> -150,378.78 | AM116: =+SUM(CF!AZ37,CF!AZ40) -> -158,273.67 | AN116: =+SUM(CF!BA37,CF!BA40) -> -166,583.04 | AO116: =+SUM(CF!BB37,CF!BB40) -> -175,328.64 | AP116: =+SUM(CF!BC37,CF!BC40) -> -184,533.40 | AQ116: =+SUM(CF!BD37,CF!BD40) -> -194,221.40 | AR116: =+SUM(CF!BE37,CF!BE40) -> 0.00 | AS116: =+SUM(CF!BF37,CF!BF40) -> 0.00 | AT116: =+SUM(CF!BG37,CF!BG40) -> 0.00 | AU116: =+SUM(CF!BH37,CF!BH40) -> 0.00 | AV116: =+SUM(CF!BI37,CF!BI40) -> 0.00 | AW116: =+SUM(CF!BJ37,CF!BJ40) -> 0.00
B117: Total Debt Service | E117: =SUM(E115:E116) -> 0.00 | F117: -27,873.78 | G117: -51,331.87 | H117: -60,736.20 | I117: -55,718.77 | J117: -55,582.83 | K117: -55,436.11 | L117: -55,379.60 | M117: -55,355.89 | N117: -55,279.07 | O117: -55,623.16 | P117: -56,008.48 | Q117: -56,824.14 | R117: -60,714.14 | S117: -57,420.14 | T117: -57,576.75 | U117: -57,663.47 | V117: -58,107.37 | W117: -58,751.42 | X117: -59,554.73 | Y117: -60,137.79 | Z117: -61,720.33 | AA117: -64,159.07 | AB117: -64,073.73 | AC117: -60,198.19 | AD117: -62,363.98 | AE117: -64,342.50 | AF117: -66,364.13 | AG117: -67,801.25 | AH117: -178,331.88 | AI117: -180,756.99 | AJ117: -189,229.64 | AK117: -189,887.66 | AL117: -203,288.09 | AM117: -203,076.15 | AN117: -202,952.03 | AO117: -202,618.06 | AP117: -202,370.70 | AQ117: =SUM(AQ115:AQ116) -> -202,110.26 | AR117: 0.00 | AS117: 0.00 | AT117: 0.00 | AU117: 0.00 | AV117: 0.00 | AW117: 0.00
B118: Interest income | E118: =+CF!R43 -> 0.00 | F118: =+CF!S43 -> 0.00 | G118: =+CF!T43 -> 2,933.94 | H118: =+CF!U43 -> 940.64 | I118: =+CF!V43 -> 1,180.35 | J118: =+CF!W43 -> 1,392.86 | K118: =+CF!X43 -> 1,567.89 | L118: =+CF!Y43 -> 1,733.27 | M118: =+CF!Z43 -> 1,902.98 | N118: =+CF!AA43 -> 2,074.74 | O118: =+CF!AB43 -> 2,212.86 | P118: =+CF!AC43 -> 2,330.38 | Q118: =+CF!AD43 -> 2,418.30 | R118: =+CF!AE43 -> 2,579.09 | S118: =+CF!AF43 -> 2,696.18 | T118: =+CF!AG43 -> 2,839.67 | U118: =+CF!AH43 -> 3,105.92 | V118: =+CF!AI43 -> 3,411.58 | W118: =+CF!AJ43 -> 3,768.09 | X118: =+CF!AK43 -> 4,073.63 | Y118: =+CF!AL43 -> 4,320.62 | Z118: =+CF!AM43 -> 4,797.27 | AA118: =+CF!AN43 -> 5,638.70 | AB118: =+CF!AO43 -> 5,664.27 | AC118: =+CF!AP43 -> 5,923.27 | AD118: =+CF!AQ43 -> 5,964.87 | AE118: =+CF!AR43 -> 6,134.15 | AF118: =+CF!AS43 -> 6,339.19 | AG118: =+CF!AT43 -> 6,577.32 | AH118: =+CF!AU43 -> 9,006.50 | AI118: =+CF!AV43 -> 9,125.91 | AJ118: =+CF!AW43 -> 9,465.10 | AK118: =+CF!AX43 -> 9,787.80 | AL118: =+CF!AY43 -> 10,381.74 | AM118: =+CF!AZ43 -> 10,650.77 | AN118: =+CF!BA43 -> 10,806.02 | AO118: =+CF!BB43 -> 10,971.41 | AP118: =+CF!BC43 -> 11,072.16 | AQ118: =+CF!BD43 -> 11,355.31 | AR118: =+CF!BE43 -> 9,642.61 | AS118: =+CF!BF43 -> 9,736.92 | AT118: =+CF!BG43 -> 9,624.18 | AU118: =+CF!BH43 -> 9,434.90 | AV118: =+CF!BI43 -> 8,508.71 | AW118: =+CF!BJ43 -> 1,940.29
B119: Capitalized interest | E119: =+Fin!R22+Fin!R23+Fin!R30+Fin!R31+Fin!R38+Fin!R39++Fin!R40+Fin!R54+Fin!R55 -> 34,706.68 | F119: =+Fin!S22+Fin!S23+Fin!S30+Fin!S31+Fin!S38+Fin!S39++Fin!S40+Fin!S54+Fin!S55 -> 36,293.17 | G119: =+Fin!T22+Fin!T23+Fin!T30+Fin!T31+Fin!T38+Fin!T39++Fin!T40+Fin!T54+Fin!T55 -> 18,197.18 | H119: =+Fin!U22+Fin!U23+Fin!U30+Fin!U31+Fin!U38+Fin!U39++Fin!U40+Fin!U54+Fin!U55 -> 0.00 | I119: =+Fin!V22+Fin!V23+Fin!V30+Fin!V31+Fin!V38+Fin!V39++Fin!V40+Fin!V54+Fin!V55 -> 0.00 | J119: =+Fin!W22+Fin!W23+Fin!W30+Fin!W31+Fin!W38+Fin!W39++Fin!W40+Fin!W54+Fin!W55 -> 0.00 | K119: =+Fin!X22+Fin!X23+Fin!X30+Fin!X31+Fin!X38+Fin!X39++Fin!X40+Fin!X54+Fin!X55 -> 0.00 | L119: =+Fin!Y22+Fin!Y23+Fin!Y30+Fin!Y31+Fin!Y38+Fin!Y39++Fin!Y40+Fin!Y54+Fin!Y55 -> 0.00 | M119: =+Fin!Z22+Fin!Z23+Fin!Z30+Fin!Z31+Fin!Z38+Fin!Z39++Fin!Z40+Fin!Z54+Fin!Z55 -> 0.00 | N119: =+Fin!AA22+Fin!AA23+Fin!AA30+Fin!AA31+Fin!AA38+Fin!AA39++Fin!AA40+Fin!AA54+Fin!AA55 -> 0.00 | O119: =+Fin!AB22+Fin!AB23+Fin!AB30+Fin!AB31+Fin!AB38+Fin!AB39++Fin!AB40+Fin!AB54+Fin!AB55 -> 0.00 | P119: =+Fin!AC22+Fin!AC23+Fin!AC30+Fin!AC31+Fin!AC38+Fin!AC39++Fin!AC40+Fin!AC54+Fin!AC55 -> 0.00 | Q119: =+Fin!AD22+Fin!AD23+Fin!AD30+Fin!AD31+Fin!AD38+Fin!AD39++Fin!AD40+Fin!AD54+Fin!AD55 -> 0.00 | R119: =+Fin!AE22+Fin!AE23+Fin!AE30+Fin!AE31+Fin!AE38+Fin!AE39++Fin!AE40+Fin!AE54+Fin!AE55 -> 0.00 | S119: =+Fin!AF22+Fin!AF23+Fin!AF30+Fin!AF31+Fin!AF38+Fin!AF39++Fin!AF40+Fin!AF54+Fin!AF55 -> 0.00 | T119: =+Fin!AG22+Fin!AG23+Fin!AG30+Fin!AG31+Fin!AG38+Fin!AG39++Fin!AG40+Fin!AG54+Fin!AG55 -> 0.00 | U119: =+Fin!AH22+Fin!AH23+Fin!AH30+Fin!AH31+Fin!AH38+Fin!AH39++Fin!AH40+Fin!AH54+Fin!AH55 -> 0.00 | V119: =+Fin!AI22+Fin!AI23+Fin!AI30+Fin!AI31+Fin!AI38+Fin!AI39++Fin!AI40+Fin!AI54+Fin!AI55 -> 0.00 | W119: =+Fin!AJ22+Fin!AJ23+Fin!AJ30+Fin!AJ31+Fin!AJ38+Fin!AJ39++Fin!AJ40+Fin!AJ54+Fin!AJ55 -> 0.00 | X119: =+Fin!AK22+Fin!AK23+Fin!AK30+Fin!AK31+Fin!AK38+Fin!AK39++Fin!AK40+Fin!AK54+Fin!AK55 -> 0.00 | Y119: =+Fin!AL22+Fin!AL23+Fin!AL30+Fin!AL31+Fin!AL38+Fin!AL39++Fin!AL40+Fin!AL54+Fin!AL55 -> 0.00 | Z119: =+Fin!AM22+Fin!AM23+Fin!AM30+Fin!AM31+Fin!AM38+Fin!AM39++Fin!AM40+Fin!AM54+Fin!AM55 -> 0.00 | AA119: =+Fin!AN22+Fin!AN23+Fin!AN30+Fin!AN31+Fin!AN38+Fin!AN39++Fin!AN40+Fin!AN54+Fin!AN55 -> 0.00 | AB119: =+Fin!AO22+Fin!AO23+Fin!AO30+Fin!AO31+Fin!AO38+Fin!AO39++Fin!AO40+Fin!AO54+Fin!AO55 -> 0.00 | AC119: =+Fin!AP22+Fin!AP23+Fin!AP30+Fin!AP31+Fin!AP38+Fin!AP39++Fin!AP40+Fin!AP54+Fin!AP55 -> 0.00 | AD119: =+Fin!AQ22+Fin!AQ23+Fin!AQ30+Fin!AQ31+Fin!AQ38+Fin!AQ39++Fin!AQ40+Fin!AQ54+Fin!AQ55 -> 0.00 | AE119: =+Fin!AR22+Fin!AR23+Fin!AR30+Fin!AR31+Fin!AR38+Fin!AR39++Fin!AR40+Fin!AR54+Fin!AR55 -> 0.00 | AF119: =+Fin!AS22+Fin!AS23+Fin!AS30+Fin!AS31+Fin!AS38+Fin!AS39++Fin!AS40+Fin!AS54+Fin!AS55 -> 0.00 | AG119: =+Fin!AT22+Fin!AT23+Fin!AT30+Fin!AT31+Fin!AT38+Fin!AT39++Fin!AT40+Fin!AT54+Fin!AT55 -> 0.00 | AH119: =+Fin!AU22+Fin!AU23+Fin!AU30+Fin!AU31+Fin!AU38+Fin!AU39++Fin!AU40+Fin!AU54+Fin!AU55 -> 0.00 | AI119: =+Fin!AV22+Fin!AV23+Fin!AV30+Fin!AV31+Fin!AV38+Fin!AV39++Fin!AV40+Fin!AV54+Fin!AV55 -> 0.00 | AJ119: =+Fin!AW22+Fin!AW23+Fin!AW30+Fin!AW31+Fin!AW38+Fin!AW39++Fin!AW40+Fin!AW54+Fin!AW55 -> 0.00 | AK119: =+Fin!AX22+Fin!AX23+Fin!AX30+Fin!AX31+Fin!AX38+Fin!AX39++Fin!AX40+Fin!AX54+Fin!AX55 -> 0.00 | AL119: =+Fin!AY22+Fin!AY23+Fin!AY30+Fin!AY31+Fin!AY38+Fin!AY39++Fin!AY40+Fin!AY54+Fin!AY55 -> 0.00 | AM119: =+Fin!AZ22+Fin!AZ23+Fin!AZ30+Fin!AZ31+Fin!AZ38+Fin!AZ39++Fin!AZ40+Fin!AZ54+Fin!AZ55 -> 0.00 | AN119: =+Fin!BA22+Fin!BA23+Fin!BA30+Fin!BA31+Fin!BA38+Fin!BA39++Fin!BA40+Fin!BA54+Fin!BA55 -> 0.00 | AO119: =+Fin!BB22+Fin!BB23+Fin!BB30+Fin!BB31+Fin!BB38+Fin!BB39++Fin!BB40+Fin!BB54+Fin!BB55 -> 0.00 | AP119: =+Fin!BC22+Fin!BC23+Fin!BC30+Fin!BC31+Fin!BC38+Fin!BC39++Fin!BC40+Fin!BC54+Fin!BC55 -> 0.00 | AQ119: =+Fin!BD22+Fin!BD23+Fin!BD30+Fin!BD31+Fin!BD38+Fin!BD39++Fin!BD40+Fin!BD54+Fin!BD55 -> 0.00 | AR119: =+Fin!BE22+Fin!BE23+Fin!BE30+Fin!BE31+Fin!BE38+Fin!BE39++Fin!BE40+Fin!BE54+Fin!BE55 -> 0.00 | AS119: =+Fin!BF22+Fin!BF23+Fin!BF30+Fin!BF31+Fin!BF38+Fin!BF39++Fin!BF40+Fin!BF54+Fin!BF55 -> 0.00 | AT119: =+Fin!BG22+Fin!BG23+Fin!BG30+Fin!BG31+Fin!BG38+Fin!BG39++Fin!BG40+Fin!BG54+Fin!BG55 -> 0.00 | AU119: =+Fin!BH22+Fin!BH23+Fin!BH30+Fin!BH31+Fin!BH38+Fin!BH39++Fin!BH40+Fin!BH54+Fin!BH55 -> 0.00 | AV119: =+Fin!BI22+Fin!BI23+Fin!BI30+Fin!BI31+Fin!BI38+Fin!BI39++Fin!BI40+Fin!BI54+Fin!BI55 -> 0.00 | AW119: =+Fin!BJ22+Fin!BJ23+Fin!BJ30+Fin!BJ31+Fin!BJ38+Fin!BJ39++Fin!BJ40+Fin!BJ54+Fin!BJ55 -> 0.00
B120: Outstanding Debt | E120: =+Fin!R25+Fin!R33+Fin!R46+Fin!R57 -> 1,193,974.41 | F120: =+Fin!S25+Fin!S33+Fin!S46+Fin!S57 -> 1,230,267.59 | G120: =+Fin!T25+Fin!T33+Fin!T46+Fin!T57 -> 1,248,464.76 | H120: =+Fin!U25+Fin!U33+Fin!U46+Fin!U57 -> 1,251,786.10 | I120: =+Fin!V25+Fin!V33+Fin!V46+Fin!V57 -> 1,256,641.63 | J120: =+Fin!W25+Fin!W33+Fin!W46+Fin!W57 -> 1,261,876.35 | K120: =+Fin!X25+Fin!X33+Fin!X46+Fin!X57 -> 1,267,519.88 | L120: =+Fin!Y25+Fin!Y33+Fin!Y46+Fin!Y57 -> 1,273,604.15 | M120: =+Fin!Z25+Fin!Z33+Fin!Z46+Fin!Z57 -> 1,280,163.56 | N120: =+Fin!AA25+Fin!AA33+Fin!AA46+Fin!AA57 -> 1,287,235.23 | O120: =+Fin!AB25+Fin!AB33+Fin!AB46+Fin!AB57 -> 1,294,347.91 | P120: =+Fin!AC25+Fin!AC33+Fin!AC46+Fin!AC57 -> 1,301,501.83 | Q120: =+Fin!AD25+Fin!AD33+Fin!AD46+Fin!AD57 -> 1,308,697.23 | R120: =+Fin!AE25+Fin!AE33+Fin!AE46+Fin!AE57 -> 1,315,934.35 | S120: =+Fin!AF25+Fin!AF33+Fin!AF46+Fin!AF57 -> 1,323,213.43 | T120: =+Fin!AG25+Fin!AG33+Fin!AG46+Fin!AG57 -> 1,331,038.52 | U120: =+Fin!AH25+Fin!AH33+Fin!AH46+Fin!AH57 -> 1,339,450.55 | V120: =+Fin!AI25+Fin!AI33+Fin!AI46+Fin!AI57 -> 1,348,493.57 | W120: =+Fin!AJ25+Fin!AJ33+Fin!AJ46+Fin!AJ57 -> 1,358,214.90 | X120: =+Fin!AK25+Fin!AK33+Fin!AK46+Fin!AK57 -> 1,368,665.42 | Y120: =+Fin!AL25+Fin!AL33+Fin!AL46+Fin!AL57 -> 1,380,068.35 | Z120: =+Fin!AM25+Fin!AM33+Fin!AM46+Fin!AM57 -> 1,392,510.51 | AA120: =+Fin!AN25+Fin!AN33+Fin!AN46+Fin!AN57 -> 1,406,086.60 | AB120: =+Fin!AO25+Fin!AO33+Fin!AO46+Fin!AO57 -> 1,420,899.96 | AC120: =+Fin!AP25+Fin!AP33+Fin!AP46+Fin!AP57 -> 1,437,063.35 | AD120: =+Fin!AQ25+Fin!AQ33+Fin!AQ46+Fin!AQ57 -> 1,451,827.38 | AE120: =+Fin!AR25+Fin!AR33+Fin!AR46+Fin!AR57 -> 1,465,313.20 | AF120: =+Fin!AS25+Fin!AS33+Fin!AS46+Fin!AS57 -> 1,477,631.46 | AG120: =+Fin!AT25+Fin!AT33+Fin!AT46+Fin!AT57 -> 1,488,883.26 | AH120: =+Fin!AU25+Fin!AU33+Fin!AU46+Fin!AU57 -> 1,388,668.50 | AI120: =+Fin!AV25+Fin!AV33+Fin!AV46+Fin!AV57 -> 1,280,542.20 | AJ120: =+Fin!AW25+Fin!AW33+Fin!AW46+Fin!AW57 -> 1,158,143.53 | AK120: =+Fin!AX25+Fin!AX33+Fin!AX46+Fin!AX57 -> 1,029,318.93 | AL120: =+Fin!AY25+Fin!AY33+Fin!AY46+Fin!AY57 -> 878,940.15 | AM120: =+Fin!AZ25+Fin!AZ33+Fin!AZ46+Fin!AZ57 -> 720,666.48 | AN120: =+Fin!BA25+Fin!BA33+Fin!BA46+Fin!BA57 -> 554,083.45 | AO120: =+Fin!BB25+Fin!BB33+Fin!BB46+Fin!BB57 -> 378,754.80 | AP120: =+Fin!BC25+Fin!BC33+Fin!BC46+Fin!BC57 -> 194,221.40 | AQ120: =+Fin!BD25+Fin!BD33+Fin!BD46+Fin!BD57 -> 0.00 | AR120: =+Fin!BE25+Fin!BE33+Fin!BE46+Fin!BE57 -> 0.00 | AS120: =+Fin!BF25+Fin!BF33+Fin!BF46+Fin!BF57 -> 0.00 | AT120: =+Fin!BG25+Fin!BG33+Fin!BG46+Fin!BG57 -> 0.00 | AU120: =+Fin!BH25+Fin!BH33+Fin!BH46+Fin!BH57 -> 0.00 | AV120: =+Fin!BI25+Fin!BI33+Fin!BI46+Fin!BI57 -> 0.00 | AW120: =+Fin!BJ25+Fin!BJ33+Fin!BJ46+Fin!BJ57 -> 0.00
B123: MMRA movements | E123: =+CF!R47 -> 0.00 | F123: =+CF!S47 -> 0.00 | G123: =+CF!T47 -> 7,436.11 | H123: =+CF!U47 -> -2,192.25 | I123: =+CF!V47 -> -1,152.38 | J123: =+CF!W47 -> -1,165.69 | K123: =+CF!X47 -> -1,077.34 | L123: =+CF!Y47 -> -878.80 | M123: =+CF!Z47 -> -560.86 | N123: =+CF!AA47 -> -113.60 | O123: =+CF!AB47 -> -189.83 | P123: =+CF!AC47 -> -372.92 | Q123: =+CF!AD47 -> -671.49 | R123: =+CF!AE47 -> -1,094.78 | S123: =+CF!AF47 -> -1,652.74 | T123: =+CF!AG47 -> -1,801.99 | U123: =+CF!AH47 -> -1,998.45 | V123: =+CF!AI47 -> -2,248.93 | W123: =+CF!AJ47 -> -2,561.08 | X123: =+CF!AK47 -> -2,943.43 | Y123: =+CF!AL47 -> -2,780.81 | Z123: =+CF!AM47 -> -2,066.20 | AA123: =+CF!AN47 -> -795.78 | AB123: =+CF!AO47 -> 1,038.62 | AC123: =+CF!AP47 -> 3,449.59 | AD123: =+CF!AQ47 -> 2,802.20 | AE123: =+CF!AR47 -> 1,697.18 | AF123: =+CF!AS47 -> 102.43 | AG123: =+CF!AT47 -> -2,021.41 | AH123: =+CF!AU47 -> -4,721.67 | AI123: =+CF!AV47 -> -4,757.76 | AJ123: =+CF!AW47 -> -4,011.96 | AK123: =+CF!AX47 -> -2,430.70 | AL123: =+CF!AY47 -> 51.00 | AM123: =+CF!AZ47 -> 3,510.84 | AN123: =+CF!BA47 -> 2,589.42 | AO123: =+CF!BB47 -> 662.20 | AP123: =+CF!BC47 -> -2,475.08 | AQ123: =+CF!BD47 -> 45,398.33 | AR123: =+CF!BE47 -> 0.00 | AS123: =+CF!BF47 -> 0.00 | AT123: =+CF!BG47 -> 0.00 | AU123: =+CF!BH47 -> 0.00 | AV123: =+CF!BI47 -> 0.00 | AW123: =+CF!BJ47 -> 0.00
B124: DSRA movements | E124: =+CF!R48 -> 0.00 | F124: =+CF!S48 -> 0.00 | G124: =+CF!T48 -> 13,120.90 | H124: =+CF!U48 -> -3,123.76 | I124: =+CF!V48 -> -1,743.74 | J124: =+CF!W48 -> -283.88 | K124: =+CF!X48 -> -398.36 | L124: =+CF!Y48 -> -534.01 | M124: =+CF!Z48 -> -1,053.33 | N124: =+CF!AA48 -> -1,029.64 | O124: =+CF!AB48 -> -898.73 | P124: =+CF!AC48 -> -552.14 | Q124: =+CF!AD48 -> -447.78 | R124: =+CF!AE48 -> -581.67 | S124: =+CF!AF48 -> -1,364.15 | T124: =+CF!AG48 -> -1,691.24 | U124: =+CF!AH48 -> -2,502.36 | V124: =+CF!AI48 -> -3,658.94 | W124: =+CF!AJ48 -> -4,975.92 | X124: =+CF!AK48 -> -5,725.37 | Y124: =+CF!AL48 -> -7,537.76 | Z124: =+CF!AM48 -> -24,216.80 | AA124: =+CF!AN48 -> 13,951.15 | AB124: =+CF!AO48 -> -600.87 | AC124: =+CF!AP48 -> -841.74 | AD124: =+CF!AQ48 -> -768.87 | AE124: =+CF!AR48 -> -916.44 | AF124: =+CF!AS48 -> -427.36 | AG124: =+CF!AT48 -> -109,608.03 | AH124: =+CF!AU48 -> -361.22 | AI124: =+CF!AV48 -> -342.28 | AJ124: =+CF!AW48 -> 357.04 | AK124: =+CF!AX48 -> -14,410.13 | AL124: =+CF!AY48 -> 214.71 | AM124: =+CF!AZ48 -> 126.96 | AN124: =+CF!BA48 -> 336.87 | AO124: =+CF!BB48 -> 250.33 | AP124: =+CF!BC48 -> 263.48 | AQ124: =+CF!BD48 -> 201,975.08 | AR124: =+CF!BE48 -> 0.00 | AS124: =+CF!BF48 -> 0.00 | AT124: =+CF!BG48 -> 0.00 | AU124: =+CF!BH48 -> 0.00 | AV124: =+CF!BI48 -> 0.00 | AW124: =+CF!BJ48 -> 0.00
B126: TIFIA cash trapped | E126: =+CF!R49 -> 0.00 | F126: =+CF!S49 -> -52,922.66 | G126: =+CF!T49 -> 145,304.00 | H126: =+CF!U49 -> 0.00 | I126: =+CF!V49 -> 0.00 | J126: =+CF!W49 -> 0.00 | K126: =+CF!X49 -> 0.00 | L126: =+CF!Y49 -> 0.00 | M126: =+CF!Z49 -> 0.00 | N126: =+CF!AA49 -> 0.00 | O126: =+CF!AB49 -> 0.00 | P126: =+CF!AC49 -> 0.00 | Q126: =+CF!AD49 -> 0.00 | R126: =+CF!AE49 -> 0.00 | S126: =+CF!AF49 -> 0.00 | T126: =+CF!AG49 -> 0.00 | U126: =+CF!AH49 -> 0.00 | V126: =+CF!AI49 -> 0.00 | W126: =+CF!AJ49 -> 0.00 | X126: =+CF!AK49 -> 0.00 | Y126: =+CF!AL49 -> 0.00 | Z126: =+CF!AM49 -> 0.00 | AA126: =+CF!AN49 -> 0.00 | AB126: =+CF!AO49 -> 0.00 | AC126: =+CF!AP49 -> 0.00 | AD126: =+CF!AQ49 -> 0.00 | AE126: =+CF!AR49 -> 0.00 | AF126: =+CF!AS49 -> 0.00 | AG126: =+CF!AT49 -> 0.00 | AH126: =+CF!AU49 -> 0.00 | AI126: =+CF!AV49 -> 0.00 | AJ126: =+CF!AW49 -> 0.00 | AK126: =+CF!AX49 -> 0.00 | AL126: =+CF!AY49 -> 0.00 | AM126: =+CF!AZ49 -> 0.00 | AN126: =+CF!BA49 -> 0.00 | AO126: =+CF!BB49 -> 0.00 | AP126: =+CF!BC49 -> 0.00 | AQ126: =+CF!BD49 -> 0.00 | AR126: =+CF!BE49 -> 0.00 | AS126: =+CF!BF49 -> 0.00 | AT126: =+CF!BG49 -> 0.00 | AU126: =+CF!BH49 -> 0.00 | AV126: =+CF!BI49 -> 0.00 | AW126: =+CF!BJ49 -> 0.00
B128: Corporate tax | E128: =+'Valuation & IRR'!Y23 -> 0.00 | F128: =+'Valuation & IRR'!Z23 -> 0.00 | G128: =+'Valuation & IRR'!AA23 -> 0.00 | H128: =+'Valuation & IRR'!AB23 -> 0.00 | I128: =+'Valuation & IRR'!AC23 -> 0.00 | J128: =+'Valuation & IRR'!AD23 -> -929.37 | K128: =+'Valuation & IRR'!AE23 -> -1,260.98 | L128: =+'Valuation & IRR'!AF23 -> -1,622.04 | M128: =+'Valuation & IRR'!AG23 -> -2,015.12 | N128: =+'Valuation & IRR'!AH23 -> -2,443.00 | O128: =+'Valuation & IRR'!AI23 -> -2,778.00 | P128: =+'Valuation & IRR'!AJ23 -> -3,135.66 | Q128: =+'Valuation & IRR'!AK23 -> -3,517.42 | R128: =+'Valuation & IRR'!AL23 -> -3,924.83 | S128: =+'Valuation & IRR'!AM23 -> -4,359.56 | T128: =+'Valuation & IRR'!AN23 -> -6,290.04 | U128: =+'Valuation & IRR'!AO23 -> -32,170.74 | V128: =+'Valuation & IRR'!AP23 -> -47,566.91 | W128: =+'Valuation & IRR'!AQ23 -> -52,440.86 | X128: =+'Valuation & IRR'!AR23 -> -57,811.25 | Y128: =+'Valuation & IRR'!AS23 -> -63,787.11 | Z128: =+'Valuation & IRR'!AT23 -> -70,365.61 | AA128: =+'Valuation & IRR'!AU23 -> -77,606.92 | AB128: =+'Valuation & IRR'!AV23 -> -85,642.92 | AC128: =+'Valuation & IRR'!AW23 -> -119,995.84 | AD128: =+'Valuation & IRR'!AX23 -> -127,824.85 | AE128: =+'Valuation & IRR'!AY23 -> -136,192.06 | AF128: =+'Valuation & IRR'!AZ23 -> -145,058.37 | AG128: =+'Valuation & IRR'!BA23 -> -154,585.11 | AH128: =+'Valuation & IRR'!BB23 -> -165,425.87 | AI128: =+'Valuation & IRR'!BC23 -> -177,196.01 | AJ128: =+'Valuation & IRR'!BD23 -> -189,682.71 | AK128: =+'Valuation & IRR'!BE23 -> -202,797.60 | AL128: =+'Valuation & IRR'!BF23 -> -217,143.69 | AM128: =+'Valuation & IRR'!BG23 -> -232,122.53 | AN128: =+'Valuation & IRR'!BH23 -> -245,226.44 | AO128: =+'Valuation & IRR'!BI23 -> -258,524.48 | AP128: =+'Valuation & IRR'!BJ23 -> -267,551.27 | AQ128: =+'Valuation & IRR'!BK23 -> -282,165.86 | AR128: =+'Valuation & IRR'!BL23 -> -296,560.80 | AS128: =+'Valuation & IRR'!BM23 -> -307,651.74 | AT128: =+'Valuation & IRR'!BN23 -> -319,075.21 | AU128: =+'Valuation & IRR'!BO23 -> -330,760.40 | AV128: =+'Valuation & IRR'!BP23 -> -313,704.63 | AW128: =+'Valuation & IRR'!BQ23 -> -24,746.78
B130: Cash Flow available for distributions | E130: =+E112+E117+E124+E123+E126+E118 -> 0.00 | F130: =+F112+F117+F124+F123+F126+F118 -> 0.00 | G130: 207,234.50 | H130: 34,432.08 | I130: 52,614.67 | J130: 64,711.35 | K130: 76,226.22 | L130: 88,727.54 | M130: 102,020.10 | N130: 117,218.38 | O130: 128,892.25 | P130: 141,385.87 | Q130: 153,884.43 | R130: 163,893.54 | S130: 181,191.55 | T130: 205,409.47 | U130: 231,774.47 | V130: 260,154.94 | W130: 291,167.49 | X130: 325,768.65 | Y130: 363,855.47 | Z130: 390,908.85 | AA130: 477,329.83 | AB130: 518,211.76 | AC130: 583,399.04 | AD130: 620,711.65 | AE130: 659,812.97 | AF130: 701,349.96 | AG130: 635,752.41 | AH130: 683,696.86 | AI130: 730,581.26 | AJ130: 775,838.14 | AK130: 817,143.37 | AL130: 879,297.58 | AM130: 944,189.52 | AN130: 999,584.70 | AO130: 1,053,910.61 | AP130: 1,086,080.28 | AQ130: 1,396,843.20 | AR130: 1,270,005.75 | AS130: 1,479,620.26 | AT130: 1,534,181.26 | AU130: 1,590,368.89 | AV130: 1,510,143.60 | AW130: 279,788.43
B132: Corporate tax | E132: =-E128 -> 0.00 | F132: 0.00 | G132: 0.00 | H132: 0.00 | I132: 0.00 | J132: 929.37 | K132: 1,260.98 | L132: 1,622.04 | M132: 2,015.12 | N132: 2,443.00 | O132: 2,778.00 | P132: 3,135.66 | Q132: 3,517.42 | R132: 3,924.83 | S132: 4,359.56 | T132: 6,290.04 | U132: 32,170.74 | V132: 47,566.91 | W132: 52,440.86 | X132: 57,811.25 | Y132: 63,787.11 | Z132: 70,365.61 | AA132: 77,606.92 | AB132: 85,642.92 | AC132: 119,995.84 | AD132: 127,824.85 | AE132: 136,192.06 | AF132: 145,058.37 | AG132: 154,585.11 | AH132: 165,425.87 | AI132: 177,196.01 | AJ132: 189,682.71 | AK132: 202,797.60 | AL132: 217,143.69 | AM132: 232,122.53 | AN132: 245,226.44 | AO132: 258,524.48 | AP132: 267,551.27 | AQ132: 282,165.86 | AR132: 296,560.80 | AS132: 307,651.74 | AT132: 319,075.21 | AU132: 330,760.40 | AV132: 313,704.63 | AW132: 24,746.78
B134: Cash Flow available for distribution post-tax | E134: =+E130-E132 -> 0.00 | F134: 0.00 | G134: 207,234.50 | H134: 34,432.08 | I134: 52,614.67 | J134: 63,781.97 | K134: 74,965.25 | L134: 87,105.50 | M134: 100,004.98 | N134: 114,775.38 | O134: 126,114.25 | P134: 138,250.22 | Q134: 150,367.02 | R134: 159,968.71 | S134: 176,831.99 | T134: 199,119.44 | U134: 199,603.73 | V134: 212,588.02 | W134: 238,726.63 | X134: 267,957.40 | Y134: 300,068.36 | Z134: 320,543.24 | AA134: 399,722.92 | AB134: 432,568.84 | AC134: 463,403.20 | AD134: 492,886.79 | AE134: 523,620.91 | AF134: 556,291.59 | AG134: 481,167.31 | AH134: 518,270.99 | AI134: 553,385.24 | AJ134: 586,155.43 | AK134: 614,345.77 | AL134: 662,153.89 | AM134: 712,066.99 | AN134: 754,358.26 | AO134: 795,386.13 | AP134: 818,529.00 | AQ134: 1,114,677.34 | AR134: 973,444.95 | AS134: 1,171,968.52 | AT134: 1,215,106.06 | AU134: 1,259,608.49 | AV134: 1,196,438.97 | AW134: 255,041.65
B136: CF | F136: 2017 | G136: =+F136+1 -> 2018 | H136: 2019 | I136: 2020 | J136: 2021 | K136: 2022 | L136: 2023 | M136: 2024 | N136: 2025 | O136: 2026 | P136: 2027 | Q136: 2028 | R136: 2029 | S136: 2030 | T136: 2031 | U136: 2032 | V136: 2033 | W136: 2034 | X136: 2035 | Y136: 2036 | Z136: 2037 | AA136: 2038 | AB136: 2039 | AC136: 2040 | AD136: 2041 | AE136: 2042 | AF136: 2043 | AG136: 2044 | AH136: 2045 | AI136: 2046 | AJ136: 2047 | AK136: 2048 | AL136: 2049 | AM136: 2050 | AN136: 2051 | AO136: 2052 | AP136: 2053 | AQ136: 2054 | AR136: 2055 | AS136: 2056 | AT136: 2057 | AU136: 2058 | AV136: 2059 | AW136: 2060 | AX136: 2061
B138: Toll Revenues | F138: =+CF!R25 -> 0 | G138: =+CF!S25 -> 99,995 | H138: =+CF!T25 -> 110,893 | I138: =+CF!U25 -> 122,977 | J138: =+CF!V25 -> 136,379 | K138: =+CF!W25 -> 147,990 | L138: =+CF!X25 -> 160,589 | M138: =+CF!Y25 -> 174,260 | N138: =+CF!Z25 -> 189,095 | O138: =+CF!AA25 -> 205,194 | P138: =+CF!AB25 -> 218,152 | Q138: =+CF!AC25 -> 231,928 | R138: =+CF!AD25 -> 246,574 | S138: =+CF!AE25 -> 262,146 | T138: =+CF!AF25 -> 278,700 | U138: =+CF!AG25 -> 305,795 | V138: =+CF!AH25 -> 335,525 | W138: =+CF!AI25 -> 368,144 | X138: =+CF!AJ25 -> 403,935 | Y138: =+CF!AK25 -> 443,205 | Z138: =+CF!AL25 -> 486,910 | AA138: =+CF!AM25 -> 534,925 | AB138: =+CF!AN25 -> 587,675 | AC138: =+CF!AO25 -> 645,626 | AD138: =+CF!AP25 -> 709,292 | AE138: =+CF!AQ25 -> 750,383 | AF138: =+CF!AR25 -> 793,854 | AG138: =+CF!AS25 -> 839,843 | AH138: =+CF!AT25 -> 888,497 | AI138: =+CF!AU25 -> 939,969 | AJ138: =+CF!AV25 -> 993,785 | AK138: =+CF!AW25 -> 1,050,682 | AL138: =+CF!AX25 -> 1,110,837 | AM138: =+CF!AY25 -> 1,174,435 | AN138: =+CF!AZ25 -> 1,241,675 | AO138: =+CF!BA25 -> 1,299,492 | AP138: =+CF!BB25 -> 1,360,002 | AQ138: =+CF!BC25 -> 1,423,329 | AR138: =+CF!BD25 -> 1,489,605 | AS138: =+CF!BE25 -> 1,558,968 | AT138: =+CF!BF25 -> 1,616,728 | AU138: =+CF!BG25 -> 1,676,628 | AV138: =+CF!BH25 -> 1,738,747 | AW138: =+CF!BI25 -> 1,803,168 | AX138: =+CF!BJ25 -> 461,090
B139: Revenue Sharing | F139: =+CF!R26 -> 0 | G139: =+CF!S26 -> 0 | H139: =+CF!T26 -> 0 | I139: =+CF!U26 -> 0 | J139: =+CF!V26 -> 0 | K139: =+CF!W26 -> 0 | L139: =+CF!X26 -> 0 | M139: =+CF!Y26 -> 0 | N139: =+CF!Z26 -> 0 | O139: =+CF!AA26 -> 0 | P139: =+CF!AB26 -> 0 | Q139: =+CF!AC26 -> 0 | R139: =+CF!AD26 -> 0 | S139: =+CF!AE26 -> 0 | T139: =+CF!AF26 -> 0 | U139: =+CF!AG26 -> 0 | V139: =+CF!AH26 -> 0 | W139: =+CF!AI26 -> 0 | X139: =+CF!AJ26 -> 0 | Y139: =+CF!AK26 -> 0 | Z139: =+CF!AL26 -> 0 | AA139: =+CF!AM26 -> 0 | AB139: =+CF!AN26 -> 0 | AC139: =+CF!AO26 -> 0 | AD139: =+CF!AP26 -> 0 | AE139: =+CF!AQ26 -> 0 | AF139: =+CF!AR26 -> 0 | AG139: =+CF!AS26 -> 0 | AH139: =+CF!AT26 -> 0 | AI139: =+CF!AU26 -> 0 | AJ139: =+CF!AV26 -> 0 | AK139: =+CF!AW26 -> 0 | AL139: =+CF!AX26 -> 0 | AM139: =+CF!AY26 -> 0 | AN139: =+CF!AZ26 -> 0 | AO139: =+CF!BA26 -> 0 | AP139: =+CF!BB26 -> -2,451 | AQ139: =+CF!BC26 -> -28,389 | AR139: =+CF!BD26 -> -31,361 | AS139: =+CF!BE26 -> -34,432 | AT139: =+CF!BF26 -> -36,082 | AU139: =+CF!BG26 -> -37,636 | AV139: =+CF!BH26 -> -39,585 | AW139: =+CF!BI26 -> -179,390 | AX139: =+CF!BJ26 -> -57,636
B140: O&M | F140: =+CF!R27 -> 0 | G140: =+CF!S27 -> -17,117 | H140: =+CF!T27 -> -18,252 | I140: =+CF!U27 -> -19,462 | J140: =+CF!V27 -> -20,752 | K140: =+CF!W27 -> -21,620 | L140: =+CF!X27 -> -22,524 | M140: =+CF!Y27 -> -23,465 | N140: =+CF!Z27 -> -24,446 | O140: =+CF!AA27 -> -25,468 | P140: =+CF!AB27 -> -26,491 | Q140: =+CF!AC27 -> -27,555 | R140: =+CF!AD27 -> -28,662 | S140: =+CF!AE27 -> -29,814 | T140: =+CF!AF27 -> -31,011 | U140: =+CF!AG27 -> -32,710 | V140: =+CF!AH27 -> -34,502 | W140: =+CF!AI27 -> -36,392 | X140: =+CF!AJ27 -> -38,385 | Y140: =+CF!AK27 -> -40,488 | Z140: =+CF!AL27 -> -42,937 | AA140: =+CF!AM27 -> -45,534 | AB140: =+CF!AN27 -> -48,289 | AC140: =+CF!AO27 -> -51,210 | AD140: =+CF!AP27 -> -54,308 | AE140: =+CF!AQ27 -> -56,571 | AF140: =+CF!AR27 -> -58,928 | AG140: =+CF!AS27 -> -61,383 | AH140: =+CF!AT27 -> -63,940 | AI140: =+CF!AU27 -> -66,604 | AJ140: =+CF!AV27 -> -69,494 | AK140: =+CF!AW27 -> -72,510 | AL140: =+CF!AX27 -> -75,657 | AM140: =+CF!AY27 -> -78,940 | AN140: =+CF!AZ27 -> -82,366 | AO140: =+CF!BA27 -> -85,448 | AP140: =+CF!BB27 -> -88,645 | AQ140: =+CF!BC27 -> -91,962 | AR140: =+CF!BD27 -> -95,403 | AS140: =+CF!BE27 -> -98,972 | AT140: =+CF!BF27 -> -102,224 | AU140: =+CF!BG27 -> -105,582 | AV140: =+CF!BH27 -> -109,050 | AW140: =+CF!BI27 -> -112,632 | AX140: =+CF!BJ27 -> -28,685
B141: Major Maintenance Capex | F141: =+CF!R28 -> 0 | G141: =+CF!S28 -> -2,401 | H141: =+CF!T28 -> -2,272 | I141: =+CF!U28 -> -3,321 | J141: =+CF!V28 -> -4,856 | K141: =+CF!W28 -> -5,235 | L141: =+CF!X28 -> -5,644 | M141: =+CF!Y28 -> -6,084 | N141: =+CF!Z28 -> -6,559 | O141: =+CF!AA28 -> -7,072 | P141: =+CF!AB28 -> -7,113 | Q141: =+CF!AC28 -> -7,154 | R141: =+CF!AD28 -> -7,195 | S141: =+CF!AE28 -> -7,237 | T141: =+CF!AF28 -> -7,279 | U141: =+CF!AG28 -> -7,825 | V141: =+CF!AH28 -> -8,412 | W141: =+CF!AI28 -> -9,043 | X141: =+CF!AJ28 -> -9,721 | Y141: =+CF!AK28 -> -10,451 | Z141: =+CF!AL28 -> -11,403 | AA141: =+CF!AM28 -> -12,442 | AB141: =+CF!AN28 -> -13,576 | AC141: =+CF!AO28 -> -14,813 | AD141: =+CF!AP28 -> -16,163 | AE141: =+CF!AQ28 -> -14,764 | AF141: =+CF!AR28 -> -13,486 | AG141: =+CF!AS28 -> -12,318 | AH141: =+CF!AT28 -> -11,252 | AI141: =+CF!AU28 -> -10,278 | AJ141: =+CF!AV28 -> -11,713 | AK141: =+CF!AW28 -> -13,348 | AL141: =+CF!AX28 -> -15,212 | AM141: =+CF!AY28 -> -17,336 | AN141: =+CF!AZ28 -> -19,757 | AO141: =+CF!BA28 -> -18,361 | AP141: =+CF!BB28 -> -17,064 | AQ141: =+CF!BC28 -> -15,858 | AR141: =+CF!BD28 -> -14,737 | AS141: =+CF!BE28 -> -13,696 | AT141: =+CF!BF28 -> -17,217 | AU141: =+CF!BG28 -> -21,644 | AV141: =+CF!BH28 -> -27,208 | AW141: =+CF!BI28 -> -34,203 | AX141: =+CF!BJ28+CF!$BJ$31 -> -140,371
B142: Government subsidy | F142: =+CF!R30 -> 0 | G142: =+CF!S30 -> 680 | H142: =+CF!T30 -> 0 | I142: =+CF!U30 -> 0 | J142: =+CF!V30 -> 0 | K142: =+CF!W30 -> 0 | L142: =+CF!X30 -> 0 | M142: =+CF!Y30 -> 0 | N142: =+CF!Z30 -> 0 | O142: =+CF!AA30 -> 0 | P142: =+CF!AB30 -> 0 | Q142: =+CF!AC30 -> 0 | R142: =+CF!AD30 -> 0 | S142: =+CF!AE30 -> 0 | T142: =+CF!AF30 -> 0 | U142: =+CF!AG30 -> 0 | V142: =+CF!AH30 -> 0 | W142: =+CF!AI30 -> 0 | X142: =+CF!AJ30 -> 0 | Y142: =+CF!AK30 -> 0 | Z142: =+CF!AL30 -> 0 | AA142: =+CF!AM30 -> 0 | AB142: =+CF!AN30 -> 0 | AC142: =+CF!AO30 -> 0 | AD142: =+CF!AP30 -> 0 | AE142: =+CF!AQ30 -> 0 | AF142: =+CF!AR30 -> 0 | AG142: =+CF!AS30 -> 0 | AH142: =+CF!AT30 -> 0 | AI142: =+CF!AU30 -> 0 | AJ142: =+CF!AV30 -> 0 | AK142: =+CF!AW30 -> 0 | AL142: =+CF!AX30 -> 0 | AM142: =+CF!AY30 -> 0 | AN142: =+CF!AZ30 -> 0 | AO142: =+CF!BA30 -> 0 | AP142: =+CF!BB30 -> 0 | AQ142: =+CF!BC30 -> 0 | AR142: =+CF!BD30 -> 0 | AS142: =+CF!BE30 -> 0 | AT142: =+CF!BF30 -> 0 | AU142: =+CF!BG30 -> 0 | AV142: =+CF!BH30 -> 0 | AW142: =+CF!BI30 -> 0 | AX142: =+CF!BJ30 -> 0
B143: Handback Reserve | F143: =+CF!R29 -> 0 | G143: =+CF!S29 -> 0 | H143: =+CF!T29 -> 0 | I143: =+CF!U29 -> 0 | J143: =+CF!V29 -> 0 | K143: =+CF!W29 -> 0 | L143: =+CF!X29 -> 0 | M143: =+CF!Y29 -> 0 | N143: =+CF!Z29 -> 0 | O143: =+CF!AA29 -> 0 | P143: =+CF!AB29 -> 0 | Q143: =+CF!AC29 -> 0 | R143: =+CF!AD29 -> 0 | S143: =+CF!AE29 -> 0 | T143: =+CF!AF29 -> 0 | U143: =+CF!AG29 -> 0 | V143: =+CF!AH29 -> 0 | W143: =+CF!AI29 -> 0 | X143: =+CF!AJ29 -> 0 | Y143: =+CF!AK29 -> 0 | Z143: =+CF!AL29 -> 0 | AA143: =+CF!AM29 -> 0 | AB143: =+CF!AN29 -> 0 | AC143: =+CF!AO29 -> 0 | AD143: =+CF!AP29 -> 0 | AE143: =+CF!AQ29 -> 0 | AF143: =+CF!AR29 -> 0 | AG143: =+CF!AS29 -> 0 | AH143: =+CF!AT29 -> 0 | AI143: =+CF!AU29 -> 0 | AJ143: =+CF!AV29 -> 0 | AK143: =+CF!AW29 -> 0 | AL143: =+CF!AX29 -> 0 | AM143: =+CF!AY29 -> 0 | AN143: =+CF!AZ29 -> 0 | AO143: =+CF!BA29 -> 0 | AP143: =+CF!BB29 -> 0 | AQ143: =+CF!BC29 -> 0 | AR143: =+CF!BD29 -> 0 | AS143: =+CF!BE29 -> -143,269 | AT143: =+CF!BF29 -> 17,217 | AU143: =+CF!BG29 -> 21,644 | AV143: =+CF!BH29 -> 27,208 | AW143: =+CF!BI29 -> 34,203 | AX143: =+CF!BJ29 -> 42,997
B144: Margin Tax | F144: =+CF!R32 -> 0 | G144: =+CF!S32 -> -361 | H144: =+CF!T32 -> -598 | I144: =+CF!U32 -> -651 | J144: =+CF!V32 -> -722 | K144: =+CF!W32 -> -784 | L144: =+CF!X32 -> -851 | M144: =+CF!Y32 -> -924 | N144: =+CF!Z32 -> -1,003 | O144: =+CF!AA32 -> -1,088 | P144: =+CF!AB32 -> -1,157 | Q144: =+CF!AC32 -> -1,230 | R144: =+CF!AD32 -> -1,307 | S144: =+CF!AE32 -> -1,390 | T144: =+CF!AF32 -> -1,477 | U144: =+CF!AG32 -> -1,620 | V144: =+CF!AH32 -> -1,778 | W144: =+CF!AI32 -> -1,951 | X144: =+CF!AJ32 -> -2,140 | Y144: =+CF!AK32 -> -2,348 | Z144: =+CF!AL32 -> -2,579 | AA144: =+CF!AM32 -> -2,834 | AB144: =+CF!AN32 -> -3,115 | AC144: =+CF!AO32 -> -3,419 | AD144: =+CF!AP32 -> -3,755 | AE144: =+CF!AQ32 -> -3,971 | AF144: =+CF!AR32 -> -4,200 | AG144: =+CF!AS32 -> -4,442 | AH144: =+CF!AT32 -> -4,699 | AI144: =+CF!AU32 -> -4,982 | AJ144: =+CF!AV32 -> -5,265 | AK144: =+CF!AW32 -> -5,566 | AL144: =+CF!AX32 -> -5,883 | AM144: =+CF!AY32 -> -6,220 | AN144: =+CF!AZ32 -> -6,575 | AO144: =+CF!BA32 -> -6,879 | AP144: =+CF!BB32 -> -7,198 | AQ144: =+CF!BC32 -> -7,531 | AR144: =+CF!BD32 -> -7,880 | AS144: =+CF!BE32 -> -8,235 | AT144: =+CF!BF32 -> -8,539 | AU144: =+CF!BG32 -> -8,853 | AV144: =+CF!BH32 -> -9,178 | AW144: =+CF!BI32 -> -9,511 | AX144: =+CF!BJ32 -> -2,431
B145: Operating Cash Balance | F145: =+CF!R33 -> 0 | G145: =+CF!S33 -> 0 | H145: =+CF!T33 -> 0 | I145: =+CF!U33 -> 0 | J145: =+CF!V33 -> 0 | K145: =+CF!W33 -> 0 | L145: =+CF!X33 -> 0 | M145: =+CF!Y33 -> 0 | N145: =+CF!Z33 -> 0 | O145: =+CF!AA33 -> 0 | P145: =+CF!AB33 -> 0 | Q145: =+CF!AC33 -> 0 | R145: =+CF!AD33 -> 0 | S145: =+CF!AE33 -> 0 | T145: =+CF!AF33 -> 0 | U145: =+CF!AG33 -> 0 | V145: =+CF!AH33 -> 0 | W145: =+CF!AI33 -> 0 | X145: =+CF!AJ33 -> 0 | Y145: =+CF!AK33 -> 0 | Z145: =+CF!AL33 -> 0 | AA145: =+CF!AM33 -> 0 | AB145: =+CF!AN33 -> 0 | AC145: =+CF!AO33 -> 0 | AD145: =+CF!AP33 -> 0 | AE145: =+CF!AQ33 -> 0 | AF145: =+CF!AR33 -> 0 | AG145: =+CF!AS33 -> 0 | AH145: =+CF!AT33 -> 0 | AI145: =+CF!AU33 -> 0 | AJ145: =+CF!AV33 -> 0 | AK145: =+CF!AW33 -> 0 | AL145: =+CF!AX33 -> 0 | AM145: =+CF!AY33 -> 0 | AN145: =+CF!AZ33 -> 0 | AO145: =+CF!BA33 -> 0 | AP145: =+CF!BB33 -> 0 | AQ145: =+CF!BC33 -> 0 | AR145: =+CF!BD33 -> 0 | AS145: =+CF!BE33 -> 0 | AT145: =+CF!BF33 -> 0 | AU145: =+CF!BG33 -> 0 | AV145: =+CF!BH33 -> 0 | AW145: =+CF!BI33 -> 0 | AX145: =+CF!BJ33 -> 2,884
B146: Debt draws | F146: =+CF!R37 -> 0 | G146: =+CF!S37 -> 0 | H146: =+CF!T37 -> 400,000 | I146: =+CF!U37 -> 3,321 | J146: =+CF!V37 -> 4,856 | K146: =+CF!W37 -> 5,235 | L146: =+CF!X37 -> 5,644 | M146: =+CF!Y37 -> 8,374 | N146: =+CF!Z37 -> 19,622 | O146: =+CF!AA37 -> 20,289 | P146: =+CF!AB37 -> 16,508 | Q146: =+CF!AC37 -> 12,675 | R146: =+CF!AD37 -> 69,036 | S146: =+CF!AE37 -> 7,237 | T146: =+CF!AF37 -> 22,000 | U146: =+CF!AG37 -> 30,571 | V146: =+CF!AH37 -> 41,319 | W146: =+CF!AI37 -> 64,086 | X146: =+CF!AJ37 -> 89,079 | Y146: =+CF!AK37 -> 106,569 | Z146: =+CF!AL37 -> 127,644 | AA146: =+CF!AM37 -> 191,999 | AB146: =+CF!AN37 -> 317,645 | AC146: =+CF!AO37 -> 14,813 | AD146: =+CF!AP37 -> 16,163 | AE146: =+CF!AQ37 -> 14,764 | AF146: =+CF!AR37 -> 13,486 | AG146: =+CF!AS37 -> 12,318 | AH146: =+CF!AT37 -> 11,252 | AI146: =+CF!AU37 -> 10,278 | AJ146: =+CF!AV37 -> 8,167 | AK146: =+CF!AW37 -> 0 | AL146: =+CF!AX37 -> 101,241 | AM146: =+CF!AY37 -> 0 | AN146: =+CF!AZ37 -> 0 | AO146: =+CF!BA37 -> 0 | AP146: =+CF!BB37 -> 0 | AQ146: =+CF!BC37 -> 0 | AR146: =+CF!BD37 -> 0 | AS146: =+CF!BE37 -> 0 | AT146: =+CF!BF37 -> 0 | AU146: =+CF!BG37 -> 0 | AV146: =+CF!BH37 -> 0 | AW146: =+CF!BI37 -> 0 | AX146: =+CF!BJ37 -> 0
B147: Debt Fees | F147: =+CF!R38 -> 0 | G147: =+CF!S38 -> 0 | H147: =+CF!T38 -> -4,127 | I147: =+CF!U38 -> -4,313 | J147: =+CF!V38 -> -691 | K147: =+CF!W38 -> -670 | L147: =+CF!X38 -> -648 | M147: =+CF!Y38 -> -647 | N147: =+CF!Z38 -> -729 | O147: =+CF!AA38 -> -703 | P147: =+CF!AB38 -> -634 | Q147: =+CF!AC38 -> -564 | R147: =+CF!AD38 -> -1,097 | S147: =+CF!AE38 -> -4,644 | T147: =+CF!AF38 -> -894 | U147: =+CF!AG38 -> -943 | V147: =+CF!AH38 -> -1,011 | W147: =+CF!AI38 -> -1,196 | X147: =+CF!AJ38 -> -1,400 | Y147: =+CF!AK38 -> -1,525 | Z147: =+CF!AL38 -> -1,680 | AA147: =+CF!AM38 -> -2,263 | AB147: =+CF!AN38 -> -3,453 | AC147: =+CF!AO38 -> -3,640 | AD147: =+CF!AP38 -> -513 | AE147: =+CF!AQ38 -> -438 | AF147: =+CF!AR38 -> -369 | AG147: =+CF!AS38 -> -307 | AH147: =+CF!AT38 -> -250 | AI147: =+CF!AU38 -> -199 | AJ147: =+CF!AV38 -> -152 | AK147: =+CF!AW38 -> -115 | AL147: =+CF!AX38 -> -1,130 | AM147: =+CF!AY38 -> -121 | AN147: =+CF!AZ38 -> -123 | AO147: =+CF!BA38 -> -126 | AP147: =+CF!BB38 -> -129 | AQ147: =+CF!BC38 -> -132 | AR147: =+CF!BD38 -> -135 | AS147: =+CF!BE38 -> 0 | AT147: =+CF!BF38 -> 0 | AU147: =+CF!BG38 -> 0 | AV147: =+CF!BH38 -> 0 | AW147: =+CF!BI38 -> 0 | AX147: =+CF!BJ38 -> 0
B148: Debt Interests | F148: =+CF!R39 -> 0 | G148: =+CF!S39 -> -27,874 | H148: =+CF!T39 -> -47,205 | I148: =+CF!U39 -> -59,745 | J148: =+CF!V39 -> -59,884 | K148: =+CF!W39 -> -60,147 | L148: =+CF!X39 -> -60,431 | M148: =+CF!Y39 -> -60,816 | N148: =+CF!Z39 -> -61,186 | O148: =+CF!AA39 -> -61,648 | P148: =+CF!AB39 -> -62,102 | Q148: =+CF!AC39 -> -62,598 | R148: =+CF!AD39 -> -62,923 | S148: =+CF!AE39 -> -63,307 | T148: =+CF!AF39 -> -63,805 | U148: =+CF!AG39 -> -64,459 | V148: =+CF!AH39 -> -65,064 | W148: =+CF!AI39 -> -65,954 | X148: =+CF!AJ39 -> -67,073 | Y148: =+CF!AK39 -> -68,480 | Z148: =+CF!AL39 -> -69,860 | AA148: =+CF!AM39 -> -71,899 | AB148: =+CF!AN39 -> -74,282 | AC148: =+CF!AO39 -> -75,248 | AD148: =+CF!AP39 -> -75,848 | AE148: =+CF!AQ39 -> -76,690 | AF148: =+CF!AR39 -> -77,459 | AG148: =+CF!AS39 -> -78,375 | AH148: =+CF!AT39 -> -78,803 | AI148: =+CF!AU39 -> -77,918 | AJ148: =+CF!AV39 -> -72,479 | AK148: =+CF!AW39 -> -66,716 | AL148: =+CF!AX39 -> -59,933 | AM148: =+CF!AY39 -> -52,789 | AN148: =+CF!AZ39 -> -44,679 | AO148: =+CF!BA39 -> -36,243 | AP148: =+CF!BB39 -> -27,160 | AQ148: =+CF!BC39 -> -17,705 | AR148: =+CF!BD39 -> -7,754 | AS148: =+CF!BE39 -> 0 | AT148: =+CF!BF39 -> 0 | AU148: =+CF!BG39 -> 0 | AV148: =+CF!BH39 -> 0 | AW148: =+CF!BI39 -> 0 | AX148: =+CF!BJ39 -> 0
B149: Debt Principal Repayments | F149: =+CF!R40 -> 0 | G149: =+CF!S40 -> 0 | H149: =+CF!T40 -> -400,000 | I149: =+CF!U40 -> 0 | J149: =+CF!V40 -> 0 | K149: =+CF!W40 -> 0 | L149: =+CF!X40 -> 0 | M149: =+CF!Y40 -> -2,290 | N149: =+CF!Z40 -> -13,062 | O149: =+CF!AA40 -> -13,217 | P149: =+CF!AB40 -> -9,395 | Q149: =+CF!AC40 -> -5,521 | R149: =+CF!AD40 -> -61,841 | S149: =+CF!AE40 -> 0 | T149: =+CF!AF40 -> -14,720 | U149: =+CF!AG40 -> -22,746 | V149: =+CF!AH40 -> -32,907 | W149: =+CF!AI40 -> -55,043 | X149: =+CF!AJ40 -> -79,357 | Y149: =+CF!AK40 -> -96,119 | Z149: =+CF!AL40 -> -116,241 | AA149: =+CF!AM40 -> -179,557 | AB149: =+CF!AN40 -> -304,069 | AC149: =+CF!AO40 -> 0 | AD149: =+CF!AP40 -> 0 | AE149: =+CF!AQ40 -> 0 | AF149: =+CF!AR40 -> 0 | AG149: =+CF!AS40 -> 0 | AH149: =+CF!AT40 -> 0 | AI149: =+CF!AU40 -> -110,492 | AJ149: =+CF!AV40 -> -116,293 | AK149: =+CF!AW40 -> -122,399 | AL149: =+CF!AX40 -> -230,066 | AM149: =+CF!AY40 -> -150,379 | AN149: =+CF!AZ40 -> -158,274 | AO149: =+CF!BA40 -> -166,583 | AP149: =+CF!BB40 -> -175,329 | AQ149: =+CF!BC40 -> -184,533 | AR149: =+CF!BD40 -> -194,221 | AS149: =+CF!BE40 -> 0 | AT149: =+CF!BF40 -> 0 | AU149: =+CF!BG40 -> 0 | AV149: =+CF!BH40 -> 0 | AW149: =+CF!BI40 -> 0 | AX149: =+CF!BJ40 -> 0
B150: Interest earned / (paid) on cash balances | F150: =+CF!R43 -> 0 | G150: =+CF!S43 -> 0 | H150: =+CF!T43 -> 2,934 | I150: =+CF!U43 -> 941 | J150: =+CF!V43 -> 1,180 | K150: =+CF!W43 -> 1,393 | L150: =+CF!X43 -> 1,568 | M150: =+CF!Y43 -> 1,733 | N150: =+CF!Z43 -> 1,903 | O150: =+CF!AA43 -> 2,075 | P150: =+CF!AB43 -> 2,213 | Q150: =+CF!AC43 -> 2,330 | R150: =+CF!AD43 -> 2,418 | S150: =+CF!AE43 -> 2,579 | T150: =+CF!AF43 -> 2,696 | U150: =+CF!AG43 -> 2,840 | V150: =+CF!AH43 -> 3,106 | W150: =+CF!AI43 -> 3,412 | X150: =+CF!AJ43 -> 3,768 | Y150: =+CF!AK43 -> 4,074 | Z150: =+CF!AL43 -> 4,321 | AA150: =+CF!AM43 -> 4,797 | AB150: =+CF!AN43 -> 5,639 | AC150: =+CF!AO43 -> 5,664 | AD150: =+CF!AP43 -> 5,923 | AE150: =+CF!AQ43 -> 5,965 | AF150: =+CF!AR43 -> 6,134 | AG150: =+CF!AS43 -> 6,339 | AH150: =+CF!AT43 -> 6,577 | AI150: =+CF!AU43 -> 9,007 | AJ150: =+CF!AV43 -> 9,126 | AK150: =+CF!AW43 -> 9,465 | AL150: =+CF!AX43 -> 9,788 | AM150: =+CF!AY43 -> 10,382 | AN150: =+CF!AZ43 -> 10,651 | AO150: =+CF!BA43 -> 10,806 | AP150: =+CF!BB43 -> 10,971 | AQ150: =+CF!BC43 -> 11,072 | AR150: =+CF!BD43 -> 11,355 | AS150: =+CF!BE43 -> 9,643 | AT150: =+CF!BF43 -> 9,737 | AU150: =+CF!BG43 -> 9,624 | AV150: =+CF!BH43 -> 9,435 | AW150: =+CF!BI43 -> 8,509 | AX150: =+CF!BJ43 -> 1,940
B151: MMRA | F151: =+CF!R47 -> 0 | G151: =+CF!S47 -> 0 | H151: =+CF!T47 -> 7,436 | I151: =+CF!U47 -> -2,192 | J151: =+CF!V47 -> -1,152 | K151: =+CF!W47 -> -1,166 | L151: =+CF!X47 -> -1,077 | M151: =+CF!Y47 -> -879 | N151: =+CF!Z47 -> -561 | O151: =+CF!AA47 -> -114 | P151: =+CF!AB47 -> -190 | Q151: =+CF!AC47 -> -373 | R151: =+CF!AD47 -> -671 | S151: =+CF!AE47 -> -1,095 | T151: =+CF!AF47 -> -1,653 | U151: =+CF!AG47 -> -1,802 | V151: =+CF!AH47 -> -1,998 | W151: =+CF!AI47 -> -2,249 | X151: =+CF!AJ47 -> -2,561 | Y151: =+CF!AK47 -> -2,943 | Z151: =+CF!AL47 -> -2,781 | AA151: =+CF!AM47 -> -2,066 | AB151: =+CF!AN47 -> -796 | AC151: =+CF!AO47 -> 1,039 | AD151: =+CF!AP47 -> 3,450 | AE151: =+CF!AQ47 -> 2,802 | AF151: =+CF!AR47 -> 1,697 | AG151: =+CF!AS47 -> 102 | AH151: =+CF!AT47 -> -2,021 | AI151: =+CF!AU47 -> -4,722 | AJ151: =+CF!AV47 -> -4,758 | AK151: =+CF!AW47 -> -4,012 | AL151: =+CF!AX47 -> -2,431 | AM151: =+CF!AY47 -> 51 | AN151: =+CF!AZ47 -> 3,511 | AO151: =+CF!BA47 -> 2,589 | AP151: =+CF!BB47 -> 662 | AQ151: =+CF!BC47 -> -2,475 | AR151: =+CF!BD47 -> 45,398 | AS151: =+CF!BE47 -> 0 | AT151: =+CF!BF47 -> 0 | AU151: =+CF!BG47 -> 0 | AV151: =+CF!BH47 -> 0 | AW151: =+CF!BI47 -> 0 | AX151: =+CF!BJ47 -> 0
B152: DSRA | F152: =+CF!R48 -> 0 | G152: =+CF!S48 -> 0 | H152: =+CF!T48 -> 13,121 | I152: =+CF!U48 -> -3,124 | J152: =+CF!V48 -> -1,744 | K152: =+CF!W48 -> -284 | L152: =+CF!X48 -> -398 | M152: =+CF!Y48 -> -534 | N152: =+CF!Z48 -> -1,053 | O152: =+CF!AA48 -> -1,030 | P152: =+CF!AB48 -> -899 | Q152: =+CF!AC48 -> -552 | R152: =+CF!AD48 -> -448 | S152: =+CF!AE48 -> -582 | T152: =+CF!AF48 -> -1,364 | U152: =+CF!AG48 -> -1,691 | V152: =+CF!AH48 -> -2,502 | W152: =+CF!AI48 -> -3,659 | X152: =+CF!AJ48 -> -4,976 | Y152: =+CF!AK48 -> -5,725 | Z152: =+CF!AL48 -> -7,538 | AA152: =+CF!AM48 -> -24,217 | AB152: =+CF!AN48 -> 13,951 | AC152: =+CF!AO48 -> -601 | AD152: =+CF!AP48 -> -842 | AE152: =+CF!AQ48 -> -769 | AF152: =+CF!AR48 -> -916 | AG152: =+CF!AS48 -> -427 | AH152: =+CF!AT48 -> -109,608 | AI152: =+CF!AU48 -> -361 | AJ152: =+CF!AV48 -> -342 | AK152: =+CF!AW48 -> 357 | AL152: =+CF!AX48 -> -14,410 | AM152: =+CF!AY48 -> 215 | AN152: =+CF!AZ48 -> 127 | AO152: =+CF!BA48 -> 337 | AP152: =+CF!BB48 -> 250 | AQ152: =+CF!BC48 -> 263 | AR152: =+CF!BD48 -> 201,975 | AS152: =+CF!BE48 -> 0 | AT152: =+CF!BF48 -> 0 | AU152: =+CF!BG48 -> 0 | AV152: =+CF!BH48 -> 0 | AW152: =+CF!BI48 -> 0 | AX152: =+CF!BJ48 -> 0
B153: TIFIA Cash Trapped | F153: =+CF!R49 -> 0 | G153: =+CF!S49 -> -52,923 | H153: =+CF!T49 -> 145,304 | I153: =+CF!U49 -> 0 | J153: =+CF!V49 -> 0 | K153: =+CF!W49 -> 0 | L153: =+CF!X49 -> 0 | M153: =+CF!Y49 -> 0 | N153: =+CF!Z49 -> 0 | O153: =+CF!AA49 -> 0 | P153: =+CF!AB49 -> 0 | Q153: =+CF!AC49 -> 0 | R153: =+CF!AD49 -> 0 | S153: =+CF!AE49 -> 0 | T153: =+CF!AF49 -> 0 | U153: =+CF!AG49 -> 0 | V153: =+CF!AH49 -> 0 | W153: =+CF!AI49 -> 0 | X153: =+CF!AJ49 -> 0 | Y153: =+CF!AK49 -> 0 | Z153: =+CF!AL49 -> 0 | AA153: =+CF!AM49 -> 0 | AB153: =+CF!AN49 -> 0 | AC153: =+CF!AO49 -> 0 | AD153: =+CF!AP49 -> 0 | AE153: =+CF!AQ49 -> 0 | AF153: =+CF!AR49 -> 0 | AG153: =+CF!AS49 -> 0 | AH153: =+CF!AT49 -> 0 | AI153: =+CF!AU49 -> 0 | AJ153: =+CF!AV49 -> 0 | AK153: =+CF!AW49 -> 0 | AL153: =+CF!AX49 -> 0 | AM153: =+CF!AY49 -> 0 | AN153: =+CF!AZ49 -> 0 | AO153: =+CF!BA49 -> 0 | AP153: =+CF!BB49 -> 0 | AQ153: =+CF!BC49 -> 0 | AR153: =+CF!BD49 -> 0 | AS153: =+CF!BE49 -> 0 | AT153: =+CF!BF49 -> 0 | AU153: =+CF!BG49 -> 0 | AV153: =+CF!BH49 -> 0 | AW153: =+CF!BI49 -> 0 | AX153: =+CF!BJ49 -> 0
B154: Cash Available for Distribution | F154: =+CF!R51 -> 0 | G154: =+CF!S51 -> 0 | H154: =+CF!T51 -> 207,235 | I154: =+CF!U51 -> 34,432 | J154: =+CF!V51 -> 52,615 | K154: =+CF!W51 -> 64,711 | L154: =+CF!X51 -> 76,226 | M154: =+CF!Y51 -> 88,728 | N154: =+CF!Z51 -> 102,020 | O154: =+CF!AA51 -> 117,218 | P154: =+CF!AB51 -> 128,892 | Q154: =+CF!AC51 -> 141,386 | R154: =+CF!AD51 -> 153,884 | S154: =+CF!AE51 -> 163,894 | T154: =+CF!AF51 -> 181,192 | U154: =+CF!AG51 -> 205,409 | V154: =+CF!AH51 -> 231,774 | W154: =+CF!AI51 -> 260,155 | X154: =+CF!AJ51 -> 291,167 | Y154: =+CF!AK51 -> 325,769 | Z154: =+CF!AL51 -> 363,855 | AA154: =+CF!AM51 -> 390,909 | AB154: =+CF!AN51 -> 477,330 | AC154: =+CF!AO51 -> 518,212 | AD154: =+CF!AP51 -> 583,399 | AE154: =+CF!AQ51 -> 620,712 | AF154: =+CF!AR51 -> 659,813 | AG154: =+CF!AS51 -> 701,350 | AH154: =+CF!AT51 -> 635,752 | AI154: =+CF!AU51 -> 683,697 | AJ154: =+CF!AV51 -> 730,581 | AK154: =+CF!AW51 -> 775,838 | AL154: =+CF!AX51 -> 817,143 | AM154: =+CF!AY51 -> 879,298 | AN154: =+CF!AZ51 -> 944,190 | AO154: =+CF!BA51 -> 999,585 | AP154: =+CF!BB51 -> 1,053,911 | AQ154: =+CF!BC51 -> 1,086,080 | AR154: =+CF!BD51 -> 1,396,843 | AS154: =+CF!BE51 -> 1,270,006 | AT154: =+CF!BF51 -> 1,479,620 | AU154: =+CF!BG51 -> 1,534,181 | AV154: =+CF!BH51 -> 1,590,369 | AW154: =+CF!BI51 -> 1,510,144 | AX154: =+CF!BJ51 -> 279,788
B157: Revenues | F157: =(+F138+F139+F150+F142+(MAX(F151,0)+MAX(F152,0)+MAX(F153,0)+MAX(F143,0)+MAX(F145,0)))/10^3 -> 0 | G157: =(+G138+G139+G150+G142+(MAX(G151,0)+MAX(G152,0)+MAX(G153,0)+MAX(G143,0)+MAX(G145,0)))/10^3 -> 101 | H157: 280 | I157: 124 | J157: 138 | K157: 149 | L157: 162 | M157: 176 | N157: 191 | O157: 207 | P157: 220 | Q157: 234 | R157: 249 | S157: 265 | T157: 281 | U157: 309 | V157: 339 | W157: 372 | X157: 408 | Y157: 447 | Z157: 491 | AA157: 540 | AB157: 607 | AC157: 652 | AD157: 719 | AE157: 759 | AF157: 802 | AG157: 846 | AH157: 895 | AI157: 949 | AJ157: 1,003 | AK157: 1,061 | AL157: 1,121 | AM157: 1,185 | AN157: 1,256 | AO157: 1,313 | AP157: 1,369 | AQ157: 1,406 | AR157: 1,717 | AS157: 1,534 | AT157: 1,608 | AU157: 1,670 | AV157: 1,736 | AW157: 1,666 | AX157: 451
B158: Operation Costs | F158: =-F140/10^3 -> 0 | G158: 17 | H158: 18 | I158: 19 | J158: 21 | K158: 22 | L158: 23 | M158: 23 | N158: 24 | O158: 25 | P158: 26 | Q158: 28 | R158: 29 | S158: 30 | T158: 31 | U158: 33 | V158: 35 | W158: 36 | X158: 38 | Y158: 40 | Z158: 43 | AA158: 46 | AB158: 48 | AC158: 51 | AD158: 54 | AE158: 57 | AF158: 59 | AG158: 61 | AH158: 64 | AI158: 67 | AJ158: 69 | AK158: 73 | AL158: 76 | AM158: 79 | AN158: 82 | AO158: 85 | AP158: 89 | AQ158: 92 | AR158: 95 | AS158: 99 | AT158: 102 | AU158: 106 | AV158: 109 | AW158: 113 | AX158: 29
B159: Taxes | F159: =-F144/10^3 -> 0 | G159: 0 | H159: 1 | I159: 1 | J159: 1 | K159: 1 | L159: 1 | M159: 1 | N159: 1 | O159: 1 | P159: 1 | Q159: 1 | R159: 1 | S159: 1 | T159: 1 | U159: 2 | V159: 2 | W159: 2 | X159: 2 | Y159: 2 | Z159: 3 | AA159: 3 | AB159: 3 | AC159: 3 | AD159: 4 | AE159: 4 | AF159: 4 | AG159: 4 | AH159: 5 | AI159: 5 | AJ159: 5 | AK159: 6 | AL159: 6 | AM159: 6 | AN159: 7 | AO159: 7 | AP159: 7 | AQ159: 8 | AR159: 8 | AS159: 8 | AT159: 9 | AU159: 9 | AV159: 9 | AW159: 10 | AX159: 2
B160: Life Cycle CAPEX | F160: =-F141/10^3 -> 0 | G160: 2 | H160: 2 | I160: 3 | J160: 5 | K160: 5 | L160: 6 | M160: 6 | N160: 7 | O160: 7 | P160: 7 | Q160: 7 | R160: 7 | S160: 7 | T160: 7 | U160: 8 | V160: 8 | W160: 9 | X160: 10 | Y160: 10 | Z160: 11 | AA160: 12 | AB160: 14 | AC160: 15 | AD160: 16 | AE160: 15 | AF160: 13 | AG160: 12 | AH160: 11 | AI160: 10 | AJ160: 12 | AK160: 13 | AL160: 15 | AM160: 17 | AN160: 20 | AO160: 18 | AP160: 17 | AQ160: 16 | AR160: 15 | AS160: 14 | AT160: 17 | AU160: 22 | AV160: 27 | AW160: 34 | AX160: 140
B161: Financial costs | F161: =(-F147-F148)/10^3 -> 0 | G161: 28 | H161: 51 | I161: 64 | J161: 61 | K161: 61 | L161: 61 | M161: 61 | N161: 62 | O161: 62 | P161: 63 | Q161: 63 | R161: 64 | S161: 68 | T161: 65 | U161: 65 | V161: 66 | W161: 67 | X161: 68 | Y161: 70 | Z161: 72 | AA161: 74 | AB161: 78 | AC161: 79 | AD161: 76 | AE161: 77 | AF161: 78 | AG161: 79 | AH161: 79 | AI161: 78 | AJ161: 73 | AK161: 67 | AL161: 61 | AM161: 53 | AN161: 45 | AO161: 36 | AP161: 27 | AQ161: 18 | AR161: 8 | AS161: 0 | AT161: 0 | AU161: 0 | AV161: 0 | AW161: 0 | AX161: 0
B162: Drawdowns/Repayments | F162: =(-F146-F149)/10^3 -> 0 | G162: 0 | H162: 0 | I162: -3 | J162: -5 | K162: -5 | L162: -6 | M162: -6 | N162: -7 | O162: -7 | P162: -7 | Q162: -7 | R162: -7 | S162: -7 | T162: -7 | U162: -8 | V162: -8 | W162: -9 | X162: -10 | Y162: -10 | Z162: -11 | AA162: -12 | AB162: -14 | AC162: -15 | AD162: -16 | AE162: -15 | AF162: -13 | AG162: -12 | AH162: -11 | AI162: 100 | AJ162: 108 | AK162: 122 | AL162: 129 | AM162: 150 | AN162: 158 | AO162: 167 | AP162: 175 | AQ162: 185 | AR162: 194 | AS162: 0 | AT162: 0 | AU162: 0 | AV162: 0 | AW162: 0 | AX162: 0
B163: Reserve Accounts | F163: =-(MIN(F151,0)+MIN(F152,0)+MIN(F153,0)+MIN(F143,0)+MIN(F145,0))/10^3 -> 0 | G163: 53 | H163: 0 | I163: 5 | J163: 3 | K163: 1 | L163: 1 | M163: 1 | N163: 2 | O163: 1 | P163: 1 | Q163: 1 | R163: 1 | S163: 2 | T163: 3 | U163: 3 | V163: 5 | W163: 6 | X163: 8 | Y163: 9 | Z163: 10 | AA163: 26 | AB163: 1 | AC163: 1 | AD163: 1 | AE163: 1 | AF163: 1 | AG163: 0 | AH163: 112 | AI163: 5 | AJ163: 5 | AK163: 4 | AL163: 17 | AM163: 0 | AN163: 0 | AO163: 0 | AP163: 0 | AQ163: 2 | AR163: 0 | AS163: 143 | AT163: 0 | AU163: 0 | AV163: 0 | AW163: 0 | AX163: 0
B164: Equity distribution | F164: =+F154/10^3 -> 0 | G164: 0 | H164: 207 | I164: 34 | J164: 53 | K164: 65 | L164: 76 | M164: 89 | N164: 102 | O164: 117 | P164: 129 | Q164: 141 | R164: 154 | S164: 164 | T164: 181 | U164: 205 | V164: 232 | W164: 260 | X164: 291 | Y164: 326 | Z164: 364 | AA164: 391 | AB164: 477 | AC164: 518 | AD164: 583 | AE164: 621 | AF164: 660 | AG164: 701 | AH164: 636 | AI164: 684 | AJ164: 731 | AK164: 776 | AL164: 817 | AM164: 879 | AN164: 944 | AO164: 1,000 | AP164: 1,054 | AQ164: 1,086 | AR164: 1,397 | AS164: 1,270 | AT164: 1,480 | AU164: 1,534 | AV164: 1,590 | AW164: 1,510 | AX164: 280
B166: Check | D166: =+IF(SUM(F166:CI166)=0,"Ok","Error") -> Ok | F166: =+F157-SUM(F158:F164) -> 0 | G166: 0 | H166: 0 | I166: 0 | J166: 0 | K166: 0 | L166: 0 | M166: 0 | N166: 0 | O166: 0 | P166: 0 | Q166: 0 | R166: 0 | S166: 0 | T166: 0 | U166: 0 | V166: 0 | W166: 0 | X166: 0 | Y166: 0 | Z166: 0 | AA166: 0 | AB166: 0 | AC166: 0 | AD166: 0 | AE166: 0 | AF166: 0 | AG166: 0 | AH166: 0 | AI166: 0 | AJ166: 0 | AK166: 0 | AL166: 0 | AM166: 0 | AN166: 0 | AO166: 0 | AP166: 0 | AQ166: 0 | AR166: 0 | AS166: 0 | AT166: 0 | AU166: 0 | AV166: 0 | AW166: 0 | AX166: 0

Sheet Inputs
C2: Project: | G2: NTE Express
C3: Worksheet: | G3: Inputs
C4: Model Integrity : | G4: =+SUM(L174:L186) -> 0
K7: Scenario | L7: 1
P8: =O8 + 1 -> 1 | Q8: 2 | R8: 3
C9: Scenario Description | G9: =IF(ISTEXT(INDEX(P9:R9,1,$L$7)),INDEX(P9:R9,1,$L$7),INDEX(P9:R9,1,1)) -> Base Case | K9: Unit | L9: Value | P9: Base Case
C11: OPERATING SENSITIVITIES
C13: Input Cases
C14: Revenue | K14: Number | L14: =+INDEX($P14:$R14,1,Scenario) -> 1 | P14: 1
C15: O&M | K15: Number | L15: =+INDEX($P15:$R15,1,Scenario) -> 1 | P15: 1
C16: Major Maintenance Capex | K16: Number | L16: =+INDEX($P16:$R16,1,Scenario) -> 1 | P16: 1
C17: Construction costs | K17: Number | L17: =+INDEX($P17:$R17,1,Scenario) -> 1 | P17: 1
C19: CPI Assumptions
C20: CPI (2017-2021) | K20: % | L20: =+INDEX($P20:$R20,1,Scenario) -> 2.25% | P20: 2.25%
C21: LT CPI (2022 onwards) | K21: % | L21: =+INDEX($P21:$R21,1,Scenario) -> 2.30% | P21: 2.30%
C24: OPERATING ASSUMPTIONS
C26: Concession Start | L26: 2009-03-31
C27: Construction Start | L27: 2009-05-31
C28: Construction End | L28: 2014-09-30
C29: Operation Start | L29: 2014-10-03
C30: Concession End | L30: 2061-03-31
C32: Revenues
A33: 1 | C33: 2018 | K33: $000s | L33: =+INDEX($P33:$R33,1,Scenario) -> 83,396 | P33: 83,396
A34: =+A33+1 -> 2 | C34: =+C33+3 -> 2021 | K34: $000s | L34: 106,395 | P34: 106,395
A35: 3 | C35: =+C34+5 -> 2026 | K35: $000s | L35: 142,876 | P35: 142,876
A36: 4 | C36: 2031 | K36: $000s | L36: 173,203 | P36: 173,203
A37: 5 | C37: 2036 | K37: $000s | L37: 245,835 | P37: 245,835
A38: 6 | C38: 2041 | K38: $000s | L38: 351,145 | P38: 351,145
A39: 7 | C39: 2046 | K39: $000s | L39: 415,333 | P39: 415,333
A40: 8 | C40: 2051 | K40: $000s | L40: 489,681 | P40: 489,681
A41: 9 | C41: 2056 | K41: $000s | L41: 548,737 | P41: 548,737
A42: 10 | C42: 2061 | K42: $000s | L42: 587,469 | P42: 587,469
C44: O&M
A45: =+A33 -> 1 | C45: 2018 | K45: $000s | L45: =+INDEX($P45:$R45,1,Scenario) -> 14,275 | P45: 14,275
A46: =+A34 -> 2 | C46: =+C34 -> 2021 | K46: $000s | L46: 16,190 | P46: 16,190
A47: 3 | C47: 2026 | K47: $000s | L47: 17,733 | P47: 17,733
A48: 4 | C48: 2031 | K48: $000s | L48: 19,273 | P48: 19,273
A49: 5 | C49: 2036 | K49: $000s | L49: 22,457 | P49: 22,457
A50: 6 | C50: 2041 | K50: $000s | L50: 26,886 | P50: 26,886
A51: 7 | C51: 2046 | K51: $000s | L51: 29,430 | P51: 29,430
A52: 8 | C52: 2051 | K52: $000s | L52: 32,483 | P52: 32,483
A53: 9 | C53: 2056 | K53: $000s | L53: 34,837 | P53: 34,837
A54: 10 | C54: 2061 | K54: $000s | L54: 36,547 | P54: 36,547
C56: Major Maintenance Capex
A57: =+A45 -> 1 | C57: 2018 | K57: $000s | L57: =+INDEX($P57:$R57,1,Scenario) -> 1,296 | P57: 1,296
A58: 2 | C58: =+C46 -> 2021 | K58: $000s | L58: 3,788 | P58: 3,788
A59: 3 | C59: 2026 | K59: $000s | L59: 4,924 | P59: 4,924
A60: 4 | C60: 2031 | K60: $000s | L60: 4,524 | P60: 4,524
A61: 5 | C61: 2036 | K61: $000s | L61: 5,797 | P61: 5,797
A62: 6 | C62: 2041 | K62: $000s | L62: 8,002 | P62: 8,002
A63: 7 | C63: 2046 | K63: $000s | L63: 4,541 | P63: 4,541
A64: 8 | C64: 2051 | K64: $000s | L64: 7,792 | P64: 7,792
A65: 9 | C65: 2056 | K65: $000s | L65: 4,821 | P65: 4,821
A66: 10 | C66: 2061 | K66: $000s | L66: 13,508 | P66: 13,508
C68: Construction Costs | K68: $000s | L68: =+INDEX($P68:$R68,1,Scenario) -> 706 | P68: 706
C70: Margin Tax | K70: $000s | L70: =+INDEX($P70:$R70,1,Scenario) -> 361 | P70: 361
C72: Government Subsidy | K72: $000s | L72: =+INDEX($P72:$R72,1,Scenario) -> 680 | P72: 680
C75: TAXES
C77: Federal Rate | K77: % | L77: =+INDEX($P77:$R77,1,Scenario) -> 21% | P77: 21.00%
C79: Federal Tax Carried Forward Losses | K79: % | L79: =+INDEX($P79:$R79,1,Scenario) -> 80% | P79: 80.00%
C81: Financial Expenses Deducibility Limit
C82: EBIT | K82: year | L82: =+INDEX($P82:$R82,1,Scenario) -> 2021 | P82: 2021
C83: Limit | K83: % | L83: =+INDEX($P83:$R83,1,Scenario) -> 30% | P83: 30.00%
C84: Expired | K84: year | L84: =+INDEX($P84:$R84,1,Scenario) -> 100 | P84: 100
C86: State Tax | E86: (1=Yes,0=No) | K86: Switch | L86: =+INDEX($P86:$R86,1,Scenario) -> 1 | P86: 1
C87: Margin Tax | K87: % | L87: =+INDEX($P87:$R87,1,Scenario) -> 0.75% | P87: 0.75%
C88: Applicable to __% of Total Revenue | K88: % | L88: =+INDEX($P88:$R88,1,Scenario) -> 70.00% | P88: 70.00%
C91: FINANCIAL ASSUMPTIONS
B93: a) Current Debt Assumptions
C95: TIFIA
C96: Repayment start date | K96: Date | L96: 2039-01-01
C97: Repayment end date | K97: Date | L97: 2049-12-31
C98: Credit Rating Fee | K98: $000s | L98: 45
C99: Maintenance Fee | K99: $000s | L99: 12
C100: Start Date | K100: Date | L100: 2019-01-01
C101: % to share | K101: % | L101: 50.00%
C102: Refinance TIFIA Repayments | K102: Switch | L102: 1
C103: % to TIFIA Refinancing | K103: % | L103: 50.00%
C104: 1st Scheduled interest payment | K104: $000s | L104: =+INDEX($P104:$R104,1,Scenario) -> 17,331 | P104: =17331.1738227712 -> 17,331
C105: PABs
C106: All-in interest rate | K106: % | L106: 0
C108: Cash accounts
C109: Major Maintenance Reserve account
C110: % of future period debt service to reserve for
C111: 1st year | K111: % | L111: 95.00%
C112: 2nd year | K112: % | L112: 75.00%
C113: 3rd year | K113: % | L113: 55.00%
C114: 4th year | K114: % | L114: 35.00%
C115: 5th year | K115: % | L115: 15.00%
C117: Handback Reserve Account
C118: Start Date | K118: Date | L118: 2056
C119: End Date | K119: Date | L119: 2061
C120: Release to TxDOT | K120: $000s | L120: -106,959
C121: Base Case Capex to Handback Reserve | K121: $000s | L121: 137,107
C122: Funding targget (%Capex)
C123: 2056 | K123: % | L123: 25.00%
C124: 2057 | K124: % | L124: 100.00%
C125: =+C124+1 -> 2058 | K125: % | L125: 100.00%
C126: =+C125+1 -> 2059 | K126: % | L126: 100.00%
C127: 2060 | K127: % | L127: 100.00%
C128: 2061 | K128: % | L128: 100.00%
C130: TIFIA Cash Trapped
C131: Cash Trapped Release Flag | K131: Date | L131: 2019-12-31
B133: b) Refinancing Assumptions
C134: Use? | K134: Switch | L134: =+INDEX($P134:$R134,1,Scenario) -> 1 | P134: 1
C135: Date | K135: Date | L135: 2019-12-31 | P135: 2019-12-31
C136: End Date | K136: Date | L136: 2055-12-31 | P136: 2055-12-31
C137: Tail | K137: Years | L137: 6 | P137: 6
C138: Repayment Period | K138: Years | L138: 10 | P138: 10
C139: Upfront fee | K139: % | L139: 1.00% | P139: 1.00%
C140: Base rate | K140: % | L140: 5.25% | P140: 5.25%
C141: Margin | K141: % | L141: 0.00% | P141: 0.00%
C142: Credit Spread | K142: % | L142: 0.00% | P142: 0.00%
C144: Capex Facility
C145: Use? | K145: Switch | L145: =+INDEX($P145:$R145,1,Scenario) -> 1 | P145: 1
C146: Base rate | K146: % | L146: =+INDEX($P146:$R146,1,Scenario) -> 5.25% | P146: 5.25%
C148: End Date
C149: Facility 3 | K149: Date | L149: =+INDEX($P149:$R149,1,Scenario) -> 2050-12-31 | P149: 2050-12-31
C151: Agency fees | K151: $000s | L151: =+INDEX($P151:$R151,1,Scenario) -> 50 | P151: 50
C153: Upfront fee | K153: % | L153: =+INDEX($P153:$R153,1,Scenario) -> 3.50% | P153: 3.50%
C154: Commitment fee | K154: % | L154: =+INDEX($P154:$R154,1,Scenario) -> 0.48% | P154: 0.48%
C157: VALUATION
C159: Valuation (1. APV 2. DDM) | L159: =+INDEX($P159:$R159,1,Scenario) -> 2 | P159: 2
C160: Cintra share | K160: % | L160: 63%
B162: 1) APV
C163: Rfr | K163: % | L163: =+INDEX($P163:$R163,1,Scenario) -> 3.00% | P163: 3.00%
C164: Beta unlevered | L164: =+INDEX($P164:$R164,1,Scenario) -> 0.85 | P164: 0.85
C165: ERP | K165: % | L165: =+INDEX($P165:$R165,1,Scenario) -> 6.00% | P165: 6.00%
C166: Exchange rate | K166: $ | L166: =+INDEX($P166:$R166,1,Scenario) -> 1.20 | P166: 1.20
B168: 2) DDM
C169: Ke | K169: % | L169: =+INDEX($P169:$R169,1,Scenario) -> 10.50% | P169: 10.50%
C172: ERROR CHECK
C174: Balance Sheet | L174: =+Acc!N66 -> 0
C175: Sources & Uses ? | L175: =+Acc!N100 -> 0
C176: Debt Facilities | L176: =IF(ROUND(AND(Fin!N26+Fin!N47+Fin!N58+Fin!N34+Fin!N58+Fin!N97+Fin!N141+Fin!N190),2)=0,0,1) -> 0
C177: Depreciation | L177: =Tax!N50 -> 0
C178: Minimun interest deduction | L178: =+Tax!N78 -> 0
C179: Tax Carried Forward Losses | L179: =+Tax!N32 -> 0
C180: Cash Trapped | L180: =+Fin!N309 -> 0
C181: DSRA | L181: =+Fin!N278 -> 0
C182: MMRA | L182: =+Fin!N253 -> 0
C183: Working Capital | L183: =Fin!N319 -> 0
C184: Handback | L184: =Fin!N293 -> 0
C185: Cash Balances | L185: =+CF!N57 -> 0
C186: Copy / Paste macro fully run | L186: =IF(Mac!$M$21 = "OK",0,1) -> 0
C189: ANNUAL ACCOUNTS | L189: 2017
B191: Balance
C193: Current Assets | L193: =SUM(L194:L199) -> 155,265
C194: MMRA | L194: 20,000
C195: DSRA | L195: 40,000
C196: Working Capital | L196: 2,884
C197: Handback Reserve | L197: 0
C198: TIFIA Cash Trapped | L198: 92,381
C199: Cash | L199: 0
C202: Non-current assets | L202: =SUM(L203:L203) -> 1,310,780
C203: Net Book Value | L203: 1,310,780
C205: Total assets | L205: =+L202+L193 -> 1,466,045
C209: Equity | L209: =SUM(L210:L211) -> 272,070
C210: Shared capital | L210: 426,256
C211: Retained earnings | L211: (154,185)
C214: Non-current liabilities | L214: =SUM(L215:L218) -> 1,193,974
C216: Bond Facility (PABs) outstanding | L216: 400,000
C217: TIFIA outstanding | L217: =+Fin!R141 -> 793,974
C220: Total liabilities | L220: =+L214+L209 -> 1,466,045
L221: =ROUND(L220-L205,0) -> 0
C225: Depreciation | L225: -86,664
C227: Tax Carry Forward Loss | L227: 567,430

Sheet Oper
C2: Project: | F2: =+Inputs!$G$2 -> NTE Express
C3: Worksheet: | F3: Oper
C4: Model Integrity : | F4: =+Inputs!G4 -> 0
R6: =+IFERROR(INDEX(Inputs!$A$33:$A$42,MATCH(R7,Inputs!$C$33:$C$42,0),1),Q6) -> 0 | S6: =+IFERROR(INDEX(Inputs!$A$33:$A$42,MATCH(S7,Inputs!$C$33:$C$42,0),1),R6) -> 1 | T6: =+IFERROR(INDEX(Inputs!$A$33:$A$42,MATCH(T7,Inputs!$C$33:$C$42,0),1),S6) -> 1 | U6: =+IFERROR(INDEX(Inputs!$A$33:$A$42,MATCH(U7,Inputs!$C$33:$C$42,0),1),T6) -> 1 | V6: =+IFERROR(INDEX(Inputs!$A$33:$A$42,MATCH(V7,Inputs!$C$33:$C$42,0),1),U6) -> 2 | W6: =+IFERROR(INDEX(Inputs!$A$33:$A$42,MATCH(W7,Inputs!$C$33:$C$42,0),1),V6) -> 2 | X6: =+IFERROR(INDEX(Inputs!$A$33:$A$42,MATCH(X7,Inputs!$C$33:$C$42,0),1),W6) -> 2 | Y6: =+IFERROR(INDEX(Inputs!$A$33:$A$42,MATCH(Y7,Inputs!$C$33:$C$42,0),1),X6) -> 2 | Z6: =+IFERROR(INDEX(Inputs!$A$33:$A$42,MATCH(Z7,Inputs!$C$33:$C$42,0),1),Y6) -> 2 | AA6: =+IFERROR(INDEX(Inputs!$A$33:$A$42,MATCH(AA7,Inputs!$C$33:$C$42,0),1),Z6) -> 3 | AB6: =+IFERROR(INDEX(Inputs!$A$33:$A$42,MATCH(AB7,Inputs!$C$33:$C$42,0),1),AA6) -> 3 | AC6: =+IFERROR(INDEX(Inputs!$A$33:$A$42,MATCH(AC7,Inputs!$C$33:$C$42,0),1),AB6) -> 3 | AD6: =+IFERROR(INDEX(Inputs!$A$33:$A$42,MATCH(AD7,Inputs!$C$33:$C$42,0),1),AC6) -> 3 | AE6: =+IFERROR(INDEX(Inputs!$A$33:$A$42,MATCH(AE7,Inputs!$C$33:$C$42,0),1),AD6) -> 3 | AF6: =+IFERROR(INDEX(Inputs!$A$33:$A$42,MATCH(AF7,Inputs!$C$33:$C$42,0),1),AE6) -> 4 | AG6: =+IFERROR(INDEX(Inputs!$A$33:$A$42,MATCH(AG7,Inputs!$C$33:$C$42,0),1),AF6) -> 4 | AH6: =+IFERROR(INDEX(Inputs!$A$33:$A$42,MATCH(AH7,Inputs!$C$33:$C$42,0),1),AG6) -> 4 | AI6: =+IFERROR(INDEX(Inputs!$A$33:$A$42,MATCH(AI7,Inputs!$C$33:$C$42,0),1),AH6) -> 4 | AJ6: =+IFERROR(INDEX(Inputs!$A$33:$A$42,MATCH(AJ7,Inputs!$C$33:$C$42,0),1),AI6) -> 4 | AK6: =+IFERROR(INDEX(Inputs!$A$33:$A$42,MATCH(AK7,Inputs!$C$33:$C$42,0),1),AJ6) -> 5 | AL6: =+IFERROR(INDEX(Inputs!$A$33:$A$42,MATCH(AL7,Inputs!$C$33:$C$42,0),1),AK6) -> 5 | AM6: =+IFERROR(INDEX(Inputs!$A$33:$A$42,MATCH(AM7,Inputs!$C$33:$C$42,0),1),AL6) -> 5 | AN6: =+IFERROR(INDEX(Inputs!$A$33:$A$42,MATCH(AN7,Inputs!$C$33:$C$42,0),1),AM6) -> 5 | AO6: =+IFERROR(INDEX(Inputs!$A$33:$A$42,MATCH(AO7,Inputs!$C$33:$C$42,0),1),AN6) -> 5 | AP6: =+IFERROR(INDEX(Inputs!$A$33:$A$42,MATCH(AP7,Inputs!$C$33:$C$42,0),1),AO6) -> 6 | AQ6: =+IFERROR(INDEX(Inputs!$A$33:$A$42,MATCH(AQ7,Inputs!$C$33:$C$42,0),1),AP6) -> 6 | AR6: =+IFERROR(INDEX(Inputs!$A$33:$A$42,MATCH(AR7,Inputs!$C$33:$C$42,0),1),AQ6) -> 6 | AS6: =+IFERROR(INDEX(Inputs!$A$33:$A$42,MATCH(AS7,Inputs!$C$33:$C$42,0),1),AR6) -> 6 | AT6: =+IFERROR(INDEX(Inputs!$A$33:$A$42,MATCH(AT7,Inputs!$C$33:$C$42,0),1),AS6) -> 6 | AU6: =+IFERROR(INDEX(Inputs!$A$33:$A$42,MATCH(AU7,Inputs!$C$33:$C$42,0),1),AT6) -> 7 | AV6: =+IFERROR(INDEX(Inputs!$A$33:$A$42,MATCH(AV7,Inputs!$C$33:$C$42,0),1),AU6) -> 7 | AW6: =+IFERROR(INDEX(Inputs!$A$33:$A$42,MATCH(AW7,Inputs!$C$33:$C$42,0),1),AV6) -> 7 | AX6: =+IFERROR(INDEX(Inputs!$A$33:$A$42,MATCH(AX7,Inputs!$C$33:$C$42,0),1),AW6) -> 7 | AY6: =+IFERROR(INDEX(Inputs!$A$33:$A$42,MATCH(AY7,Inputs!$C$33:$C$42,0),1),AX6) -> 7 | AZ6: =+IFERROR(INDEX(Inputs!$A$33:$A$42,MATCH(AZ7,Inputs!$C$33:$C$42,0),1),AY6) -> 8 | BA6: =+IFERROR(INDEX(Inputs!$A$33:$A$42,MATCH(BA7,Inputs!$C$33:$C$42,0),1),AZ6) -> 8 | BB6: =+IFERROR(INDEX(Inputs!$A$33:$A$42,MATCH(BB7,Inputs!$C$33:$C$42,0),1),BA6) -> 8 | BC6: =+IFERROR(INDEX(Inputs!$A$33:$A$42,MATCH(BC7,Inputs!$C$33:$C$42,0),1),BB6) -> 8 | BD6: =+IFERROR(INDEX(Inputs!$A$33:$A$42,MATCH(BD7,Inputs!$C$33:$C$42,0),1),BC6) -> 8 | BE6: =+IFERROR(INDEX(Inputs!$A$33:$A$42,MATCH(BE7,Inputs!$C$33:$C$42,0),1),BD6) -> 9 | BF6: =+IFERROR(INDEX(Inputs!$A$33:$A$42,MATCH(BF7,Inputs!$C$33:$C$42,0),1),BE6) -> 9 | BG6: =+IFERROR(INDEX(Inputs!$A$33:$A$42,MATCH(BG7,Inputs!$C$33:$C$42,0),1),BF6) -> 9 | BH6: =+IFERROR(INDEX(Inputs!$A$33:$A$42,MATCH(BH7,Inputs!$C$33:$C$42,0),1),BG6) -> 9 | BI6: =+IFERROR(INDEX(Inputs!$A$33:$A$42,MATCH(BI7,Inputs!$C$33:$C$42,0),1),BH6) -> 9 | BJ6: =+IFERROR(INDEX(Inputs!$A$33:$A$42,MATCH(BJ7,Inputs!$C$33:$C$42,0),1),BI6) -> 10
C7: Year | Q7: =+YEAR(Q9) -> 2016 | R7: 2017 | S7: 2018 | T7: 2019 | U7: 2020 | V7: 2021 | W7: 2022 | X7: 2023 | Y7: 2024 | Z7: 2025 | AA7: 2026 | AB7: 2027 | AC7: 2028 | AD7: 2029 | AE7: 2030 | AF7: 2031 | AG7: 2032 | AH7: 2033 | AI7: 2034 | AJ7: 2035 | AK7: 2036 | AL7: 2037 | AM7: 2038 | AN7: 2039 | AO7: 2040 | AP7: 2041 | AQ7: 2042 | AR7: 2043 | AS7: 2044 | AT7: 2045 | AU7: 2046 | AV7: 2047 | AW7: 2048 | AX7: 2049 | AY7: 2050 | AZ7: 2051 | BA7: 2052 | BB7: 2053 | BC7: 2054 | BD7: 2055 | BE7: 2056 | BF7: 2057 | BG7: 2058 | BH7: 2059 | BI7: 2060 | BJ7: 2061
C8: Period start date | Q8: 2016-01-01 | R8: =+Q9+1 -> 2017-01-01 | S8: 2018-01-01 | T8: 2019-01-01 | U8: 2020-01-01 | V8: 2021-01-01 | W8: 2022-01-01 | X8: 2023-01-01 | Y8: 2024-01-01 | Z8: 2025-01-01 | AA8: 2026-01-01 | AB8: 2027-01-01 | AC8: 2028-01-01 | AD8: 2029-01-01 | AE8: 2030-01-01 | AF8: 2031-01-01 | AG8: 2032-01-01 | AH8: 2033-01-01 | AI8: 2034-01-01 | AJ8: 2035-01-01 | AK8: 2036-01-01 | AL8: 2037-01-01 | AM8: 2038-01-01 | AN8: 2039-01-01 | AO8: 2040-01-01 | AP8: 2041-01-01 | AQ8: 2042-01-01 | AR8: 2043-01-01 | AS8: 2044-01-01 | AT8: 2045-01-01 | AU8: 2046-01-01 | AV8: 2047-01-01 | AW8: 2048-01-01 | AX8: 2049-01-01 | AY8: 2050-01-01 | AZ8: 2051-01-01 | BA8: 2052-01-01 | BB8: 2053-01-01 | BC8: 2054-01-01 | BD8: 2055-01-01 | BE8: 2056-01-01 | BF8: 2057-01-01 | BG8: 2058-01-01 | BH8: 2059-01-01 | BI8: 2060-01-01 | BJ8: 2061-01-01
C9: Period end date | Q9: =+EOMONTH(Q8,11) -> 2016-12-31 | R9: 2017-12-31 | S9: 2018-12-31 | T9: 2019-12-31 | U9: 2020-12-31 | V9: 2021-12-31 | W9: 2022-12-31 | X9: 2023-12-31 | Y9: 2024-12-31 | Z9: 2025-12-31 | AA9: 2026-12-31 | AB9: 2027-12-31 | AC9: 2028-12-31 | AD9: 2029-12-31 | AE9: 2030-12-31 | AF9: 2031-12-31 | AG9: 2032-12-31 | AH9: 2033-12-31 | AI9: 2034-12-31 | AJ9: 2035-12-31 | AK9: 2036-12-31 | AL9: 2037-12-31 | AM9: 2038-12-31 | AN9: 2039-12-31 | AO9: 2040-12-31 | AP9: 2041-12-31 | AQ9: 2042-12-31 | AR9: 2043-12-31 | AS9: 2044-12-31 | AT9: 2045-12-31 | AU9: 2046-12-31 | AV9: 2047-12-31 | AW9: 2048-12-31 | AX9: 2049-12-31 | AY9: 2050-12-31 | AZ9: 2051-12-31 | BA9: 2052-12-31 | BB9: 2053-12-31 | BC9: 2054-12-31 | BD9: 2055-12-31 | BE9: 2056-12-31 | BF9: 2057-12-31 | BG9: 2058-12-31 | BH9: 2059-12-31 | BI9: 2060-12-31 | BJ9: 2061-12-31
K10: Unit | L10: Value | N10: Sum
C12: Concession period in % | K12: % | Q12: =+IF(OR(CF!Q7<YEAR(Inputs!$L$29),CF!Q7>YEAR(Inputs!$L$30)),0,IF(CF!Q7=YEAR(Inputs!$L$30),(Inputs!$L$30-CF!Q8+1)/CF!Q$15,IF(CF!Q7=YEAR(Inputs!$L$29),(CF!Q9-Inputs!$L$29+1)/CF!Q15,1))) -> 100.00% | R12: =+IF(OR(CF!R7<YEAR(Inputs!$L$29),CF!R7>YEAR(Inputs!$L$30)),0,IF(CF!R7=YEAR(Inputs!$L$30),(Inputs!$L$30-CF!R8+1)/CF!R$15,IF(CF!R7=YEAR(Inputs!$L$29),(CF!R9-Inputs!$L$29+1)/CF!R15,1))) -> 100.00% | S12: =+IF(OR(CF!S7<YEAR(Inputs!$L$29),CF!S7>YEAR(Inputs!$L$30)),0,IF(CF!S7=YEAR(Inputs!$L$30),(Inputs!$L$30-CF!S8+1)/CF!S$15,IF(CF!S7=YEAR(Inputs!$L$29),(CF!S9-Inputs!$L$29+1)/CF!S15,1))) -> 100.00% | T12: =+IF(OR(CF!T7<YEAR(Inputs!$L$29),CF!T7>YEAR(Inputs!$L$30)),0,IF(CF!T7=YEAR(Inputs!$L$30),(Inputs!$L$30-CF!T8+1)/CF!T$15,IF(CF!T7=YEAR(Inputs!$L$29),(CF!T9-Inputs!$L$29+1)/CF!T15,1))) -> 100.00% | U12: =+IF(OR(CF!U7<YEAR(Inputs!$L$29),CF!U7>YEAR(Inputs!$L$30)),0,IF(CF!U7=YEAR(Inputs!$L$30),(Inputs!$L$30-CF!U8+1)/CF!U$15,IF(CF!U7=YEAR(Inputs!$L$29),(CF!U9-Inputs!$L$29+1)/CF!U15,1))) -> 100.00% | V12: =+IF(OR(CF!V7<YEAR(Inputs!$L$29),CF!V7>YEAR(Inputs!$L$30)),0,IF(CF!V7=YEAR(Inputs!$L$30),(Inputs!$L$30-CF!V8+1)/CF!V$15,IF(CF!V7=YEAR(Inputs!$L$29),(CF!V9-Inputs!$L$29+1)/CF!V15,1))) -> 100.00% | W12: =+IF(OR(CF!W7<YEAR(Inputs!$L$29),CF!W7>YEAR(Inputs!$L$30)),0,IF(CF!W7=YEAR(Inputs!$L$30),(Inputs!$L$30-CF!W8+1)/CF!W$15,IF(CF!W7=YEAR(Inputs!$L$29),(CF!W9-Inputs!$L$29+1)/CF!W15,1))) -> 100.00% | X12: =+IF(OR(CF!X7<YEAR(Inputs!$L$29),CF!X7>YEAR(Inputs!$L$30)),0,IF(CF!X7=YEAR(Inputs!$L$30),(Inputs!$L$30-CF!X8+1)/CF!X$15,IF(CF!X7=YEAR(Inputs!$L$29),(CF!X9-Inputs!$L$29+1)/CF!X15,1))) -> 100.00% | Y12: =+IF(OR(CF!Y7<YEAR(Inputs!$L$29),CF!Y7>YEAR(Inputs!$L$30)),0,IF(CF!Y7=YEAR(Inputs!$L$30),(Inputs!$L$30-CF!Y8+1)/CF!Y$15,IF(CF!Y7=YEAR(Inputs!$L$29),(CF!Y9-Inputs!$L$29+1)/CF!Y15,1))) -> 100.00% | Z12: =+IF(OR(CF!Z7<YEAR(Inputs!$L$29),CF!Z7>YEAR(Inputs!$L$30)),0,IF(CF!Z7=YEAR(Inputs!$L$30),(Inputs!$L$30-CF!Z8+1)/CF!Z$15,IF(CF!Z7=YEAR(Inputs!$L$29),(CF!Z9-Inputs!$L$29+1)/CF!Z15,1))) -> 100.00% | AA12: =+IF(OR(CF!AA7<YEAR(Inputs!$L$29),CF!AA7>YEAR(Inputs!$L$30)),0,IF(CF!AA7=YEAR(Inputs!$L$30),(Inputs!$L$30-CF!AA8+1)/CF!AA$15,IF(CF!AA7=YEAR(Inputs!$L$29),(CF!AA9-Inputs!$L$29+1)/CF!AA15,1))) -> 100.00% | AB12: =+IF(OR(CF!AB7<YEAR(Inputs!$L$29),CF!AB7>YEAR(Inputs!$L$30)),0,IF(CF!AB7=YEAR(Inputs!$L$30),(Inputs!$L$30-CF!AB8+1)/CF!AB$15,IF(CF!AB7=YEAR(Inputs!$L$29),(CF!AB9-Inputs!$L$29+1)/CF!AB15,1))) -> 100.00% | AC12: =+IF(OR(CF!AC7<YEAR(Inputs!$L$29),CF!AC7>YEAR(Inputs!$L$30)),0,IF(CF!AC7=YEAR(Inputs!$L$30),(Inputs!$L$30-CF!AC8+1)/CF!AC$15,IF(CF!AC7=YEAR(Inputs!$L$29),(CF!AC9-Inputs!$L$29+1)/CF!AC15,1))) -> 100.00% | AD12: =+IF(OR(CF!AD7<YEAR(Inputs!$L$29),CF!AD7>YEAR(Inputs!$L$30)),0,IF(CF!AD7=YEAR(Inputs!$L$30),(Inputs!$L$30-CF!AD8+1)/CF!AD$15,IF(CF!AD7=YEAR(Inputs!$L$29),(CF!AD9-Inputs!$L$29+1)/CF!AD15,1))) -> 100.00% | AE12: =+IF(OR(CF!AE7<YEAR(Inputs!$L$29),CF!AE7>YEAR(Inputs!$L$30)),0,IF(CF!AE7=YEAR(Inputs!$L$30),(Inputs!$L$30-CF!AE8+1)/CF!AE$15,IF(CF!AE7=YEAR(Inputs!$L$29),(CF!AE9-Inputs!$L$29+1)/CF!AE15,1))) -> 100.00% | AF12: =+IF(OR(CF!AF7<YEAR(Inputs!$L$29),CF!AF7>YEAR(Inputs!$L$30)),0,IF(CF!AF7=YEAR(Inputs!$L$30),(Inputs!$L$30-CF!AF8+1)/CF!AF$15,IF(CF!AF7=YEAR(Inputs!$L$29),(CF!AF9-Inputs!$L$29+1)/CF!AF15,1))) -> 100.00% | AG12: =+IF(OR(CF!AG7<YEAR(Inputs!$L$29),CF!AG7>YEAR(Inputs!$L$30)),0,IF(CF!AG7=YEAR(Inputs!$L$30),(Inputs!$L$30-CF!AG8+1)/CF!AG$15,IF(CF!AG7=YEAR(Inputs!$L$29),(CF!AG9-Inputs!$L$29+1)/CF!AG15,1))) -> 100.00% | AH12: =+IF(OR(CF!AH7<YEAR(Inputs!$L$29),CF!AH7>YEAR(Inputs!$L$30)),0,IF(CF!AH7=YEAR(Inputs!$L$30),(Inputs!$L$30-CF!AH8+1)/CF!AH$15,IF(CF!AH7=YEAR(Inputs!$L$29),(CF!AH9-Inputs!$L$29+1)/CF!AH15,1))) -> 100.00% | AI12: =+IF(OR(CF!AI7<YEAR(Inputs!$L$29),CF!AI7>YEAR(Inputs!$L$30)),0,IF(CF!AI7=YEAR(Inputs!$L$30),(Inputs!$L$30-CF!AI8+1)/CF!AI$15,IF(CF!AI7=YEAR(Inputs!$L$29),(CF!AI9-Inputs!$L$29+1)/CF!AI15,1))) -> 100.00% | AJ12: =+IF(OR(CF!AJ7<YEAR(Inputs!$L$29),CF!AJ7>YEAR(Inputs!$L$30)),0,IF(CF!AJ7=YEAR(Inputs!$L$30),(Inputs!$L$30-CF!AJ8+1)/CF!AJ$15,IF(CF!AJ7=YEAR(Inputs!$L$29),(CF!AJ9-Inputs!$L$29+1)/CF!AJ15,1))) -> 100.00% | AK12: =+IF(OR(CF!AK7<YEAR(Inputs!$L$29),CF!AK7>YEAR(Inputs!$L$30)),0,IF(CF!AK7=YEAR(Inputs!$L$30),(Inputs!$L$30-CF!AK8+1)/CF!AK$15,IF(CF!AK7=YEAR(Inputs!$L$29),(CF!AK9-Inputs!$L$29+1)/CF!AK15,1))) -> 100.00% | AL12: =+IF(OR(CF!AL7<YEAR(Inputs!$L$29),CF!AL7>YEAR(Inputs!$L$30)),0,IF(CF!AL7=YEAR(Inputs!$L$30),(Inputs!$L$30-CF!AL8+1)/CF!AL$15,IF(CF!AL7=YEAR(Inputs!$L$29),(CF!AL9-Inputs!$L$29+1)/CF!AL15,1))) -> 100.00% | AM12: =+IF(OR(CF!AM7<YEAR(Inputs!$L$29),CF!AM7>YEAR(Inputs!$L$30)),0,IF(CF!AM7=YEAR(Inputs!$L$30),(Inputs!$L$30-CF!AM8+1)/CF!AM$15,IF(CF!AM7=YEAR(Inputs!$L$29),(CF!AM9-Inputs!$L$29+1)/CF!AM15,1))) -> 100.00% | AN12: =+IF(OR(CF!AN7<YEAR(Inputs!$L$29),CF!AN7>YEAR(Inputs!$L$30)),0,IF(CF!AN7=YEAR(Inputs!$L$30),(Inputs!$L$30-CF!AN8+1)/CF!AN$15,IF(CF!AN7=YEAR(Inputs!$L$29),(CF!AN9-Inputs!$L$29+1)/CF!AN15,1))) -> 100.00% | AO12: =+IF(OR(CF!AO7<YEAR(Inputs!$L$29),CF!AO7>YEAR(Inputs!$L$30)),0,IF(CF!AO7=YEAR(Inputs!$L$30),(Inputs!$L$30-CF!AO8+1)/CF!AO$15,IF(CF!AO7=YEAR(Inputs!$L$29),(CF!AO9-Inputs!$L$29+1)/CF!AO15,1))) -> 100.00% | AP12: =+IF(OR(CF!AP7<YEAR(Inputs!$L$29),CF!AP7>YEAR(Inputs!$L$30)),0,IF(CF!AP7=YEAR(Inputs!$L$30),(Inputs!$L$30-CF!AP8+1)/CF!AP$15,IF(CF!AP7=YEAR(Inputs!$L$29),(CF!AP9-Inputs!$L$29+1)/CF!AP15,1))) -> 100.00% | AQ12: =+IF(OR(CF!AQ7<YEAR(Inputs!$L$29),CF!AQ7>YEAR(Inputs!$L$30)),0,IF(CF!AQ7=YEAR(Inputs!$L$30),(Inputs!$L$30-CF!AQ8+1)/CF!AQ$15,IF(CF!AQ7=YEAR(Inputs!$L$29),(CF!AQ9-Inputs!$L$29+1)/CF!AQ15,1))) -> 100.00% | AR12: =+IF(OR(CF!AR7<YEAR(Inputs!$L$29),CF!AR7>YEAR(Inputs!$L$30)),0,IF(CF!AR7=YEAR(Inputs!$L$30),(Inputs!$L$30-CF!AR8+1)/CF!AR$15,IF(CF!AR7=YEAR(Inputs!$L$29),(CF!AR9-Inputs!$L$29+1)/CF!AR15,1))) -> 100.00% | AS12: =+IF(OR(CF!AS7<YEAR(Inputs!$L$29),CF!AS7>YEAR(Inputs!$L$30)),0,IF(CF!AS7=YEAR(Inputs!$L$30),(Inputs!$L$30-CF!AS8+1)/CF!AS$15,IF(CF!AS7=YEAR(Inputs!$L$29),(CF!AS9-Inputs!$L$29+1)/CF!AS15,1))) -> 100.00% | AT12: =+IF(OR(CF!AT7<YEAR(Inputs!$L$29),CF!AT7>YEAR(Inputs!$L$30)),0,IF(CF!AT7=YEAR(Inputs!$L$30),(Inputs!$L$30-CF!AT8+1)/CF!AT$15,IF(CF!AT7=YEAR(Inputs!$L$29),(CF!AT9-Inputs!$L$29+1)/CF!AT15,1))) -> 100.00% | AU12: =+IF(OR(CF!AU7<YEAR(Inputs!$L$29),CF!AU7>YEAR(Inputs!$L$30)),0,IF(CF!AU7=YEAR(Inputs!$L$30),(Inputs!$L$30-CF!AU8+1)/CF!AU$15,IF(CF!AU7=YEAR(Inputs!$L$29),(CF!AU9-Inputs!$L$29+1)/CF!AU15,1))) -> 100.00% | AV12: =+IF(OR(CF!AV7<YEAR(Inputs!$L$29),CF!AV7>YEAR(Inputs!$L$30)),0,IF(CF!AV7=YEAR(Inputs!$L$30),(Inputs!$L$30-CF!AV8+1)/CF!AV$15,IF(CF!AV7=YEAR(Inputs!$L$29),(CF!AV9-Inputs!$L$29+1)/CF!AV15,1))) -> 100.00% | AW12: =+IF(OR(CF!AW7<YEAR(Inputs!$L$29),CF!AW7>YEAR(Inputs!$L$30)),0,IF(CF!AW7=YEAR(Inputs!$L$30),(Inputs!$L$30-CF!AW8+1)/CF!AW$15,IF(CF!AW7=YEAR(Inputs!$L$29),(CF!AW9-Inputs!$L$29+1)/CF!AW15,1))) -> 100.00% | AX12: =+IF(OR(CF!AX7<YEAR(Inputs!$L$29),CF!AX7>YEAR(Inputs!$L$30)),0,IF(CF!AX7=YEAR(Inputs!$L$30),(Inputs!$L$30-CF!AX8+1)/CF!AX$15,IF(CF!AX7=YEAR(Inputs!$L$29),(CF!AX9-Inputs!$L$29+1)/CF!AX15,1))) -> 100.00% | AY12: =+IF(OR(CF!AY7<YEAR(Inputs!$L$29),CF!AY7>YEAR(Inputs!$L$30)),0,IF(CF!AY7=YEAR(Inputs!$L$30),(Inputs!$L$30-CF!AY8+1)/CF!AY$15,IF(CF!AY7=YEAR(Inputs!$L$29),(CF!AY9-Inputs!$L$29+1)/CF!AY15,1))) -> 100.00% | AZ12: =+IF(OR(CF!AZ7<YEAR(Inputs!$L$29),CF!AZ7>YEAR(Inputs!$L$30)),0,IF(CF!AZ7=YEAR(Inputs!$L$30),(Inputs!$L$30-CF!AZ8+1)/CF!AZ$15,IF(CF!AZ7=YEAR(Inputs!$L$29),(CF!AZ9-Inputs!$L$29+1)/CF!AZ15,1))) -> 100.00% | BA12: =+IF(OR(CF!BA7<YEAR(Inputs!$L$29),CF!BA7>YEAR(Inputs!$L$30)),0,IF(CF!BA7=YEAR(Inputs!$L$30),(Inputs!$L$30-CF!BA8+1)/CF!BA$15,IF(CF!BA7=YEAR(Inputs!$L$29),(CF!BA9-Inputs!$L$29+1)/CF!BA15,1))) -> 100.00% | BB12: =+IF(OR(CF!BB7<YEAR(Inputs!$L$29),CF!BB7>YEAR(Inputs!$L$30)),0,IF(CF!BB7=YEAR(Inputs!$L$30),(Inputs!$L$30-CF!BB8+1)/CF!BB$15,IF(CF!BB7=YEAR(Inputs!$L$29),(CF!BB9-Inputs!$L$29+1)/CF!BB15,1))) -> 100.00% | BC12: =+IF(OR(CF!BC7<YEAR(Inputs!$L$29),CF!BC7>YEAR(Inputs!$L$30)),0,IF(CF!BC7=YEAR(Inputs!$L$30),(Inputs!$L$30-CF!BC8+1)/CF!BC$15,IF(CF!BC7=YEAR(Inputs!$L$29),(CF!BC9-Inputs!$L$29+1)/CF!BC15,1))) -> 100.00% | BD12: =+IF(OR(CF!BD7<YEAR(Inputs!$L$29),CF!BD7>YEAR(Inputs!$L$30)),0,IF(CF!BD7=YEAR(Inputs!$L$30),(Inputs!$L$30-CF!BD8+1)/CF!BD$15,IF(CF!BD7=YEAR(Inputs!$L$29),(CF!BD9-Inputs!$L$29+1)/CF!BD15,1))) -> 100.00% | BE12: =+IF(OR(CF!BE7<YEAR(Inputs!$L$29),CF!BE7>YEAR(Inputs!$L$30)),0,IF(CF!BE7=YEAR(Inputs!$L$30),(Inputs!$L$30-CF!BE8+1)/CF!BE$15,IF(CF!BE7=YEAR(Inputs!$L$29),(CF!BE9-Inputs!$L$29+1)/CF!BE15,1))) -> 100.00% | BF12: =+IF(OR(CF!BF7<YEAR(Inputs!$L$29),CF!BF7>YEAR(Inputs!$L$30)),0,IF(CF!BF7=YEAR(Inputs!$L$30),(Inputs!$L$30-CF!BF8+1)/CF!BF$15,IF(CF!BF7=YEAR(Inputs!$L$29),(CF!BF9-Inputs!$L$29+1)/CF!BF15,1))) -> 100.00% | BG12: =+IF(OR(CF!BG7<YEAR(Inputs!$L$29),CF!BG7>YEAR(Inputs!$L$30)),0,IF(CF!BG7=YEAR(Inputs!$L$30),(Inputs!$L$30-CF!BG8+1)/CF!BG$15,IF(CF!BG7=YEAR(Inputs!$L$29),(CF!BG9-Inputs!$L$29+1)/CF!BG15,1))) -> 100.00% | BH12: =+IF(OR(CF!BH7<YEAR(Inputs!$L$29),CF!BH7>YEAR(Inputs!$L$30)),0,IF(CF!BH7=YEAR(Inputs!$L$30),(Inputs!$L$30-CF!BH8+1)/CF!BH$15,IF(CF!BH7=YEAR(Inputs!$L$29),(CF!BH9-Inputs!$L$29+1)/CF!BH15,1))) -> 100.00% | BI12: =+IF(OR(CF!BI7<YEAR(Inputs!$L$29),CF!BI7>YEAR(Inputs!$L$30)),0,IF(CF!BI7=YEAR(Inputs!$L$30),(Inputs!$L$30-CF!BI8+1)/CF!BI$15,IF(CF!BI7=YEAR(Inputs!$L$29),(CF!BI9-Inputs!$L$29+1)/CF!BI15,1))) -> 100.00% | BJ12: =+IF(OR(CF!BJ7<YEAR(Inputs!$L$29),CF!BJ7>YEAR(Inputs!$L$30)),0,IF(CF!BJ7=YEAR(Inputs!$L$30),(Inputs!$L$30-CF!BJ8+1)/CF!BJ$15,IF(CF!BJ7=YEAR(Inputs!$L$29),(CF!BJ9-Inputs!$L$29+1)/CF!BJ15,1))) -> 24.66%
C14: PROJECT CF SUMMARY
C16: Revenues | N16: =+SUM(Q16:BJ16) -> 31,617,620 | R16: =+R34 -> 0 | S16: 99,995 | T16: 110,893 | U16: 122,977 | V16: 136,379 | W16: 147,990 | X16: 160,589 | Y16: 174,260 | Z16: 189,095 | AA16: 205,194 | AB16: 218,152 | AC16: 231,928 | AD16: 246,574 | AE16: 262,146 | AF16: 278,700 | AG16: 305,795 | AH16: 335,525 | AI16: 368,144 | AJ16: 403,935 | AK16: 443,205 | AL16: 486,910 | AM16: 534,925 | AN16: 587,675 | AO16: 645,626 | AP16: =+AP34 -> 709,292 | AQ16: 750,383 | AR16: 793,854 | AS16: 839,843 | AT16: 888,497 | AU16: 939,969 | AV16: 993,785 | AW16: 1,050,682 | AX16: 1,110,837 | AY16: 1,174,435 | AZ16: 1,241,675 | BA16: 1,299,492 | BB16: 1,360,002 | BC16: 1,423,329 | BD16: 1,489,605 | BE16: 1,558,968 | BF16: 1,616,728 | BG16: 1,676,628 | BH16: 1,738,747 | BI16: 1,803,168 | BJ16: 461,090
C17: Revenue Sharing | N17: =+SUM(Q17:BJ17) -> (446,962) | R17: =+R110 -> 0 | S17: 0 | T17: 0 | U17: 0 | V17: 0 | W17: 0 | X17: 0 | Y17: 0 | Z17: 0 | AA17: 0 | AB17: 0 | AC17: 0 | AD17: 0 | AE17: 0 | AF17: 0 | AG17: 0 | AH17: 0 | AI17: 0 | AJ17: 0 | AK17: 0 | AL17: 0 | AM17: 0 | AN17: 0 | AO17: 0 | AP17: =+AP110 -> 0 | AQ17: 0 | AR17: 0 | AS17: 0 | AT17: 0 | AU17: 0 | AV17: 0 | AW17: 0 | AX17: 0 | AY17: 0 | AZ17: 0 | BA17: 0 | BB17: (2,451) | BC17: (28,389) | BD17: (31,361) | BE17: (34,432) | BF17: (36,082) | BG17: (37,636) | BH17: (39,585) | BI17: (179,390) | BJ17: (57,636)
C18: O&M | N18: 2,366,388 | R18: =+R42 -> 0 | S18: 17,117 | T18: 18,252 | U18: 19,462 | V18: 20,752 | W18: 21,620 | X18: 22,524 | Y18: 23,465 | Z18: 24,446 | AA18: 25,468 | AB18: 26,491 | AC18: 27,555 | AD18: 28,662 | AE18: 29,814 | AF18: 31,011 | AG18: 32,710 | AH18: 34,502 | AI18: 36,392 | AJ18: 38,385 | AK18: 40,488 | AL18: 42,937 | AM18: 45,534 | AN18: 48,289 | AO18: 51,210 | AP18: 54,308 | AQ18: 56,571 | AR18: 58,928 | AS18: 61,383 | AT18: 63,940 | AU18: 66,604 | AV18: 69,494 | AW18: 72,510 | AX18: 75,657 | AY18: 78,940 | AZ18: 82,366 | BA18: 85,448 | BB18: 88,645 | BC18: 91,962 | BD18: 95,403 | BE18: 98,972 | BF18: 102,224 | BG18: 105,582 | BH18: 109,050 | BI18: 112,632 | BJ18: 28,685
C19: Major Maintenance Capex | N19: 554,873 | R19: =+R50 -> 0 | S19: 1,554 | T19: 2,272 | U19: 3,321 | V19: 4,856 | W19: 5,235 | X19: 5,644 | Y19: 6,084 | Z19: 6,559 | AA19: 7,072 | AB19: 7,113 | AC19: 7,154 | AD19: 7,195 | AE19: 7,237 | AF19: 7,279 | AG19: 7,825 | AH19: 8,412 | AI19: 9,043 | AJ19: 9,721 | AK19: 10,451 | AL19: 11,403 | AM19: 12,442 | AN19: 13,576 | AO19: 14,813 | AP19: =+AP50 -> 16,163 | AQ19: 14,764 | AR19: 13,486 | AS19: 12,318 | AT19: 11,252 | AU19: 10,278 | AV19: 11,713 | AW19: 13,348 | AX19: 15,212 | AY19: 17,336 | AZ19: 19,757 | BA19: 18,361 | BB19: 17,064 | BC19: 15,858 | BD19: 14,737 | BE19: 13,696 | BF19: 17,217 | BG19: 21,644 | BH19: 27,208 | BI19: 34,203 | BJ19: 42,997
C20: Constrcution costs | N20: 847 | R20: =+R59 -> 0 | S20: 847 | T20: 0 | U20: 0 | V20: 0 | W20: 0 | X20: 0 | Y20: 0 | Z20: 0 | AA20: 0 | AB20: 0 | AC20: 0 | AD20: 0 | AE20: 0 | AF20: 0 | AG20: 0 | AH20: 0 | AI20: 0 | AJ20: 0 | AK20: 0 | AL20: 0 | AM20: 0 | AN20: 0 | AO20: 0 | AP20: 0 | AQ20: 0 | AR20: 0 | AS20: 0 | AT20: 0 | AU20: 0 | AV20: 0 | AW20: 0 | AX20: 0 | AY20: 0 | AZ20: 0 | BA20: 0 | BB20: 0 | BC20: 0 | BD20: 0 | BE20: 0 | BF20: 0 | BG20: 0 | BH20: 0 | BI20: 0 | BJ20: 0
B23: OPERATIONS
C25: CPI | S25: =+IF(S7<=2021,Inputs!$L$20,Inputs!$L$21) -> 2.25% | T25: =+IF(T7<=2021,Inputs!$L$20,Inputs!$L$21) -> 2.25% | U25: =+IF(U7<=2021,Inputs!$L$20,Inputs!$L$21) -> 2.25% | V25: =+IF(V7<=2021,Inputs!$L$20,Inputs!$L$21) -> 2.25% | W25: =+IF(W7<=2021,Inputs!$L$20,Inputs!$L$21) -> 2.30% | X25: =+IF(X7<=2021,Inputs!$L$20,Inputs!$L$21) -> 2.30% | Y25: =+IF(Y7<=2021,Inputs!$L$20,Inputs!$L$21) -> 2.30% | Z25: =+IF(Z7<=2021,Inputs!$L$20,Inputs!$L$21) -> 2.30% | AA25: =+IF(AA7<=2021,Inputs!$L$20,Inputs!$L$21) -> 2.30% | AB25: =+IF(AB7<=2021,Inputs!$L$20,Inputs!$L$21) -> 2.30% | AC25: =+IF(AC7<=2021,Inputs!$L$20,Inputs!$L$21) -> 2.30% | AD25: =+IF(AD7<=2021,Inputs!$L$20,Inputs!$L$21) -> 2.30% | AE25: =+IF(AE7<=2021,Inputs!$L$20,Inputs!$L$21) -> 2.30% | AF25: =+IF(AF7<=2021,Inputs!$L$20,Inputs!$L$21) -> 2.30% | AG25: =+IF(AG7<=2021,Inputs!$L$20,Inputs!$L$21) -> 2.30% | AH25: =+IF(AH7<=2021,Inputs!$L$20,Inputs!$L$21) -> 2.30% | AI25: =+IF(AI7<=2021,Inputs!$L$20,Inputs!$L$21) -> 2.30% | AJ25: =+IF(AJ7<=2021,Inputs!$L$20,Inputs!$L$21) -> 2.30% | AK25: =+IF(AK7<=2021,Inputs!$L$20,Inputs!$L$21) -> 2.30% | AL25: =+IF(AL7<=2021,Inputs!$L$20,Inputs!$L$21) -> 2.30% | AM25: =+IF(AM7<=2021,Inputs!$L$20,Inputs!$L$21) -> 2.30% | AN25: =+IF(AN7<=2021,Inputs!$L$20,Inputs!$L$21) -> 2.30% | AO25: =+IF(AO7<=2021,Inputs!$L$20,Inputs!$L$21) -> 2.30% | AP25: =+IF(AP7<=2021,Inputs!$L$20,Inputs!$L$21) -> 2.30% | AQ25: =+IF(AQ7<=2021,Inputs!$L$20,Inputs!$L$21) -> 2.30% | AR25: =+IF(AR7<=2021,Inputs!$L$20,Inputs!$L$21) -> 2.30% | AS25: =+IF(AS7<=2021,Inputs!$L$20,Inputs!$L$21) -> 2.30% | AT25: =+IF(AT7<=2021,Inputs!$L$20,Inputs!$L$21) -> 2.30% | AU25: =+IF(AU7<=2021,Inputs!$L$20,Inputs!$L$21) -> 2.30% | AV25: =+IF(AV7<=2021,Inputs!$L$20,Inputs!$L$21) -> 2.30% | AW25: =+IF(AW7<=2021,Inputs!$L$20,Inputs!$L$21) -> 2.30% | AX25: =+IF(AX7<=2021,Inputs!$L$20,Inputs!$L$21) -> 2.30% | AY25: =+IF(AY7<=2021,Inputs!$L$20,Inputs!$L$21) -> 2.30% | AZ25: =+IF(AZ7<=2021,Inputs!$L$20,Inputs!$L$21) -> 2.30% | BA25: =+IF(BA7<=2021,Inputs!$L$20,Inputs!$L$21) -> 2.30% | BB25: =+IF(BB7<=2021,Inputs!$L$20,Inputs!$L$21) -> 2.30% | BC25: =+IF(BC7<=2021,Inputs!$L$20,Inputs!$L$21) -> 2.30% | BD25: =+IF(BD7<=2021,Inputs!$L$20,Inputs!$L$21) -> 2.30% | BE25: =+IF(BE7<=2021,Inputs!$L$20,Inputs!$L$21) -> 2.30% | BF25: =+IF(BF7<=2021,Inputs!$L$20,Inputs!$L$21) -> 2.30% | BG25: =+IF(BG7<=2021,Inputs!$L$20,Inputs!$L$21) -> 2.30% | BH25: =+IF(BH7<=2021,Inputs!$L$20,Inputs!$L$21) -> 2.30% | BI25: =+IF(BI7<=2021,Inputs!$L$20,Inputs!$L$21) -> 2.30% | BJ25: =+IF(BJ7<=2021,Inputs!$L$20,Inputs!$L$21) -> 2.30%
C26: Annual Basis | R26: 1.1727 | S26: =+R26*(1+S25) -> 1.1990 | T26: 1.2260 | U26: 1.2536 | V26: 1.2818 | W26: 1.3113 | X26: 1.3415 | Y26: 1.3723 | Z26: 1.4039 | AA26: 1.4362 | AB26: 1.4692 | AC26: 1.5030 | AD26: 1.5376 | AE26: 1.5729 | AF26: 1.6091 | AG26: 1.6461 | AH26: 1.6840 | AI26: 1.7227 | AJ26: 1.7623 | AK26: 1.8029 | AL26: 1.8443 | AM26: 1.8867 | AN26: 1.9301 | AO26: 1.9745 | AP26: 2.0199 | AQ26: 2.0664 | AR26: 2.1139 | AS26: 2.1625 | AT26: 2.2123 | AU26: 2.2632 | AV26: 2.3152 | AW26: 2.3685 | AX26: 2.4229 | AY26: 2.4787 | AZ26: 2.5357 | BA26: 2.5940 | BB26: 2.6537 | BC26: 2.7147 | BD26: 2.7771 | BE26: 2.8410 | BF26: 2.9064 | BG26: 2.9732 | BH26: 3.0416 | BI26: 3.1115 | BJ26: 3.1831
C28: Revenues
C29: Growth | T29: =+POWER(INDEX(Inputs!$L$33:$L42,S$6+1,1)/INDEX(Inputs!$L$33:$L$42,S$6,1),1/(INDEX(Inputs!$C$33:$C$42,S$6+1,1)-INDEX(Inputs!$C$33:$C$42,S$6,1)))-1 -> 8.46% | U29: =+POWER(INDEX(Inputs!$L$33:$L42,T$6+1,1)/INDEX(Inputs!$L$33:$L$42,T$6,1),1/(INDEX(Inputs!$C$33:$C$42,T$6+1,1)-INDEX(Inputs!$C$33:$C$42,T$6,1)))-1 -> 8.46% | V29: =+POWER(INDEX(Inputs!$L$33:$L42,U$6+1,1)/INDEX(Inputs!$L$33:$L$42,U$6,1),1/(INDEX(Inputs!$C$33:$C$42,U$6+1,1)-INDEX(Inputs!$C$33:$C$42,U$6,1)))-1 -> 8.46% | W29: =+POWER(INDEX(Inputs!$L$33:$L42,V$6+1,1)/INDEX(Inputs!$L$33:$L$42,V$6,1),1/(INDEX(Inputs!$C$33:$C$42,V$6+1,1)-INDEX(Inputs!$C$33:$C$42,V$6,1)))-1 -> 6.07% | X29: =+POWER(INDEX(Inputs!$L$33:$L42,W$6+1,1)/INDEX(Inputs!$L$33:$L$42,W$6,1),1/(INDEX(Inputs!$C$33:$C$42,W$6+1,1)-INDEX(Inputs!$C$33:$C$42,W$6,1)))-1 -> 6.07% | Y29: =+POWER(INDEX(Inputs!$L$33:$L42,X$6+1,1)/INDEX(Inputs!$L$33:$L$42,X$6,1),1/(INDEX(Inputs!$C$33:$C$42,X$6+1,1)-INDEX(Inputs!$C$33:$C$42,X$6,1)))-1 -> 6.07% | Z29: =+POWER(INDEX(Inputs!$L$33:$L42,Y$6+1,1)/INDEX(Inputs!$L$33:$L$42,Y$6,1),1/(INDEX(Inputs!$C$33:$C$42,Y$6+1,1)-INDEX(Inputs!$C$33:$C$42,Y$6,1)))-1 -> 6.07% | AA29: =+POWER(INDEX(Inputs!$L$33:$L42,Z$6+1,1)/INDEX(Inputs!$L$33:$L$42,Z$6,1),1/(INDEX(Inputs!$C$33:$C$42,Z$6+1,1)-INDEX(Inputs!$C$33:$C$42,Z$6,1)))-1 -> 6.07% | AB29: =+POWER(INDEX(Inputs!$L$33:$L42,AA$6+1,1)/INDEX(Inputs!$L$33:$L$42,AA$6,1),1/(INDEX(Inputs!$C$33:$C$42,AA$6+1,1)-INDEX(Inputs!$C$33:$C$42,AA$6,1)))-1 -> 3.92% | AC29: =+POWER(INDEX(Inputs!$L$33:$L42,AB$6+1,1)/INDEX(Inputs!$L$33:$L$42,AB$6,1),1/(INDEX(Inputs!$C$33:$C$42,AB$6+1,1)-INDEX(Inputs!$C$33:$C$42,AB$6,1)))-1 -> 3.92% | AD29: =+POWER(INDEX(Inputs!$L$33:$L42,AC$6+1,1)/INDEX(Inputs!$L$33:$L$42,AC$6,1),1/(INDEX(Inputs!$C$33:$C$42,AC$6+1,1)-INDEX(Inputs!$C$33:$C$42,AC$6,1)))-1 -> 3.92% | AE29: =+POWER(INDEX(Inputs!$L$33:$L42,AD$6+1,1)/INDEX(Inputs!$L$33:$L$42,AD$6,1),1/(INDEX(Inputs!$C$33:$C$42,AD$6+1,1)-INDEX(Inputs!$C$33:$C$42,AD$6,1)))-1 -> 3.92% | AF29: =+POWER(INDEX(Inputs!$L$33:$L42,AE$6+1,1)/INDEX(Inputs!$L$33:$L$42,AE$6,1),1/(INDEX(Inputs!$C$33:$C$42,AE$6+1,1)-INDEX(Inputs!$C$33:$C$42,AE$6,1)))-1 -> 3.92% | AG29: =+POWER(INDEX(Inputs!$L$33:$L42,AF$6+1,1)/INDEX(Inputs!$L$33:$L$42,AF$6,1),1/(INDEX(Inputs!$C$33:$C$42,AF$6+1,1)-INDEX(Inputs!$C$33:$C$42,AF$6,1)))-1 -> 7.26% | AH29: =+POWER(INDEX(Inputs!$L$33:$L42,AG$6+1,1)/INDEX(Inputs!$L$33:$L$42,AG$6,1),1/(INDEX(Inputs!$C$33:$C$42,AG$6+1,1)-INDEX(Inputs!$C$33:$C$42,AG$6,1)))-1 -> 7.26% | AI29: =+POWER(INDEX(Inputs!$L$33:$L42,AH$6+1,1)/INDEX(Inputs!$L$33:$L$42,AH$6,1),1/(INDEX(Inputs!$C$33:$C$42,AH$6+1,1)-INDEX(Inputs!$C$33:$C$42,AH$6,1)))-1 -> 7.26% | AJ29: =+POWER(INDEX(Inputs!$L$33:$L42,AI$6+1,1)/INDEX(Inputs!$L$33:$L$42,AI$6,1),1/(INDEX(Inputs!$C$33:$C$42,AI$6+1,1)-INDEX(Inputs!$C$33:$C$42,AI$6,1)))-1 -> 7.26% | AK29: =+POWER(INDEX(Inputs!$L$33:$L42,AJ$6+1,1)/INDEX(Inputs!$L$33:$L$42,AJ$6,1),1/(INDEX(Inputs!$C$33:$C$42,AJ$6+1,1)-INDEX(Inputs!$C$33:$C$42,AJ$6,1)))-1 -> 7.26% | AL29: =+POWER(INDEX(Inputs!$L$33:$L42,AK$6+1,1)/INDEX(Inputs!$L$33:$L$42,AK$6,1),1/(INDEX(Inputs!$C$33:$C$42,AK$6+1,1)-INDEX(Inputs!$C$33:$C$42,AK$6,1)))-1 -> 7.39% | AM29: =+POWER(INDEX(Inputs!$L$33:$L42,AL$6+1,1)/INDEX(Inputs!$L$33:$L$42,AL$6,1),1/(INDEX(Inputs!$C$33:$C$42,AL$6+1,1)-INDEX(Inputs!$C$33:$C$42,AL$6,1)))-1 -> 7.39% | AN29: =+POWER(INDEX(Inputs!$L$33:$L42,AM$6+1,1)/INDEX(Inputs!$L$33:$L$42,AM$6,1),1/(INDEX(Inputs!$C$33:$C$42,AM$6+1,1)-INDEX(Inputs!$C$33:$C$42,AM$6,1)))-1 -> 7.39% | AO29: =+POWER(INDEX(Inputs!$L$33:$L42,AN$6+1,1)/INDEX(Inputs!$L$33:$L$42,AN$6,1),1/(INDEX(Inputs!$C$33:$C$42,AN$6+1,1)-INDEX(Inputs!$C$33:$C$42,AN$6,1)))-1 -> 7.39% | AP29: =+POWER(INDEX(Inputs!$L$33:$L42,AO$6+1,1)/INDEX(Inputs!$L$33:$L$42,AO$6,1),1/(INDEX(Inputs!$C$33:$C$42,AO$6+1,1)-INDEX(Inputs!$C$33:$C$42,AO$6,1)))-1 -> 7.39% | AQ29: =+POWER(INDEX(Inputs!$L$33:$L42,AP$6+1,1)/INDEX(Inputs!$L$33:$L$42,AP$6,1),1/(INDEX(Inputs!$C$33:$C$42,AP$6+1,1)-INDEX(Inputs!$C$33:$C$42,AP$6,1)))-1 -> 3.41% | AR29: =+POWER(INDEX(Inputs!$L$33:$L42,AQ$6+1,1)/INDEX(Inputs!$L$33:$L$42,AQ$6,1),1/(INDEX(Inputs!$C$33:$C$42,AQ$6+1,1)-INDEX(Inputs!$C$33:$C$42,AQ$6,1)))-1 -> 3.41% | AS29: =+POWER(INDEX(Inputs!$L$33:$L42,AR$6+1,1)/INDEX(Inputs!$L$33:$L$42,AR$6,1),1/(INDEX(Inputs!$C$33:$C$42,AR$6+1,1)-INDEX(Inputs!$C$33:$C$42,AR$6,1)))-1 -> 3.41% | AT29: =+POWER(INDEX(Inputs!$L$33:$L42,AS$6+1,1)/INDEX(Inputs!$L$33:$L$42,AS$6,1),1/(INDEX(Inputs!$C$33:$C$42,AS$6+1,1)-INDEX(Inputs!$C$33:$C$42,AS$6,1)))-1 -> 3.41% | AU29: =+POWER(INDEX(Inputs!$L$33:$L42,AT$6+1,1)/INDEX(Inputs!$L$33:$L$42,AT$6,1),1/(INDEX(Inputs!$C$33:$C$42,AT$6+1,1)-INDEX(Inputs!$C$33:$C$42,AT$6,1)))-1 -> 3.41% | AV29: =+POWER(INDEX(Inputs!$L$33:$L42,AU$6+1,1)/INDEX(Inputs!$L$33:$L$42,AU$6,1),1/(INDEX(Inputs!$C$33:$C$42,AU$6+1,1)-INDEX(Inputs!$C$33:$C$42,AU$6,1)))-1 -> 3.35% | AW29: =+POWER(INDEX(Inputs!$L$33:$L42,AV$6+1,1)/INDEX(Inputs!$L$33:$L$42,AV$6,1),1/(INDEX(Inputs!$C$33:$C$42,AV$6+1,1)-INDEX(Inputs!$C$33:$C$42,AV$6,1)))-1 -> 3.35% | AX29: =+POWER(INDEX(Inputs!$L$33:$L42,AW$6+1,1)/INDEX(Inputs!$L$33:$L$42,AW$6,1),1/(INDEX(Inputs!$C$33:$C$42,AW$6+1,1)-INDEX(Inputs!$C$33:$C$42,AW$6,1)))-1 -> 3.35% | AY29: =+POWER(INDEX(Inputs!$L$33:$L42,AX$6+1,1)/INDEX(Inputs!$L$33:$L$42,AX$6,1),1/(INDEX(Inputs!$C$33:$C$42,AX$6+1,1)-INDEX(Inputs!$C$33:$C$42,AX$6,1)))-1 -> 3.35% | AZ29: =+POWER(INDEX(Inputs!$L$33:$L42,AY$6+1,1)/INDEX(Inputs!$L$33:$L$42,AY$6,1),1/(INDEX(Inputs!$C$33:$C$42,AY$6+1,1)-INDEX(Inputs!$C$33:$C$42,AY$6,1)))-1 -> 3.35% | BA29: =+POWER(INDEX(Inputs!$L$33:$L42,AZ$6+1,1)/INDEX(Inputs!$L$33:$L$42,AZ$6,1),1/(INDEX(Inputs!$C$33:$C$42,AZ$6+1,1)-INDEX(Inputs!$C$33:$C$42,AZ$6,1)))-1 -> 2.30% | BB29: =+POWER(INDEX(Inputs!$L$33:$L42,BA$6+1,1)/INDEX(Inputs!$L$33:$L$42,BA$6,1),1/(INDEX(Inputs!$C$33:$C$42,BA$6+1,1)-INDEX(Inputs!$C$33:$C$42,BA$6,1)))-1 -> 2.30% | BC29: =+POWER(INDEX(Inputs!$L$33:$L42,BB$6+1,1)/INDEX(Inputs!$L$33:$L$42,BB$6,1),1/(INDEX(Inputs!$C$33:$C$42,BB$6+1,1)-INDEX(Inputs!$C$33:$C$42,BB$6,1)))-1 -> 2.30% | BD29: =+POWER(INDEX(Inputs!$L$33:$L42,BC$6+1,1)/INDEX(Inputs!$L$33:$L$42,BC$6,1),1/(INDEX(Inputs!$C$33:$C$42,BC$6+1,1)-INDEX(Inputs!$C$33:$C$42,BC$6,1)))-1 -> 2.30% | BE29: =+POWER(INDEX(Inputs!$L$33:$L42,BD$6+1,1)/INDEX(Inputs!$L$33:$L$42,BD$6,1),1/(INDEX(Inputs!$C$33:$C$42,BD$6+1,1)-INDEX(Inputs!$C$33:$C$42,BD$6,1)))-1 -> 2.30% | BF29: =+POWER(INDEX(Inputs!$L$33:$L42,BE$6+1,1)/INDEX(Inputs!$L$33:$L$42,BE$6,1),1/(INDEX(Inputs!$C$33:$C$42,BE$6+1,1)-INDEX(Inputs!$C$33:$C$42,BE$6,1)))-1 -> 1.37% | BG29: =+POWER(INDEX(Inputs!$L$33:$L42,BF$6+1,1)/INDEX(Inputs!$L$33:$L$42,BF$6,1),1/(INDEX(Inputs!$C$33:$C$42,BF$6+1,1)-INDEX(Inputs!$C$33:$C$42,BF$6,1)))-1 -> 1.37% | BH29: =+POWER(INDEX(Inputs!$L$33:$L42,BG$6+1,1)/INDEX(Inputs!$L$33:$L$42,BG$6,1),1/(INDEX(Inputs!$C$33:$C$42,BG$6+1,1)-INDEX(Inputs!$C$33:$C$42,BG$6,1)))-1 -> 1.37% | BI29: =+POWER(INDEX(Inputs!$L$33:$L42,BH$6+1,1)/INDEX(Inputs!$L$33:$L$42,BH$6,1),1/(INDEX(Inputs!$C$33:$C$42,BH$6+1,1)-INDEX(Inputs!$C$33:$C$42,BH$6,1)))-1 -> 1.37% | BJ29: =+POWER(INDEX(Inputs!$L$33:$L42,BI$6+1,1)/INDEX(Inputs!$L$33:$L$42,BI$6,1),1/(INDEX(Inputs!$C$33:$C$42,BI$6+1,1)-INDEX(Inputs!$C$33:$C$42,BI$6,1)))-1 -> 1.37%
C30: Revenues | H30: =+Inputs!L14 -> 1 | K30: $000s | N30: =SUM(Q30:BJ30) -> 14,142,872 | S30: =+CHOOSE($H$30,S31,S32) -> 83,396 | T30: 90,449 | U30: 98,099 | V30: 106,395 | W30: 112,857 | X30: 119,712 | Y30: 126,983 | Z30: 134,695 | AA30: 142,876 | AB30: 148,484 | AC30: 154,311 | AD30: 160,368 | AE30: 166,662 | AF30: 173,203 | AG30: 185,769 | AH30: 199,247 | AI30: 213,702 | AJ30: 229,206 | AK30: 245,835 | AL30: 264,005 | AM30: 283,518 | AN30: 304,474 | AO30: 326,978 | AP30: 351,145 | AQ30: 363,136 | AR30: 375,535 | AS30: 388,358 | AT30: 401,620 | AU30: 415,333 | AV30: 429,240 | AW30: =+CHOOSE($H$30,AW31,AW32) -> 443,612 | AX30: 458,465 | AY30: 473,816 | AZ30: 489,681 | BA30: 500,960 | BB30: 512,500 | BC30: 524,305 | BD30: 536,382 | BE30: 548,737 | BF30: 556,273 | BG30: 563,913 | BH30: 571,658 | BI30: 579,510 | BJ30: 587,469
C31: Revenues Base Case | S31: =+IF(S$6<>R$6,INDEX(Inputs!$L$33:$L$42,S$6,1),R31*(1+S29)) -> 83,396 | T31: =+IF(T$6<>S$6,INDEX(Inputs!$L$33:$L$42,T$6,1),S31*(1+T29)) -> 90,449 | U31: =+IF(U$6<>T$6,INDEX(Inputs!$L$33:$L$42,U$6,1),T31*(1+U29)) -> 98,099 | V31: =+IF(V$6<>U$6,INDEX(Inputs!$L$33:$L$42,V$6,1),U31*(1+V29)) -> 106,395 | W31: =+IF(W$6<>V$6,INDEX(Inputs!$L$33:$L$42,W$6,1),V31*(1+W29)) -> 112,857 | X31: =+IF(X$6<>W$6,INDEX(Inputs!$L$33:$L$42,X$6,1),W31*(1+X29)) -> 119,712 | Y31: =+IF(Y$6<>X$6,INDEX(Inputs!$L$33:$L$42,Y$6,1),X31*(1+Y29)) -> 126,983 | Z31: =+IF(Z$6<>Y$6,INDEX(Inputs!$L$33:$L$42,Z$6,1),Y31*(1+Z29)) -> 134,695 | AA31: =+IF(AA$6<>Z$6,INDEX(Inputs!$L$33:$L$42,AA$6,1),Z31*(1+AA29)) -> 142,876 | AB31: =+IF(AB$6<>AA$6,INDEX(Inputs!$L$33:$L$42,AB$6,1),AA31*(1+AB29)) -> 148,484 | AC31: =+IF(AC$6<>AB$6,INDEX(Inputs!$L$33:$L$42,AC$6,1),AB31*(1+AC29)) -> 154,311 | AD31: =+IF(AD$6<>AC$6,INDEX(Inputs!$L$33:$L$42,AD$6,1),AC31*(1+AD29)) -> 160,368 | AE31: =+IF(AE$6<>AD$6,INDEX(Inputs!$L$33:$L$42,AE$6,1),AD31*(1+AE29)) -> 166,662 | AF31: =+IF(AF$6<>AE$6,INDEX(Inputs!$L$33:$L$42,AF$6,1),AE31*(1+AF29)) -> 173,203 | AG31: =+IF(AG$6<>AF$6,INDEX(Inputs!$L$33:$L$42,AG$6,1),AF31*(1+AG29)) -> 185,769 | AH31: =+IF(AH$6<>AG$6,INDEX(Inputs!$L$33:$L$42,AH$6,1),AG31*(1+AH29)) -> 199,247 | AI31: =+IF(AI$6<>AH$6,INDEX(Inputs!$L$33:$L$42,AI$6,1),AH31*(1+AI29)) -> 213,702 | AJ31: =+IF(AJ$6<>AI$6,INDEX(Inputs!$L$33:$L$42,AJ$6,1),AI31*(1+AJ29)) -> 229,206 | AK31: =+IF(AK$6<>AJ$6,INDEX(Inputs!$L$33:$L$42,AK$6,1),AJ31*(1+AK29)) -> 245,835 | AL31: =+IF(AL$6<>AK$6,INDEX(Inputs!$L$33:$L$42,AL$6,1),AK31*(1+AL29)) -> 264,005 | AM31: =+IF(AM$6<>AL$6,INDEX(Inputs!$L$33:$L$42,AM$6,1),AL31*(1+AM29)) -> 283,518 | AN31: =+IF(AN$6<>AM$6,INDEX(Inputs!$L$33:$L$42,AN$6,1),AM31*(1+AN29)) -> 304,474 | AO31: =+IF(AO$6<>AN$6,INDEX(Inputs!$L$33:$L$42,AO$6,1),AN31*(1+AO29)) -> 326,978 | AP31: =+IF(AP$6<>AO$6,INDEX(Inputs!$L$33:$L$42,AP$6,1),AO31*(1+AP29)) -> 351,145 | AQ31: =+IF(AQ$6<>AP$6,INDEX(Inputs!$L$33:$L$42,AQ$6,1),AP31*(1+AQ29)) -> 363,136 | AR31: =+IF(AR$6<>AQ$6,INDEX(Inputs!$L$33:$L$42,AR$6,1),AQ31*(1+AR29)) -> 375,535 | AS31: =+IF(AS$6<>AR$6,INDEX(Inputs!$L$33:$L$42,AS$6,1),AR31*(1+AS29)) -> 388,358 | AT31: =+IF(AT$6<>AS$6,INDEX(Inputs!$L$33:$L$42,AT$6,1),AS31*(1+AT29)) -> 401,620 | AU31: =+IF(AU$6<>AT$6,INDEX(Inputs!$L$33:$L$42,AU$6,1),AT31*(1+AU29)) -> 415,333 | AV31: =+IF(AV$6<>AU$6,INDEX(Inputs!$L$33:$L$42,AV$6,1),AU31*(1+AV29)) -> 429,240 | AW31: =+IF(AW$6<>AV$6,INDEX(Inputs!$L$33:$L$42,AW$6,1),AV31*(1+AW29)) -> 443,612 | AX31: =+IF(AX$6<>AW$6,INDEX(Inputs!$L$33:$L$42,AX$6,1),AW31*(1+AX29)) -> 458,465 | AY31: =+IF(AY$6<>AX$6,INDEX(Inputs!$L$33:$L$42,AY$6,1),AX31*(1+AY29)) -> 473,816 | AZ31: =+IF(AZ$6<>AY$6,INDEX(Inputs!$L$33:$L$42,AZ$6,1),AY31*(1+AZ29)) -> 489,681 | BA31: =+IF(BA$6<>AZ$6,INDEX(Inputs!$L$33:$L$42,BA$6,1),AZ31*(1+BA29)) -> 500,960 | BB31: =+IF(BB$6<>BA$6,INDEX(Inputs!$L$33:$L$42,BB$6,1),BA31*(1+BB29)) -> 512,500 | BC31: =+IF(BC$6<>BB$6,INDEX(Inputs!$L$33:$L$42,BC$6,1),BB31*(1+BC29)) -> 524,305 | BD31: =+IF(BD$6<>BC$6,INDEX(Inputs!$L$33:$L$42,BD$6,1),BC31*(1+BD29)) -> 536,382 | BE31: =+IF(BE$6<>BD$6,INDEX(Inputs!$L$33:$L$42,BE$6,1),BD31*(1+BE29)) -> 548,737 | BF31: =+IF(BF$6<>BE$6,INDEX(Inputs!$L$33:$L$42,BF$6,1),BE31*(1+BF29)) -> 556,273 | BG31: =+IF(BG$6<>BF$6,INDEX(Inputs!$L$33:$L$42,BG$6,1),BF31*(1+BG29)) -> 563,913 | BH31: =+IF(BH$6<>BG$6,INDEX(Inputs!$L$33:$L$42,BH$6,1),BG31*(1+BH29)) -> 571,658 | BI31: =+IF(BI$6<>BH$6,INDEX(Inputs!$L$33:$L$42,BI$6,1),BH31*(1+BI29)) -> 579,510 | BJ31: =+IF(BJ$6<>BI$6,INDEX(Inputs!$L$33:$L$42,BJ$6,1),BI31*(1+BJ29)) -> 587,469
C34: Revenues (NOMINAL) | K34: $000s | N34: =SUM(Q34:BJ34) -> 31,617,620 | S34: =+S30*S26*S12 -> 99,995 | T34: 110,893 | U34: 122,977 | V34: 136,379 | W34: 147,990 | X34: 160,589 | Y34: 174,260 | Z34: 189,095 | AA34: 205,194 | AB34: 218,152 | AC34: 231,928 | AD34: 246,574 | AE34: 262,146 | AF34: 278,700 | AG34: 305,795 | AH34: 335,525 | AI34: 368,144 | AJ34: 403,935 | AK34: 443,205 | AL34: 486,910 | AM34: 534,925 | AN34: 587,675 | AO34: 645,626 | AP34: 709,292 | AQ34: 750,383 | AR34: 793,854 | AS34: 839,843 | AT34: 888,497 | AU34: 939,969 | AV34: 993,785 | AW34: 1,050,682 | AX34: 1,110,837 | AY34: 1,174,435 | AZ34: 1,241,675 | BA34: 1,299,492 | BB34: 1,360,002 | BC34: 1,423,329 | BD34: 1,489,605 | BE34: 1,558,968 | BF34: 1,616,728 | BG34: 1,676,628 | BH34: 1,738,747 | BI34: 1,803,168 | BJ34: 461,090
C36: O&M
C37: Growth | T37: =+POWER(INDEX(Inputs!$L$45:$L54,S$6+1,1)/INDEX(Inputs!$L$45:$L$54,S$6,1),1/(INDEX(Inputs!$C$45:$C$54,S$6+1,1)-INDEX(Inputs!$C$45:$C$54,S$6,1)))-1 -> 4.28% | U37: =+POWER(INDEX(Inputs!$L$45:$L54,T$6+1,1)/INDEX(Inputs!$L$45:$L$54,T$6,1),1/(INDEX(Inputs!$C$45:$C$54,T$6+1,1)-INDEX(Inputs!$C$45:$C$54,T$6,1)))-1 -> 4.28% | V37: =+POWER(INDEX(Inputs!$L$45:$L54,U$6+1,1)/INDEX(Inputs!$L$45:$L$54,U$6,1),1/(INDEX(Inputs!$C$45:$C$54,U$6+1,1)-INDEX(Inputs!$C$45:$C$54,U$6,1)))-1 -> 4.28% | W37: =+POWER(INDEX(Inputs!$L$45:$L54,V$6+1,1)/INDEX(Inputs!$L$45:$L$54,V$6,1),1/(INDEX(Inputs!$C$45:$C$54,V$6+1,1)-INDEX(Inputs!$C$45:$C$54,V$6,1)))-1 -> 1.84% | X37: =+POWER(INDEX(Inputs!$L$45:$L54,W$6+1,1)/INDEX(Inputs!$L$45:$L$54,W$6,1),1/(INDEX(Inputs!$C$45:$C$54,W$6+1,1)-INDEX(Inputs!$C$45:$C$54,W$6,1)))-1 -> 1.84% | Y37: =+POWER(INDEX(Inputs!$L$45:$L54,X$6+1,1)/INDEX(Inputs!$L$45:$L$54,X$6,1),1/(INDEX(Inputs!$C$45:$C$54,X$6+1,1)-INDEX(Inputs!$C$45:$C$54,X$6,1)))-1 -> 1.84% | Z37: =+POWER(INDEX(Inputs!$L$45:$L54,Y$6+1,1)/INDEX(Inputs!$L$45:$L$54,Y$6,1),1/(INDEX(Inputs!$C$45:$C$54,Y$6+1,1)-INDEX(Inputs!$C$45:$C$54,Y$6,1)))-1 -> 1.84% | AA37: =+POWER(INDEX(Inputs!$L$45:$L54,Z$6+1,1)/INDEX(Inputs!$L$45:$L$54,Z$6,1),1/(INDEX(Inputs!$C$45:$C$54,Z$6+1,1)-INDEX(Inputs!$C$45:$C$54,Z$6,1)))-1 -> 1.84% | AB37: =+POWER(INDEX(Inputs!$L$45:$L54,AA$6+1,1)/INDEX(Inputs!$L$45:$L$54,AA$6,1),1/(INDEX(Inputs!$C$45:$C$54,AA$6+1,1)-INDEX(Inputs!$C$45:$C$54,AA$6,1)))-1 -> 1.68% | AC37: =+POWER(INDEX(Inputs!$L$45:$L54,AB$6+1,1)/INDEX(Inputs!$L$45:$L$54,AB$6,1),1/(INDEX(Inputs!$C$45:$C$54,AB$6+1,1)-INDEX(Inputs!$C$45:$C$54,AB$6,1)))-1 -> 1.68% | AD37: =+POWER(INDEX(Inputs!$L$45:$L54,AC$6+1,1)/INDEX(Inputs!$L$45:$L$54,AC$6,1),1/(INDEX(Inputs!$C$45:$C$54,AC$6+1,1)-INDEX(Inputs!$C$45:$C$54,AC$6,1)))-1 -> 1.68% | AE37: =+POWER(INDEX(Inputs!$L$45:$L54,AD$6+1,1)/INDEX(Inputs!$L$45:$L$54,AD$6,1),1/(INDEX(Inputs!$C$45:$C$54,AD$6+1,1)-INDEX(Inputs!$C$45:$C$54,AD$6,1)))-1 -> 1.68% | AF37: =+POWER(INDEX(Inputs!$L$45:$L54,AE$6+1,1)/INDEX(Inputs!$L$45:$L$54,AE$6,1),1/(INDEX(Inputs!$C$45:$C$54,AE$6+1,1)-INDEX(Inputs!$C$45:$C$54,AE$6,1)))-1 -> 1.68% | AG37: =+POWER(INDEX(Inputs!$L$45:$L54,AF$6+1,1)/INDEX(Inputs!$L$45:$L$54,AF$6,1),1/(INDEX(Inputs!$C$45:$C$54,AF$6+1,1)-INDEX(Inputs!$C$45:$C$54,AF$6,1)))-1 -> 3.11% | AH37: =+POWER(INDEX(Inputs!$L$45:$L54,AG$6+1,1)/INDEX(Inputs!$L$45:$L$54,AG$6,1),1/(INDEX(Inputs!$C$45:$C$54,AG$6+1,1)-INDEX(Inputs!$C$45:$C$54,AG$6,1)))-1 -> 3.11% | AI37: =+POWER(INDEX(Inputs!$L$45:$L54,AH$6+1,1)/INDEX(Inputs!$L$45:$L$54,AH$6,1),1/(INDEX(Inputs!$C$45:$C$54,AH$6+1,1)-INDEX(Inputs!$C$45:$C$54,AH$6,1)))-1 -> 3.11% | AJ37: =+POWER(INDEX(Inputs!$L$45:$L54,AI$6+1,1)/INDEX(Inputs!$L$45:$L$54,AI$6,1),1/(INDEX(Inputs!$C$45:$C$54,AI$6+1,1)-INDEX(Inputs!$C$45:$C$54,AI$6,1)))-1 -> 3.11% | AK37: =+POWER(INDEX(Inputs!$L$45:$L54,AJ$6+1,1)/INDEX(Inputs!$L$45:$L$54,AJ$6,1),1/(INDEX(Inputs!$C$45:$C$54,AJ$6+1,1)-INDEX(Inputs!$C$45:$C$54,AJ$6,1)))-1 -> 3.11% | AL37: =+POWER(INDEX(Inputs!$L$45:$L54,AK$6+1,1)/INDEX(Inputs!$L$45:$L$54,AK$6,1),1/(INDEX(Inputs!$C$45:$C$54,AK$6+1,1)-INDEX(Inputs!$C$45:$C$54,AK$6,1)))-1 -> 3.67% | AM37: =+POWER(INDEX(Inputs!$L$45:$L54,AL$6+1,1)/INDEX(Inputs!$L$45:$L$54,AL$6,1),1/(INDEX(Inputs!$C$45:$C$54,AL$6+1,1)-INDEX(Inputs!$C$45:$C$54,AL$6,1)))-1 -> 3.67% | AN37: =+POWER(INDEX(Inputs!$L$45:$L54,AM$6+1,1)/INDEX(Inputs!$L$45:$L$54,AM$6,1),1/(INDEX(Inputs!$C$45:$C$54,AM$6+1,1)-INDEX(Inputs!$C$45:$C$54,AM$6,1)))-1 -> 3.67% | AO37: =+POWER(INDEX(Inputs!$L$45:$L54,AN$6+1,1)/INDEX(Inputs!$L$45:$L$54,AN$6,1),1/(INDEX(Inputs!$C$45:$C$54,AN$6+1,1)-INDEX(Inputs!$C$45:$C$54,AN$6,1)))-1 -> 3.67% | AP37: =+POWER(INDEX(Inputs!$L$45:$L54,AO$6+1,1)/INDEX(Inputs!$L$45:$L$54,AO$6,1),1/(INDEX(Inputs!$C$45:$C$54,AO$6+1,1)-INDEX(Inputs!$C$45:$C$54,AO$6,1)))-1 -> 3.67% | AQ37: =+POWER(INDEX(Inputs!$L$45:$L54,AP$6+1,1)/INDEX(Inputs!$L$45:$L$54,AP$6,1),1/(INDEX(Inputs!$C$45:$C$54,AP$6+1,1)-INDEX(Inputs!$C$45:$C$54,AP$6,1)))-1 -> 1.82% | AR37: =+POWER(INDEX(Inputs!$L$45:$L54,AQ$6+1,1)/INDEX(Inputs!$L$45:$L$54,AQ$6,1),1/(INDEX(Inputs!$C$45:$C$54,AQ$6+1,1)-INDEX(Inputs!$C$45:$C$54,AQ$6,1)))-1 -> 1.82% | AS37: =+POWER(INDEX(Inputs!$L$45:$L54,AR$6+1,1)/INDEX(Inputs!$L$45:$L$54,AR$6,1),1/(INDEX(Inputs!$C$45:$C$54,AR$6+1,1)-INDEX(Inputs!$C$45:$C$54,AR$6,1)))-1 -> 1.82% | AT37: =+POWER(INDEX(Inputs!$L$45:$L54,AS$6+1,1)/INDEX(Inputs!$L$45:$L$54,AS$6,1),1/(INDEX(Inputs!$C$45:$C$54,AS$6+1,1)-INDEX(Inputs!$C$45:$C$54,AS$6,1)))-1 -> 1.82% | AU37: =+POWER(INDEX(Inputs!$L$45:$L54,AT$6+1,1)/INDEX(Inputs!$L$45:$L$54,AT$6,1),1/(INDEX(Inputs!$C$45:$C$54,AT$6+1,1)-INDEX(Inputs!$C$45:$C$54,AT$6,1)))-1 -> 1.82% | AV37: =+POWER(INDEX(Inputs!$L$45:$L54,AU$6+1,1)/INDEX(Inputs!$L$45:$L$54,AU$6,1),1/(INDEX(Inputs!$C$45:$C$54,AU$6+1,1)-INDEX(Inputs!$C$45:$C$54,AU$6,1)))-1 -> 1.99% | AW37: =+POWER(INDEX(Inputs!$L$45:$L54,AV$6+1,1)/INDEX(Inputs!$L$45:$L$54,AV$6,1),1/(INDEX(Inputs!$C$45:$C$54,AV$6+1,1)-INDEX(Inputs!$C$45:$C$54,AV$6,1)))-1 -> 1.99% | AX37: =+POWER(INDEX(Inputs!$L$45:$L54,AW$6+1,1)/INDEX(Inputs!$L$45:$L$54,AW$6,1),1/(INDEX(Inputs!$C$45:$C$54,AW$6+1,1)-INDEX(Inputs!$C$45:$C$54,AW$6,1)))-1 -> 1.99% | AY37: =+POWER(INDEX(Inputs!$L$45:$L54,AX$6+1,1)/INDEX(Inputs!$L$45:$L$54,AX$6,1),1/(INDEX(Inputs!$C$45:$C$54,AX$6+1,1)-INDEX(Inputs!$C$45:$C$54,AX$6,1)))-1 -> 1.99% | AZ37: =+POWER(INDEX(Inputs!$L$45:$L54,AY$6+1,1)/INDEX(Inputs!$L$45:$L$54,AY$6,1),1/(INDEX(Inputs!$C$45:$C$54,AY$6+1,1)-INDEX(Inputs!$C$45:$C$54,AY$6,1)))-1 -> 1.99% | BA37: =+POWER(INDEX(Inputs!$L$45:$L54,AZ$6+1,1)/INDEX(Inputs!$L$45:$L$54,AZ$6,1),1/(INDEX(Inputs!$C$45:$C$54,AZ$6+1,1)-INDEX(Inputs!$C$45:$C$54,AZ$6,1)))-1 -> 1.41% | BB37: =+POWER(INDEX(Inputs!$L$45:$L54,BA$6+1,1)/INDEX(Inputs!$L$45:$L$54,BA$6,1),1/(INDEX(Inputs!$C$45:$C$54,BA$6+1,1)-INDEX(Inputs!$C$45:$C$54,BA$6,1)))-1 -> 1.41% | BC37: =+POWER(INDEX(Inputs!$L$45:$L54,BB$6+1,1)/INDEX(Inputs!$L$45:$L$54,BB$6,1),1/(INDEX(Inputs!$C$45:$C$54,BB$6+1,1)-INDEX(Inputs!$C$45:$C$54,BB$6,1)))-1 -> 1.41% | BD37: =+POWER(INDEX(Inputs!$L$45:$L54,BC$6+1,1)/INDEX(Inputs!$L$45:$L$54,BC$6,1),1/(INDEX(Inputs!$C$45:$C$54,BC$6+1,1)-INDEX(Inputs!$C$45:$C$54,BC$6,1)))-1 -> 1.41% | BE37: =+POWER(INDEX(Inputs!$L$45:$L54,BD$6+1,1)/INDEX(Inputs!$L$45:$L$54,BD$6,1),1/(INDEX(Inputs!$C$45:$C$54,BD$6+1,1)-INDEX(Inputs!$C$45:$C$54,BD$6,1)))-1 -> 1.41% | BF37: =+POWER(INDEX(Inputs!$L$45:$L54,BE$6+1,1)/INDEX(Inputs!$L$45:$L$54,BE$6,1),1/(INDEX(Inputs!$C$45:$C$54,BE$6+1,1)-INDEX(Inputs!$C$45:$C$54,BE$6,1)))-1 -> 0.96% | BG37: =+POWER(INDEX(Inputs!$L$45:$L54,BF$6+1,1)/INDEX(Inputs!$L$45:$L$54,BF$6,1),1/(INDEX(Inputs!$C$45:$C$54,BF$6+1,1)-INDEX(Inputs!$C$45:$C$54,BF$6,1)))-1 -> 0.96% | BH37: =+POWER(INDEX(Inputs!$L$45:$L54,BG$6+1,1)/INDEX(Inputs!$L$45:$L$54,BG$6,1),1/(INDEX(Inputs!$C$45:$C$54,BG$6+1,1)-INDEX(Inputs!$C$45:$C$54,BG$6,1)))-1 -> 0.96% | BI37: =+POWER(INDEX(Inputs!$L$45:$L54,BH$6+1,1)/INDEX(Inputs!$L$45:$L$54,BH$6,1),1/(INDEX(Inputs!$C$45:$C$54,BH$6+1,1)-INDEX(Inputs!$C$45:$C$54,BH$6,1)))-1 -> 0.96% | BJ37: =+POWER(INDEX(Inputs!$L$45:$L54,BI$6+1,1)/INDEX(Inputs!$L$45:$L$54,BI$6,1),1/(INDEX(Inputs!$C$45:$C$54,BI$6+1,1)-INDEX(Inputs!$C$45:$C$54,BI$6,1)))-1 -> 0.96%
C38: O&M | H38: =+Inputs!L15 -> 1 | K38: $000s | N38: =SUM(Q38:BJ38) -> 1,117,458 | S38: =+CHOOSE($H$38,S39,S40) -> 14,275 | T38: 14,887 | U38: 15,525 | V38: 16,190 | W38: 16,487 | X38: 16,790 | Y38: 17,099 | Z38: 17,413 | AA38: 17,733 | AB38: 18,031 | AC38: 18,334 | AD38: 18,641 | AE38: 18,954 | AF38: 19,273 | AG38: 19,871 | AH38: 20,488 | AI38: 21,125 | AJ38: 21,781 | AK38: 22,457 | AL38: 23,281 | AM38: 24,134 | AN38: 25,018 | AO38: 25,935 | AP38: 26,886 | AQ38: 27,376 | AR38: 27,876 | AS38: 28,384 | AT38: 28,902 | AU38: 29,430 | AV38: 30,016 | AW38: 30,615 | AX38: 31,225 | AY38: 31,848 | AZ38: 32,483 | BA38: 32,941 | BB38: 33,405 | BC38: 33,876 | BD38: 34,353 | BE38: 34,837 | BF38: 35,172 | BG38: 35,511 | BH38: 35,853 | BI38: 36,198 | BJ38: 36,547
C39: O&M Base Case | S39: =+IF(S$6<>R$6,INDEX(Inputs!$L$45:$L$54,S$6,1),R39*(1+S37)) -> 14,275 | T39: =+IF(T$6<>S$6,INDEX(Inputs!$L$45:$L$54,T$6,1),S39*(1+T37)) -> 14,887 | U39: =+IF(U$6<>T$6,INDEX(Inputs!$L$45:$L$54,U$6,1),T39*(1+U37)) -> 15,525 | V39: =+IF(V$6<>U$6,INDEX(Inputs!$L$45:$L$54,V$6,1),U39*(1+V37)) -> 16,190 | W39: =+IF(W$6<>V$6,INDEX(Inputs!$L$45:$L$54,W$6,1),V39*(1+W37)) -> 16,487 | X39: =+IF(X$6<>W$6,INDEX(Inputs!$L$45:$L$54,X$6,1),W39*(1+X37)) -> 16,790 | Y39: =+IF(Y$6<>X$6,INDEX(Inputs!$L$45:$L$54,Y$6,1),X39*(1+Y37)) -> 17,099 | Z39: =+IF(Z$6<>Y$6,INDEX(Inputs!$L$45:$L$54,Z$6,1),Y39*(1+Z37)) -> 17,413 | AA39: =+IF(AA$6<>Z$6,INDEX(Inputs!$L$45:$L$54,AA$6,1),Z39*(1+AA37)) -> 17,733 | AB39: =+IF(AB$6<>AA$6,INDEX(Inputs!$L$45:$L$54,AB$6,1),AA39*(1+AB37)) -> 18,031 | AC39: =+IF(AC$6<>AB$6,INDEX(Inputs!$L$45:$L$54,AC$6,1),AB39*(1+AC37)) -> 18,334 | AD39: =+IF(AD$6<>AC$6,INDEX(Inputs!$L$45:$L$54,AD$6,1),AC39*(1+AD37)) -> 18,641 | AE39: =+IF(AE$6<>AD$6,INDEX(Inputs!$L$45:$L$54,AE$6,1),AD39*(1+AE37)) -> 18,954 | AF39: =+IF(AF$6<>AE$6,INDEX(Inputs!$L$45:$L$54,AF$6,1),AE39*(1+AF37)) -> 19,273 | AG39: =+IF(AG$6<>AF$6,INDEX(Inputs!$L$45:$L$54,AG$6,1),AF39*(1+AG37)) -> 19,871 | AH39: =+IF(AH$6<>AG$6,INDEX(Inputs!$L$45:$L$54,AH$6,1),AG39*(1+AH37)) -> 20,488 | AI39: =+IF(AI$6<>AH$6,INDEX(Inputs!$L$45:$L$54,AI$6,1),AH39*(1+AI37)) -> 21,125 | AJ39: =+IF(AJ$6<>AI$6,INDEX(Inputs!$L$45:$L$54,AJ$6,1),AI39*(1+AJ37)) -> 21,781 | AK39: =+IF(AK$6<>AJ$6,INDEX(Inputs!$L$45:$L$54,AK$6,1),AJ39*(1+AK37)) -> 22,457 | AL39: =+IF(AL$6<>AK$6,INDEX(Inputs!$L$45:$L$54,AL$6,1),AK39*(1+AL37)) -> 23,281 | AM39: =+IF(AM$6<>AL$6,INDEX(Inputs!$L$45:$L$54,AM$6,1),AL39*(1+AM37)) -> 24,134 | AN39: =+IF(AN$6<>AM$6,INDEX(Inputs!$L$45:$L$54,AN$6,1),AM39*(1+AN37)) -> 25,018 | AO39: =+IF(AO$6<>AN$6,INDEX(Inputs!$L$45:$L$54,AO$6,1),AN39*(1+AO37)) -> 25,935 | AP39: =+IF(AP$6<>AO$6,INDEX(Inputs!$L$45:$L$54,AP$6,1),AO39*(1+AP37)) -> 26,886 | AQ39: =+IF(AQ$6<>AP$6,INDEX(Inputs!$L$45:$L$54,AQ$6,1),AP39*(1+AQ37)) -> 27,376 | AR39: =+IF(AR$6<>AQ$6,INDEX(Inputs!$L$45:$L$54,AR$6,1),AQ39*(1+AR37)) -> 27,876 | AS39: =+IF(AS$6<>AR$6,INDEX(Inputs!$L$45:$L$54,AS$6,1),AR39*(1+AS37)) -> 28,384 | AT39: =+IF(AT$6<>AS$6,INDEX(Inputs!$L$45:$L$54,AT$6,1),AS39*(1+AT37)) -> 28,902 | AU39: =+IF(AU$6<>AT$6,INDEX(Inputs!$L$45:$L$54,AU$6,1),AT39*(1+AU37)) -> 29,430 | AV39: =+IF(AV$6<>AU$6,INDEX(Inputs!$L$45:$L$54,AV$6,1),AU39*(1+AV37)) -> 30,016 | AW39: =+IF(AW$6<>AV$6,INDEX(Inputs!$L$45:$L$54,AW$6,1),AV39*(1+AW37)) -> 30,615 | AX39: =+IF(AX$6<>AW$6,INDEX(Inputs!$L$45:$L$54,AX$6,1),AW39*(1+AX37)) -> 31,225 | AY39: =+IF(AY$6<>AX$6,INDEX(Inputs!$L$45:$L$54,AY$6,1),AX39*(1+AY37)) -> 31,848 | AZ39: =+IF(AZ$6<>AY$6,INDEX(Inputs!$L$45:$L$54,AZ$6,1),AY39*(1+AZ37)) -> 32,483 | BA39: =+IF(BA$6<>AZ$6,INDEX(Inputs!$L$45:$L$54,BA$6,1),AZ39*(1+BA37)) -> 32,941 | BB39: =+IF(BB$6<>BA$6,INDEX(Inputs!$L$45:$L$54,BB$6,1),BA39*(1+BB37)) -> 33,405 | BC39: =+IF(BC$6<>BB$6,INDEX(Inputs!$L$45:$L$54,BC$6,1),BB39*(1+BC37)) -> 33,876 | BD39: =+IF(BD$6<>BC$6,INDEX(Inputs!$L$45:$L$54,BD$6,1),BC39*(1+BD37)) -> 34,353 | BE39: =+IF(BE$6<>BD$6,INDEX(Inputs!$L$45:$L$54,BE$6,1),BD39*(1+BE37)) -> 34,837 | BF39: =+IF(BF$6<>BE$6,INDEX(Inputs!$L$45:$L$54,BF$6,1),BE39*(1+BF37)) -> 35,172 | BG39: =+IF(BG$6<>BF$6,INDEX(Inputs!$L$45:$L$54,BG$6,1),BF39*(1+BG37)) -> 35,511 | BH39: =+IF(BH$6<>BG$6,INDEX(Inputs!$L$45:$L$54,BH$6,1),BG39*(1+BH37)) -> 35,853 | BI39: =+IF(BI$6<>BH$6,INDEX(Inputs!$L$45:$L$54,BI$6,1),BH39*(1+BI37)) -> 36,198 | BJ39: =+IF(BJ$6<>BI$6,INDEX(Inputs!$L$45:$L$54,BJ$6,1),BI39*(1+BJ37)) -> 36,547
C42: O&M (NOMINAL) | K42: $000s | N42: =SUM(Q42:BJ42) -> 2,366,388 | S42: =+S38*S26*S12 -> 17,117 | T42: =+T38*T26*T12 -> 18,252 | U42: 19,462 | V42: 20,752 | W42: 21,620 | X42: 22,524 | Y42: 23,465 | Z42: 24,446 | AA42: 25,468 | AB42: 26,491 | AC42: 27,555 | AD42: 28,662 | AE42: 29,814 | AF42: 31,011 | AG42: 32,710 | AH42: 34,502 | AI42: 36,392 | AJ42: 38,385 | AK42: 40,488 | AL42: 42,937 | AM42: 45,534 | AN42: 48,289 | AO42: 51,210 | AP42: 54,308 | AQ42: 56,571 | AR42: 58,928 | AS42: 61,383 | AT42: 63,940 | AU42: 66,604 | AV42: 69,494 | AW42: 72,510 | AX42: 75,657 | AY42: 78,940 | AZ42: 82,366 | BA42: 85,448 | BB42: 88,645 | BC42: 91,962 | BD42: 95,403 | BE42: 98,972 | BF42: 102,224 | BG42: 105,582 | BH42: 109,050 | BI42: 112,632 | BJ42: 28,685
C44: Major Maintenance Capex
C45: Growth | T45: =+POWER(INDEX(Inputs!$L$57:$L66,S$6+1,1)/INDEX(Inputs!$L$57:$L$66,S$6,1),1/(INDEX(Inputs!$C$57:$C$66,S$6+1,1)-INDEX(Inputs!$C$57:$C$66,S$6,1)))-1 -> 43.0% | U45: =+POWER(INDEX(Inputs!$L$57:$L66,T$6+1,1)/INDEX(Inputs!$L$57:$L$66,T$6,1),1/(INDEX(Inputs!$C$57:$C$66,T$6+1,1)-INDEX(Inputs!$C$57:$C$66,T$6,1)))-1 -> 43.0% | V45: =+POWER(INDEX(Inputs!$L$57:$L66,U$6+1,1)/INDEX(Inputs!$L$57:$L$66,U$6,1),1/(INDEX(Inputs!$C$57:$C$66,U$6+1,1)-INDEX(Inputs!$C$57:$C$66,U$6,1)))-1 -> 43.0% | W45: =+POWER(INDEX(Inputs!$L$57:$L66,V$6+1,1)/INDEX(Inputs!$L$57:$L$66,V$6,1),1/(INDEX(Inputs!$C$57:$C$66,V$6+1,1)-INDEX(Inputs!$C$57:$C$66,V$6,1)))-1 -> 5.4% | X45: =+POWER(INDEX(Inputs!$L$57:$L66,W$6+1,1)/INDEX(Inputs!$L$57:$L$66,W$6,1),1/(INDEX(Inputs!$C$57:$C$66,W$6+1,1)-INDEX(Inputs!$C$57:$C$66,W$6,1)))-1 -> 5.4% | Y45: =+POWER(INDEX(Inputs!$L$57:$L66,X$6+1,1)/INDEX(Inputs!$L$57:$L$66,X$6,1),1/(INDEX(Inputs!$C$57:$C$66,X$6+1,1)-INDEX(Inputs!$C$57:$C$66,X$6,1)))-1 -> 5.4% | Z45: =+POWER(INDEX(Inputs!$L$57:$L66,Y$6+1,1)/INDEX(Inputs!$L$57:$L$66,Y$6,1),1/(INDEX(Inputs!$C$57:$C$66,Y$6+1,1)-INDEX(Inputs!$C$57:$C$66,Y$6,1)))-1 -> 5.4% | AA45: =+POWER(INDEX(Inputs!$L$57:$L66,Z$6+1,1)/INDEX(Inputs!$L$57:$L$66,Z$6,1),1/(INDEX(Inputs!$C$57:$C$66,Z$6+1,1)-INDEX(Inputs!$C$57:$C$66,Z$6,1)))-1 -> 5.4% | AB45: =+POWER(INDEX(Inputs!$L$57:$L66,AA$6+1,1)/INDEX(Inputs!$L$57:$L$66,AA$6,1),1/(INDEX(Inputs!$C$57:$C$66,AA$6+1,1)-INDEX(Inputs!$C$57:$C$66,AA$6,1)))-1 -> -1.7% | AC45: =+POWER(INDEX(Inputs!$L$57:$L66,AB$6+1,1)/INDEX(Inputs!$L$57:$L$66,AB$6,1),1/(INDEX(Inputs!$C$57:$C$66,AB$6+1,1)-INDEX(Inputs!$C$57:$C$66,AB$6,1)))-1 -> -1.7% | AD45: =+POWER(INDEX(Inputs!$L$57:$L66,AC$6+1,1)/INDEX(Inputs!$L$57:$L$66,AC$6,1),1/(INDEX(Inputs!$C$57:$C$66,AC$6+1,1)-INDEX(Inputs!$C$57:$C$66,AC$6,1)))-1 -> -1.7% | AE45: =+POWER(INDEX(Inputs!$L$57:$L66,AD$6+1,1)/INDEX(Inputs!$L$57:$L$66,AD$6,1),1/(INDEX(Inputs!$C$57:$C$66,AD$6+1,1)-INDEX(Inputs!$C$57:$C$66,AD$6,1)))-1 -> -1.7% | AF45: =+POWER(INDEX(Inputs!$L$57:$L66,AE$6+1,1)/INDEX(Inputs!$L$57:$L$66,AE$6,1),1/(INDEX(Inputs!$C$57:$C$66,AE$6+1,1)-INDEX(Inputs!$C$57:$C$66,AE$6,1)))-1 -> -1.7% | AG45: =+POWER(INDEX(Inputs!$L$57:$L66,AF$6+1,1)/INDEX(Inputs!$L$57:$L$66,AF$6,1),1/(INDEX(Inputs!$C$57:$C$66,AF$6+1,1)-INDEX(Inputs!$C$57:$C$66,AF$6,1)))-1 -> 5.1% | AH45: =+POWER(INDEX(Inputs!$L$57:$L66,AG$6+1,1)/INDEX(Inputs!$L$57:$L$66,AG$6,1),1/(INDEX(Inputs!$C$57:$C$66,AG$6+1,1)-INDEX(Inputs!$C$57:$C$66,AG$6,1)))-1 -> 5.1% | AI45: =+POWER(INDEX(Inputs!$L$57:$L66,AH$6+1,1)/INDEX(Inputs!$L$57:$L$66,AH$6,1),1/(INDEX(Inputs!$C$57:$C$66,AH$6+1,1)-INDEX(Inputs!$C$57:$C$66,AH$6,1)))-1 -> 5.1% | AJ45: =+POWER(INDEX(Inputs!$L$57:$L66,AI$6+1,1)/INDEX(Inputs!$L$57:$L$66,AI$6,1),1/(INDEX(Inputs!$C$57:$C$66,AI$6+1,1)-INDEX(Inputs!$C$57:$C$66,AI$6,1)))-1 -> 5.1% | AK45: =+POWER(INDEX(Inputs!$L$57:$L66,AJ$6+1,1)/INDEX(Inputs!$L$57:$L$66,AJ$6,1),1/(INDEX(Inputs!$C$57:$C$66,AJ$6+1,1)-INDEX(Inputs!$C$57:$C$66,AJ$6,1)))-1 -> 5.1% | AL45: =+POWER(INDEX(Inputs!$L$57:$L66,AK$6+1,1)/INDEX(Inputs!$L$57:$L$66,AK$6,1),1/(INDEX(Inputs!$C$57:$C$66,AK$6+1,1)-INDEX(Inputs!$C$57:$C$66,AK$6,1)))-1 -> 6.7% | AM45: =+POWER(INDEX(Inputs!$L$57:$L66,AL$6+1,1)/INDEX(Inputs!$L$57:$L$66,AL$6,1),1/(INDEX(Inputs!$C$57:$C$66,AL$6+1,1)-INDEX(Inputs!$C$57:$C$66,AL$6,1)))-1 -> 6.7% | AN45: =+POWER(INDEX(Inputs!$L$57:$L66,AM$6+1,1)/INDEX(Inputs!$L$57:$L$66,AM$6,1),1/(INDEX(Inputs!$C$57:$C$66,AM$6+1,1)-INDEX(Inputs!$C$57:$C$66,AM$6,1)))-1 -> 6.7% | AO45: =+POWER(INDEX(Inputs!$L$57:$L66,AN$6+1,1)/INDEX(Inputs!$L$57:$L$66,AN$6,1),1/(INDEX(Inputs!$C$57:$C$66,AN$6+1,1)-INDEX(Inputs!$C$57:$C$66,AN$6,1)))-1 -> 6.7% | AP45: =+POWER(INDEX(Inputs!$L$57:$L66,AO$6+1,1)/INDEX(Inputs!$L$57:$L$66,AO$6,1),1/(INDEX(Inputs!$C$57:$C$66,AO$6+1,1)-INDEX(Inputs!$C$57:$C$66,AO$6,1)))-1 -> 6.7% | AQ45: =+POWER(INDEX(Inputs!$L$57:$L66,AP$6+1,1)/INDEX(Inputs!$L$57:$L$66,AP$6,1),1/(INDEX(Inputs!$C$57:$C$66,AP$6+1,1)-INDEX(Inputs!$C$57:$C$66,AP$6,1)))-1 -> -10.7% | AR45: =+POWER(INDEX(Inputs!$L$57:$L66,AQ$6+1,1)/INDEX(Inputs!$L$57:$L$66,AQ$6,1),1/(INDEX(Inputs!$C$57:$C$66,AQ$6+1,1)-INDEX(Inputs!$C$57:$C$66,AQ$6,1)))-1 -> -10.7% | AS45: =+POWER(INDEX(Inputs!$L$57:$L66,AR$6+1,1)/INDEX(Inputs!$L$57:$L$66,AR$6,1),1/(INDEX(Inputs!$C$57:$C$66,AR$6+1,1)-INDEX(Inputs!$C$57:$C$66,AR$6,1)))-1 -> -10.7% | AT45: =+POWER(INDEX(Inputs!$L$57:$L66,AS$6+1,1)/INDEX(Inputs!$L$57:$L$66,AS$6,1),1/(INDEX(Inputs!$C$57:$C$66,AS$6+1,1)-INDEX(Inputs!$C$57:$C$66,AS$6,1)))-1 -> -10.7% | AU45: =+POWER(INDEX(Inputs!$L$57:$L66,AT$6+1,1)/INDEX(Inputs!$L$57:$L$66,AT$6,1),1/(INDEX(Inputs!$C$57:$C$66,AT$6+1,1)-INDEX(Inputs!$C$57:$C$66,AT$6,1)))-1 -> -10.7% | AV45: =+POWER(INDEX(Inputs!$L$57:$L66,AU$6+1,1)/INDEX(Inputs!$L$57:$L$66,AU$6,1),1/(INDEX(Inputs!$C$57:$C$66,AU$6+1,1)-INDEX(Inputs!$C$57:$C$66,AU$6,1)))-1 -> 11.4% | AW45: =+POWER(INDEX(Inputs!$L$57:$L66,AV$6+1,1)/INDEX(Inputs!$L$57:$L$66,AV$6,1),1/(INDEX(Inputs!$C$57:$C$66,AV$6+1,1)-INDEX(Inputs!$C$57:$C$66,AV$6,1)))-1 -> 11.4% | AX45: =+POWER(INDEX(Inputs!$L$57:$L66,AW$6+1,1)/INDEX(Inputs!$L$57:$L$66,AW$6,1),1/(INDEX(Inputs!$C$57:$C$66,AW$6+1,1)-INDEX(Inputs!$C$57:$C$66,AW$6,1)))-1 -> 11.4% | AY45: =+POWER(INDEX(Inputs!$L$57:$L66,AX$6+1,1)/INDEX(Inputs!$L$57:$L$66,AX$6,1),1/(INDEX(Inputs!$C$57:$C$66,AX$6+1,1)-INDEX(Inputs!$C$57:$C$66,AX$6,1)))-1 -> 11.4% | AZ45: =+POWER(INDEX(Inputs!$L$57:$L66,AY$6+1,1)/INDEX(Inputs!$L$57:$L$66,AY$6,1),1/(INDEX(Inputs!$C$57:$C$66,AY$6+1,1)-INDEX(Inputs!$C$57:$C$66,AY$6,1)))-1 -> 11.4% | BA45: =+POWER(INDEX(Inputs!$L$57:$L66,AZ$6+1,1)/INDEX(Inputs!$L$57:$L$66,AZ$6,1),1/(INDEX(Inputs!$C$57:$C$66,AZ$6+1,1)-INDEX(Inputs!$C$57:$C$66,AZ$6,1)))-1 -> -9.2% | BB45: =+POWER(INDEX(Inputs!$L$57:$L66,BA$6+1,1)/INDEX(Inputs!$L$57:$L$66,BA$6,1),1/(INDEX(Inputs!$C$57:$C$66,BA$6+1,1)-INDEX(Inputs!$C$57:$C$66,BA$6,1)))-1 -> -9.2% | BC45: =+POWER(INDEX(Inputs!$L$57:$L66,BB$6+1,1)/INDEX(Inputs!$L$57:$L$66,BB$6,1),1/(INDEX(Inputs!$C$57:$C$66,BB$6+1,1)-INDEX(Inputs!$C$57:$C$66,BB$6,1)))-1 -> -9.2% | BD45: =+POWER(INDEX(Inputs!$L$57:$L66,BC$6+1,1)/INDEX(Inputs!$L$57:$L$66,BC$6,1),1/(INDEX(Inputs!$C$57:$C$66,BC$6+1,1)-INDEX(Inputs!$C$57:$C$66,BC$6,1)))-1 -> -9.2% | BE45: =+POWER(INDEX(Inputs!$L$57:$L66,BD$6+1,1)/INDEX(Inputs!$L$57:$L$66,BD$6,1),1/(INDEX(Inputs!$C$57:$C$66,BD$6+1,1)-INDEX(Inputs!$C$57:$C$66,BD$6,1)))-1 -> -9.2% | BF45: =+POWER(INDEX(Inputs!$L$57:$L66,BE$6+1,1)/INDEX(Inputs!$L$57:$L$66,BE$6,1),1/(INDEX(Inputs!$C$57:$C$66,BE$6+1,1)-INDEX(Inputs!$C$57:$C$66,BE$6,1)))-1 -> 22.9% | BG45: =+POWER(INDEX(Inputs!$L$57:$L66,BF$6+1,1)/INDEX(Inputs!$L$57:$L$66,BF$6,1),1/(INDEX(Inputs!$C$57:$C$66,BF$6+1,1)-INDEX(Inputs!$C$57:$C$66,BF$6,1)))-1 -> 22.9% | BH45: =+POWER(INDEX(Inputs!$L$57:$L66,BG$6+1,1)/INDEX(Inputs!$L$57:$L$66,BG$6,1),1/(INDEX(Inputs!$C$57:$C$66,BG$6+1,1)-INDEX(Inputs!$C$57:$C$66,BG$6,1)))-1 -> 22.9% | BI45: =+POWER(INDEX(Inputs!$L$57:$L66,BH$6+1,1)/INDEX(Inputs!$L$57:$L$66,BH$6,1),1/(INDEX(Inputs!$C$57:$C$66,BH$6+1,1)-INDEX(Inputs!$C$57:$C$66,BH$6,1)))-1 -> 22.9% | BJ45: =+POWER(INDEX(Inputs!$L$57:$L66,BI$6+1,1)/INDEX(Inputs!$L$57:$L$66,BI$6,1),1/(INDEX(Inputs!$C$57:$C$66,BI$6+1,1)-INDEX(Inputs!$C$57:$C$66,BI$6,1)))-1 -> 22.9%
C46: Major Maintenance Capex | H46: =+Inputs!L16 -> 1 | K46: $000s | N46: =SUM(Q46:BJ46) -> 253,581 | S46: =+CHOOSE($H$46,S47,S48) -> 1,296 | T46: 1,853 | U46: 2,649 | V46: 3,788 | W46: 3,992 | X46: 4,207 | Y46: 4,434 | Z46: 4,672 | AA46: 4,924 | AB46: 4,841 | AC46: 4,760 | AD46: 4,680 | AE46: 4,601 | AF46: 4,524 | AG46: 4,754 | AH46: 4,995 | AI46: 5,249 | AJ46: 5,516 | AK46: 5,797 | AL46: 6,183 | AM46: 6,595 | AN46: 7,034 | AO46: 7,502 | AP46: 8,002 | AQ46: 7,145 | AR46: 6,380 | AS46: 5,696 | AT46: 5,086 | AU46: 4,541 | AV46: 5,059 | AW46: 5,636 | AX46: 6,278 | AY46: 6,994 | AZ46: 7,792 | BA46: 7,078 | BB46: 6,430 | BC46: 5,841 | BD46: 5,307 | BE46: 4,821 | BF46: 5,924 | BG46: 7,280 | BH46: 8,945 | BI46: 10,992 | BJ46: 13,508
C47: Major Maintenance Capex Base Case | S47: =+IF(S$6<>R$6,INDEX(Inputs!$L$57:$L$66,S$6,1),R47*(1+S45)) -> 1,296 | T47: =+IF(T$6<>S$6,INDEX(Inputs!$L$57:$L$66,T$6,1),S47*(1+T45)) -> 1,853 | U47: =+IF(U$6<>T$6,INDEX(Inputs!$L$57:$L$66,U$6,1),T47*(1+U45)) -> 2,649 | V47: =+IF(V$6<>U$6,INDEX(Inputs!$L$57:$L$66,V$6,1),U47*(1+V45)) -> 3,788 | W47: =+IF(W$6<>V$6,INDEX(Inputs!$L$57:$L$66,W$6,1),V47*(1+W45)) -> 3,992 | X47: =+IF(X$6<>W$6,INDEX(Inputs!$L$57:$L$66,X$6,1),W47*(1+X45)) -> 4,207 | Y47: =+IF(Y$6<>X$6,INDEX(Inputs!$L$57:$L$66,Y$6,1),X47*(1+Y45)) -> 4,434 | Z47: =+IF(Z$6<>Y$6,INDEX(Inputs!$L$57:$L$66,Z$6,1),Y47*(1+Z45)) -> 4,672 | AA47: =+IF(AA$6<>Z$6,INDEX(Inputs!$L$57:$L$66,AA$6,1),Z47*(1+AA45)) -> 4,924 | AB47: =+IF(AB$6<>AA$6,INDEX(Inputs!$L$57:$L$66,AB$6,1),AA47*(1+AB45)) -> 4,841 | AC47: =+IF(AC$6<>AB$6,INDEX(Inputs!$L$57:$L$66,AC$6,1),AB47*(1+AC45)) -> 4,760 | AD47: =+IF(AD$6<>AC$6,INDEX(Inputs!$L$57:$L$66,AD$6,1),AC47*(1+AD45)) -> 4,680 | AE47: =+IF(AE$6<>AD$6,INDEX(Inputs!$L$57:$L$66,AE$6,1),AD47*(1+AE45)) -> 4,601 | AF47: =+IF(AF$6<>AE$6,INDEX(Inputs!$L$57:$L$66,AF$6,1),AE47*(1+AF45)) -> 4,524 | AG47: =+IF(AG$6<>AF$6,INDEX(Inputs!$L$57:$L$66,AG$6,1),AF47*(1+AG45)) -> 4,754 | AH47: =+IF(AH$6<>AG$6,INDEX(Inputs!$L$57:$L$66,AH$6,1),AG47*(1+AH45)) -> 4,995 | AI47: =+IF(AI$6<>AH$6,INDEX(Inputs!$L$57:$L$66,AI$6,1),AH47*(1+AI45)) -> 5,249 | AJ47: =+IF(AJ$6<>AI$6,INDEX(Inputs!$L$57:$L$66,AJ$6,1),AI47*(1+AJ45)) -> 5,516 | AK47: =+IF(AK$6<>AJ$6,INDEX(Inputs!$L$57:$L$66,AK$6,1),AJ47*(1+AK45)) -> 5,797 | AL47: =+IF(AL$6<>AK$6,INDEX(Inputs!$L$57:$L$66,AL$6,1),AK47*(1+AL45)) -> 6,183 | AM47: =+IF(AM$6<>AL$6,INDEX(Inputs!$L$57:$L$66,AM$6,1),AL47*(1+AM45)) -> 6,595 | AN47: =+IF(AN$6<>AM$6,INDEX(Inputs!$L$57:$L$66,AN$6,1),AM47*(1+AN45)) -> 7,034 | AO47: =+IF(AO$6<>AN$6,INDEX(Inputs!$L$57:$L$66,AO$6,1),AN47*(1+AO45)) -> 7,502 | AP47: =+IF(AP$6<>AO$6,INDEX(Inputs!$L$57:$L$66,AP$6,1),AO47*(1+AP45)) -> 8,002 | AQ47: =+IF(AQ$6<>AP$6,INDEX(Inputs!$L$57:$L$66,AQ$6,1),AP47*(1+AQ45)) -> 7,145 | AR47: =+IF(AR$6<>AQ$6,INDEX(Inputs!$L$57:$L$66,AR$6,1),AQ47*(1+AR45)) -> 6,380 | AS47: =+IF(AS$6<>AR$6,INDEX(Inputs!$L$57:$L$66,AS$6,1),AR47*(1+AS45)) -> 5,696 | AT47: =+IF(AT$6<>AS$6,INDEX(Inputs!$L$57:$L$66,AT$6,1),AS47*(1+AT45)) -> 5,086 | AU47: =+IF(AU$6<>AT$6,INDEX(Inputs!$L$57:$L$66,AU$6,1),AT47*(1+AU45)) -> 4,541 | AV47: =+IF(AV$6<>AU$6,INDEX(Inputs!$L$57:$L$66,AV$6,1),AU47*(1+AV45)) -> 5,059 | AW47: =+IF(AW$6<>AV$6,INDEX(Inputs!$L$57:$L$66,AW$6,1),AV47*(1+AW45)) -> 5,636 | AX47: =+IF(AX$6<>AW$6,INDEX(Inputs!$L$57:$L$66,AX$6,1),AW47*(1+AX45)) -> 6,278 | AY47: =+IF(AY$6<>AX$6,INDEX(Inputs!$L$57:$L$66,AY$6,1),AX47*(1+AY45)) -> 6,994 | AZ47: =+IF(AZ$6<>AY$6,INDEX(Inputs!$L$57:$L$66,AZ$6,1),AY47*(1+AZ45)) -> 7,792 | BA47: =+IF(BA$6<>AZ$6,INDEX(Inputs!$L$57:$L$66,BA$6,1),AZ47*(1+BA45)) -> 7,078 | BB47: =+IF(BB$6<>BA$6,INDEX(Inputs!$L$57:$L$66,BB$6,1),BA47*(1+BB45)) -> 6,430 | BC47: =+IF(BC$6<>BB$6,INDEX(Inputs!$L$57:$L$66,BC$6,1),BB47*(1+BC45)) -> 5,841 | BD47: =+IF(BD$6<>BC$6,INDEX(Inputs!$L$57:$L$66,BD$6,1),BC47*(1+BD45)) -> 5,307 | BE47: =+IF(BE$6<>BD$6,INDEX(Inputs!$L$57:$L$66,BE$6,1),BD47*(1+BE45)) -> 4,821 | BF47: =+IF(BF$6<>BE$6,INDEX(Inputs!$L$57:$L$66,BF$6,1),BE47*(1+BF45)) -> 5,924 | BG47: =+IF(BG$6<>BF$6,INDEX(Inputs!$L$57:$L$66,BG$6,1),BF47*(1+BG45)) -> 7,280 | BH47: =+IF(BH$6<>BG$6,INDEX(Inputs!$L$57:$L$66,BH$6,1),BG47*(1+BH45)) -> 8,945 | BI47: =+IF(BI$6<>BH$6,INDEX(Inputs!$L$57:$L$66,BI$6,1),BH47*(1+BI45)) -> 10,992 | BJ47: =+IF(BJ$6<>BI$6,INDEX(Inputs!$L$57:$L$66,BJ$6,1),BI47*(1+BJ45)) -> 13,508
C50: Major Maintenance Capex (NOMINAL) | K50: $000s | N50: =SUM(Q50:BJ50) -> 554,873 | S50: =+S46*S26 -> 1,554 | T50: 2,272 | U50: 3,321 | V50: 4,856 | W50: 5,235 | X50: 5,644 | Y50: 6,084 | Z50: 6,559 | AA50: 7,072 | AB50: 7,113 | AC50: 7,154 | AD50: 7,195 | AE50: 7,237 | AF50: 7,279 | AG50: 7,825 | AH50: 8,412 | AI50: 9,043 | AJ50: 9,721 | AK50: 10,451 | AL50: 11,403 | AM50: 12,442 | AN50: 13,576 | AO50: 14,813 | AP50: 16,163 | AQ50: 14,764 | AR50: 13,486 | AS50: 12,318 | AT50: 11,252 | AU50: 10,278 | AV50: 11,713 | AW50: 13,348 | AX50: 15,212 | AY50: =+AY46*AY26 -> 17,336 | AZ50: 19,757 | BA50: 18,361 | BB50: 17,064 | BC50: 15,858 | BD50: 14,737 | BE50: 13,696 | BF50: 17,217 | BG50: 21,644 | BH50: 27,208 | BI50: 34,203 | BJ50: 42,997
C53: Construction Costs
C54: Growth
C55: Construction costs | H55: =+Inputs!L17 -> 1 | K55: $000s | N55: =SUM(Q55:BJ55) -> 706 | S55: =+CHOOSE($H$46,S56,S57) -> 706 | T55: 0 | U55: 0 | V55: 0 | W55: 0 | X55: 0 | Y55: 0 | Z55: 0 | AA55: 0 | AB55: 0 | AC55: 0 | AD55: 0 | AE55: 0 | AF55: 0 | AG55: 0 | AH55: 0 | AI55: 0 | AJ55: 0 | AK55: 0 | AL55: 0 | AM55: 0 | AN55: 0 | AO55: 0 | AP55: 0 | AQ55: 0 | AR55: 0 | AS55: 0 | AT55: 0 | AU55: 0 | AV55: 0 | AW55: 0 | AX55: 0 | AY55: 0 | AZ55: 0 | BA55: 0 | BB55: 0 | BC55: 0 | BD55: 0 | BE55: 0 | BF55: 0 | BG55: 0 | BH55: 0 | BI55: 0 | BJ55: 0
C56: Construction Costs Base Case | S56: =+IF(S7=2018,Inputs!$L$68,0) -> 706 | T56: =+IF(T7=2018,Inputs!$L$68,0) -> 0 | U56: =+IF(U7=2018,Inputs!$L$68,0) -> 0 | V56: =+IF(V7=2018,Inputs!$L$68,0) -> 0 | W56: =+IF(W7=2018,Inputs!$L$68,0) -> 0 | X56: =+IF(X7=2018,Inputs!$L$68,0) -> 0 | Y56: =+IF(Y7=2018,Inputs!$L$68,0) -> 0 | Z56: =+IF(Z7=2018,Inputs!$L$68,0) -> 0 | AA56: =+IF(AA7=2018,Inputs!$L$68,0) -> 0 | AB56: =+IF(AB7=2018,Inputs!$L$68,0) -> 0 | AC56: =+IF(AC7=2018,Inputs!$L$68,0) -> 0 | AD56: =+IF(AD7=2018,Inputs!$L$68,0) -> 0 | AE56: =+IF(AE7=2018,Inputs!$L$68,0) -> 0 | AF56: =+IF(AF7=2018,Inputs!$L$68,0) -> 0 | AG56: =+IF(AG7=2018,Inputs!$L$68,0) -> 0 | AH56: =+IF(AH7=2018,Inputs!$L$68,0) -> 0 | AI56: =+IF(AI7=2018,Inputs!$L$68,0) -> 0 | AJ56: =+IF(AJ7=2018,Inputs!$L$68,0) -> 0 | AK56: =+IF(AK7=2018,Inputs!$L$68,0) -> 0 | AL56: =+IF(AL7=2018,Inputs!$L$68,0) -> 0 | AM56: =+IF(AM7=2018,Inputs!$L$68,0) -> 0 | AN56: =+IF(AN7=2018,Inputs!$L$68,0) -> 0 | AO56: =+IF(AO7=2018,Inputs!$L$68,0) -> 0 | AP56: =+IF(AP7=2018,Inputs!$L$68,0) -> 0 | AQ56: =+IF(AQ7=2018,Inputs!$L$68,0) -> 0 | AR56: =+IF(AR7=2018,Inputs!$L$68,0) -> 0 | AS56: =+IF(AS7=2018,Inputs!$L$68,0) -> 0 | AT56: =+IF(AT7=2018,Inputs!$L$68,0) -> 0 | AU56: =+IF(AU7=2018,Inputs!$L$68,0) -> 0 | AV56: =+IF(AV7=2018,Inputs!$L$68,0) -> 0 | AW56: =+IF(AW7=2018,Inputs!$L$68,0) -> 0 | AX56: =+IF(AX7=2018,Inputs!$L$68,0) -> 0 | AY56: =+IF(AY7=2018,Inputs!$L$68,0) -> 0 | AZ56: =+IF(AZ7=2018,Inputs!$L$68,0) -> 0 | BA56: =+IF(BA7=2018,Inputs!$L$68,0) -> 0 | BB56: =+IF(BB7=2018,Inputs!$L$68,0) -> 0 | BC56: =+IF(BC7=2018,Inputs!$L$68,0) -> 0 | BD56: =+IF(BD7=2018,Inputs!$L$68,0) -> 0 | BE56: =+IF(BE7=2018,Inputs!$L$68,0) -> 0 | BF56: =+IF(BF7=2018,Inputs!$L$68,0) -> 0 | BG56: =+IF(BG7=2018,Inputs!$L$68,0) -> 0 | BH56: =+IF(BH7=2018,Inputs!$L$68,0) -> 0 | BI56: =+IF(BI7=2018,Inputs!$L$68,0) -> 0 | BJ56: =+IF(BJ7=2018,Inputs!$L$68,0) -> 0
C59: Construction costs (NOMINAL) | K59: $000s | N59: =SUM(Q59:BJ59) -> 847 | S59: =+S55*S26 -> 847 | T59: =+T55*T26 -> 0 | U59: 0 | V59: 0 | W59: 0 | X59: 0 | Y59: 0 | Z59: 0 | AA59: 0 | AB59: 0 | AC59: 0 | AD59: 0 | AE59: 0 | AF59: 0 | AG59: 0 | AH59: 0 | AI59: 0 | AJ59: 0 | AK59: 0 | AL59: 0 | AM59: 0 | AN59: 0 | AO59: 0 | AP59: 0 | AQ59: 0 | AR59: 0 | AS59: 0 | AT59: 0 | AU59: 0 | AV59: 0 | AW59: 0 | AX59: 0 | AY59: 0 | AZ59: 0 | BA59: 0 | BB59: 0 | BC59: 0 | BD59: 0 | BE59: 0 | BF59: 0 | BG59: 0 | BH59: 0 | BI59: 0 | BJ59: 0
B62: Revenue Sharing TxDOT
C65: Revenue | K65: $000s | N65: =SUM(Q65:BJ65) -> 31,617,620 | S65: =+S16 -> 99,995 | T65: 110,893 | U65: 122,977 | V65: 136,379 | W65: 147,990 | X65: 160,589 | Y65: 174,260 | Z65: 189,095 | AA65: 205,194 | AB65: 218,152 | AC65: 231,928 | AD65: 246,574 | AE65: 262,146 | AF65: 278,700 | AG65: 305,795 | AH65: 335,525 | AI65: 368,144 | AJ65: 403,935 | AK65: 443,205 | AL65: 486,910 | AM65: 534,925 | AN65: 587,675 | AO65: 645,626 | AP65: 709,292 | AQ65: 750,383 | AR65: 793,854 | AS65: 839,843 | AT65: 888,497 | AU65: 939,969 | AV65: 993,785 | AW65: 1,050,682 | AX65: 1,110,837 | AY65: 1,174,435 | AZ65: 1,241,675 | BA65: 1,299,492 | BB65: 1,360,002 | BC65: 1,423,329 | BD65: 1,489,605 | BE65: 1,558,968 | BF65: 1,616,728 | BG65: 1,676,628 | BH65: 1,738,747 | BI65: 1,803,168 | BJ65: 461,090
C66: Cumulative Base Case Toll Revenues | R66: 215,656 | S66: =+R66+S65 -> 315,651 | T66: 426,544 | U66: 549,521 | V66: 685,901 | W66: 833,890 | X66: 994,479 | Y66: 1,168,739 | Z66: 1,357,834 | AA66: 1,563,028 | AB66: 1,781,179 | AC66: 2,013,107 | AD66: 2,259,682 | AE66: 2,521,828 | AF66: 2,800,528 | AG66: 3,106,323 | AH66: 3,441,848 | AI66: 3,809,992 | AJ66: 4,213,926 | AK66: 4,657,131 | AL66: 5,144,041 | AM66: 5,678,966 | AN66: 6,266,640 | AO66: 6,912,267 | AP66: 7,621,559 | AQ66: 8,371,942 | AR66: 9,165,796 | AS66: 10,005,639 | AT66: 10,894,136 | AU66: 11,834,105 | AV66: 12,827,889 | AW66: 13,878,571 | AX66: 14,989,408 | AY66: 16,163,843 | AZ66: 17,405,518 | BA66: 18,705,010 | BB66: 20,065,012 | BC66: 21,488,342 | BD66: 22,977,947 | BE66: 24,536,915 | BF66: 26,153,643 | BG66: 27,830,270 | BH66: 29,569,018 | BI66: 31,372,186 | BJ66: 31,833,276
C68: Band 1 Floor | K68: $000s | S68: 0 | T68: 0 | U68: 0 | V68: 0 | W68: 0 | X68: 0 | Y68: 0 | Z68: 0 | AA68: 0 | AB68: 0 | AC68: 0 | AD68: 0 | AE68: 0 | AF68: 0 | AG68: 0 | AH68: 0 | AI68: 0 | AJ68: 0 | AK68: 0 | AL68: 0 | AM68: 0 | AN68: 0 | AO68: 0 | AP68: 0 | AQ68: 0 | AR68: 0 | AS68: 0 | AT68: 0 | AU68: 0 | AV68: 0 | AW68: 0 | AX68: 0 | AY68: 0 | AZ68: 0 | BA68: 0 | BB68: 0 | BC68: 0 | BD68: 0 | BE68: 0 | BF68: 0 | BG68: 0 | BH68: 0 | BI68: 0 | BJ68: 0
C69: Band 1 Ceiling | K69: $000s | N69: =SUM(Q69:BJ69) -> 466,810,868 | S69: 515,847 | T69: 678,722 | U69: 852,772 | V69: 1,038,570 | W69: 1,236,714 | X69: 1,447,830 | Y69: 1,664,355 | Z69: 1,900,953 | AA69: 2,158,734 | AB69: 2,438,858 | AC69: 2,742,537 | AD69: 3,070,366 | AE69: 3,398,896 | AF69: 3,751,848 | AG69: 4,129,937 | AH69: 4,534,408 | AI69: 4,966,606 | AJ69: 5,427,939 | AK69: 5,919,869 | AL69: 6,443,922 | AM69: 7,001,284 | AN69: 7,593,528 | AO69: 8,222,349 | AP69: 8,889,302 | AQ69: 9,595,141 | AR69: 10,340,918 | AS69: 11,128,156 | AT69: 11,955,728 | AU69: 12,822,327 | AV69: 13,729,176 | AW69: 14,677,767 | AX69: 15,669,821 | AY69: 16,702,382 | AZ69: 17,776,962 | BA69: 18,891,006 | BB69: 20,045,404 | BC69: 21,241,624 | BD69: 22,480,346 | BE69: 23,763,859 | BF69: 25,091,933 | BG69: 26,467,470 | BH69: 27,889,534 | BI69: 28,257,583 | BJ69: 28,257,583
C71: Band 2 Floor | K71: $000s | S71: =S69 -> 515,847 | T71: 678,722 | U71: 852,772 | V71: 1,038,570 | W71: 1,236,714 | X71: 1,447,830 | Y71: 1,664,355 | Z71: 1,900,953 | AA71: 2,158,734 | AB71: 2,438,858 | AC71: 2,742,537 | AD71: 3,070,366 | AE71: 3,398,896 | AF71: 3,751,848 | AG71: 4,129,937 | AH71: 4,534,408 | AI71: 4,966,606 | AJ71: 5,427,939 | AK71: 5,919,869 | AL71: 6,443,922 | AM71: 7,001,284 | AN71: 7,593,528 | AO71: 8,222,349 | AP71: =AP69 -> 8,889,302 | AQ71: 9,595,141 | AR71: 10,340,918 | AS71: 11,128,156 | AT71: 11,955,728 | AU71: 12,822,327 | AV71: 13,729,176 | AW71: 14,677,767 | AX71: 15,669,821 | AY71: 16,702,382 | AZ71: 17,776,962 | BA71: 18,891,006 | BB71: 20,045,404 | BC71: 21,241,624 | BD71: 22,480,346 | BE71: 23,763,859 | BF71: 25,091,933 | BG71: 26,467,470 | BH71: 27,889,534 | BI71: 28,257,583 | BJ71: 28,257,583
C72: Band 2 Ceiling | K72: $000s | N72: =SUM(Q72:BJ72) -> 576,545,440 | S72: 637,108 | T72: 838,271 | U72: 1,053,235 | V72: 1,282,709 | W72: 1,527,432 | X72: 1,788,175 | Y72: 2,055,600 | Z72: 2,347,816 | AA72: 2,666,194 | AB72: 3,012,168 | AC72: 3,387,233 | AD72: 3,792,126 | AE72: 4,197,884 | AF72: 4,633,805 | AG72: 5,100,773 | AH72: 5,600,324 | AI72: 6,134,121 | AJ72: 6,703,900 | AK72: 7,311,469 | AL72: 7,958,713 | AM72: 8,647,096 | AN72: 9,378,560 | AO72: 10,155,200 | AP72: 10,978,936 | AQ72: 11,850,699 | AR72: 12,771,787 | AS72: 13,744,083 | AT72: 14,766,195 | AU72: 15,836,509 | AV72: 16,956,533 | AW72: 18,128,112 | AX72: 19,353,371 | AY72: 20,628,659 | AZ72: 21,955,844 | BA72: 23,331,769 | BB72: 24,757,535 | BC72: 26,234,954 | BD72: 27,764,865 | BE72: 29,350,098 | BF72: 30,990,366 | BG72: 32,689,255 | BH72: 34,445,607 | BI72: 34,900,175 | BJ72: 34,900,175
C74: Band 3 Floor | K74: $000s | S74: =S72 -> 637,108 | T74: 838,271 | U74: 1,053,235 | V74: 1,282,709 | W74: 1,527,432 | X74: 1,788,175 | Y74: 2,055,600 | Z74: 2,347,816 | AA74: 2,666,194 | AB74: 3,012,168 | AC74: 3,387,233 | AD74: 3,792,126 | AE74: 4,197,884 | AF74: 4,633,805 | AG74: 5,100,773 | AH74: 5,600,324 | AI74: 6,134,121 | AJ74: 6,703,900 | AK74: 7,311,469 | AL74: 7,958,713 | AM74: 8,647,096 | AN74: 9,378,560 | AO74: 10,155,200 | AP74: =AP72 -> 10,978,936 | AQ74: 11,850,699 | AR74: 12,771,787 | AS74: 13,744,083 | AT74: 14,766,195 | AU74: 15,836,509 | AV74: 16,956,533 | AW74: 18,128,112 | AX74: 19,353,371 | AY74: 20,628,659 | AZ74: 21,955,844 | BA74: 23,331,769 | BB74: 24,757,535 | BC74: 26,234,954 | BD74: 27,764,865 | BE74: 29,350,098 | BF74: 30,990,366 | BG74: 32,689,255 | BH74: 34,445,607 | BI74: 34,900,175 | BJ74: 34,900,175
C75: Band 3 Ceilling | K75: $000s | N75: =SUM(Q75:BJ75) -> 710,251,075 | S75: 784,859 | T75: 1,032,673 | U75: 1,297,489 | V75: 1,580,180 | W75: 1,881,656 | X75: 2,202,868 | Y75: 2,532,310 | Z75: 2,892,294 | AA75: 3,284,507 | AB75: 3,710,714 | AC75: 4,172,760 | AD75: 4,671,551 | AE75: 5,171,408 | AF75: 5,708,423 | AG75: 6,283,685 | AH75: 6,899,085 | AI75: 7,556,674 | AJ75: 8,258,590 | AK75: 9,007,059 | AL75: 9,804,404 | AM75: 10,652,429 | AN75: 11,553,525 | AO75: 12,510,274 | AP75: 13,525,041 | AQ75: 14,598,974 | AR75: 15,733,669 | AS75: 16,931,449 | AT75: 18,190,598 | AU75: 19,509,126 | AV75: 20,888,893 | AW75: 22,332,171 | AX75: 23,841,577 | AY75: 25,412,615 | AZ75: 27,047,585 | BA75: 28,742,599 | BB75: 30,499,011 | BC75: 32,319,056 | BD75: 34,203,766 | BE75: 36,156,627 | BF75: 38,177,286 | BG75: 40,270,162 | BH75: 42,433,827 | BI75: 42,993,812 | BJ75: 42,993,812
C77: Band 4 Floor | K77: $000s | S77: =S75 -> 784,859 | T77: 1,032,673 | U77: 1,297,489 | V77: 1,580,180 | W77: 1,881,656 | X77: 2,202,868 | Y77: 2,532,310 | Z77: 2,892,294 | AA77: 3,284,507 | AB77: 3,710,714 | AC77: 4,172,760 | AD77: 4,671,551 | AE77: 5,171,408 | AF77: 5,708,423 | AG77: 6,283,685 | AH77: 6,899,085 | AI77: 7,556,674 | AJ77: 8,258,590 | AK77: 9,007,059 | AL77: 9,804,404 | AM77: 10,652,429 | AN77: 11,553,525 | AO77: 12,510,274 | AP77: =AP75 -> 13,525,041 | AQ77: 14,598,974 | AR77: 15,733,669 | AS77: 16,931,449 | AT77: 18,190,598 | AU77: 19,509,126 | AV77: 20,888,893 | AW77: 22,332,171 | AX77: 23,841,577 | AY77: 25,412,615 | AZ77: 27,047,585 | BA77: 28,742,599 | BB77: 30,499,011 | BC77: 32,319,056 | BD77: 34,203,766 | BE77: 36,156,627 | BF77: 38,177,286 | BG77: 40,270,162 | BH77: 42,433,827 | BI77: 42,993,812 | BJ77: 42,993,812
C78: Band 4 Ceilling | K78: $000s | N78: =SUM(Q78:BJ78) -> 813,080,215 | S78: 898,490 | T78: 1,182,182 | U78: 1,485,338 | V78: 1,808,956 | W78: 2,154,079 | X78: 2,521,796 | Y78: 2,898,935 | Z78: 3,311,036 | AA78: 3,760,033 | AB78: 4,247,946 | AC78: 4,776,886 | AD78: 5,347,892 | AE78: 5,920,118 | AF78: 6,534,880 | AG78: 7,193,428 | AH78: 7,897,925 | AI78: 8,650,719 | AJ78: 9,454,257 | AK78: 10,311,088 | AL78: 11,223,872 | AM78: 12,194,672 | AN78: 13,226,228 | AO78: 14,321,494 | AP78: 15,483,178 | AQ78: 16,712,592 | AR78: 18,011,568 | AS78: 19,382,761 | AT78: 20,824,207 | AU78: 22,333,629 | AV78: 23,913,157 | AW78: 25,565,391 | AX78: 27,293,327 | AY78: 29,091,817 | AZ78: 30,963,496 | BA78: 32,903,911 | BB78: 34,914,614 | BC78: 36,998,163 | BD78: 39,155,739 | BE78: 41,391,332 | BF78: 43,704,540 | BG78: 46,100,419 | BH78: 48,577,336 | BI78: 49,218,395 | BJ78: 49,218,395
C80: Band 5 Floor | K80: $000s | N80: =SUM(Q80:BJ80) -> 813,080,215 | S80: =S78 -> 898,490 | T80: 1,182,182 | U80: 1,485,338 | V80: 1,808,956 | W80: 2,154,079 | X80: 2,521,796 | Y80: 2,898,935 | Z80: 3,311,036 | AA80: 3,760,033 | AB80: 4,247,946 | AC80: 4,776,886 | AD80: 5,347,892 | AE80: 5,920,118 | AF80: 6,534,880 | AG80: 7,193,428 | AH80: 7,897,925 | AI80: 8,650,719 | AJ80: 9,454,257 | AK80: 10,311,088 | AL80: 11,223,872 | AM80: 12,194,672 | AN80: 13,226,228 | AO80: 14,321,494 | AP80: =AP78 -> 15,483,178 | AQ80: 16,712,592 | AR80: 18,011,568 | AS80: 19,382,761 | AT80: 20,824,207 | AU80: 22,333,629 | AV80: 23,913,157 | AW80: 25,565,391 | AX80: 27,293,327 | AY80: 29,091,817 | AZ80: 30,963,496 | BA80: 32,903,911 | BB80: 34,914,614 | BC80: 36,998,163 | BD80: 39,155,739 | BE80: 41,391,332 | BF80: 43,704,540 | BG80: 46,100,419 | BH80: 48,577,336 | BI80: 49,218,395 | BJ80: 49,218,395
C83: Band 1
C84: Revenue Share % | K84: % | N84: 0.00%
C85: Revenues within Band 1 | K85: $000s | S85: =MAX(MIN(S$66-S68,S69-S68),0) -> 315,651 | T85: 426,544 | U85: 549,521 | V85: 685,901 | W85: 833,890 | X85: 994,479 | Y85: 1,168,739 | Z85: 1,357,834 | AA85: 1,563,028 | AB85: 1,781,179 | AC85: 2,013,107 | AD85: 2,259,682 | AE85: 2,521,828 | AF85: 2,800,528 | AG85: 3,106,323 | AH85: 3,441,848 | AI85: 3,809,992 | AJ85: 4,213,926 | AK85: 4,657,131 | AL85: 5,144,041 | AM85: 5,678,966 | AN85: 6,266,640 | AO85: 6,912,267 | AP85: =MAX(MIN(AP$66-AP68,AP69-AP68),0) -> 7,621,559 | AQ85: 8,371,942 | AR85: 9,165,796 | AS85: 10,005,639 | AT85: 10,894,136 | AU85: 11,834,105 | AV85: 12,827,889 | AW85: 13,878,571 | AX85: 14,989,408 | AY85: 16,163,843 | AZ85: 17,405,518 | BA85: 18,705,010 | BB85: 20,045,404 | BC85: 21,241,624 | BD85: 22,480,346 | BE85: 23,763,859 | BF85: 25,091,933 | BG85: 26,467,470 | BH85: 27,889,534 | BI85: 28,257,583 | BJ85: 28,257,583
C86: Band 1 Revenue Share | K86: $000s | N86: =SUM(Q86:DP86) -> 0 | S86: =MAX((S85*$N$84-SUM($P86:R$86)),0)*CF!S$13 -> 0 | T86: =MAX((T85*$N$84-SUM($P86:S$86)),0)*CF!T$13 -> 0 | U86: =MAX((U85*$N$84-SUM($P86:T$86)),0)*CF!U$13 -> 0 | V86: =MAX((V85*$N$84-SUM($P86:U$86)),0)*CF!V$13 -> 0 | W86: =MAX((W85*$N$84-SUM($P86:V$86)),0)*CF!W$13 -> 0 | X86: =MAX((X85*$N$84-SUM($P86:W$86)),0)*CF!X$13 -> 0 | Y86: =MAX((Y85*$N$84-SUM($P86:X$86)),0)*CF!Y$13 -> 0 | Z86: =MAX((Z85*$N$84-SUM($P86:Y$86)),0)*CF!Z$13 -> 0 | AA86: =MAX((AA85*$N$84-SUM($P86:Z$86)),0)*CF!AA$13 -> 0 | AB86: =MAX((AB85*$N$84-SUM($P86:AA$86)),0)*CF!AB$13 -> 0 | AC86: =MAX((AC85*$N$84-SUM($P86:AB$86)),0)*CF!AC$13 -> 0 | AD86: =MAX((AD85*$N$84-SUM($P86:AC$86)),0)*CF!AD$13 -> 0 | AE86: =MAX((AE85*$N$84-SUM($P86:AD$86)),0)*CF!AE$13 -> 0 | AF86: =MAX((AF85*$N$84-SUM($P86:AE$86)),0)*CF!AF$13 -> 0 | AG86: =MAX((AG85*$N$84-SUM($P86:AF$86)),0)*CF!AG$13 -> 0 | AH86: =MAX((AH85*$N$84-SUM($P86:AG$86)),0)*CF!AH$13 -> 0 | AI86: =MAX((AI85*$N$84-SUM($P86:AH$86)),0)*CF!AI$13 -> 0 | AJ86: =MAX((AJ85*$N$84-SUM($P86:AI$86)),0)*CF!AJ$13 -> 0 | AK86: =MAX((AK85*$N$84-SUM($P86:AJ$86)),0)*CF!AK$13 -> 0 | AL86: =MAX((AL85*$N$84-SUM($P86:AK$86)),0)*CF!AL$13 -> 0 | AM86: =MAX((AM85*$N$84-SUM($P86:AL$86)),0)*CF!AM$13 -> 0 | AN86: =MAX((AN85*$N$84-SUM($P86:AM$86)),0)*CF!AN$13 -> 0 | AO86: =MAX((AO85*$N$84-SUM($P86:AN$86)),0)*CF!AO$13 -> 0 | AP86: =MAX((AP85*$N$84-SUM($P86:AO$86)),0)*CF!AP$13 -> 0 | AQ86: =MAX((AQ85*$N$84-SUM($P86:AP$86)),0)*CF!AQ$13 -> 0 | AR86: =MAX((AR85*$N$84-SUM($P86:AQ$86)),0)*CF!AR$13 -> 0 | AS86: =MAX((AS85*$N$84-SUM($P86:AR$86)),0)*CF!AS$13 -> 0 | AT86: =MAX((AT85*$N$84-SUM($P86:AS$86)),0)*CF!AT$13 -> 0 | AU86: =MAX((AU85*$N$84-SUM($P86:AT$86)),0)*CF!AU$13 -> 0 | AV86: =MAX((AV85*$N$84-SUM($P86:AU$86)),0)*CF!AV$13 -> 0 | AW86: =MAX((AW85*$N$84-SUM($P86:AV$86)),0)*CF!AW$13 -> 0 | AX86: =MAX((AX85*$N$84-SUM($P86:AW$86)),0)*CF!AX$13 -> 0 | AY86: =MAX((AY85*$N$84-SUM($P86:AX$86)),0)*CF!AY$13 -> 0 | AZ86: =MAX((AZ85*$N$84-SUM($P86:AY$86)),0)*CF!AZ$13 -> 0 | BA86: =MAX((BA85*$N$84-SUM($P86:AZ$86)),0)*CF!BA$13 -> 0 | BB86: =MAX((BB85*$N$84-SUM($P86:BA$86)),0)*CF!BB$13 -> 0 | BC86: =MAX((BC85*$N$84-SUM($P86:BB$86)),0)*CF!BC$13 -> 0 | BD86: =MAX((BD85*$N$84-SUM($P86:BC$86)),0)*CF!BD$13 -> 0 | BE86: =MAX((BE85*$N$84-SUM($P86:BD$86)),0)*CF!BE$13 -> 0 | BF86: =MAX((BF85*$N$84-SUM($P86:BE$86)),0)*CF!BF$13 -> 0 | BG86: =MAX((BG85*$N$84-SUM($P86:BF$86)),0)*CF!BG$13 -> 0 | BH86: =MAX((BH85*$N$84-SUM($P86:BG$86)),0)*CF!BH$13 -> 0 | BI86: =MAX((BI85*$N$84-SUM($P86:BH$86)),0)*CF!BI$13 -> 0 | BJ86: =MAX((BJ85*$N$84-SUM($P86:BI$86)),0)*CF!BJ$13 -> 0
C88: Band 2
C89: Revenue Share % | K89: % | N89: 12.50%
C90: Revenues within Band 2 | K90: $000s | S90: =MAX(MIN(S$66-S71,S72-S71),0) -> 0 | T90: 0 | U90: 0 | V90: 0 | W90: 0 | X90: 0 | Y90: 0 | Z90: 0 | AA90: 0 | AB90: 0 | AC90: 0 | AD90: 0 | AE90: 0 | AF90: 0 | AG90: 0 | AH90: 0 | AI90: 0 | AJ90: 0 | AK90: 0 | AL90: 0 | AM90: 0 | AN90: 0 | AO90: 0 | AP90: =MAX(MIN(AP$66-AP71,AP72-AP71),0) -> 0 | AQ90: 0 | AR90: 0 | AS90: 0 | AT90: 0 | AU90: 0 | AV90: 0 | AW90: 0 | AX90: 0 | AY90: 0 | AZ90: 0 | BA90: 0 | BB90: 19,609 | BC90: 246,717 | BD90: 497,602 | BE90: 773,056 | BF90: 1,061,710 | BG90: 1,362,800 | BH90: 1,679,483 | BI90: 3,114,603 | BJ90: 3,575,693
C91: Band 2 Revenue Share | K91: $000s | N91: =SUM(Q91:BJ91) -> 446,962 | S91: =MAX((S90*$N$89-SUM($P$91:R91)),0)*CF!S$13 -> 0 | T91: =MAX((T90*$N$89-SUM($P$91:S91)),0)*CF!T$13 -> 0 | U91: =MAX((U90*$N$89-SUM($P$91:T91)),0)*CF!U$13 -> 0 | V91: =MAX((V90*$N$89-SUM($P$91:U91)),0)*CF!V$13 -> 0 | W91: =MAX((W90*$N$89-SUM($P$91:V91)),0)*CF!W$13 -> 0 | X91: =MAX((X90*$N$89-SUM($P$91:W91)),0)*CF!X$13 -> 0 | Y91: =MAX((Y90*$N$89-SUM($P$91:X91)),0)*CF!Y$13 -> 0 | Z91: =MAX((Z90*$N$89-SUM($P$91:Y91)),0)*CF!Z$13 -> 0 | AA91: =MAX((AA90*$N$89-SUM($P$91:Z91)),0)*CF!AA$13 -> 0 | AB91: =MAX((AB90*$N$89-SUM($P$91:AA91)),0)*CF!AB$13 -> 0 | AC91: =MAX((AC90*$N$89-SUM($P$91:AB91)),0)*CF!AC$13 -> 0 | AD91: =MAX((AD90*$N$89-SUM($P$91:AC91)),0)*CF!AD$13 -> 0 | AE91: =MAX((AE90*$N$89-SUM($P$91:AD91)),0)*CF!AE$13 -> 0 | AF91: =MAX((AF90*$N$89-SUM($P$91:AE91)),0)*CF!AF$13 -> 0 | AG91: =MAX((AG90*$N$89-SUM($P$91:AF91)),0)*CF!AG$13 -> 0 | AH91: =MAX((AH90*$N$89-SUM($P$91:AG91)),0)*CF!AH$13 -> 0 | AI91: =MAX((AI90*$N$89-SUM($P$91:AH91)),0)*CF!AI$13 -> 0 | AJ91: =MAX((AJ90*$N$89-SUM($P$91:AI91)),0)*CF!AJ$13 -> 0 | AK91: =MAX((AK90*$N$89-SUM($P$91:AJ91)),0)*CF!AK$13 -> 0 | AL91: =MAX((AL90*$N$89-SUM($P$91:AK91)),0)*CF!AL$13 -> 0 | AM91: =MAX((AM90*$N$89-SUM($P$91:AL91)),0)*CF!AM$13 -> 0 | AN91: =MAX((AN90*$N$89-SUM($P$91:AM91)),0)*CF!AN$13 -> 0 | AO91: =MAX((AO90*$N$89-SUM($P$91:AN91)),0)*CF!AO$13 -> 0 | AP91: =MAX((AP90*$N$89-SUM($P$91:AO91)),0)*CF!AP$13 -> 0 | AQ91: =MAX((AQ90*$N$89-SUM($P$91:AP91)),0)*CF!AQ$13 -> 0 | AR91: =MAX((AR90*$N$89-SUM($P$91:AQ91)),0)*CF!AR$13 -> 0 | AS91: =MAX((AS90*$N$89-SUM($P$91:AR91)),0)*CF!AS$13 -> 0 | AT91: =MAX((AT90*$N$89-SUM($P$91:AS91)),0)*CF!AT$13 -> 0 | AU91: =MAX((AU90*$N$89-SUM($P$91:AT91)),0)*CF!AU$13 -> 0 | AV91: =MAX((AV90*$N$89-SUM($P$91:AU91)),0)*CF!AV$13 -> 0 | AW91: =MAX((AW90*$N$89-SUM($P$91:AV91)),0)*CF!AW$13 -> 0 | AX91: =MAX((AX90*$N$89-SUM($P$91:AW91)),0)*CF!AX$13 -> 0 | AY91: =MAX((AY90*$N$89-SUM($P$91:AX91)),0)*CF!AY$13 -> 0 | AZ91: =MAX((AZ90*$N$89-SUM($P$91:AY91)),0)*CF!AZ$13 -> 0 | BA91: =MAX((BA90*$N$89-SUM($P$91:AZ91)),0)*CF!BA$13 -> 0 | BB91: =MAX((BB90*$N$89-SUM($P$91:BA91)),0)*CF!BB$13 -> 2,451 | BC91: =MAX((BC90*$N$89-SUM($P$91:BB91)),0)*CF!BC$13 -> 28,389 | BD91: =MAX((BD90*$N$89-SUM($P$91:BC91)),0)*CF!BD$13 -> 31,361 | BE91: =MAX((BE90*$N$89-SUM($P$91:BD91)),0)*CF!BE$13 -> 34,432 | BF91: =MAX((BF90*$N$89-SUM($P$91:BE91)),0)*CF!BF$13 -> 36,082 | BG91: =MAX((BG90*$N$89-SUM($P$91:BF91)),0)*CF!BG$13 -> 37,636 | BH91: =MAX((BH90*$N$89-SUM($P$91:BG91)),0)*CF!BH$13 -> 39,585 | BI91: =MAX((BI90*$N$89-SUM($P$91:BH91)),0)*CF!BI$13 -> 179,390 | BJ91: =MAX((BJ90*$N$89-SUM($P$91:BI91)),0)*CF!BJ$13 -> 57,636
C93: Band 3
C94: Revenue Share % | K94: % | N94: 25.00%
C95: Revenues within Band 3 | K95: $000s | S95: =MAX(MIN(S$66-S74,S75-S74),0) -> 0 | T95: 0 | U95: 0 | V95: 0 | W95: 0 | X95: 0 | Y95: 0 | Z95: 0 | AA95: 0 | AB95: 0 | AC95: 0 | AD95: 0 | AE95: 0 | AF95: 0 | AG95: 0 | AH95: 0 | AI95: 0 | AJ95: 0 | AK95: 0 | AL95: 0 | AM95: 0 | AN95: 0 | AO95: 0 | AP95: =MAX(MIN(AP$66-AP74,AP75-AP74),0) -> 0 | AQ95: 0 | AR95: 0 | AS95: 0 | AT95: 0 | AU95: 0 | AV95: 0 | AW95: 0 | AX95: 0 | AY95: 0 | AZ95: 0 | BA95: 0 | BB95: 0 | BC95: 0 | BD95: 0 | BE95: 0 | BF95: 0 | BG95: 0 | BH95: 0 | BI95: 0 | BJ95: 0
C96: Band 3 Revenue Share | K96: $000s | N96: =SUM(Q96:DP96) -> 0 | S96: =MAX((S95*$N$94-SUM($P$96:R96)),0)*CF!S$13 -> 0 | T96: =MAX((T95*$N$94-SUM($P$96:S96)),0)*CF!T$13 -> 0 | U96: =MAX((U95*$N$94-SUM($P$96:T96)),0)*CF!U$13 -> 0 | V96: =MAX((V95*$N$94-SUM($P$96:U96)),0)*CF!V$13 -> 0 | W96: =MAX((W95*$N$94-SUM($P$96:V96)),0)*CF!W$13 -> 0 | X96: =MAX((X95*$N$94-SUM($P$96:W96)),0)*CF!X$13 -> 0 | Y96: =MAX((Y95*$N$94-SUM($P$96:X96)),0)*CF!Y$13 -> 0 | Z96: =MAX((Z95*$N$94-SUM($P$96:Y96)),0)*CF!Z$13 -> 0 | AA96: =MAX((AA95*$N$94-SUM($P$96:Z96)),0)*CF!AA$13 -> 0 | AB96: =MAX((AB95*$N$94-SUM($P$96:AA96)),0)*CF!AB$13 -> 0 | AC96: =MAX((AC95*$N$94-SUM($P$96:AB96)),0)*CF!AC$13 -> 0 | AD96: =MAX((AD95*$N$94-SUM($P$96:AC96)),0)*CF!AD$13 -> 0 | AE96: =MAX((AE95*$N$94-SUM($P$96:AD96)),0)*CF!AE$13 -> 0 | AF96: =MAX((AF95*$N$94-SUM($P$96:AE96)),0)*CF!AF$13 -> 0 | AG96: =MAX((AG95*$N$94-SUM($P$96:AF96)),0)*CF!AG$13 -> 0 | AH96: =MAX((AH95*$N$94-SUM($P$96:AG96)),0)*CF!AH$13 -> 0 | AI96: =MAX((AI95*$N$94-SUM($P$96:AH96)),0)*CF!AI$13 -> 0 | AJ96: =MAX((AJ95*$N$94-SUM($P$96:AI96)),0)*CF!AJ$13 -> 0 | AK96: =MAX((AK95*$N$94-SUM($P$96:AJ96)),0)*CF!AK$13 -> 0 | AL96: =MAX((AL95*$N$94-SUM($P$96:AK96)),0)*CF!AL$13 -> 0 | AM96: =MAX((AM95*$N$94-SUM($P$96:AL96)),0)*CF!AM$13 -> 0 | AN96: =MAX((AN95*$N$94-SUM($P$96:AM96)),0)*CF!AN$13 -> 0 | AO96: =MAX((AO95*$N$94-SUM($P$96:AN96)),0)*CF!AO$13 -> 0 | AP96: =MAX((AP95*$N$94-SUM($P$96:AO96)),0)*CF!AP$13 -> 0 | AQ96: =MAX((AQ95*$N$94-SUM($P$96:AP96)),0)*CF!AQ$13 -> 0 | AR96: =MAX((AR95*$N$94-SUM($P$96:AQ96)),0)*CF!AR$13 -> 0 | AS96: =MAX((AS95*$N$94-SUM($P$96:AR96)),0)*CF!AS$13 -> 0 | AT96: =MAX((AT95*$N$94-SUM($P$96:AS96)),0)*CF!AT$13 -> 0 | AU96: =MAX((AU95*$N$94-SUM($P$96:AT96)),0)*CF!AU$13 -> 0 | AV96: =MAX((AV95*$N$94-SUM($P$96:AU96)),0)*CF!AV$13 -> 0 | AW96: =MAX((AW95*$N$94-SUM($P$96:AV96)),0)*CF!AW$13 -> 0 | AX96: =MAX((AX95*$N$94-SUM($P$96:AW96)),0)*CF!AX$13 -> 0 | AY96: =MAX((AY95*$N$94-SUM($P$96:AX96)),0)*CF!AY$13 -> 0 | AZ96: =MAX((AZ95*$N$94-SUM($P$96:AY96)),0)*CF!AZ$13 -> 0 | BA96: =MAX((BA95*$N$94-SUM($P$96:AZ96)),0)*CF!BA$13 -> 0 | BB96: =MAX((BB95*$N$94-SUM($P$96:BA96)),0)*CF!BB$13 -> 0 | BC96: =MAX((BC95*$N$94-SUM($P$96:BB96)),0)*CF!BC$13 -> 0 | BD96: =MAX((BD95*$N$94-SUM($P$96:BC96)),0)*CF!BD$13 -> 0 | BE96: =MAX((BE95*$N$94-SUM($P$96:BD96)),0)*CF!BE$13 -> 0 | BF96: =MAX((BF95*$N$94-SUM($P$96:BE96)),0)*CF!BF$13 -> 0 | BG96: =MAX((BG95*$N$94-SUM($P$96:BF96)),0)*CF!BG$13 -> 0 | BH96: =MAX((BH95*$N$94-SUM($P$96:BG96)),0)*CF!BH$13 -> 0 | BI96: =MAX((BI95*$N$94-SUM($P$96:BH96)),0)*CF!BI$13 -> 0 | BJ96: =MAX((BJ95*$N$94-SUM($P$96:BI96)),0)*CF!BJ$13 -> 0
C98: Band 4
C99: Revenue Share % | K99: % | N99: 50.00%
C100: Revenues within Band 4 | K100: $000s | S100: =MAX(MIN(S$66-S77,S78-S77),0) -> 0 | T100: 0 | U100: 0 | V100: 0 | W100: 0 | X100: 0 | Y100: 0 | Z100: 0 | AA100: 0 | AB100: 0 | AC100: 0 | AD100: 0 | AE100: 0 | AF100: 0 | AG100: 0 | AH100: 0 | AI100: 0 | AJ100: 0 | AK100: 0 | AL100: 0 | AM100: 0 | AN100: 0 | AO100: 0 | AP100: =MAX(MIN(AP$66-AP77,AP78-AP77),0) -> 0 | AQ100: 0 | AR100: 0 | AS100: 0 | AT100: 0 | AU100: 0 | AV100: 0 | AW100: 0 | AX100: 0 | AY100: 0 | AZ100: 0 | BA100: 0 | BB100: 0 | BC100: 0 | BD100: 0 | BE100: 0 | BF100: 0 | BG100: 0 | BH100: 0 | BI100: 0 | BJ100: 0
C101: Band 4 Revenue Share | K101: $000s | N101: =SUM(Q101:DP101) -> 0 | S101: =MAX((S100*$N$99-SUM($P$101:R101)),0)*CF!S$13 -> 0 | T101: =MAX((T100*$N$99-SUM($P$101:S101)),0)*CF!T$13 -> 0 | U101: =MAX((U100*$N$99-SUM($P$101:T101)),0)*CF!U$13 -> 0 | V101: =MAX((V100*$N$99-SUM($P$101:U101)),0)*CF!V$13 -> 0 | W101: =MAX((W100*$N$99-SUM($P$101:V101)),0)*CF!W$13 -> 0 | X101: =MAX((X100*$N$99-SUM($P$101:W101)),0)*CF!X$13 -> 0 | Y101: =MAX((Y100*$N$99-SUM($P$101:X101)),0)*CF!Y$13 -> 0 | Z101: =MAX((Z100*$N$99-SUM($P$101:Y101)),0)*CF!Z$13 -> 0 | AA101: =MAX((AA100*$N$99-SUM($P$101:Z101)),0)*CF!AA$13 -> 0 | AB101: =MAX((AB100*$N$99-SUM($P$101:AA101)),0)*CF!AB$13 -> 0 | AC101: =MAX((AC100*$N$99-SUM($P$101:AB101)),0)*CF!AC$13 -> 0 | AD101: =MAX((AD100*$N$99-SUM($P$101:AC101)),0)*CF!AD$13 -> 0 | AE101: =MAX((AE100*$N$99-SUM($P$101:AD101)),0)*CF!AE$13 -> 0 | AF101: =MAX((AF100*$N$99-SUM($P$101:AE101)),0)*CF!AF$13 -> 0 | AG101: =MAX((AG100*$N$99-SUM($P$101:AF101)),0)*CF!AG$13 -> 0 | AH101: =MAX((AH100*$N$99-SUM($P$101:AG101)),0)*CF!AH$13 -> 0 | AI101: =MAX((AI100*$N$99-SUM($P$101:AH101)),0)*CF!AI$13 -> 0 | AJ101: =MAX((AJ100*$N$99-SUM($P$101:AI101)),0)*CF!AJ$13 -> 0 | AK101: =MAX((AK100*$N$99-SUM($P$101:AJ101)),0)*CF!AK$13 -> 0 | AL101: =MAX((AL100*$N$99-SUM($P$101:AK101)),0)*CF!AL$13 -> 0 | AM101: =MAX((AM100*$N$99-SUM($P$101:AL101)),0)*CF!AM$13 -> 0 | AN101: =MAX((AN100*$N$99-SUM($P$101:AM101)),0)*CF!AN$13 -> 0 | AO101: =MAX((AO100*$N$99-SUM($P$101:AN101)),0)*CF!AO$13 -> 0 | AP101: =MAX((AP100*$N$99-SUM($P$101:AO101)),0)*CF!AP$13 -> 0 | AQ101: =MAX((AQ100*$N$99-SUM($P$101:AP101)),0)*CF!AQ$13 -> 0 | AR101: =MAX((AR100*$N$99-SUM($P$101:AQ101)),0)*CF!AR$13 -> 0 | AS101: =MAX((AS100*$N$99-SUM($P$101:AR101)),0)*CF!AS$13 -> 0 | AT101: =MAX((AT100*$N$99-SUM($P$101:AS101)),0)*CF!AT$13 -> 0 | AU101: =MAX((AU100*$N$99-SUM($P$101:AT101)),0)*CF!AU$13 -> 0 | AV101: =MAX((AV100*$N$99-SUM($P$101:AU101)),0)*CF!AV$13 -> 0 | AW101: =MAX((AW100*$N$99-SUM($P$101:AV101)),0)*CF!AW$13 -> 0 | AX101: =MAX((AX100*$N$99-SUM($P$101:AW101)),0)*CF!AX$13 -> 0 | AY101: =MAX((AY100*$N$99-SUM($P$101:AX101)),0)*CF!AY$13 -> 0 | AZ101: =MAX((AZ100*$N$99-SUM($P$101:AY101)),0)*CF!AZ$13 -> 0 | BA101: =MAX((BA100*$N$99-SUM($P$101:AZ101)),0)*CF!BA$13 -> 0 | BB101: =MAX((BB100*$N$99-SUM($P$101:BA101)),0)*CF!BB$13 -> 0 | BC101: =MAX((BC100*$N$99-SUM($P$101:BB101)),0)*CF!BC$13 -> 0 | BD101: =MAX((BD100*$N$99-SUM($P$101:BC101)),0)*CF!BD$13 -> 0 | BE101: =MAX((BE100*$N$99-SUM($P$101:BD101)),0)*CF!BE$13 -> 0 | BF101: =MAX((BF100*$N$99-SUM($P$101:BE101)),0)*CF!BF$13 -> 0 | BG101: =MAX((BG100*$N$99-SUM($P$101:BF101)),0)*CF!BG$13 -> 0 | BH101: =MAX((BH100*$N$99-SUM($P$101:BG101)),0)*CF!BH$13 -> 0 | BI101: =MAX((BI100*$N$99-SUM($P$101:BH101)),0)*CF!BI$13 -> 0 | BJ101: =MAX((BJ100*$N$99-SUM($P$101:BI101)),0)*CF!BJ$13 -> 0
C103: Band 5
C104: Revenue Share % | K104: % | N104: 75.00%
C105: Revenues within Band 4 | K105: $000s | S105: =(MAX(S$66-S$80,0))*CF!S$13 -> 0 | T105: =(MAX(T$66-T$80,0))*CF!T$13 -> 0 | U105: =(MAX(U$66-U$80,0))*CF!U$13 -> 0 | V105: =(MAX(V$66-V$80,0))*CF!V$13 -> 0 | W105: =(MAX(W$66-W$80,0))*CF!W$13 -> 0 | X105: =(MAX(X$66-X$80,0))*CF!X$13 -> 0 | Y105: =(MAX(Y$66-Y$80,0))*CF!Y$13 -> 0 | Z105: =(MAX(Z$66-Z$80,0))*CF!Z$13 -> 0 | AA105: =(MAX(AA$66-AA$80,0))*CF!AA$13 -> 0 | AB105: =(MAX(AB$66-AB$80,0))*CF!AB$13 -> 0 | AC105: =(MAX(AC$66-AC$80,0))*CF!AC$13 -> 0 | AD105: =(MAX(AD$66-AD$80,0))*CF!AD$13 -> 0 | AE105: =(MAX(AE$66-AE$80,0))*CF!AE$13 -> 0 | AF105: =(MAX(AF$66-AF$80,0))*CF!AF$13 -> 0 | AG105: =(MAX(AG$66-AG$80,0))*CF!AG$13 -> 0 | AH105: =(MAX(AH$66-AH$80,0))*CF!AH$13 -> 0 | AI105: =(MAX(AI$66-AI$80,0))*CF!AI$13 -> 0 | AJ105: =(MAX(AJ$66-AJ$80,0))*CF!AJ$13 -> 0 | AK105: =(MAX(AK$66-AK$80,0))*CF!AK$13 -> 0 | AL105: =(MAX(AL$66-AL$80,0))*CF!AL$13 -> 0 | AM105: =(MAX(AM$66-AM$80,0))*CF!AM$13 -> 0 | AN105: =(MAX(AN$66-AN$80,0))*CF!AN$13 -> 0 | AO105: =(MAX(AO$66-AO$80,0))*CF!AO$13 -> 0 | AP105: =(MAX(AP$66-AP$80,0))*CF!AP$13 -> 0 | AQ105: =(MAX(AQ$66-AQ$80,0))*CF!AQ$13 -> 0 | AR105: =(MAX(AR$66-AR$80,0))*CF!AR$13 -> 0 | AS105: =(MAX(AS$66-AS$80,0))*CF!AS$13 -> 0 | AT105: =(MAX(AT$66-AT$80,0))*CF!AT$13 -> 0 | AU105: =(MAX(AU$66-AU$80,0))*CF!AU$13 -> 0 | AV105: =(MAX(AV$66-AV$80,0))*CF!AV$13 -> 0 | AW105: =(MAX(AW$66-AW$80,0))*CF!AW$13 -> 0 | AX105: =(MAX(AX$66-AX$80,0))*CF!AX$13 -> 0 | AY105: =(MAX(AY$66-AY$80,0))*CF!AY$13 -> 0 | AZ105: =(MAX(AZ$66-AZ$80,0))*CF!AZ$13 -> 0 | BA105: =(MAX(BA$66-BA$80,0))*CF!BA$13 -> 0 | BB105: =(MAX(BB$66-BB$80,0))*CF!BB$13 -> 0 | BC105: =(MAX(BC$66-BC$80,0))*CF!BC$13 -> 0 | BD105: =(MAX(BD$66-BD$80,0))*CF!BD$13 -> 0 | BE105: =(MAX(BE$66-BE$80,0))*CF!BE$13 -> 0 | BF105: =(MAX(BF$66-BF$80,0))*CF!BF$13 -> 0 | BG105: =(MAX(BG$66-BG$80,0))*CF!BG$13 -> 0 | BH105: =(MAX(BH$66-BH$80,0))*CF!BH$13 -> 0 | BI105: =(MAX(BI$66-BI$80,0))*CF!BI$13 -> 0 | BJ105: =(MAX(BJ$66-BJ$80,0))*CF!BJ$13 -> 0
C106: Band 4 Revenue Share | K106: $000s | N106: =SUM(Q106:DP106) -> 0 | S106: =MAX((S105*$N$104-SUM($P$106:R106)),0)*CF!S$13 -> 0 | T106: =MAX((T105*$N$104-SUM($P$106:S106)),0)*CF!T$13 -> 0 | U106: =MAX((U105*$N$104-SUM($P$106:T106)),0)*CF!U$13 -> 0 | V106: =MAX((V105*$N$104-SUM($P$106:U106)),0)*CF!V$13 -> 0 | W106: =MAX((W105*$N$104-SUM($P$106:V106)),0)*CF!W$13 -> 0 | X106: =MAX((X105*$N$104-SUM($P$106:W106)),0)*CF!X$13 -> 0 | Y106: =MAX((Y105*$N$104-SUM($P$106:X106)),0)*CF!Y$13 -> 0 | Z106: =MAX((Z105*$N$104-SUM($P$106:Y106)),0)*CF!Z$13 -> 0 | AA106: =MAX((AA105*$N$104-SUM($P$106:Z106)),0)*CF!AA$13 -> 0 | AB106: =MAX((AB105*$N$104-SUM($P$106:AA106)),0)*CF!AB$13 -> 0 | AC106: =MAX((AC105*$N$104-SUM($P$106:AB106)),0)*CF!AC$13 -> 0 | AD106: =MAX((AD105*$N$104-SUM($P$106:AC106)),0)*CF!AD$13 -> 0 | AE106: =MAX((AE105*$N$104-SUM($P$106:AD106)),0)*CF!AE$13 -> 0 | AF106: =MAX((AF105*$N$104-SUM($P$106:AE106)),0)*CF!AF$13 -> 0 | AG106: =MAX((AG105*$N$104-SUM($P$106:AF106)),0)*CF!AG$13 -> 0 | AH106: =MAX((AH105*$N$104-SUM($P$106:AG106)),0)*CF!AH$13 -> 0 | AI106: =MAX((AI105*$N$104-SUM($P$106:AH106)),0)*CF!AI$13 -> 0 | AJ106: =MAX((AJ105*$N$104-SUM($P$106:AI106)),0)*CF!AJ$13 -> 0 | AK106: =MAX((AK105*$N$104-SUM($P$106:AJ106)),0)*CF!AK$13 -> 0 | AL106: =MAX((AL105*$N$104-SUM($P$106:AK106)),0)*CF!AL$13 -> 0 | AM106: =MAX((AM105*$N$104-SUM($P$106:AL106)),0)*CF!AM$13 -> 0 | AN106: =MAX((AN105*$N$104-SUM($P$106:AM106)),0)*CF!AN$13 -> 0 | AO106: =MAX((AO105*$N$104-SUM($P$106:AN106)),0)*CF!AO$13 -> 0 | AP106: =MAX((AP105*$N$104-SUM($P$106:AO106)),0)*CF!AP$13 -> 0 | AQ106: =MAX((AQ105*$N$104-SUM($P$106:AP106)),0)*CF!AQ$13 -> 0 | AR106: =MAX((AR105*$N$104-SUM($P$106:AQ106)),0)*CF!AR$13 -> 0 | AS106: =MAX((AS105*$N$104-SUM($P$106:AR106)),0)*CF!AS$13 -> 0 | AT106: =MAX((AT105*$N$104-SUM($P$106:AS106)),0)*CF!AT$13 -> 0 | AU106: =MAX((AU105*$N$104-SUM($P$106:AT106)),0)*CF!AU$13 -> 0 | AV106: =MAX((AV105*$N$104-SUM($P$106:AU106)),0)*CF!AV$13 -> 0 | AW106: =MAX((AW105*$N$104-SUM($P$106:AV106)),0)*CF!AW$13 -> 0 | AX106: =MAX((AX105*$N$104-SUM($P$106:AW106)),0)*CF!AX$13 -> 0 | AY106: =MAX((AY105*$N$104-SUM($P$106:AX106)),0)*CF!AY$13 -> 0 | AZ106: =MAX((AZ105*$N$104-SUM($P$106:AY106)),0)*CF!AZ$13 -> 0 | BA106: =MAX((BA105*$N$104-SUM($P$106:AZ106)),0)*CF!BA$13 -> 0 | BB106: =MAX((BB105*$N$104-SUM($P$106:BA106)),0)*CF!BB$13 -> 0 | BC106: =MAX((BC105*$N$104-SUM($P$106:BB106)),0)*CF!BC$13 -> 0 | BD106: =MAX((BD105*$N$104-SUM($P$106:BC106)),0)*CF!BD$13 -> 0 | BE106: =MAX((BE105*$N$104-SUM($P$106:BD106)),0)*CF!BE$13 -> 0 | BF106: =MAX((BF105*$N$104-SUM($P$106:BE106)),0)*CF!BF$13 -> 0 | BG106: =MAX((BG105*$N$104-SUM($P$106:BF106)),0)*CF!BG$13 -> 0 | BH106: =MAX((BH105*$N$104-SUM($P$106:BG106)),0)*CF!BH$13 -> 0 | BI106: =MAX((BI105*$N$104-SUM($P$106:BH106)),0)*CF!BI$13 -> 0 | BJ106: =MAX((BJ105*$N$104-SUM($P$106:BI106)),0)*CF!BJ$13 -> 0
C109: Total Revenue Payment | K109: $000s | N109: =SUM(Q109:BJ109) -> 446,962 | S109: =S106+S101+S96+S91+S86 -> 0 | T109: 0 | U109: 0 | V109: 0 | W109: 0 | X109: 0 | Y109: 0 | Z109: 0 | AA109: 0 | AB109: 0 | AC109: 0 | AD109: 0 | AE109: 0 | AF109: 0 | AG109: 0 | AH109: 0 | AI109: 0 | AJ109: 0 | AK109: 0 | AL109: 0 | AM109: 0 | AN109: 0 | AO109: 0 | AP109: =AP106+AP101+AP96+AP91+AP86 -> 0 | AQ109: 0 | AR109: 0 | AS109: 0 | AT109: 0 | AU109: 0 | AV109: 0 | AW109: 0 | AX109: 0 | AY109: 0 | AZ109: 0 | BA109: 0 | BB109: 2,451 | BC109: 28,389 | BD109: 31,361 | BE109: 34,432 | BF109: 36,082 | BG109: 37,636 | BH109: 39,585 | BI109: 179,390 | BJ109: 57,636
C110: Revenue Payments TxDOT | K110: $000s | N110: =SUM(Q110:BJ110) -> (446,962) | S110: =-S109 -> 0 | T110: 0 | U110: 0 | V110: 0 | W110: 0 | X110: 0 | Y110: 0 | Z110: 0 | AA110: 0 | AB110: 0 | AC110: 0 | AD110: 0 | AE110: 0 | AF110: 0 | AG110: 0 | AH110: 0 | AI110: 0 | AJ110: 0 | AK110: 0 | AL110: 0 | AM110: 0 | AN110: 0 | AO110: 0 | AP110: 0 | AQ110: 0 | AR110: 0 | AS110: 0 | AT110: 0 | AU110: 0 | AV110: 0 | AW110: 0 | AX110: 0 | AY110: 0 | AZ110: 0 | BA110: 0 | BB110: (2,451) | BC110: (28,389) | BD110: (31,361) | BE110: (34,432) | BF110: (36,082) | BG110: (37,636) | BH110: (39,585) | BI110: (179,390) | BJ110: (57,636)

Sheet Fin
C2: Project: | F2: =+Inputs!$G$2 -> NTE Express
C3: Worksheet: | F3: Fin
C4: Model Integrity : | F4: =+Inputs!G4 -> 0
C7: Year | Q7: =+Oper!Q7 -> 2016 | R7: =+Oper!R7 -> 2017 | S7: =+Oper!S7 -> 2018 | T7: =+Oper!T7 -> 2019 | U7: =+Oper!U7 -> 2020 | V7: =+Oper!V7 -> 2021 | W7: =+Oper!W7 -> 2022 | X7: =+Oper!X7 -> 2023 | Y7: =+Oper!Y7 -> 2024 | Z7: =+Oper!Z7 -> 2025 | AA7: =+Oper!AA7 -> 2026 | AB7: =+Oper!AB7 -> 2027 | AC7: =+Oper!AC7 -> 2028 | AD7: =+Oper!AD7 -> 2029 | AE7: =+Oper!AE7 -> 2030 | AF7: =+Oper!AF7 -> 2031 | AG7: =+Oper!AG7 -> 2032 | AH7: =+Oper!AH7 -> 2033 | AI7: =+Oper!AI7 -> 2034 | AJ7: =+Oper!AJ7 -> 2035 | AK7: =+Oper!AK7 -> 2036 | AL7: =+Oper!AL7 -> 2037 | AM7: =+Oper!AM7 -> 2038 | AN7: =+Oper!AN7 -> 2039 | AO7: =+Oper!AO7 -> 2040 | AP7: =+Oper!AP7 -> 2041 | AQ7: =+Oper!AQ7 -> 2042 | AR7: =+Oper!AR7 -> 2043 | AS7: =+Oper!AS7 -> 2044 | AT7: =+Oper!AT7 -> 2045 | AU7: =+Oper!AU7 -> 2046 | AV7: =+Oper!AV7 -> 2047 | AW7: =+Oper!AW7 -> 2048 | AX7: =+Oper!AX7 -> 2049 | AY7: =+Oper!AY7 -> 2050 | AZ7: =+Oper!AZ7 -> 2051 | BA7: =+Oper!BA7 -> 2052 | BB7: =+Oper!BB7 -> 2053 | BC7: =+Oper!BC7 -> 2054 | BD7: =+Oper!BD7 -> 2055 | BE7: =+Oper!BE7 -> 2056 | BF7: =+Oper!BF7 -> 2057 | BG7: =+Oper!BG7 -> 2058 | BH7: =+Oper!BH7 -> 2059 | BI7: =+Oper!BI7 -> 2060 | BJ7: =+Oper!BJ7 -> 2061
C8: Period start date | Q8: =+Oper!Q8 -> 2016-01-01 | R8: =+Oper!R8 -> 2017-01-01 | S8: =+Oper!S8 -> 2018-01-01 | T8: =+Oper!T8 -> 2019-01-01 | U8: =+Oper!U8 -> 2020-01-01 | V8: =+Oper!V8 -> 2021-01-01 | W8: =+Oper!W8 -> 2022-01-01 | X8: =+Oper!X8 -> 2023-01-01 | Y8: =+Oper!Y8 -> 2024-01-01 | Z8: =+Oper!Z8 -> 2025-01-01 | AA8: =+Oper!AA8 -> 2026-01-01 | AB8: =+Oper!AB8 -> 2027-01-01 | AC8: =+Oper!AC8 -> 2028-01-01 | AD8: =+Oper!AD8 -> 2029-01-01 | AE8: =+Oper!AE8 -> 2030-01-01 | AF8: =+Oper!AF8 -> 2031-01-01 | AG8: =+Oper!AG8 -> 2032-01-01 | AH8: =+Oper!AH8 -> 2033-01-01 | AI8: =+Oper!AI8 -> 2034-01-01 | AJ8: =+Oper!AJ8 -> 2035-01-01 | AK8: =+Oper!AK8 -> 2036-01-01 | AL8: =+Oper!AL8 -> 2037-01-01 | AM8: =+Oper!AM8 -> 2038-01-01 | AN8: =+Oper!AN8 -> 2039-01-01 | AO8: =+Oper!AO8 -> 2040-01-01 | AP8: =+Oper!AP8 -> 2041-01-01 | AQ8: =+Oper!AQ8 -> 2042-01-01 | AR8: =+Oper!AR8 -> 2043-01-01 | AS8: =+Oper!AS8 -> 2044-01-01 | AT8: =+Oper!AT8 -> 2045-01-01 | AU8: =+Oper!AU8 -> 2046-01-01 | AV8: =+Oper!AV8 -> 2047-01-01 | AW8: =+Oper!AW8 -> 2048-01-01 | AX8: =+Oper!AX8 -> 2049-01-01 | AY8: =+Oper!AY8 -> 2050-01-01 | AZ8: =+Oper!AZ8 -> 2051-01-01 | BA8: =+Oper!BA8 -> 2052-01-01 | BB8: =+Oper!BB8 -> 2053-01-01 | BC8: =+Oper!BC8 -> 2054-01-01 | BD8: =+Oper!BD8 -> 2055-01-01 | BE8: =+Oper!BE8 -> 2056-01-01 | BF8: =+Oper!BF8 -> 2057-01-01 | BG8: =+Oper!BG8 -> 2058-01-01 | BH8: =+Oper!BH8 -> 2059-01-01 | BI8: =+Oper!BI8 -> 2060-01-01 | BJ8: =+Oper!BJ8 -> 2061-01-01
C9: Period end date | Q9: =+Oper!Q9 -> 2016-12-31 | R9: =+Oper!R9 -> 2017-12-31 | S9: =+Oper!S9 -> 2018-12-31 | T9: =+Oper!T9 -> 2019-12-31 | U9: =+Oper!U9 -> 2020-12-31 | V9: =+Oper!V9 -> 2021-12-31 | W9: =+Oper!W9 -> 2022-12-31 | X9: =+Oper!X9 -> 2023-12-31 | Y9: =+Oper!Y9 -> 2024-12-31 | Z9: =+Oper!Z9 -> 2025-12-31 | AA9: =+Oper!AA9 -> 2026-12-31 | AB9: =+Oper!AB9 -> 2027-12-31 | AC9: =+Oper!AC9 -> 2028-12-31 | AD9: =+Oper!AD9 -> 2029-12-31 | AE9: =+Oper!AE9 -> 2030-12-31 | AF9: =+Oper!AF9 -> 2031-12-31 | AG9: =+Oper!AG9 -> 2032-12-31 | AH9: =+Oper!AH9 -> 2033-12-31 | AI9: =+Oper!AI9 -> 2034-12-31 | AJ9: =+Oper!AJ9 -> 2035-12-31 | AK9: =+Oper!AK9 -> 2036-12-31 | AL9: =+Oper!AL9 -> 2037-12-31 | AM9: =+Oper!AM9 -> 2038-12-31 | AN9: =+Oper!AN9 -> 2039-12-31 | AO9: =+Oper!AO9 -> 2040-12-31 | AP9: =+Oper!AP9 -> 2041-12-31 | AQ9: =+Oper!AQ9 -> 2042-12-31 | AR9: =+Oper!AR9 -> 2043-12-31 | AS9: =+Oper!AS9 -> 2044-12-31 | AT9: =+Oper!AT9 -> 2045-12-31 | AU9: =+Oper!AU9 -> 2046-12-31 | AV9: =+Oper!AV9 -> 2047-12-31 | AW9: =+Oper!AW9 -> 2048-12-31 | AX9: =+Oper!AX9 -> 2049-12-31 | AY9: =+Oper!AY9 -> 2050-12-31 | AZ9: =+Oper!AZ9 -> 2051-12-31 | BA9: =+Oper!BA9 -> 2052-12-31 | BB9: =+Oper!BB9 -> 2053-12-31 | BC9: =+Oper!BC9 -> 2054-12-31 | BD9: =+Oper!BD9 -> 2055-12-31 | BE9: =+Oper!BE9 -> 2056-12-31 | BF9: =+Oper!BF9 -> 2057-12-31 | BG9: =+Oper!BG9 -> 2058-12-31 | BH9: =+Oper!BH9 -> 2059-12-31 | BI9: =+Oper!BI9 -> 2060-12-31 | BJ9: =+Oper!BJ9 -> 2061-12-31
K10: Unit | L10: Value | N10: Sum
C12: Operation Flag | K12: Flag | Q12: =+CF!Q13 -> 1 | R12: =+CF!R13 -> 1 | S12: =+CF!S13 -> 1 | T12: =+CF!T13 -> 1 | U12: =+CF!U13 -> 1 | V12: =+CF!V13 -> 1 | W12: =+CF!W13 -> 1 | X12: =+CF!X13 -> 1 | Y12: =+CF!Y13 -> 1 | Z12: =+CF!Z13 -> 1 | AA12: =+CF!AA13 -> 1 | AB12: =+CF!AB13 -> 1 | AC12: =+CF!AC13 -> 1 | AD12: =+CF!AD13 -> 1 | AE12: =+CF!AE13 -> 1 | AF12: =+CF!AF13 -> 1 | AG12: =+CF!AG13 -> 1 | AH12: =+CF!AH13 -> 1 | AI12: =+CF!AI13 -> 1 | AJ12: =+CF!AJ13 -> 1 | AK12: =+CF!AK13 -> 1 | AL12: =+CF!AL13 -> 1 | AM12: =+CF!AM13 -> 1 | AN12: =+CF!AN13 -> 1 | AO12: =+CF!AO13 -> 1 | AP12: =+CF!AP13 -> 1 | AQ12: =+CF!AQ13 -> 1 | AR12: =+CF!AR13 -> 1 | AS12: =+CF!AS13 -> 1 | AT12: =+CF!AT13 -> 1 | AU12: =+CF!AU13 -> 1 | AV12: =+CF!AV13 -> 1 | AW12: =+CF!AW13 -> 1 | AX12: =+CF!AX13 -> 1 | AY12: =+CF!AY13 -> 1 | AZ12: =+CF!AZ13 -> 1 | BA12: =+CF!BA13 -> 1 | BB12: =+CF!BB13 -> 1 | BC12: =+CF!BC13 -> 1 | BD12: =+CF!BD13 -> 1 | BE12: =+CF!BE13 -> 1 | BF12: =+CF!BF13 -> 1 | BG12: =+CF!BG13 -> 1 | BH12: =+CF!BH13 -> 1 | BI12: =+CF!BI13 -> 1 | BJ12: =+CF!BJ13 -> 1
C13: Concession flag | K13: Flag | Q13: =+CF!Q12 -> 1 | R13: =+CF!R12 -> 1 | S13: =+CF!S12 -> 1 | T13: =+CF!T12 -> 1 | U13: =+CF!U12 -> 1 | V13: =+CF!V12 -> 1 | W13: =+CF!W12 -> 1 | X13: =+CF!X12 -> 1 | Y13: =+CF!Y12 -> 1 | Z13: =+CF!Z12 -> 1 | AA13: =+CF!AA12 -> 1 | AB13: =+CF!AB12 -> 1 | AC13: =+CF!AC12 -> 1 | AD13: =+CF!AD12 -> 1 | AE13: =+CF!AE12 -> 1 | AF13: =+CF!AF12 -> 1 | AG13: =+CF!AG12 -> 1 | AH13: =+CF!AH12 -> 1 | AI13: =+CF!AI12 -> 1 | AJ13: =+CF!AJ12 -> 1 | AK13: =+CF!AK12 -> 1 | AL13: =+CF!AL12 -> 1 | AM13: =+CF!AM12 -> 1 | AN13: =+CF!AN12 -> 1 | AO13: =+CF!AO12 -> 1 | AP13: =+CF!AP12 -> 1 | AQ13: =+CF!AQ12 -> 1 | AR13: =+CF!AR12 -> 1 | AS13: =+CF!AS12 -> 1 | AT13: =+CF!AT12 -> 1 | AU13: =+CF!AU12 -> 1 | AV13: =+CF!AV12 -> 1 | AW13: =+CF!AW12 -> 1 | AX13: =+CF!AX12 -> 1 | AY13: =+CF!AY12 -> 1 | AZ13: =+CF!AZ12 -> 1 | BA13: =+CF!BA12 -> 1 | BB13: =+CF!BB12 -> 1 | BC13: =+CF!BC12 -> 1 | BD13: =+CF!BD12 -> 1 | BE13: =+CF!BE12 -> 1 | BF13: =+CF!BF12 -> 1 | BG13: =+CF!BG12 -> 1 | BH13: =+CF!BH12 -> 1 | BI13: =+CF!BI12 -> 1 | BJ13: =+CF!BJ12 -> 1
C14: Periods Remainig | K14: Number | Q14: 46 | R14: =+(Q14 - 1) * R13 -> 45 | S14: 44 | T14: 43 | U14: 42 | V14: 41 | W14: 40 | X14: 39 | Y14: 38 | Z14: 37 | AA14: 36 | AB14: 35 | AC14: 34 | AD14: 33 | AE14: 32 | AF14: 31 | AG14: 30 | AH14: 29 | AI14: 28 | AJ14: 27 | AK14: 26 | AL14: 25 | AM14: 24 | AN14: 23 | AO14: 22 | AP14: 21 | AQ14: 20 | AR14: 19 | AS14: 18 | AT14: 17 | AU14: 16 | AV14: 15 | AW14: 14 | AX14: =+(AW14 - 1) * AX13 -> 13 | AY14: 12 | AZ14: 11 | BA14: 10 | BB14: 9 | BC14: 8 | BD14: 7 | BE14: 6 | BF14: 5 | BG14: 4 | BH14: 3 | BI14: 2 | BJ14: 1
C15: Days in Year Assumption | K15: Number | Q15: =+CF!Q15 -> 366 | R15: =+CF!R15 -> 365 | S15: =+CF!S15 -> 365 | T15: =+CF!T15 -> 365 | U15: =+CF!U15 -> 366 | V15: =+CF!V15 -> 365 | W15: =+CF!W15 -> 365 | X15: =+CF!X15 -> 365 | Y15: =+CF!Y15 -> 366 | Z15: =+CF!Z15 -> 365 | AA15: =+CF!AA15 -> 365 | AB15: =+CF!AB15 -> 365 | AC15: =+CF!AC15 -> 366 | AD15: =+CF!AD15 -> 365 | AE15: =+CF!AE15 -> 365 | AF15: =+CF!AF15 -> 365 | AG15: =+CF!AG15 -> 366 | AH15: =+CF!AH15 -> 365 | AI15: =+CF!AI15 -> 365 | AJ15: =+CF!AJ15 -> 365 | AK15: =+CF!AK15 -> 366 | AL15: =+CF!AL15 -> 365 | AM15: =+CF!AM15 -> 365 | AN15: =+CF!AN15 -> 365 | AO15: =+CF!AO15 -> 366 | AP15: =+CF!AP15 -> 365 | AQ15: =+CF!AQ15 -> 365 | AR15: =+CF!AR15 -> 365 | AS15: =+CF!AS15 -> 366 | AT15: =+CF!AT15 -> 365 | AU15: =+CF!AU15 -> 365 | AV15: =+CF!AV15 -> 365 | AW15: =+CF!AW15 -> 366 | AX15: =+CF!AX15 -> 365 | AY15: =+CF!AY15 -> 365 | AZ15: =+CF!AZ15 -> 365 | BA15: =+CF!BA15 -> 366 | BB15: =+CF!BB15 -> 365 | BC15: =+CF!BC15 -> 365 | BD15: =+CF!BD15 -> 365 | BE15: =+CF!BE15 -> 366 | BF15: =+CF!BF15 -> 365 | BG15: =+CF!BG15 -> 365 | BH15: =+CF!BH15 -> 365 | BI15: =+CF!BI15 -> 366 | BJ15: =+CF!BJ15 -> 365
B17: Debt Summary
B19: PABs
C20: Opening balances | K20: $000s | R20: =+Q25 -> 0 | S20: =+R25 -> 400,000 | T20: =+S25 -> 400,000 | U20: =+T25 -> 0 | V20: =+U25 -> 0 | W20: =+V25 -> 0 | X20: =+W25 -> 0 | Y20: =+X25 -> 0 | Z20: =+Y25 -> 0 | AA20: =+Z25 -> 0 | AB20: =+AA25 -> 0 | AC20: =+AB25 -> 0 | AD20: =+AC25 -> 0 | AE20: =+AD25 -> 0 | AF20: =+AE25 -> 0 | AG20: =+AF25 -> 0 | AH20: =+AG25 -> 0 | AI20: =+AH25 -> 0 | AJ20: =+AI25 -> 0 | AK20: =+AJ25 -> 0 | AL20: =+AK25 -> 0 | AM20: =+AL25 -> 0 | AN20: =+AM25 -> 0 | AO20: =+AN25 -> 0 | AP20: =+AO25 -> 0 | AQ20: =+AP25 -> 0 | AR20: =+AQ25 -> 0 | AS20: =+AR25 -> 0 | AT20: =+AS25 -> 0 | AU20: =+AT25 -> 0 | AV20: =+AU25 -> 0 | AW20: =+AV25 -> 0 | AX20: =+AW25 -> 0 | AY20: =+AX25 -> 0 | AZ20: =+AY25 -> 0 | BA20: =+AZ25 -> 0 | BB20: =+BA25 -> 0 | BC20: =+BB25 -> 0 | BD20: =+BC25 -> 0 | BE20: =+BD25 -> 0 | BF20: =+BE25 -> 0 | BG20: =+BF25 -> 0 | BH20: =+BG25 -> 0 | BI20: =+BH25 -> 0 | BJ20: =+BI25 -> 0
C21: Draws | K21: $000s | N21: =+R25 -> 400,000 | R21: =+R89 -> 0 | S21: 0 | T21: 0 | U21: 0 | V21: 0 | W21: =+W89 -> 0 | X21: 0 | Y21: 0 | Z21: 0 | AA21: 0 | AB21: 0 | AC21: 0 | AD21: 0 | AE21: 0 | AF21: 0 | AG21: 0 | AH21: 0 | AI21: 0 | AJ21: 0 | AK21: 0 | AL21: 0 | AM21: 0 | AN21: 0 | AO21: 0 | AP21: 0 | AQ21: 0 | AR21: 0 | AS21: 0 | AT21: 0 | AU21: 0 | AV21: 0 | AW21: 0 | AX21: 0 | AY21: 0 | AZ21: 0 | BA21: 0 | BB21: 0 | BC21: 0 | BD21: 0 | BE21: 0 | BF21: 0 | BG21: 0 | BH21: 0 | BI21: 0 | BJ21: 0
C22: Interest due | K22: $000s | N22: =SUM(Q22:BJ22) -> 83,621 | R22: =+R90 -> 27,874 | S22: =+S90 -> 27,874 | T22: 27,874 | U22: 0 | V22: 0 | W22: 0 | X22: 0 | Y22: 0 | Z22: 0 | AA22: 0 | AB22: 0 | AC22: 0 | AD22: 0 | AE22: 0 | AF22: 0 | AG22: 0 | AH22: 0 | AI22: 0 | AJ22: 0 | AK22: 0 | AL22: 0 | AM22: 0 | AN22: 0 | AO22: 0 | AP22: 0 | AQ22: 0 | AR22: 0 | AS22: 0 | AT22: 0 | AU22: 0 | AV22: 0 | AW22: 0 | AX22: 0 | AY22: 0 | AZ22: 0 | BA22: 0 | BB22: 0 | BC22: 0 | BD22: 0 | BE22: 0 | BF22: 0 | BG22: 0 | BH22: 0 | BI22: 0 | BJ22: 0
C23: Interest paid | K23: $000s | N23: =SUM(Q23:BJ23) -> (83,621) | R23: =+R91 -> (27,874) | S23: (27,874) | T23: (27,874) | U23: 0 | V23: 0 | W23: 0 | X23: 0 | Y23: 0 | Z23: 0 | AA23: 0 | AB23: 0 | AC23: 0 | AD23: 0 | AE23: 0 | AF23: 0 | AG23: 0 | AH23: 0 | AI23: 0 | AJ23: 0 | AK23: 0 | AL23: 0 | AM23: 0 | AN23: 0 | AO23: 0 | AP23: 0 | AQ23: 0 | AR23: 0 | AS23: 0 | AT23: 0 | AU23: 0 | AV23: 0 | AW23: 0 | AX23: 0 | AY23: 0 | AZ23: 0 | BA23: 0 | BB23: 0 | BC23: 0 | BD23: 0 | BE23: 0 | BF23: 0 | BG23: 0 | BH23: 0 | BI23: 0 | BJ23: 0
C24: Refinanced | K24: $000s | N24: =SUM(Q24:BJ24) -> (400,000) | R24: 0 | S24: 0 | T24: (400,000) | U24: 0 | V24: 0 | W24: 0 | X24: 0 | Y24: 0 | Z24: 0 | AA24: 0 | AB24: 0 | AC24: 0 | AD24: 0 | AE24: 0 | AF24: 0 | AG24: 0 | AH24: 0 | AI24: 0 | AJ24: 0 | AK24: 0 | AL24: 0 | AM24: 0 | AN24: 0 | AO24: 0 | AP24: 0 | AQ24: 0 | AR24: 0 | AS24: 0 | AT24: 0 | AU24: 0 | AV24: 0 | AW24: 0 | AX24: 0 | AY24: 0 | AZ24: 0 | BA24: 0 | BB24: 0 | BC24: 0 | BD24: 0 | BE24: 0 | BF24: 0 | BG24: 0 | BH24: 0 | BI24: 0 | BJ24: 0
C25: Closing balances | K25: $000s | R25: =+Inputs!$L$216 -> 400,000 | S25: =SUM(S20:S24) -> 400,000 | T25: 0 | U25: =SUM(U20:U24) -> 0 | V25: =SUM(V20:V24) -> 0 | W25: 0 | X25: 0 | Y25: 0 | Z25: 0 | AA25: 0 | AB25: 0 | AC25: 0 | AD25: 0 | AE25: 0 | AF25: 0 | AG25: 0 | AH25: 0 | AI25: 0 | AJ25: 0 | AK25: 0 | AL25: 0 | AM25: 0 | AN25: 0 | AO25: 0 | AP25: 0 | AQ25: 0 | AR25: 0 | AS25: 0 | AT25: 0 | AU25: 0 | AV25: 0 | AW25: 0 | AX25: 0 | AY25: 0 | AZ25: 0 | BA25: 0 | BB25: 0 | BC25: 0 | BD25: 0 | BE25: 0 | BF25: 0 | BG25: 0 | BH25: 0 | BI25: 0 | BJ25: 0
N26: =IF(ROUND(SUM(N21:N24),1)<>0,1,0) -> 0
B27: CAPEX Facility
C28: Opening balances | K28: $000s | R28: =+Q33 -> 0 | S28: =+R33 -> 0 | T28: =+S33 -> 0 | U28: =+T33 -> 0 | V28: =+U33 -> 3,321 | W28: =+V33 -> 8,177 | X28: =+W33 -> 13,412 | Y28: =+X33 -> 19,055 | Z28: =+Y33 -> 25,139 | AA28: =+Z33 -> 31,699 | AB28: =+AA33 -> 38,770 | AC28: =+AB33 -> 45,883 | AD28: =+AC33 -> 53,037 | AE28: =+AD33 -> 0 | AF28: =+AE33 -> 7,237 | AG28: =+AF33 -> 14,516 | AH28: =+AG33 -> 22,341 | AI28: =+AH33 -> 30,753 | AJ28: =+AI33 -> 39,796 | AK28: =+AJ33 -> 49,518 | AL28: =+AK33 -> 59,968 | AM28: =+AL33 -> 71,371 | AN28: =+AM33 -> 83,813 | AO28: =+AN33 -> 0 | AP28: =+AO33 -> 14,813 | AQ28: =+AP33 -> 30,977 | AR28: =+AQ33 -> 45,741 | AS28: =+AR33 -> 59,227 | AT28: =+AS33 -> 71,545 | AU28: =+AT33 -> 82,797 | AV28: =+AU33 -> 93,074 | AW28: =+AV33 -> 101,241 | AX28: =+AW33 -> 101,241 | AY28: =+AX33 -> 0 | AZ28: =+AY33 -> 0 | BA28: =+AZ33 -> 0 | BB28: =+BA33 -> 0 | BC28: =+BB33 -> 0 | BD28: =+BC33 -> 0 | BE28: =+BD33 -> 0 | BF28: =+BE33 -> 0 | BG28: =+BF33 -> 0 | BH28: =+BG33 -> 0 | BI28: =+BH33 -> 0 | BJ28: =+BI33 -> 0
C29: Draws | K29: $000s | N29: =SUM(Q29:BJ29) -> 258,863 | R29: =+R214 -> 0 | S29: 0 | T29: 0 | U29: 3,321 | V29: 4,856 | W29: =+W214 -> 5,235 | X29: =+X214 -> 5,644 | Y29: 6,084 | Z29: 6,559 | AA29: 7,072 | AB29: 7,113 | AC29: 7,154 | AD29: 7,195 | AE29: 7,237 | AF29: 7,279 | AG29: 7,825 | AH29: 8,412 | AI29: 9,043 | AJ29: 9,721 | AK29: 10,451 | AL29: 11,403 | AM29: 12,442 | AN29: 13,576 | AO29: 14,813 | AP29: 16,163 | AQ29: 14,764 | AR29: 13,486 | AS29: 12,318 | AT29: 11,252 | AU29: 10,278 | AV29: 8,167 | AW29: 0 | AX29: 0 | AY29: 0 | AZ29: 0 | BA29: 0 | BB29: 0 | BC29: 0 | BD29: 0 | BE29: 0 | BF29: 0 | BG29: 0 | BH29: 0 | BI29: 0 | BJ29: 0
C30: Interest due | K30: $000s | N30: =SUM(Q30:BJ30) -> 68,347 | R30: =-R210 -> 0 | S30: 0 | T30: 0 | U30: =-U210 -> 44 | V30: =-V210 -> 241 | W30: 505 | X30: 789 | Y30: 1,098 | Z30: 1,425 | AA30: 1,781 | AB30: 2,158 | AC30: 2,544 | AD30: 2,919 | AE30: 96 | AF30: 482 | AG30: 879 | AH30: 1,301 | AI30: 1,757 | AJ30: 2,248 | AK30: 2,782 | AL30: 3,344 | AM30: 3,965 | AN30: 4,642 | AO30: 198 | AP30: 1,004 | AQ30: 1,845 | AR30: 2,614 | AS30: 3,326 | AT30: 3,958 | AU30: 4,544 | AV30: 5,063 | AW30: 5,404 | AX30: 5,389 | AY30: 0 | AZ30: 0 | BA30: 0 | BB30: 0 | BC30: 0 | BD30: 0 | BE30: 0 | BF30: 0 | BG30: 0 | BH30: 0 | BI30: 0 | BJ30: 0
C31: Interest paid | K31: $000s | N31: =SUM(Q31:BJ31) -> (68,347) | R31: =R210 -> 0 | S31: 0 | T31: 0 | U31: =U210 -> (44) | V31: =V210 -> (241) | W31: (505) | X31: (789) | Y31: (1,098) | Z31: (1,425) | AA31: (1,781) | AB31: (2,158) | AC31: (2,544) | AD31: (2,919) | AE31: (96) | AF31: (482) | AG31: (879) | AH31: (1,301) | AI31: (1,757) | AJ31: (2,248) | AK31: (2,782) | AL31: (3,344) | AM31: (3,965) | AN31: (4,642) | AO31: (198) | AP31: (1,004) | AQ31: (1,845) | AR31: (2,614) | AS31: (3,326) | AT31: (3,958) | AU31: (4,544) | AV31: (5,063) | AW31: (5,404) | AX31: (5,389) | AY31: 0 | AZ31: 0 | BA31: 0 | BB31: 0 | BC31: 0 | BD31: 0 | BE31: 0 | BF31: 0 | BG31: 0 | BH31: 0 | BI31: 0 | BJ31: 0
C32: Refinanced | K32: $000s | N32: =SUM(Q32:BJ32) -> (258,863) | R32: =+R215 -> 0 | S32: 0 | T32: 0 | U32: =+U215 -> 0 | V32: =+V215 -> 0 | W32: 0 | X32: 0 | Y32: 0 | Z32: 0 | AA32: 0 | AB32: 0 | AC32: 0 | AD32: (60,232) | AE32: 0 | AF32: 0 | AG32: 0 | AH32: 0 | AI32: 0 | AJ32: 0 | AK32: 0 | AL32: 0 | AM32: 0 | AN32: (97,389) | AO32: 0 | AP32: 0 | AQ32: 0 | AR32: 0 | AS32: 0 | AT32: 0 | AU32: 0 | AV32: 0 | AW32: 0 | AX32: (101,241) | AY32: 0 | AZ32: 0 | BA32: 0 | BB32: 0 | BC32: 0 | BD32: 0 | BE32: 0 | BF32: 0 | BG32: 0 | BH32: 0 | BI32: 0 | BJ32: 0
C33: Closing balances | K33: $000s | R33: =SUM(R28:R32) -> 0 | S33: 0 | T33: 0 | U33: 3,321 | V33: 8,177 | W33: 13,412 | X33: 19,055 | Y33: 25,139 | Z33: 31,699 | AA33: 38,770 | AB33: 45,883 | AC33: 53,037 | AD33: 0 | AE33: 7,237 | AF33: 14,516 | AG33: 22,341 | AH33: 30,753 | AI33: 39,796 | AJ33: 49,518 | AK33: 59,968 | AL33: 71,371 | AM33: 83,813 | AN33: 0 | AO33: 14,813 | AP33: 30,977 | AQ33: 45,741 | AR33: 59,227 | AS33: 71,545 | AT33: 82,797 | AU33: 93,074 | AV33: 101,241 | AW33: 101,241 | AX33: 0 | AY33: 0 | AZ33: 0 | BA33: 0 | BB33: 0 | BC33: 0 | BD33: 0 | BE33: 0 | BF33: 0 | BG33: 0 | BH33: 0 | BI33: 0 | BJ33: 0
N34: =IF(ROUND(SUM(N29:N32),0)<>0,1,0) -> 0
B35: TIFIA
C36: Opening balances | K36: $000s | R36: =+Q46 -> 0 | S36: 793,974 | T36: 830,268 | U36: 848,465 | V36: 848,465 | W36: 848,465 | X36: 848,465 | Y36: 848,465 | Z36: 846,175 | AA36: 833,112 | AB36: 819,895 | AC36: 810,500 | AD36: 804,979 | AE36: 803,370 | AF36: 803,370 | AG36: 788,650 | AH36: 765,904 | AI36: 732,996 | AJ36: 677,953 | AK36: 598,596 | AL36: 502,477 | AM36: 386,236 | AN36: 206,680 | AO36: 0 | AP36: =+AO46 -> 0 | AQ36: 0 | AR36: 0 | AS36: 0 | AT36: 0 | AU36: 0 | AV36: 0 | AW36: 0 | AX36: 0 | AY36: 0 | AZ36: 0 | BA36: 0 | BB36: 0 | BC36: 0 | BD36: 0 | BE36: 0 | BF36: 0 | BG36: 0 | BH36: 0 | BI36: 0 | BJ36: 0
C37: Draws | K37: $000s | N37: =SUM(Q37:BJ37) -> 759,268 | R37: =+R128 -> 759,268 | S37: 0 | T37: 0 | U37: 0 | V37: 0 | W37: 0 | X37: 0 | Y37: 0 | Z37: 0 | AA37: 0 | AB37: 0 | AC37: 0 | AD37: 0 | AE37: 0 | AF37: 0 | AG37: 0 | AH37: 0 | AI37: 0 | AJ37: 0 | AK37: 0 | AL37: 0 | AM37: 0 | AN37: 0 | AO37: 0 | AP37: =+AP128 -> 0 | AQ37: 0 | AR37: 0 | AS37: 0 | AT37: 0 | AU37: 0 | AV37: 0 | AW37: 0 | AX37: 0 | AY37: 0 | AZ37: 0 | BA37: 0 | BB37: 0 | BC37: 0 | BD37: 0 | BE37: 0 | BF37: 0 | BG37: 0 | BH37: 0 | BI37: 0 | BJ37: 0
C38: Interest due | K38: $000s | N38: =SUM(Q38:BJ38) -> 764,760 | R38: =+R130 -> 34,707 | S38: =+S130 -> 36,293 | T38: 37,528 | U38: 38,351 | V38: 38,351 | W38: 38,351 | X38: 38,351 | Y38: 38,338 | Z38: 38,173 | AA38: 37,582 | AB38: 37,006 | AC38: 36,603 | AD38: 36,376 | AE38: 36,312 | AF38: 36,229 | AG38: 35,518 | AH38: 34,433 | AI38: 32,820 | AJ38: 30,195 | AK38: 26,513 | AL38: 22,055 | AM38: 16,443 | AN38: 8,230 | AO38: 0 | AP38: 0 | AQ38: 0 | AR38: 0 | AS38: 0 | AT38: 0 | AU38: 0 | AV38: 0 | AW38: 0 | AX38: 0 | AY38: 0 | AZ38: 0 | BA38: 0 | BB38: 0 | BC38: 0 | BD38: 0 | BE38: 0 | BF38: 0 | BG38: 0 | BH38: 0 | BI38: 0 | BJ38: 0
C39: Mandatory Interest Paid | K39: $000s | N39: =SUM(Q39:BJ39) -> (192,317) | R39: =+R131 -> 0 | S39: 0 | T39: =+T131 -> (2,000) | U39: =+U131 -> (5,485) | V39: (8,470) | W39: (9,950) | X39: (9,950) | Y39: (9,950) | Z39: (9,950) | AA39: (9,950) | AB39: (9,950) | AC39: (9,950) | AD39: (9,950) | AE39: (9,950) | AF39: (9,950) | AG39: (9,950) | AH39: (9,950) | AI39: (9,950) | AJ39: (9,865) | AK39: (9,752) | AL39: (9,639) | AM39: (9,526) | AN39: (8,230) | AO39: 0 | AP39: 0 | AQ39: 0 | AR39: 0 | AS39: 0 | AT39: 0 | AU39: 0 | AV39: 0 | AW39: 0 | AX39: 0 | AY39: 0 | AZ39: 0 | BA39: 0 | BB39: 0 | BC39: 0 | BD39: 0 | BE39: 0 | BF39: 0 | BG39: 0 | BH39: 0 | BI39: 0 | BJ39: 0
C40: Scheduled interest Paid | N40: =SUM(Q40:BJ40) -> (483,246) | R40: =+R132 -> 0 | S40: 0 | T40: (17,331) | U40: =+U132 -> (32,866) | V40: (29,881) | W40: =+W132 -> (28,401) | X40: =+X132 -> (28,401) | Y40: (28,388) | Z40: (28,223) | AA40: (27,632) | AB40: (27,056) | AC40: (26,653) | AD40: (26,426) | AE40: (26,362) | AF40: (26,279) | AG40: (25,568) | AH40: (24,483) | AI40: (22,870) | AJ40: (20,330) | AK40: (16,761) | AL40: (12,416) | AM40: (6,917) | AN40: 0 | AO40: 0 | AP40: 0 | AQ40: 0 | AR40: 0 | AS40: 0 | AT40: 0 | AU40: 0 | AV40: 0 | AW40: 0 | AX40: 0 | AY40: 0 | AZ40: 0 | BA40: 0 | BB40: 0 | BC40: 0 | BD40: 0 | BE40: 0 | BF40: 0 | BG40: 0 | BH40: 0 | BI40: 0 | BJ40: 0
C41: TIFIA Revenue Sharing | K41: $000s | N41: =SUM(Q41:BJ41) -> (329,276) | R41: =+R139 -> 0 | S41: 0 | T41: 0 | U41: 0 | V41: 0 | W41: 0 | X41: 0 | Y41: (1,145) | Z41: (6,531) | AA41: (6,608) | AB41: (4,698) | AC41: (2,761) | AD41: (804) | AE41: 0 | AF41: (7,360) | AG41: (11,373) | AH41: (16,454) | AI41: (22,522) | AJ41: (29,679) | AK41: (38,059) | AL41: (48,120) | AM41: (59,778) | AN41: (73,384) | AO41: 0 | AP41: =+AP139 -> 0 | AQ41: 0 | AR41: 0 | AS41: 0 | AT41: 0 | AU41: 0 | AV41: 0 | AW41: 0 | AX41: 0 | AY41: 0 | AZ41: 0 | BA41: 0 | BB41: 0 | BC41: 0 | BD41: 0 | BE41: 0 | BF41: 0 | BG41: 0 | BH41: 0 | BI41: 0 | BJ41: 0
C42: Mandatory Principal Paid | K42: $000s | N42: (14,917) | R42: =+R134 -> 0 | S42: 0 | T42: 0 | U42: 0 | V42: 0 | W42: 0 | X42: 0 | Y42: 0 | Z42: 0 | AA42: 0 | AB42: 0 | AC42: 0 | AD42: 0 | AE42: 0 | AF42: 0 | AG42: 0 | AH42: 0 | AI42: 0 | AJ42: 0 | AK42: 0 | AL42: 0 | AM42: 0 | AN42: (14,917) | AO42: 0 | AP42: =+AP134 -> 0 | AQ42: 0 | AR42: 0 | AS42: 0 | AT42: 0 | AU42: 0 | AV42: 0 | AW42: 0 | AX42: 0 | AY42: 0 | AZ42: 0 | BA42: 0 | BB42: 0 | BC42: 0 | BD42: 0 | BE42: 0 | BF42: 0 | BG42: 0 | BH42: 0 | BI42: 0 | BJ42: 0
C43: Scheduled Principal Paid | K43: $000s | N43: (90,000) | R43: =+R135 -> 0 | S43: 0 | T43: 0 | U43: 0 | V43: 0 | W43: 0 | X43: 0 | Y43: 0 | Z43: 0 | AA43: 0 | AB43: 0 | AC43: 0 | AD43: 0 | AE43: 0 | AF43: 0 | AG43: 0 | AH43: 0 | AI43: (5,000) | AJ43: (10,000) | AK43: (10,000) | AL43: (10,000) | AM43: (30,000) | AN43: (25,000) | AO43: 0 | AP43: =+AP135 -> 0 | AQ43: 0 | AR43: 0 | AS43: 0 | AT43: 0 | AU43: 0 | AV43: 0 | AW43: 0 | AX43: 0 | AY43: 0 | AZ43: 0 | BA43: 0 | BB43: 0 | BC43: 0 | BD43: 0 | BE43: 0 | BF43: 0 | BG43: 0 | BH43: 0 | BI43: 0 | BJ43: 0
C44: TIFIA Refi payments | K44: $000s | N44: (104,917) | R44: =+R137 -> 0 | S44: 0 | T44: 0 | U44: 0 | V44: 0 | W44: 0 | X44: 0 | Y44: 0 | Z44: 0 | AA44: 0 | AB44: 0 | AC44: 0 | AD44: 0 | AE44: 0 | AF44: 0 | AG44: 0 | AH44: 0 | AI44: (5,000) | AJ44: (10,000) | AK44: (10,000) | AL44: (10,000) | AM44: (30,000) | AN44: (39,917) | AO44: 0 | AP44: =+AP137 -> 0 | AQ44: 0 | AR44: 0 | AS44: 0 | AT44: 0 | AU44: 0 | AV44: 0 | AW44: 0 | AX44: 0 | AY44: 0 | AZ44: 0 | BA44: 0 | BB44: 0 | BC44: 0 | BD44: 0 | BE44: 0 | BF44: 0 | BG44: 0 | BH44: 0 | BI44: 0 | BJ44: 0
C45: TIFIA Refi payments from Rev Share | K45: $000s | N45: (309,355) | R45: =+R140 -> 0 | S45: 0 | T45: 0 | U45: 0 | V45: 0 | W45: 0 | X45: 0 | Y45: (1,145) | Z45: (6,531) | AA45: (6,608) | AB45: (4,698) | AC45: (2,761) | AD45: (804) | AE45: 0 | AF45: (7,360) | AG45: (11,373) | AH45: (16,454) | AI45: (22,522) | AJ45: (29,679) | AK45: (38,059) | AL45: (48,120) | AM45: (59,778) | AN45: (53,463) | AO45: 0 | AP45: =+AP140 -> 0 | AQ45: 0 | AR45: 0 | AS45: 0 | AT45: 0 | AU45: 0 | AV45: 0 | AW45: 0 | AX45: 0 | AY45: 0 | AZ45: 0 | BA45: 0 | BB45: 0 | BC45: 0 | BD45: 0 | BE45: 0 | BF45: 0 | BG45: 0 | BH45: 0 | BI45: 0 | BJ45: 0
C46: Closing balances | K46: $000s | R46: =SUM(R36:R45) -> 793,974 | S46: 830,268 | T46: 848,465 | U46: 848,465 | V46: 848,465 | W46: 848,465 | X46: 848,465 | Y46: 846,175 | Z46: 833,112 | AA46: 819,895 | AB46: 810,500 | AC46: 804,979 | AD46: 803,370 | AE46: 803,370 | AF46: 788,650 | AG46: 765,904 | AH46: 732,996 | AI46: 677,953 | AJ46: 598,596 | AK46: 502,477 | AL46: 386,236 | AM46: 206,680 | AN46: 0 | AO46: 0 | AP46: =SUM(AP36:AP45) -> 0 | AQ46: 0 | AR46: 0 | AS46: 0 | AT46: 0 | AU46: 0 | AV46: 0 | AW46: 0 | AX46: 0 | AY46: 0 | AZ46: 0 | BA46: 0 | BB46: 0 | BC46: 0 | BD46: 0 | BE46: 0 | BF46: 0 | BG46: 0 | BH46: 0 | BI46: 0 | BJ46: 0
N47: =IF(ROUND(SUM(N37:N45),0)<>0,1,0) -> 0
B48: Refinance
C49: Opening balances | K49: $000s | R49: =+Q57 -> 0 | S49: 0 | T49: 0 | U49: 400,000 | V49: 400,000 | W49: 400,000 | X49: 400,000 | Y49: 400,000 | Z49: 402,290 | AA49: 415,352 | AB49: 428,569 | AC49: 437,965 | AD49: 443,486 | AE49: 505,327 | AF49: 505,327 | AG49: 520,047 | AH49: 542,793 | AI49: 575,701 | AJ49: 630,744 | AK49: 710,102 | AL49: 806,220 | AM49: 922,461 | AN49: 1,102,017 | AO49: 1,406,087 | AP49: =+AO57 -> 1,406,087 | AQ49: 1,406,087 | AR49: 1,406,087 | AS49: 1,406,087 | AT49: 1,406,087 | AU49: 1,406,087 | AV49: 1,295,594 | AW49: 1,179,301 | AX49: 1,056,902 | AY49: 1,029,319 | AZ49: 878,940 | BA49: 720,666 | BB49: 554,083 | BC49: 378,755 | BD49: 194,221 | BE49: 0 | BF49: 0 | BG49: 0 | BH49: 0 | BI49: 0 | BJ49: 0
C50: Draws (Capex, Liq) | K50: $000s | N50: =SUM(Q50:BJ50) -> 258,863 | R50: =+R184 -> 0 | S50: 0 | T50: 0 | U50: 0 | V50: 0 | W50: 0 | X50: 0 | Y50: 0 | Z50: 0 | AA50: 0 | AB50: 0 | AC50: 0 | AD50: 60,232 | AE50: 0 | AF50: 0 | AG50: 0 | AH50: 0 | AI50: 0 | AJ50: 0 | AK50: 0 | AL50: 0 | AM50: 0 | AN50: 97,389 | AO50: 0 | AP50: =+AP184 -> 0 | AQ50: 0 | AR50: 0 | AS50: 0 | AT50: 0 | AU50: 0 | AV50: 0 | AW50: 0 | AX50: 101,241 | AY50: 0 | AZ50: 0 | BA50: 0 | BB50: 0 | BC50: 0 | BD50: 0 | BE50: 0 | BF50: 0 | BG50: 0 | BH50: 0 | BI50: 0 | BJ50: 0
C51: Draws (PABs) | K51: $000s | N51: 400,000 | R51: =+R183 -> 0 | S51: 0 | T51: 400,000 | U51: 0 | V51: 0 | W51: 0 | X51: 0 | Y51: 0 | Z51: 0 | AA51: 0 | AB51: 0 | AC51: 0 | AD51: 0 | AE51: 0 | AF51: 0 | AG51: 0 | AH51: 0 | AI51: 0 | AJ51: 0 | AK51: 0 | AL51: 0 | AM51: 0 | AN51: 0 | AO51: 0 | AP51: =+AP183 -> 0 | AQ51: 0 | AR51: 0 | AS51: 0 | AT51: 0 | AU51: 0 | AV51: 0 | AW51: 0 | AX51: 0 | AY51: 0 | AZ51: 0 | BA51: 0 | BB51: 0 | BC51: 0 | BD51: 0 | BE51: 0 | BF51: 0 | BG51: 0 | BH51: 0 | BI51: 0 | BJ51: 0
C52: Draws (TIFIA) | K52: $000s | N52: 209,833 | R52: =+R185 -> 0 | S52: 0 | T52: 0 | U52: 0 | V52: 0 | W52: 0 | X52: 0 | Y52: 0 | Z52: 0 | AA52: 0 | AB52: 0 | AC52: 0 | AD52: 0 | AE52: 0 | AF52: 0 | AG52: 0 | AH52: 0 | AI52: 10,000 | AJ52: 20,000 | AK52: 20,000 | AL52: 20,000 | AM52: 60,000 | AN52: 79,833 | AO52: 0 | AP52: =+AP185 -> 0 | AQ52: 0 | AR52: 0 | AS52: 0 | AT52: 0 | AU52: 0 | AV52: 0 | AW52: 0 | AX52: 0 | AY52: 0 | AZ52: 0 | BA52: 0 | BB52: 0 | BC52: 0 | BD52: 0 | BE52: 0 | BF52: 0 | BG52: 0 | BH52: 0 | BI52: 0 | BJ52: 0
C53: Draws (TIFIA Rev Share) | K53: $000s | N53: 638,631 | R53: =+R186 -> 0 | S53: 0 | T53: 0 | U53: 0 | V53: 0 | W53: 0 | X53: 0 | Y53: 2,290 | Z53: 13,062 | AA53: 13,217 | AB53: 9,395 | AC53: 5,521 | AD53: 1,609 | AE53: 0 | AF53: 14,720 | AG53: 22,746 | AH53: 32,907 | AI53: 45,043 | AJ53: 59,357 | AK53: 76,119 | AL53: 96,241 | AM53: 119,557 | AN53: 126,846 | AO53: 0 | AP53: =+AP186 -> 0 | AQ53: 0 | AR53: 0 | AS53: 0 | AT53: 0 | AU53: 0 | AV53: 0 | AW53: 0 | AX53: 0 | AY53: 0 | AZ53: 0 | BA53: 0 | BB53: 0 | BC53: 0 | BD53: 0 | BE53: 0 | BF53: 0 | BG53: 0 | BH53: 0 | BI53: 0 | BJ53: 0
C54: Interest due | K54: $000s | N54: 1,486,884 | R54: =+R187 -> 0 | S54: 0 | T54: 0 | U54: 21,350 | V54: 21,292 | W54: 21,292 | X54: 21,292 | Y54: 21,381 | Z54: 21,587 | AA54: 22,285 | AB54: 22,937 | AC54: 23,450 | AD54: 23,628 | AE54: 26,898 | AF54: 27,094 | AG54: 28,061 | AH54: 29,330 | AI54: 31,377 | AJ54: 34,630 | AK54: 39,184 | AL54: 44,461 | AM54: 51,491 | AN54: 61,410 | AO54: 75,050 | AP54: =+AP187 -> 74,845 | AQ54: 74,845 | AR54: 74,845 | AS54: 75,050 | AT54: 74,845 | AU54: 73,374 | AV54: 67,416 | AW54: 61,312 | AX54: 54,544 | AY54: 52,789 | AZ54: 44,679 | BA54: 36,243 | BB54: 27,160 | BC54: 17,705 | BD54: 7,754 | BE54: 0 | BF54: 0 | BG54: 0 | BH54: 0 | BI54: 0 | BJ54: 0
C55: Interest paid | K55: $000s | N55: (1,486,884) | R55: =+R188 -> 0 | S55: 0 | T55: 0 | U55: (21,350) | V55: (21,292) | W55: (21,292) | X55: (21,292) | Y55: (21,381) | Z55: (21,587) | AA55: (22,285) | AB55: (22,937) | AC55: (23,450) | AD55: (23,628) | AE55: (26,898) | AF55: (27,094) | AG55: (28,061) | AH55: (29,330) | AI55: (31,377) | AJ55: (34,630) | AK55: (39,184) | AL55: (44,461) | AM55: (51,491) | AN55: (61,410) | AO55: (75,050) | AP55: =+AP188 -> (74,845) | AQ55: (74,845) | AR55: (74,845) | AS55: (75,050) | AT55: (74,845) | AU55: (73,374) | AV55: (67,416) | AW55: (61,312) | AX55: (54,544) | AY55: (52,789) | AZ55: (44,679) | BA55: (36,243) | BB55: (27,160) | BC55: (17,705) | BD55: (7,754) | BE55: 0 | BF55: 0 | BG55: 0 | BH55: 0 | BI55: 0 | BJ55: 0
C56: Amortized | K56: $000s | N56: (1,507,328) | R56: =+R189 -> 0 | S56: 0 | T56: 0 | U56: 0 | V56: 0 | W56: 0 | X56: 0 | Y56: 0 | Z56: 0 | AA56: 0 | AB56: 0 | AC56: 0 | AD56: 0 | AE56: 0 | AF56: 0 | AG56: 0 | AH56: 0 | AI56: 0 | AJ56: 0 | AK56: 0 | AL56: 0 | AM56: 0 | AN56: 0 | AO56: 0 | AP56: =+AP189 -> 0 | AQ56: 0 | AR56: 0 | AS56: 0 | AT56: 0 | AU56: (110,492) | AV56: (116,293) | AW56: (122,399) | AX56: (128,825) | AY56: (150,379) | AZ56: (158,274) | BA56: (166,583) | BB56: (175,329) | BC56: (184,533) | BD56: (194,221) | BE56: 0 | BF56: 0 | BG56: 0 | BH56: 0 | BI56: 0 | BJ56: 0
C57: Closing balances | K57: $000s | R57: =SUM(R49:R56) -> 0 | S57: 0 | T57: 400,000 | U57: 400,000 | V57: 400,000 | W57: 400,000 | X57: 400,000 | Y57: 402,290 | Z57: 415,352 | AA57: 428,569 | AB57: 437,965 | AC57: 443,486 | AD57: 505,327 | AE57: 505,327 | AF57: 520,047 | AG57: 542,793 | AH57: 575,701 | AI57: 630,744 | AJ57: 710,102 | AK57: 806,220 | AL57: 922,461 | AM57: 1,102,017 | AN57: 1,406,087 | AO57: 1,406,087 | AP57: =SUM(AP49:AP56) -> 1,406,087 | AQ57: 1,406,087 | AR57: 1,406,087 | AS57: 1,406,087 | AT57: 1,406,087 | AU57: 1,295,594 | AV57: 1,179,301 | AW57: 1,056,902 | AX57: 1,029,319 | AY57: 878,940 | AZ57: 720,666 | BA57: 554,083 | BB57: 378,755 | BC57: 194,221 | BD57: 0 | BE57: 0 | BF57: 0 | BG57: 0 | BH57: 0 | BI57: 0 | BJ57: 0
N58: =IF(ROUND(SUM(N50:N56),0)<>0,1,0) -> 0
B59: Fees
C60: Commitment Fees | K60: $000s | N60: =SUM(Q60:BJ60) -> 9,219 | R60: =+Mac!R33 -> 0 | S60: =+Mac!S33 -> 0 | T60: =+Mac!T33 -> 0 | U60: =+Mac!U33 -> 0 | V60: =+Mac!V33 -> 558 | W60: =+Mac!W33 -> 534 | X60: =+Mac!X33 -> 509 | Y60: =+Mac!Y33 -> 482 | Z60: =+Mac!Z33 -> 453 | AA60: =+Mac!AA33 -> 421 | AB60: =+Mac!AB33 -> 388 | AC60: =+Mac!AC33 -> 353 | AD60: =+Mac!AD33 -> 319 | AE60: =+Mac!AE33 -> 0 | AF60: =+Mac!AF33 -> 580 | AG60: =+Mac!AG33 -> 545 | AH60: =+Mac!AH33 -> 507 | AI60: =+Mac!AI33 -> 467 | AJ60: =+Mac!AJ33 -> 424 | AK60: =+Mac!AK33 -> 377 | AL60: =+Mac!AL33 -> 327 | AM60: =+Mac!AM33 -> 272 | AN60: =+Mac!AN33 -> 212 | AO60: =+Mac!AO33 -> 0 | AP60: =+Mac!AP33 -> 415 | AQ60: =+Mac!AQ33 -> 337 | AR60: =+Mac!AR33 -> 266 | AS60: =+Mac!AS33 -> 202 | AT60: =+Mac!AT33 -> 143 | AU60: =+Mac!AU33 -> 89 | AV60: =+Mac!AV33 -> 39 | AW60: =+Mac!AW33 -> 0 | AX60: =+Mac!AX33 -> 0 | AY60: =+Mac!AY33 -> 0 | AZ60: =+Mac!AZ33 -> 0 | BA60: =+Mac!BA33 -> 0 | BB60: =+Mac!BB33 -> 0 | BC60: =+Mac!BC33 -> 0 | BD60: =+Mac!BD33 -> 0 | BE60: =+Mac!BE33 -> 0 | BF60: =+Mac!BF33 -> 0 | BG60: =+Mac!BG33 -> 0 | BH60: =+Mac!BH33 -> 0 | BI60: =+Mac!BI33 -> 0 | BJ60: =+Mac!BJ33 -> 0
C61: Upfront fees | K61: $000s | N61: 27,281 | R61: =+Mac!R34 -> 0 | S61: =+Mac!S34 -> 0 | T61: =+Mac!T34 -> 4,000 | U61: =+Mac!U34 -> 4,183 | V61: =+Mac!V34 -> 0 | W61: =+Mac!W34 -> 0 | X61: =+Mac!X34 -> 0 | Y61: =+Mac!Y34 -> 23 | Z61: =+Mac!Z34 -> 131 | AA61: =+Mac!AA34 -> 132 | AB61: =+Mac!AB34 -> 94 | AC61: =+Mac!AC34 -> 55 | AD61: =+Mac!AD34 -> 618 | AE61: =+Mac!AE34 -> 4,481 | AF61: =+Mac!AF34 -> 147 | AG61: =+Mac!AG34 -> 227 | AH61: =+Mac!AH34 -> 329 | AI61: =+Mac!AI34 -> 550 | AJ61: =+Mac!AJ34 -> 794 | AK61: =+Mac!AK34 -> 961 | AL61: =+Mac!AL34 -> 1,162 | AM61: =+Mac!AM34 -> 1,796 | AN61: =+Mac!AN34 -> 3,041 | AO61: =+Mac!AO34 -> 3,543 | AP61: =+Mac!AP34 -> 0 | AQ61: =+Mac!AQ34 -> 0 | AR61: =+Mac!AR34 -> 0 | AS61: =+Mac!AS34 -> 0 | AT61: =+Mac!AT34 -> 0 | AU61: =+Mac!AU34 -> 0 | AV61: =+Mac!AV34 -> 0 | AW61: =+Mac!AW34 -> 0 | AX61: =+Mac!AX34 -> 1,012 | AY61: =+Mac!AY34 -> 0 | AZ61: =+Mac!AZ34 -> 0 | BA61: =+Mac!BA34 -> 0 | BB61: =+Mac!BB34 -> 0 | BC61: =+Mac!BC34 -> 0 | BD61: =+Mac!BD34 -> 0 | BE61: =+Mac!BE34 -> 0 | BF61: =+Mac!BF34 -> 0 | BG61: =+Mac!BG34 -> 0 | BH61: =+Mac!BH34 -> 0 | BI61: =+Mac!BI34 -> 0 | BJ61: =+Mac!BJ34 -> 0
C62: TIFIA Mantenaince fee | K62: $000s | N62: 1,794 | R62: =R123 -> 0 | S62: 0 | T62: 67 | U62: 69 | V62: 71 | W62: 72 | X62: 74 | Y62: 76 | Z62: 77 | AA62: 79 | AB62: 81 | AC62: 83 | AD62: 85 | AE62: 87 | AF62: 89 | AG62: 91 | AH62: 93 | AI62: 95 | AJ62: 97 | AK62: 99 | AL62: 102 | AM62: 104 | AN62: 106 | AO62: 0 | AP62: =AP123 -> 0 | AQ62: 0 | AR62: 0 | AS62: 0 | AT62: 0 | AU62: 0 | AV62: 0 | AW62: 0 | AX62: 0 | AY62: 0 | AZ62: 0 | BA62: 0 | BB62: 0 | BC62: 0 | BD62: 0 | BE62: 0 | BF62: 0 | BG62: 0 | BH62: 0 | BI62: 0 | BJ62: 0
C63: Agency fees | K63: $000s | N63: 3,420 | R63: =R227 -> 0 | S63: 0 | T63: 60 | U63: 61 | V63: 62 | W63: 64 | X63: 65 | Y63: 67 | Z63: 68 | AA63: 70 | AB63: 72 | AC63: 73 | AD63: 75 | AE63: 77 | AF63: 78 | AG63: 80 | AH63: 82 | AI63: 84 | AJ63: 86 | AK63: 88 | AL63: 90 | AM63: 92 | AN63: 94 | AO63: 96 | AP63: 98 | AQ63: 101 | AR63: 103 | AS63: 105 | AT63: 108 | AU63: 110 | AV63: 113 | AW63: =AW227 -> 115 | AX63: 118 | AY63: 121 | AZ63: 123 | BA63: 126 | BB63: 129 | BC63: 132 | BD63: 135 | BE63: 0 | BF63: 0 | BG63: 0 | BH63: 0 | BI63: 0 | BJ63: 0
B65: Cash Accounts Closing Balances
C67: Major Maintenance Reserve Account | K67: $000s | R67: =R253 -> 20,000 | S67: 20,000 | T67: 12,564 | U67: 14,756 | V67: 15,909 | W67: 17,074 | X67: 18,152 | Y67: 19,030 | Z67: 19,591 | AA67: 19,705 | AB67: 19,895 | AC67: 20,268 | AD67: 20,939 | AE67: 22,034 | AF67: 23,687 | AG67: 25,489 | AH67: 27,487 | AI67: 29,736 | AJ67: 32,297 | AK67: 35,240 | AL67: 38,021 | AM67: 40,087 | AN67: 40,883 | AO67: 39,845 | AP67: =AP253 -> 36,395 | AQ67: 33,593 | AR67: 31,896 | AS67: 31,793 | AT67: 33,815 | AU67: 38,536 | AV67: 43,294 | AW67: 47,306 | AX67: 49,737 | AY67: 49,686 | AZ67: 46,175 | BA67: 43,585 | BB67: 42,923 | BC67: 45,398 | BD67: 0 | BE67: 0 | BF67: 0 | BG67: 0 | BH67: 0 | BI67: 0 | BJ67: 0
C68: Debt Service Reserve Account | K68: $000s | R68: =+R278 -> 40,000 | S68: 40,000 | T68: 26,879 | U68: 30,003 | V68: 31,747 | W68: 32,030 | X68: 32,429 | Y68: 32,963 | Z68: 34,016 | AA68: 35,046 | AB68: 35,945 | AC68: 36,497 | AD68: 36,944 | AE68: 37,526 | AF68: 38,890 | AG68: 40,582 | AH68: 43,084 | AI68: 46,743 | AJ68: 51,719 | AK68: 57,444 | AL68: 64,982 | AM68: 89,199 | AN68: 75,248 | AO68: 75,848 | AP68: =+AP278 -> 76,690 | AQ68: 77,459 | AR68: 78,375 | AS68: 78,803 | AT68: 188,411 | AU68: 188,772 | AV68: 189,114 | AW68: 188,757 | AX68: 203,167 | AY68: 202,953 | AZ68: 202,826 | BA68: 202,489 | BB68: 202,239 | BC68: 201,975 | BD68: 0 | BE68: 0 | BF68: 0 | BG68: 0 | BH68: 0 | BI68: 0 | BJ68: 0
C69: TIFIA Cash Trapped | K69: $000s | R69: =R308 -> 92,381 | S69: 145,304 | T69: 0 | U69: 0 | V69: 0 | W69: 0 | X69: 0 | Y69: 0 | Z69: 0 | AA69: 0 | AB69: 0 | AC69: 0 | AD69: 0 | AE69: 0 | AF69: 0 | AG69: 0 | AH69: 0 | AI69: 0 | AJ69: 0 | AK69: 0 | AL69: 0 | AM69: 0 | AN69: 0 | AO69: 0 | AP69: =AP308 -> 0 | AQ69: 0 | AR69: 0 | AS69: 0 | AT69: 0 | AU69: 0 | AV69: 0 | AW69: 0 | AX69: 0 | AY69: 0 | AZ69: 0 | BA69: 0 | BB69: 0 | BC69: 0 | BD69: 0 | BE69: 0 | BF69: 0 | BG69: 0 | BH69: 0 | BI69: 0 | BJ69: 0
C70: Operating Cash Account | K70: $000s | R70: =R318 -> 2,884 | S70: 2,884 | T70: 2,884 | U70: 2,884 | V70: 2,884 | W70: 2,884 | X70: 2,884 | Y70: 2,884 | Z70: 2,884 | AA70: 2,884 | AB70: 2,884 | AC70: 2,884 | AD70: 2,884 | AE70: 2,884 | AF70: 2,884 | AG70: 2,884 | AH70: 2,884 | AI70: 2,884 | AJ70: 2,884 | AK70: 2,884 | AL70: 2,884 | AM70: 2,884 | AN70: 2,884 | AO70: 2,884 | AP70: =AP318 -> 2,884 | AQ70: 2,884 | AR70: 2,884 | AS70: 2,884 | AT70: 2,884 | AU70: 2,884 | AV70: 2,884 | AW70: 2,884 | AX70: 2,884 | AY70: 2,884 | AZ70: 2,884 | BA70: 2,884 | BB70: 2,884 | BC70: 2,884 | BD70: 2,884 | BE70: 2,884 | BF70: 2,884 | BG70: 2,884 | BH70: 2,884 | BI70: 2,884 | BJ70: 0
C71: Handback | K71: $000s | R71: =R292 -> 0 | S71: 0 | T71: 0 | U71: 0 | V71: 0 | W71: 0 | X71: 0 | Y71: 0 | Z71: 0 | AA71: 0 | AB71: 0 | AC71: 0 | AD71: 0 | AE71: 0 | AF71: 0 | AG71: 0 | AH71: 0 | AI71: 0 | AJ71: 0 | AK71: 0 | AL71: 0 | AM71: 0 | AN71: 0 | AO71: 0 | AP71: =AP292 -> 0 | AQ71: 0 | AR71: 0 | AS71: 0 | AT71: 0 | AU71: 0 | AV71: 0 | AW71: 0 | AX71: 0 | AY71: 0 | AZ71: 0 | BA71: 0 | BB71: 0 | BC71: 0 | BD71: 0 | BE71: 143,269 | BF71: 126,052 | BG71: 104,408 | BH71: 77,200 | BI71: 42,997 | BJ71: =BJ292 -> (97,374)
C72: Total Cash Balances | K72: $000s | R72: =SUM(R67:R71) -> 155,265 | S72: 208,188 | T72: 42,327 | U72: 47,643 | V72: 50,539 | W72: 51,988 | X72: 53,464 | Y72: 54,877 | Z72: 56,491 | AA72: 57,634 | AB72: 58,723 | AC72: 59,648 | AD72: 60,767 | AE72: 62,444 | AF72: 65,461 | AG72: 68,954 | AH72: 73,455 | AI72: 79,363 | AJ72: 86,900 | AK72: 95,568 | AL72: 105,887 | AM72: 132,170 | AN72: 119,015 | AO72: 118,577 | AP72: =SUM(AP67:AP71) -> 115,969 | AQ72: 113,936 | AR72: 113,155 | AS72: 113,480 | AT72: 225,109 | AU72: 230,192 | AV72: 235,292 | AW72: 238,947 | AX72: 255,788 | AY72: 255,522 | AZ72: 251,884 | BA72: 248,958 | BB72: 248,046 | BC72: 250,257 | BD72: 2,884 | BE72: 146,153 | BF72: 128,936 | BG72: 107,292 | BH72: 80,084 | BI72: 45,881 | BJ72: (97,374)
B74: Interest income | R74: =+R341 -> 0 | S74: 0 | T74: 2,934 | U74: 941 | V74: 1,180 | W74: 1,393 | X74: 1,568 | Y74: 1,733 | Z74: 1,903 | AA74: 2,075 | AB74: 2,213 | AC74: 2,330 | AD74: 2,418 | AE74: 2,579 | AF74: 2,696 | AG74: 2,840 | AH74: 3,106 | AI74: 3,412 | AJ74: 3,768 | AK74: 4,074 | AL74: 4,321 | AM74: 4,797 | AN74: 5,639 | AO74: 5,664 | AP74: =+AP341 -> 5,923 | AQ74: 5,965 | AR74: 6,134 | AS74: 6,339 | AT74: 6,577 | AU74: 9,007 | AV74: 9,126 | AW74: 9,465 | AX74: 9,788 | AY74: 10,382 | AZ74: 10,651 | BA74: 10,806 | BB74: 10,971 | BC74: 11,072 | BD74: 11,355 | BE74: 9,643 | BF74: 9,737 | BG74: 9,624 | BH74: 9,435 | BI74: 8,509 | BJ74: 1,940
B76: Bond Facility (PABs)
B78: Setup
B80: Refinancing Date | K80: =Inputs!L135 -> 2019-12-31 | R80: =+R166 -> 0 | S80: 0 | T80: 1 | U80: 0 | V80: 0 | W80: 0 | X80: 0 | Y80: 0 | Z80: 0 | AA80: 0 | AB80: 0 | AC80: 0 | AD80: 0 | AE80: 0 | AF80: 0 | AG80: 0 | AH80: 0 | AI80: 0 | AJ80: 0 | AK80: 0 | AL80: 0 | AM80: 0 | AN80: 0 | AO80: 0 | AP80: 0 | AQ80: 0 | AR80: 0 | AS80: 0 | AT80: 0 | AU80: 0 | AV80: 0 | AW80: 0 | AX80: 0 | AY80: 0 | AZ80: 0 | BA80: 0 | BB80: 0 | BC80: 0 | BD80: 0 | BE80: 0 | BF80: 0 | BG80: 0 | BH80: 0 | BI80: 0 | BJ80: 0
C82: % Full Period | K82: % | R82: =+IF(AND($K$80>=R8,$K$80>=R9),1,0) -> 100% | S82: 100% | T82: 100% | U82: 0% | V82: 0% | W82: 0% | X82: 0% | Y82: 0% | Z82: 0% | AA82: 0% | AB82: 0% | AC82: 0% | AD82: 0% | AE82: 0% | AF82: 0% | AG82: 0% | AH82: 0% | AI82: 0% | AJ82: 0% | AK82: 0% | AL82: 0% | AM82: 0% | AN82: 0% | AO82: 0% | AP82: 0% | AQ82: 0% | AR82: 0% | AS82: 0% | AT82: 0% | AU82: 0% | AV82: 0% | AW82: 0% | AX82: 0% | AY82: 0% | AZ82: 0% | BA82: 0% | BB82: 0% | BC82: 0% | BD82: 0% | BE82: 0% | BF82: 0% | BG82: 0% | BH82: 0% | BI82: 0% | BJ82: 0%
B84: Interest
C85: All in interest rate | K85: % | R85: =+Inputs!$L$106 -> 6.97% | S85: =+Inputs!$L$106 -> 6.97% | T85: =+Inputs!$L$106 -> 6.97% | U85: =+Inputs!$L$106 -> 6.97% | V85: =+Inputs!$L$106 -> 6.97% | W85: =+Inputs!$L$106 -> 6.97% | X85: =+Inputs!$L$106 -> 6.97% | Y85: =+Inputs!$L$106 -> 6.97% | Z85: =+Inputs!$L$106 -> 6.97% | AA85: =+Inputs!$L$106 -> 6.97% | AB85: =+Inputs!$L$106 -> 6.97% | AC85: =+Inputs!$L$106 -> 6.97% | AD85: =+Inputs!$L$106 -> 6.97% | AE85: =+Inputs!$L$106 -> 6.97% | AF85: =+Inputs!$L$106 -> 6.97% | AG85: =+Inputs!$L$106 -> 6.97% | AH85: =+Inputs!$L$106 -> 6.97% | AI85: =+Inputs!$L$106 -> 6.97% | AJ85: =+Inputs!$L$106 -> 6.97% | AK85: =+Inputs!$L$106 -> 6.97% | AL85: =+Inputs!$L$106 -> 6.97% | AM85: =+Inputs!$L$106 -> 6.97% | AN85: =+Inputs!$L$106 -> 6.97% | AO85: =+Inputs!$L$106 -> 6.97% | AP85: =+Inputs!$L$106 -> 6.97% | AQ85: =+Inputs!$L$106 -> 6.97% | AR85: =+Inputs!$L$106 -> 6.97% | AS85: =+Inputs!$L$106 -> 6.97% | AT85: =+Inputs!$L$106 -> 6.97% | AU85: =+Inputs!$L$106 -> 6.97% | AV85: =+Inputs!$L$106 -> 6.97% | AW85: =+Inputs!$L$106 -> 6.97% | AX85: =+Inputs!$L$106 -> 6.97% | AY85: =+Inputs!$L$106 -> 6.97% | AZ85: =+Inputs!$L$106 -> 6.97% | BA85: =+Inputs!$L$106 -> 6.97% | BB85: =+Inputs!$L$106 -> 6.97% | BC85: =+Inputs!$L$106 -> 6.97% | BD85: =+Inputs!$L$106 -> 6.97% | BE85: =+Inputs!$L$106 -> 6.97% | BF85: =+Inputs!$L$106 -> 6.97% | BG85: =+Inputs!$L$106 -> 6.97% | BH85: =+Inputs!$L$106 -> 6.97% | BI85: =+Inputs!$L$106 -> 6.97% | BJ85: =+Inputs!$L$106 -> 6.97%
B87: Facility
C88: Opening Balance | K88: $000s | R88: =Inputs!$L$216 -> 400,000 | S88: =R93 -> 400,000 | T88: 400,000 | U88: 0 | V88: 0 | W88: 0 | X88: 0 | Y88: 0 | Z88: 0 | AA88: 0 | AB88: 0 | AC88: 0 | AD88: 0 | AE88: 0 | AF88: 0 | AG88: 0 | AH88: 0 | AI88: 0 | AJ88: 0 | AK88: 0 | AL88: 0 | AM88: 0 | AN88: 0 | AO88: 0 | AP88: =AO93 -> 0 | AQ88: 0 | AR88: 0 | AS88: 0 | AT88: 0 | AU88: 0 | AV88: 0 | AW88: 0 | AX88: 0 | AY88: 0 | AZ88: 0 | BA88: 0 | BB88: 0 | BC88: 0 | BD88: 0 | BE88: 0 | BF88: 0 | BG88: 0 | BH88: 0 | BI88: 0 | BJ88: 0
C89: Draw | K89: $000s | N89: =R88 -> 400,000 | R89: 0 | S89: 0 | T89: 0 | U89: 0 | V89: 0 | W89: 0 | X89: 0 | Y89: 0 | Z89: 0 | AA89: 0 | AB89: 0 | AC89: 0 | AD89: 0 | AE89: 0 | AF89: 0 | AG89: 0 | AH89: 0 | AI89: 0 | AJ89: 0 | AK89: 0 | AL89: 0 | AM89: 0 | AN89: 0 | AO89: 0 | AP89: 0 | AQ89: 0 | AR89: 0 | AS89: 0 | AT89: 0 | AU89: 0 | AV89: 0 | AW89: 0 | AX89: 0 | AY89: 0 | AZ89: 0 | BA89: 0 | BB89: 0 | BC89: 0 | BD89: 0 | BE89: 0 | BF89: 0 | BG89: 0 | BH89: 0 | BI89: 0 | BJ89: 0
C90: Interest due | K90: $000s | N90: =SUM(Q90:BJ90) -> 83,621 | R90: =R88*R85*R$82 -> 27,874 | S90: 27,874 | T90: 27,874 | U90: 0 | V90: 0 | W90: 0 | X90: 0 | Y90: 0 | Z90: 0 | AA90: 0 | AB90: 0 | AC90: 0 | AD90: 0 | AE90: 0 | AF90: 0 | AG90: 0 | AH90: 0 | AI90: 0 | AJ90: 0 | AK90: 0 | AL90: 0 | AM90: 0 | AN90: 0 | AO90: 0 | AP90: 0 | AQ90: 0 | AR90: 0 | AS90: 0 | AT90: 0 | AU90: 0 | AV90: 0 | AW90: 0 | AX90: 0 | AY90: 0 | AZ90: 0 | BA90: 0 | BB90: 0 | BC90: 0 | BD90: 0 | BE90: 0 | BF90: 0 | BG90: 0 | BH90: 0 | BI90: 0 | BJ90: 0
C91: Interest paid | K91: $000s | N91: =SUM(Q91:BJ91) -> (83,621) | R91: =-R90 -> (27,874) | S91: (27,874) | T91: (27,874) | U91: 0 | V91: 0 | W91: 0 | X91: 0 | Y91: 0 | Z91: 0 | AA91: 0 | AB91: 0 | AC91: 0 | AD91: 0 | AE91: 0 | AF91: 0 | AG91: 0 | AH91: 0 | AI91: 0 | AJ91: 0 | AK91: 0 | AL91: 0 | AM91: 0 | AN91: 0 | AO91: 0 | AP91: 0 | AQ91: 0 | AR91: 0 | AS91: 0 | AT91: 0 | AU91: 0 | AV91: 0 | AW91: 0 | AX91: 0 | AY91: 0 | AZ91: 0 | BA91: 0 | BB91: 0 | BC91: 0 | BD91: 0 | BE91: 0 | BF91: 0 | BG91: 0 | BH91: 0 | BI91: 0 | BJ91: 0
C92: Refinanced | K92: $000s | N92: (400,000) | R92: =- SUM(R88:R91) * R80 * $L$165 -> 0 | S92: =- SUM(S88:S91) * S80 * $L$165 -> 0 | T92: (400,000) | U92: 0 | V92: 0 | W92: 0 | X92: 0 | Y92: 0 | Z92: 0 | AA92: 0 | AB92: 0 | AC92: 0 | AD92: 0 | AE92: 0 | AF92: 0 | AG92: 0 | AH92: 0 | AI92: 0 | AJ92: 0 | AK92: 0 | AL92: 0 | AM92: 0 | AN92: 0 | AO92: 0 | AP92: 0 | AQ92: 0 | AR92: 0 | AS92: 0 | AT92: 0 | AU92: 0 | AV92: 0 | AW92: 0 | AX92: 0 | AY92: 0 | AZ92: 0 | BA92: 0 | BB92: 0 | BC92: 0 | BD92: 0 | BE92: 0 | BF92: 0 | BG92: 0 | BH92: 0 | BI92: 0 | BJ92: 0
C93: Closing Balance | K93: $000s | R93: =SUM(R88:R92) -> 400,000 | S93: 400,000 | T93: 0 | U93: 0 | V93: 0 | W93: 0 | X93: 0 | Y93: 0 | Z93: 0 | AA93: 0 | AB93: 0 | AC93: 0 | AD93: 0 | AE93: 0 | AF93: 0 | AG93: 0 | AH93: 0 | AI93: 0 | AJ93: 0 | AK93: 0 | AL93: 0 | AM93: 0 | AN93: 0 | AO93: 0 | AP93: =SUM(AP88:AP92) -> 0 | AQ93: 0 | AR93: 0 | AS93: 0 | AT93: 0 | AU93: 0 | AV93: 0 | AW93: 0 | AX93: 0 | AY93: 0 | AZ93: 0 | BA93: 0 | BB93: 0 | BC93: 0 | BD93: 0 | BE93: 0 | BF93: 0 | BG93: 0 | BH93: 0 | BI93: 0 | BJ93: 0
N97: =+SUM(N89:N92) -> 0
B99: TIFIA Facility
B101: Setup
C103: Repayment flag | K103: Flag | L103: =Inputs!L96 -> 2039-01-01 | M103: =Inputs!L97 -> 2049-12-31 | N103: =SUM(Q103:BU103) -> 11 | R103: =IF((MIN(R$9,$M103) - MAX(R$8,$L103) >= 0),1,0) -> 0 | S103: 0 | T103: 0 | U103: 0 | V103: 0 | W103: 0 | X103: 0 | Y103: 0 | Z103: 0 | AA103: 0 | AB103: 0 | AC103: 0 | AD103: 0 | AE103: 0 | AF103: 0 | AG103: 0 | AH103: 0 | AI103: 0 | AJ103: 0 | AK103: 0 | AL103: 0 | AM103: 0 | AN103: 1 | AO103: 1 | AP103: 1 | AQ103: 1 | AR103: 1 | AS103: 1 | AT103: 1 | AU103: 1 | AV103: 1 | AW103: 1 | AX103: 1 | AY103: 0 | AZ103: 0 | BA103: 0 | BB103: 0 | BC103: 0 | BD103: 0 | BE103: 0 | BF103: 0 | BG103: 0 | BH103: 0 | BI103: 0 | BJ103: 0
C104: First interest payment | K104: Flag | R104: =+IF(SUM($Q$107:R107)=1,1,0) -> 0 | S104: =+IF(SUM($Q$107:S107)=1,1,0) -> 0 | T104: =+IF(SUM($Q$107:T107)=1,1,0) -> 1 | U104: =+IF(SUM($Q$107:U107)=1,1,0) -> 0 | V104: =+IF(SUM($Q$107:V107)=1,1,0) -> 0 | W104: =+IF(SUM($Q$107:W107)=1,1,0) -> 0 | X104: =+IF(SUM($Q$107:X107)=1,1,0) -> 0 | Y104: =+IF(SUM($Q$107:Y107)=1,1,0) -> 0 | Z104: =+IF(SUM($Q$107:Z107)=1,1,0) -> 0 | AA104: =+IF(SUM($Q$107:AA107)=1,1,0) -> 0 | AB104: =+IF(SUM($Q$107:AB107)=1,1,0) -> 0 | AC104: =+IF(SUM($Q$107:AC107)=1,1,0) -> 0 | AD104: =+IF(SUM($Q$107:AD107)=1,1,0) -> 0 | AE104: =+IF(SUM($Q$107:AE107)=1,1,0) -> 0 | AF104: =+IF(SUM($Q$107:AF107)=1,1,0) -> 0 | AG104: =+IF(SUM($Q$107:AG107)=1,1,0) -> 0 | AH104: =+IF(SUM($Q$107:AH107)=1,1,0) -> 0 | AI104: =+IF(SUM($Q$107:AI107)=1,1,0) -> 0 | AJ104: =+IF(SUM($Q$107:AJ107)=1,1,0) -> 0 | AK104: =+IF(SUM($Q$107:AK107)=1,1,0) -> 0 | AL104: =+IF(SUM($Q$107:AL107)=1,1,0) -> 0 | AM104: =+IF(SUM($Q$107:AM107)=1,1,0) -> 0 | AN104: =+IF(SUM($Q$107:AN107)=1,1,0) -> 0 | AO104: =+IF(SUM($Q$107:AO107)=1,1,0) -> 0 | AP104: =+IF(SUM($Q$107:AP107)=1,1,0) -> 0 | AQ104: =+IF(SUM($Q$107:AQ107)=1,1,0) -> 0 | AR104: =+IF(SUM($Q$107:AR107)=1,1,0) -> 0 | AS104: =+IF(SUM($Q$107:AS107)=1,1,0) -> 0 | AT104: =+IF(SUM($Q$107:AT107)=1,1,0) -> 0 | AU104: =+IF(SUM($Q$107:AU107)=1,1,0) -> 0 | AV104: =+IF(SUM($Q$107:AV107)=1,1,0) -> 0 | AW104: =+IF(SUM($Q$107:AW107)=1,1,0) -> 0 | AX104: =+IF(SUM($Q$107:AX107)=1,1,0) -> 0 | AY104: =+IF(SUM($Q$107:AY107)=1,1,0) -> 0 | AZ104: =+IF(SUM($Q$107:AZ107)=1,1,0) -> 0 | BA104: =+IF(SUM($Q$107:BA107)=1,1,0) -> 0 | BB104: =+IF(SUM($Q$107:BB107)=1,1,0) -> 0 | BC104: =+IF(SUM($Q$107:BC107)=1,1,0) -> 0 | BD104: =+IF(SUM($Q$107:BD107)=1,1,0) -> 0 | BE104: =+IF(SUM($Q$107:BE107)=1,1,0) -> 0 | BF104: =+IF(SUM($Q$107:BF107)=1,1,0) -> 0 | BG104: =+IF(SUM($Q$107:BG107)=1,1,0) -> 0 | BH104: =+IF(SUM($Q$107:BH107)=1,1,0) -> 0 | BI104: =+IF(SUM($Q$107:BI107)=1,1,0) -> 0 | BJ104: =+IF(SUM($Q$107:BJ107)=1,1,0) -> 0
C105: Interest 4 years after Flag | K105: Flag | L105: =Inputs!L29 -> 2014-10-03 | M105: =EDATE(L105, 5*12) -1 -> 2019-10-02 | R105: =IF((MIN(R$9,$M105) - MAX(R$8,$L105) >= 0),1,0) -> 1 | S105: 1 | T105: 1 | U105: 0 | V105: 0 | W105: 0 | X105: 0 | Y105: 0 | Z105: 0 | AA105: 0 | AB105: 0 | AC105: 0 | AD105: 0 | AE105: 0 | AF105: 0 | AG105: 0 | AH105: 0 | AI105: 0 | AJ105: 0 | AK105: 0 | AL105: 0 | AM105: 0 | AN105: 0 | AO105: 0 | AP105: 0 | AQ105: 0 | AR105: 0 | AS105: 0 | AT105: 0 | AU105: 0 | AV105: 0 | AW105: 0 | AX105: 0 | AY105: 0 | AZ105: 0 | BA105: 0 | BB105: 0 | BC105: 0 | BD105: 0 | BE105: 0 | BF105: 0 | BG105: 0 | BH105: 0 | BI105: 0 | BJ105: 0
C106: TIFIA Credit Rating & Mantenaince fee Flag | K106: Flag | L106: =+L105 -> 2014-10-03 | M106: =+M103 -> 2049-12-31 | R106: =((MIN(R$9,$M106)-MAX(R$8,$L106)>= 0)) * IF(OR(MONTH(R9)=12,MONTH(R9)=6),1,0) -> 1 | S106: 1 | T106: 1 | U106: 1 | V106: 1 | W106: 1 | X106: 1 | Y106: 1 | Z106: 1 | AA106: 1 | AB106: 1 | AC106: 1 | AD106: 1 | AE106: 1 | AF106: 1 | AG106: 1 | AH106: 1 | AI106: 1 | AJ106: 1 | AK106: 1 | AL106: 1 | AM106: 1 | AN106: 1 | AO106: 1 | AP106: 1 | AQ106: 1 | AR106: 1 | AS106: 1 | AT106: 1 | AU106: 1 | AV106: 1 | AW106: 1 | AX106: 1 | AY106: 0 | AZ106: 0 | BA106: 0 | BB106: 0 | BC106: 0 | BD106: 0 | BE106: 0 | BF106: 0 | BG106: 0 | BH106: 0 | BI106: 0 | BJ106: 0
C107: Revenue Sharing | K107: Flag | R107: =IF(R9>Inputs!$L$100,1,0) * R106 -> 0 | S107: =IF(S9>Inputs!$L$100,1,0) * S106 -> 0 | T107: =IF(T9>Inputs!$L$100,1,0) * T106 -> 1 | U107: =IF(U9>Inputs!$L$100,1,0) * U106 -> 1 | V107: =IF(V9>Inputs!$L$100,1,0) * V106 -> 1 | W107: =IF(W9>Inputs!$L$100,1,0) * W106 -> 1 | X107: =IF(X9>Inputs!$L$100,1,0) * X106 -> 1 | Y107: =IF(Y9>Inputs!$L$100,1,0) * Y106 -> 1 | Z107: =IF(Z9>Inputs!$L$100,1,0) * Z106 -> 1 | AA107: =IF(AA9>Inputs!$L$100,1,0) * AA106 -> 1 | AB107: =IF(AB9>Inputs!$L$100,1,0) * AB106 -> 1 | AC107: =IF(AC9>Inputs!$L$100,1,0) * AC106 -> 1 | AD107: =IF(AD9>Inputs!$L$100,1,0) * AD106 -> 1 | AE107: =IF(AE9>Inputs!$L$100,1,0) * AE106 -> 1 | AF107: =IF(AF9>Inputs!$L$100,1,0) * AF106 -> 1 | AG107: =IF(AG9>Inputs!$L$100,1,0) * AG106 -> 1 | AH107: =IF(AH9>Inputs!$L$100,1,0) * AH106 -> 1 | AI107: =IF(AI9>Inputs!$L$100,1,0) * AI106 -> 1 | AJ107: =IF(AJ9>Inputs!$L$100,1,0) * AJ106 -> 1 | AK107: =IF(AK9>Inputs!$L$100,1,0) * AK106 -> 1 | AL107: =IF(AL9>Inputs!$L$100,1,0) * AL106 -> 1 | AM107: =IF(AM9>Inputs!$L$100,1,0) * AM106 -> 1 | AN107: =IF(AN9>Inputs!$L$100,1,0) * AN106 -> 1 | AO107: =IF(AO9>Inputs!$L$100,1,0) * AO106 -> 1 | AP107: =IF(AP9>Inputs!$L$100,1,0) * AP106 -> 1 | AQ107: =IF(AQ9>Inputs!$L$100,1,0) * AQ106 -> 1 | AR107: =IF(AR9>Inputs!$L$100,1,0) * AR106 -> 1 | AS107: =IF(AS9>Inputs!$L$100,1,0) * AS106 -> 1 | AT107: =IF(AT9>Inputs!$L$100,1,0) * AT106 -> 1 | AU107: =IF(AU9>Inputs!$L$100,1,0) * AU106 -> 1 | AV107: =IF(AV9>Inputs!$L$100,1,0) * AV106 -> 1 | AW107: =IF(AW9>Inputs!$L$100,1,0) * AW106 -> 1 | AX107: =IF(AX9>Inputs!$L$100,1,0) * AX106 -> 1 | AY107: =IF(AY9>Inputs!$L$100,1,0) * AY106 -> 0 | AZ107: =IF(AZ9>Inputs!$L$100,1,0) * AZ106 -> 0 | BA107: =IF(BA9>Inputs!$L$100,1,0) * BA106 -> 0 | BB107: =IF(BB9>Inputs!$L$100,1,0) * BB106 -> 0 | BC107: =IF(BC9>Inputs!$L$100,1,0) * BC106 -> 0 | BD107: =IF(BD9>Inputs!$L$100,1,0) * BD106 -> 0 | BE107: =IF(BE9>Inputs!$L$100,1,0) * BE106 -> 0 | BF107: =IF(BF9>Inputs!$L$100,1,0) * BF106 -> 0 | BG107: =IF(BG9>Inputs!$L$100,1,0) * BG106 -> 0 | BH107: =IF(BH9>Inputs!$L$100,1,0) * BH106 -> 0 | BI107: =IF(BI9>Inputs!$L$100,1,0) * BI106 -> 0 | BJ107: =IF(BJ9>Inputs!$L$100,1,0) * BJ106 -> 0
C108: Cumulative repayment counter | K108: # | R108: =IF(R103,Q108 + R103,0) -> 0 | S108: 0 | T108: 0 | U108: 0 | V108: 0 | W108: 0 | X108: 0 | Y108: 0 | Z108: 0 | AA108: 0 | AB108: 0 | AC108: 0 | AD108: 0 | AE108: 0 | AF108: 0 | AG108: 0 | AH108: 0 | AI108: 0 | AJ108: 0 | AK108: 0 | AL108: 0 | AM108: 0 | AN108: 1 | AO108: 2 | AP108: 3 | AQ108: 4 | AR108: 5 | AS108: 6 | AT108: 7 | AU108: 8 | AV108: 9 | AW108: 10 | AX108: 11 | AY108: 0 | AZ108: 0 | BA108: 0 | BB108: 0 | BC108: 0 | BD108: 0 | BE108: 0 | BF108: 0 | BG108: 0 | BH108: 0 | BI108: 0 | BJ108: 0
C109: % Full Period Schedule | K109: % | L109: 2019-12-31 | R109: =+IF(AND($L$109>=R8,$L$109>R9),0,1) -> 0% | S109: 0% | T109: 100% | U109: 100% | V109: 100% | W109: 100% | X109: 100% | Y109: 100% | Z109: 100% | AA109: 100% | AB109: 100% | AC109: 100% | AD109: 100% | AE109: 100% | AF109: 100% | AG109: 100% | AH109: 100% | AI109: 100% | AJ109: 100% | AK109: 100% | AL109: 100% | AM109: 100% | AN109: 100% | AO109: 100% | AP109: 100% | AQ109: 100% | AR109: 100% | AS109: 100% | AT109: 100% | AU109: 100% | AV109: 100% | AW109: 100% | AX109: 100% | AY109: 100% | AZ109: 100% | BA109: 100% | BB109: 100% | BC109: 100% | BD109: 100% | BE109: 100% | BF109: 100% | BG109: 100% | BH109: 100% | BI109: 100% | BJ109: 100%
B110: CPI Credit Rating Fee | R110: 1.142 | S110: =R110*(1+Oper!S25) -> 1.167 | T110: =S110*(1+Oper!T25) -> 1.194 | U110: =T110*(1+Oper!U25) -> 1.220 | V110: =U110*(1+Oper!V25) -> 1.248 | W110: =V110*(1+Oper!W25) -> 1.277 | X110: =W110*(1+Oper!X25) -> 1.306 | Y110: =X110*(1+Oper!Y25) -> 1.336 | Z110: =Y110*(1+Oper!Z25) -> 1.367 | AA110: =Z110*(1+Oper!AA25) -> 1.398 | AB110: =AA110*(1+Oper!AB25) -> 1.430 | AC110: =AB110*(1+Oper!AC25) -> 1.463 | AD110: =AC110*(1+Oper!AD25) -> 1.497 | AE110: =AD110*(1+Oper!AE25) -> 1.531 | AF110: =AE110*(1+Oper!AF25) -> 1.566 | AG110: =AF110*(1+Oper!AG25) -> 1.602 | AH110: =AG110*(1+Oper!AH25) -> 1.639 | AI110: =AH110*(1+Oper!AI25) -> 1.677 | AJ110: =AI110*(1+Oper!AJ25) -> 1.716 | AK110: =AJ110*(1+Oper!AK25) -> 1.755 | AL110: =AK110*(1+Oper!AL25) -> 1.795 | AM110: =AL110*(1+Oper!AM25) -> 1.837 | AN110: =AM110*(1+Oper!AN25) -> 1.879 | AO110: =AN110*(1+Oper!AO25) -> 1.922 | AP110: =AO110*(1+Oper!AP25) -> 1.966 | AQ110: =AP110*(1+Oper!AQ25) -> 2.012 | AR110: =AQ110*(1+Oper!AR25) -> 2.058 | AS110: =AR110*(1+Oper!AS25) -> 2.105 | AT110: =AS110*(1+Oper!AT25) -> 2.154 | AU110: =AT110*(1+Oper!AU25) -> 2.203 | AV110: =AU110*(1+Oper!AV25) -> 2.254 | AW110: =AV110*(1+Oper!AW25) -> 2.306 | AX110: =AW110*(1+Oper!AX25) -> 2.359 | AY110: =AX110*(1+Oper!AY25) -> 2.413 | AZ110: =AY110*(1+Oper!AZ25) -> 2.469 | BA110: =AZ110*(1+Oper!BA25) -> 2.525 | BB110: =BA110*(1+Oper!BB25) -> 2.583 | BC110: =BB110*(1+Oper!BC25) -> 2.643 | BD110: =BC110*(1+Oper!BD25) -> 2.704 | BE110: =BD110*(1+Oper!BE25) -> 2.766 | BF110: =BE110*(1+Oper!BF25) -> 2.829 | BG110: =BF110*(1+Oper!BG25) -> 2.894 | BH110: =BG110*(1+Oper!BH25) -> 2.961 | BI110: =BH110*(1+Oper!BI25) -> 3.029 | BJ110: =BI110*(1+Oper!BJ25) -> 3.099
B111: CPI Maintenance Fee | R111: 1.125 | S111: =R111*(1+Oper!S25) -> 1.150 | T111: =S111*(1+Oper!T25) -> 1.176 | U111: =T111*(1+Oper!U25) -> 1.202 | V111: =U111*(1+Oper!V25) -> 1.229 | W111: =V111*(1+Oper!W25) -> 1.258 | X111: =W111*(1+Oper!X25) -> 1.287 | Y111: =X111*(1+Oper!Y25) -> 1.316 | Z111: =Y111*(1+Oper!Z25) -> 1.347 | AA111: =Z111*(1+Oper!AA25) -> 1.378 | AB111: =AA111*(1+Oper!AB25) -> 1.409 | AC111: =AB111*(1+Oper!AC25) -> 1.442 | AD111: =AC111*(1+Oper!AD25) -> 1.475 | AE111: =AD111*(1+Oper!AE25) -> 1.509 | AF111: =AE111*(1+Oper!AF25) -> 1.543 | AG111: =AF111*(1+Oper!AG25) -> 1.579 | AH111: =AG111*(1+Oper!AH25) -> 1.615 | AI111: =AH111*(1+Oper!AI25) -> 1.652 | AJ111: =AI111*(1+Oper!AJ25) -> 1.690 | AK111: =AJ111*(1+Oper!AK25) -> 1.729 | AL111: =AK111*(1+Oper!AL25) -> 1.769 | AM111: =AL111*(1+Oper!AM25) -> 1.810 | AN111: =AM111*(1+Oper!AN25) -> 1.851 | AO111: =AN111*(1+Oper!AO25) -> 1.894 | AP111: =AO111*(1+Oper!AP25) -> 1.937 | AQ111: =AP111*(1+Oper!AQ25) -> 1.982 | AR111: =AQ111*(1+Oper!AR25) -> 2.028 | AS111: =AR111*(1+Oper!AS25) -> 2.074 | AT111: =AS111*(1+Oper!AT25) -> 2.122 | AU111: =AT111*(1+Oper!AU25) -> 2.171 | AV111: =AU111*(1+Oper!AV25) -> 2.221 | AW111: =AV111*(1+Oper!AW25) -> 2.272 | AX111: =AW111*(1+Oper!AX25) -> 2.324 | AY111: =AX111*(1+Oper!AY25) -> 2.377 | AZ111: =AY111*(1+Oper!AZ25) -> 2.432 | BA111: =AZ111*(1+Oper!BA25) -> 2.488 | BB111: =BA111*(1+Oper!BB25) -> 2.545 | BC111: =BB111*(1+Oper!BC25) -> 2.604 | BD111: =BC111*(1+Oper!BD25) -> 2.664 | BE111: =BD111*(1+Oper!BE25) -> 2.725 | BF111: =BE111*(1+Oper!BF25) -> 2.788 | BG111: =BF111*(1+Oper!BG25) -> 2.852 | BH111: =BG111*(1+Oper!BH25) -> 2.917 | BI111: =BH111*(1+Oper!BI25) -> 2.984 | BJ111: =BI111*(1+Oper!BJ25) -> 3.053
B113: Interest
C114: Base rate | K114: % | L114: 4.52% | R114: =+$L$114 -> 4.52% | S114: 4.52% | T114: 4.52% | U114: 4.52% | V114: 4.52% | W114: 4.52% | X114: 4.52% | Y114: 4.52% | Z114: 4.52% | AA114: 4.52% | AB114: 4.52% | AC114: 4.52% | AD114: 4.52% | AE114: 4.52% | AF114: 4.52% | AG114: 4.52% | AH114: 4.52% | AI114: 4.52% | AJ114: 4.52% | AK114: 4.52% | AL114: 4.52% | AM114: 4.52% | AN114: 4.52% | AO114: 4.52% | AP114: =+$L$114 -> 4.52% | AQ114: 4.52% | AR114: 4.52% | AS114: 4.52% | AT114: 4.52% | AU114: 4.52% | AV114: 4.52% | AW114: 4.52% | AX114: 4.52% | AY114: 4.52% | AZ114: 4.52% | BA114: 4.52% | BB114: 4.52% | BC114: 4.52% | BD114: 4.52% | BE114: 4.52% | BF114: 4.52% | BG114: 4.52% | BH114: 4.52% | BI114: 4.52% | BJ114: 4.52%
C115: All in interest rate | K115: % | R115: =+R114 -> 4.52% | S115: 4.52% | T115: 4.52% | U115: 4.52% | V115: 4.52% | W115: 4.52% | X115: 4.52% | Y115: 4.52% | Z115: 4.52% | AA115: 4.52% | AB115: 4.52% | AC115: 4.52% | AD115: 4.52% | AE115: 4.52% | AF115: 4.52% | AG115: 4.52% | AH115: 4.52% | AI115: 4.52% | AJ115: 4.52% | AK115: 4.52% | AL115: 4.52% | AM115: 4.52% | AN115: 4.52% | AO115: 4.52% | AP115: =+AP114 -> 4.52% | AQ115: 4.52% | AR115: 4.52% | AS115: 4.52% | AT115: 4.52% | AU115: 4.52% | AV115: 4.52% | AW115: 4.52% | AX115: 4.52% | AY115: 4.52% | AZ115: 4.52% | BA115: 4.52% | BB115: 4.52% | BC115: 4.52% | BD115: 4.52% | BE115: 4.52% | BF115: 4.52% | BG115: 4.52% | BH115: 4.52% | BI115: 4.52% | BJ115: 4.52%
C118: Interest due after 5 year | K118: $000s | N118: =SUM(Q118:BJ118) -> 108,528 | R118: =+R130 * R105 -> 34,707 | S118: 36,293 | T118: 37,528 | U118: 0 | V118: 0 | W118: 0 | X118: 0 | Y118: 0 | Z118: 0 | AA118: 0 | AB118: 0 | AC118: 0 | AD118: 0 | AE118: 0 | AF118: 0 | AG118: 0 | AH118: 0 | AI118: 0 | AJ118: 0 | AK118: 0 | AL118: 0 | AM118: 0 | AN118: 0 | AO118: 0 | AP118: 0 | AQ118: 0 | AR118: 0 | AS118: 0 | AT118: 0 | AU118: 0 | AV118: 0 | AW118: 0 | AX118: 0 | AY118: 0 | AZ118: 0 | BA118: 0 | BB118: 0 | BC118: 0 | BD118: 0 | BE118: 0 | BF118: 0 | BG118: 0 | BH118: 0 | BI118: 0 | BJ118: 0
C119: Interest due operation | K119: $000s | N119: 764,760 | R119: =+R130 -> 34,707 | S119: 36,293 | T119: 37,528 | U119: 38,351 | V119: 38,351 | W119: 38,351 | X119: 38,351 | Y119: 38,338 | Z119: 38,173 | AA119: 37,582 | AB119: 37,006 | AC119: 36,603 | AD119: 36,376 | AE119: 36,312 | AF119: 36,229 | AG119: 35,518 | AH119: 34,433 | AI119: 32,820 | AJ119: 30,195 | AK119: 26,513 | AL119: 22,055 | AM119: 16,443 | AN119: 8,230 | AO119: 0 | AP119: =+AP130 -> 0 | AQ119: 0 | AR119: 0 | AS119: 0 | AT119: 0 | AU119: 0 | AV119: 0 | AW119: 0 | AX119: 0 | AY119: 0 | AZ119: 0 | BA119: 0 | BB119: 0 | BC119: 0 | BD119: 0 | BE119: 0 | BF119: 0 | BG119: 0 | BH119: 0 | BI119: 0 | BJ119: 0
C120: Interest paid | K120: $000s | N120: 675,563 | R120: =- R131 + -R132 -> 0 | S120: 0 | T120: 19,331 | U120: 38,351 | V120: 38,351 | W120: 38,351 | X120: 38,351 | Y120: 38,338 | Z120: 38,173 | AA120: 37,582 | AB120: 37,006 | AC120: 36,603 | AD120: 36,376 | AE120: 36,312 | AF120: 36,229 | AG120: 35,518 | AH120: 34,433 | AI120: 32,820 | AJ120: 30,195 | AK120: 26,513 | AL120: 22,055 | AM120: 16,443 | AN120: 8,230 | AO120: 0 | AP120: =- AP131 + -AP132 -> 0 | AQ120: 0 | AR120: 0 | AS120: 0 | AT120: 0 | AU120: 0 | AV120: 0 | AW120: 0 | AX120: 0 | AY120: 0 | AZ120: 0 | BA120: 0 | BB120: 0 | BC120: 0 | BD120: 0 | BE120: 0 | BF120: 0 | BG120: 0 | BH120: 0 | BI120: 0 | BJ120: 0
B122: Fees
C123: TIFIA Mantenaince Fee & credit rating fee | K123: $000s | N123: =SUM(Q123:BJ123) -> 1,794 | R123: 0 | S123: 0 | T123: =IF(T143=1,IF(ROUND(T127,2)=0,0,Inputs!$L$98*T$110),IF(ROUND(T141,2)=0,0,Inputs!$L$98*T$110))+IF(T143=1,IF(ROUND(T127,2)=0,0,Inputs!$L$99*T$111),IF(ROUND(T141,2)=0,0,Inputs!$L$99*T$111)) -> 67 | U123: =IF(U143=1,IF(ROUND(U127,2)=0,0,Inputs!$L$98*U$110),IF(ROUND(U141,2)=0,0,Inputs!$L$98*U$110))+IF(U143=1,IF(ROUND(U127,2)=0,0,Inputs!$L$99*U$111),IF(ROUND(U141,2)=0,0,Inputs!$L$99*U$111)) -> 69 | V123: =IF(V143=1,IF(ROUND(V127,2)=0,0,Inputs!$L$98*V$110),IF(ROUND(V141,2)=0,0,Inputs!$L$98*V$110))+IF(V143=1,IF(ROUND(V127,2)=0,0,Inputs!$L$99*V$111),IF(ROUND(V141,2)=0,0,Inputs!$L$99*V$111)) -> 71 | W123: =IF(W143=1,IF(ROUND(W127,2)=0,0,Inputs!$L$98*W$110),IF(ROUND(W141,2)=0,0,Inputs!$L$98*W$110))+IF(W143=1,IF(ROUND(W127,2)=0,0,Inputs!$L$99*W$111),IF(ROUND(W141,2)=0,0,Inputs!$L$99*W$111)) -> 72 | X123: =IF(X143=1,IF(ROUND(X127,2)=0,0,Inputs!$L$98*X$110),IF(ROUND(X141,2)=0,0,Inputs!$L$98*X$110))+IF(X143=1,IF(ROUND(X127,2)=0,0,Inputs!$L$99*X$111),IF(ROUND(X141,2)=0,0,Inputs!$L$99*X$111)) -> 74 | Y123: =IF(Y143=1,IF(ROUND(Y127,2)=0,0,Inputs!$L$98*Y$110),IF(ROUND(Y141,2)=0,0,Inputs!$L$98*Y$110))+IF(Y143=1,IF(ROUND(Y127,2)=0,0,Inputs!$L$99*Y$111),IF(ROUND(Y141,2)=0,0,Inputs!$L$99*Y$111)) -> 76 | Z123: =IF(Z143=1,IF(ROUND(Z127,2)=0,0,Inputs!$L$98*Z$110),IF(ROUND(Z141,2)=0,0,Inputs!$L$98*Z$110))+IF(Z143=1,IF(ROUND(Z127,2)=0,0,Inputs!$L$99*Z$111),IF(ROUND(Z141,2)=0,0,Inputs!$L$99*Z$111)) -> 77 | AA123: =IF(AA143=1,IF(ROUND(AA127,2)=0,0,Inputs!$L$98*AA$110),IF(ROUND(AA141,2)=0,0,Inputs!$L$98*AA$110))+IF(AA143=1,IF(ROUND(AA127,2)=0,0,Inputs!$L$99*AA$111),IF(ROUND(AA141,2)=0,0,Inputs!$L$99*AA$111)) -> 79 | AB123: =IF(AB143=1,IF(ROUND(AB127,2)=0,0,Inputs!$L$98*AB$110),IF(ROUND(AB141,2)=0,0,Inputs!$L$98*AB$110))+IF(AB143=1,IF(ROUND(AB127,2)=0,0,Inputs!$L$99*AB$111),IF(ROUND(AB141,2)=0,0,Inputs!$L$99*AB$111)) -> 81 | AC123: =IF(AC143=1,IF(ROUND(AC127,2)=0,0,Inputs!$L$98*AC$110),IF(ROUND(AC141,2)=0,0,Inputs!$L$98*AC$110))+IF(AC143=1,IF(ROUND(AC127,2)=0,0,Inputs!$L$99*AC$111),IF(ROUND(AC141,2)=0,0,Inputs!$L$99*AC$111)) -> 83 | AD123: =IF(AD143=1,IF(ROUND(AD127,2)=0,0,Inputs!$L$98*AD$110),IF(ROUND(AD141,2)=0,0,Inputs!$L$98*AD$110))+IF(AD143=1,IF(ROUND(AD127,2)=0,0,Inputs!$L$99*AD$111),IF(ROUND(AD141,2)=0,0,Inputs!$L$99*AD$111)) -> 85 | AE123: =IF(AE143=1,IF(ROUND(AE127,2)=0,0,Inputs!$L$98*AE$110),IF(ROUND(AE141,2)=0,0,Inputs!$L$98*AE$110))+IF(AE143=1,IF(ROUND(AE127,2)=0,0,Inputs!$L$99*AE$111),IF(ROUND(AE141,2)=0,0,Inputs!$L$99*AE$111)) -> 87 | AF123: =IF(AF143=1,IF(ROUND(AF127,2)=0,0,Inputs!$L$98*AF$110),IF(ROUND(AF141,2)=0,0,Inputs!$L$98*AF$110))+IF(AF143=1,IF(ROUND(AF127,2)=0,0,Inputs!$L$99*AF$111),IF(ROUND(AF141,2)=0,0,Inputs!$L$99*AF$111)) -> 89 | AG123: =IF(AG143=1,IF(ROUND(AG127,2)=0,0,Inputs!$L$98*AG$110),IF(ROUND(AG141,2)=0,0,Inputs!$L$98*AG$110))+IF(AG143=1,IF(ROUND(AG127,2)=0,0,Inputs!$L$99*AG$111),IF(ROUND(AG141,2)=0,0,Inputs!$L$99*AG$111)) -> 91 | AH123: =IF(AH143=1,IF(ROUND(AH127,2)=0,0,Inputs!$L$98*AH$110),IF(ROUND(AH141,2)=0,0,Inputs!$L$98*AH$110))+IF(AH143=1,IF(ROUND(AH127,2)=0,0,Inputs!$L$99*AH$111),IF(ROUND(AH141,2)=0,0,Inputs!$L$99*AH$111)) -> 93 | AI123: =IF(AI143=1,IF(ROUND(AI127,2)=0,0,Inputs!$L$98*AI$110),IF(ROUND(AI141,2)=0,0,Inputs!$L$98*AI$110))+IF(AI143=1,IF(ROUND(AI127,2)=0,0,Inputs!$L$99*AI$111),IF(ROUND(AI141,2)=0,0,Inputs!$L$99*AI$111)) -> 95 | AJ123: =IF(AJ143=1,IF(ROUND(AJ127,2)=0,0,Inputs!$L$98*AJ$110),IF(ROUND(AJ141,2)=0,0,Inputs!$L$98*AJ$110))+IF(AJ143=1,IF(ROUND(AJ127,2)=0,0,Inputs!$L$99*AJ$111),IF(ROUND(AJ141,2)=0,0,Inputs!$L$99*AJ$111)) -> 97 | AK123: =IF(AK143=1,IF(ROUND(AK127,2)=0,0,Inputs!$L$98*AK$110),IF(ROUND(AK141,2)=0,0,Inputs!$L$98*AK$110))+IF(AK143=1,IF(ROUND(AK127,2)=0,0,Inputs!$L$99*AK$111),IF(ROUND(AK141,2)=0,0,Inputs!$L$99*AK$111)) -> 99 | AL123: =IF(AL143=1,IF(ROUND(AL127,2)=0,0,Inputs!$L$98*AL$110),IF(ROUND(AL141,2)=0,0,Inputs!$L$98*AL$110))+IF(AL143=1,IF(ROUND(AL127,2)=0,0,Inputs!$L$99*AL$111),IF(ROUND(AL141,2)=0,0,Inputs!$L$99*AL$111)) -> 102 | AM123: =IF(AM143=1,IF(ROUND(AM127,2)=0,0,Inputs!$L$98*AM$110),IF(ROUND(AM141,2)=0,0,Inputs!$L$98*AM$110))+IF(AM143=1,IF(ROUND(AM127,2)=0,0,Inputs!$L$99*AM$111),IF(ROUND(AM141,2)=0,0,Inputs!$L$99*AM$111)) -> 104 | AN123: =IF(AN143=1,IF(ROUND(AN127,2)=0,0,Inputs!$L$98*AN$110),IF(ROUND(AN141,2)=0,0,Inputs!$L$98*AN$110))+IF(AN143=1,IF(ROUND(AN127,2)=0,0,Inputs!$L$99*AN$111),IF(ROUND(AN141,2)=0,0,Inputs!$L$99*AN$111)) -> 106 | AO123: =IF(AO143=1,IF(ROUND(AO127,2)=0,0,Inputs!$L$98*AO$110),IF(ROUND(AO141,2)=0,0,Inputs!$L$98*AO$110))+IF(AO143=1,IF(ROUND(AO127,2)=0,0,Inputs!$L$99*AO$111),IF(ROUND(AO141,2)=0,0,Inputs!$L$99*AO$111)) -> 0 | AP123: =IF(AP143=1,IF(ROUND(AP127,2)=0,0,Inputs!$L$98*AP$110),IF(ROUND(AP141,2)=0,0,Inputs!$L$98*AP$110))+IF(AP143=1,IF(ROUND(AP127,2)=0,0,Inputs!$L$99*AP$111),IF(ROUND(AP141,2)=0,0,Inputs!$L$99*AP$111)) -> 0 | AQ123: =IF(AQ143=1,IF(ROUND(AQ127,2)=0,0,Inputs!$L$98*AQ$110),IF(ROUND(AQ141,2)=0,0,Inputs!$L$98*AQ$110))+IF(AQ143=1,IF(ROUND(AQ127,2)=0,0,Inputs!$L$99*AQ$111),IF(ROUND(AQ141,2)=0,0,Inputs!$L$99*AQ$111)) -> 0 | AR123: =IF(AR143=1,IF(ROUND(AR127,2)=0,0,Inputs!$L$98*AR$110),IF(ROUND(AR141,2)=0,0,Inputs!$L$98*AR$110))+IF(AR143=1,IF(ROUND(AR127,2)=0,0,Inputs!$L$99*AR$111),IF(ROUND(AR141,2)=0,0,Inputs!$L$99*AR$111)) -> 0 | AS123: =IF(AS143=1,IF(ROUND(AS127,2)=0,0,Inputs!$L$98*AS$110),IF(ROUND(AS141,2)=0,0,Inputs!$L$98*AS$110))+IF(AS143=1,IF(ROUND(AS127,2)=0,0,Inputs!$L$99*AS$111),IF(ROUND(AS141,2)=0,0,Inputs!$L$99*AS$111)) -> 0 | AT123: =IF(AT143=1,IF(ROUND(AT127,2)=0,0,Inputs!$L$98*AT$110),IF(ROUND(AT141,2)=0,0,Inputs!$L$98*AT$110))+IF(AT143=1,IF(ROUND(AT127,2)=0,0,Inputs!$L$99*AT$111),IF(ROUND(AT141,2)=0,0,Inputs!$L$99*AT$111)) -> 0 | AU123: =IF(AU143=1,IF(ROUND(AU127,2)=0,0,Inputs!$L$98*AU$110),IF(ROUND(AU141,2)=0,0,Inputs!$L$98*AU$110))+IF(AU143=1,IF(ROUND(AU127,2)=0,0,Inputs!$L$99*AU$111),IF(ROUND(AU141,2)=0,0,Inputs!$L$99*AU$111)) -> 0 | AV123: =IF(AV143=1,IF(ROUND(AV127,2)=0,0,Inputs!$L$98*AV$110),IF(ROUND(AV141,2)=0,0,Inputs!$L$98*AV$110))+IF(AV143=1,IF(ROUND(AV127,2)=0,0,Inputs!$L$99*AV$111),IF(ROUND(AV141,2)=0,0,Inputs!$L$99*AV$111)) -> 0 | AW123: =IF(AW143=1,IF(ROUND(AW127,2)=0,0,Inputs!$L$98*AW$110),IF(ROUND(AW141,2)=0,0,Inputs!$L$98*AW$110))+IF(AW143=1,IF(ROUND(AW127,2)=0,0,Inputs!$L$99*AW$111),IF(ROUND(AW141,2)=0,0,Inputs!$L$99*AW$111)) -> 0 | AX123: =IF(AX143=1,IF(ROUND(AX127,2)=0,0,Inputs!$L$98*AX$110),IF(ROUND(AX141,2)=0,0,Inputs!$L$98*AX$110))+IF(AX143=1,IF(ROUND(AX127,2)=0,0,Inputs!$L$99*AX$111),IF(ROUND(AX141,2)=0,0,Inputs!$L$99*AX$111)) -> 0 | AY123: =IF(AY143=1,IF(ROUND(AY127,2)=0,0,Inputs!$L$98*AY$110),IF(ROUND(AY141,2)=0,0,Inputs!$L$98*AY$110))+IF(AY143=1,IF(ROUND(AY127,2)=0,0,Inputs!$L$99*AY$111),IF(ROUND(AY141,2)=0,0,Inputs!$L$99*AY$111)) -> 0 | AZ123: =IF(AZ143=1,IF(ROUND(AZ127,2)=0,0,Inputs!$L$98*AZ$110),IF(ROUND(AZ141,2)=0,0,Inputs!$L$98*AZ$110))+IF(AZ143=1,IF(ROUND(AZ127,2)=0,0,Inputs!$L$99*AZ$111),IF(ROUND(AZ141,2)=0,0,Inputs!$L$99*AZ$111)) -> 0 | BA123: =IF(BA143=1,IF(ROUND(BA127,2)=0,0,Inputs!$L$98*BA$110),IF(ROUND(BA141,2)=0,0,Inputs!$L$98*BA$110))+IF(BA143=1,IF(ROUND(BA127,2)=0,0,Inputs!$L$99*BA$111),IF(ROUND(BA141,2)=0,0,Inputs!$L$99*BA$111)) -> 0 | BB123: =IF(BB143=1,IF(ROUND(BB127,2)=0,0,Inputs!$L$98*BB$110),IF(ROUND(BB141,2)=0,0,Inputs!$L$98*BB$110))+IF(BB143=1,IF(ROUND(BB127,2)=0,0,Inputs!$L$99*BB$111),IF(ROUND(BB141,2)=0,0,Inputs!$L$99*BB$111)) -> 0 | BC123: =IF(BC143=1,IF(ROUND(BC127,2)=0,0,Inputs!$L$98*BC$110),IF(ROUND(BC141,2)=0,0,Inputs!$L$98*BC$110))+IF(BC143=1,IF(ROUND(BC127,2)=0,0,Inputs!$L$99*BC$111),IF(ROUND(BC141,2)=0,0,Inputs!$L$99*BC$111)) -> 0 | BD123: =IF(BD143=1,IF(ROUND(BD127,2)=0,0,Inputs!$L$98*BD$110),IF(ROUND(BD141,2)=0,0,Inputs!$L$98*BD$110))+IF(BD143=1,IF(ROUND(BD127,2)=0,0,Inputs!$L$99*BD$111),IF(ROUND(BD141,2)=0,0,Inputs!$L$99*BD$111)) -> 0 | BE123: =IF(BE143=1,IF(ROUND(BE127,2)=0,0,Inputs!$L$98*BE$110),IF(ROUND(BE141,2)=0,0,Inputs!$L$98*BE$110))+IF(BE143=1,IF(ROUND(BE127,2)=0,0,Inputs!$L$99*BE$111),IF(ROUND(BE141,2)=0,0,Inputs!$L$99*BE$111)) -> 0 | BF123: =IF(BF143=1,IF(ROUND(BF127,2)=0,0,Inputs!$L$98*BF$110),IF(ROUND(BF141,2)=0,0,Inputs!$L$98*BF$110))+IF(BF143=1,IF(ROUND(BF127,2)=0,0,Inputs!$L$99*BF$111),IF(ROUND(BF141,2)=0,0,Inputs!$L$99*BF$111)) -> 0 | BG123: =IF(BG143=1,IF(ROUND(BG127,2)=0,0,Inputs!$L$98*BG$110),IF(ROUND(BG141,2)=0,0,Inputs!$L$98*BG$110))+IF(BG143=1,IF(ROUND(BG127,2)=0,0,Inputs!$L$99*BG$111),IF(ROUND(BG141,2)=0,0,Inputs!$L$99*BG$111)) -> 0 | BH123: =IF(BH143=1,IF(ROUND(BH127,2)=0,0,Inputs!$L$98*BH$110),IF(ROUND(BH141,2)=0,0,Inputs!$L$98*BH$110))+IF(BH143=1,IF(ROUND(BH127,2)=0,0,Inputs!$L$99*BH$111),IF(ROUND(BH141,2)=0,0,Inputs!$L$99*BH$111)) -> 0 | BI123: =IF(BI143=1,IF(ROUND(BI127,2)=0,0,Inputs!$L$98*BI$110),IF(ROUND(BI141,2)=0,0,Inputs!$L$98*BI$110))+IF(BI143=1,IF(ROUND(BI127,2)=0,0,Inputs!$L$99*BI$111),IF(ROUND(BI141,2)=0,0,Inputs!$L$99*BI$111)) -> 0 | BJ123: =IF(BJ143=1,IF(ROUND(BJ127,2)=0,0,Inputs!$L$98*BJ$110),IF(ROUND(BJ141,2)=0,0,Inputs!$L$98*BJ$110))+IF(BJ143=1,IF(ROUND(BJ127,2)=0,0,Inputs!$L$99*BJ$111),IF(ROUND(BJ141,2)=0,0,Inputs!$L$99*BJ$111)) -> 0
B125: Facility
C127: Opening Balance | R127: =+Q141 -> 0 | S127: 793,974 | T127: 830,268 | U127: 848,465 | V127: 848,465 | W127: 848,465 | X127: 848,465 | Y127: 848,465 | Z127: 846,175 | AA127: 833,112 | AB127: 819,895 | AC127: 810,500 | AD127: 804,979 | AE127: 803,370 | AF127: 803,370 | AG127: 788,650 | AH127: 765,904 | AI127: 732,996 | AJ127: 677,953 | AK127: 598,596 | AL127: 502,477 | AM127: 386,236 | AN127: 206,680 | AO127: 0 | AP127: =+AO141 -> 0 | AQ127: 0 | AR127: 0 | AS127: 0 | AT127: 0 | AU127: 0 | AV127: 0 | AW127: 0 | AX127: 0 | AY127: 0 | AZ127: 0 | BA127: 0 | BB127: 0 | BC127: 0 | BD127: 0 | BE127: 0 | BF127: 0 | BG127: 0 | BH127: 0 | BI127: 0 | BJ127: 0
C128: Drawdowns | K128: $000s | N128: =SUM(Q128:BJ128) -> 759,268 | R128: 759,268 | S128: 0 | T128: 0 | U128: 0 | V128: 0 | W128: 0 | X128: 0 | Y128: 0 | Z128: 0 | AA128: 0 | AB128: 0 | AC128: 0 | AD128: 0 | AE128: 0 | AF128: 0 | AG128: 0 | AH128: 0 | AI128: 0 | AJ128: 0 | AK128: 0 | AL128: 0 | AM128: 0 | AN128: 0 | AO128: 0 | AP128: 0 | AQ128: 0 | AR128: 0 | AS128: 0 | AT128: 0 | AU128: 0 | AV128: 0 | AW128: 0 | AX128: 0 | AY128: 0 | AZ128: 0 | BA128: 0 | BB128: 0 | BC128: 0 | BD128: 0 | BE128: 0 | BF128: 0 | BG128: 0 | BH128: 0 | BI128: 0 | BJ128: 0
C130: Interest due operation | K130: $000s | N130: =SUM(Q130:BJ130) -> 764,760 | R130: 34,707 | S130: =+S127*S115/2+(S127+(S146+S160)/2)*S115/2+S127*S115/2*S115/2*(1-S109) -> 36,293 | T130: =+T127*T115/2+(T127+(T146+T160)/2)*T115/2+T127*T115/2*T115/2*(1-T109) -> 37,528 | U130: 38,351 | V130: 38,351 | W130: 38,351 | X130: 38,351 | Y130: 38,338 | Z130: 38,173 | AA130: 37,582 | AB130: 37,006 | AC130: 36,603 | AD130: 36,376 | AE130: 36,312 | AF130: 36,229 | AG130: 35,518 | AH130: 34,433 | AI130: 32,820 | AJ130: 30,195 | AK130: 26,513 | AL130: 22,055 | AM130: 16,443 | AN130: 8,230 | AO130: 0 | AP130: 0 | AQ130: 0 | AR130: 0 | AS130: 0 | AT130: 0 | AU130: 0 | AV130: 0 | AW130: 0 | AX130: 0 | AY130: 0 | AZ130: 0 | BA130: 0 | BB130: 0 | BC130: 0 | BD130: 0 | BE130: 0 | BF130: 0 | BG130: 0 | BH130: 0 | BI130: 0 | BJ130: 0
C131: Mandatory Interest Paid | K131: $000s | N131: (192,317) | R131: =-MIN(R130,R145) -> 0 | S131: 0 | T131: =-MIN(T130,T145) -> (2,000) | U131: =-MIN(U130,U145) -> (5,485) | V131: (8,470) | W131: (9,950) | X131: (9,950) | Y131: (9,950) | Z131: (9,950) | AA131: (9,950) | AB131: (9,950) | AC131: (9,950) | AD131: (9,950) | AE131: (9,950) | AF131: (9,950) | AG131: (9,950) | AH131: (9,950) | AI131: (9,950) | AJ131: (9,865) | AK131: (9,752) | AL131: (9,639) | AM131: (9,526) | AN131: (8,230) | AO131: 0 | AP131: 0 | AQ131: 0 | AR131: 0 | AS131: 0 | AT131: 0 | AU131: 0 | AV131: 0 | AW131: 0 | AX131: 0 | AY131: 0 | AZ131: 0 | BA131: 0 | BB131: 0 | BC131: 0 | BD131: 0 | BE131: 0 | BF131: 0 | BG131: 0 | BH131: 0 | BI131: 0 | BJ131: 0
C132: Scheduled Interest Paid (Net of Mandatory) | K132: $000s | N132: (483,246) | R132: =IF(R104=1,-Inputs!$L$104,-(R130 *R109+R131)* R$107) -> 0 | S132: =IF(S104=1,-Inputs!$L$104,-(S130 *S109+S131)* S$107) -> 0 | T132: =IF(T104=1,-Inputs!$L$104,-(T130 *T109+T131)* T$107) -> (17,331) | U132: =IF(U104=1,-Inputs!$L$104,-(U130 *U109+U131)* U$107) -> (32,866) | V132: =IF(V104=1,-Inputs!$L$104,-(V130 *V109+V131)* V$107) -> (29,881) | W132: =IF(W104=1,-Inputs!$L$104,-(W130 *W109+W131)* W$107) -> (28,401) | X132: =IF(X104=1,-Inputs!$L$104,-(X130 *X109+X131)* X$107) -> (28,401) | Y132: =IF(Y104=1,-Inputs!$L$104,-(Y130 *Y109+Y131)* Y$107) -> (28,388) | Z132: =IF(Z104=1,-Inputs!$L$104,-(Z130 *Z109+Z131)* Z$107) -> (28,223) | AA132: =IF(AA104=1,-Inputs!$L$104,-(AA130 *AA109+AA131)* AA$107) -> (27,632) | AB132: =IF(AB104=1,-Inputs!$L$104,-(AB130 *AB109+AB131)* AB$107) -> (27,056) | AC132: =IF(AC104=1,-Inputs!$L$104,-(AC130 *AC109+AC131)* AC$107) -> (26,653) | AD132: =IF(AD104=1,-Inputs!$L$104,-(AD130 *AD109+AD131)* AD$107) -> (26,426) | AE132: =IF(AE104=1,-Inputs!$L$104,-(AE130 *AE109+AE131)* AE$107) -> (26,362) | AF132: =IF(AF104=1,-Inputs!$L$104,-(AF130 *AF109+AF131)* AF$107) -> (26,279) | AG132: =IF(AG104=1,-Inputs!$L$104,-(AG130 *AG109+AG131)* AG$107) -> (25,568) | AH132: =IF(AH104=1,-Inputs!$L$104,-(AH130 *AH109+AH131)* AH$107) -> (24,483) | AI132: =IF(AI104=1,-Inputs!$L$104,-(AI130 *AI109+AI131)* AI$107) -> (22,870) | AJ132: =IF(AJ104=1,-Inputs!$L$104,-(AJ130 *AJ109+AJ131)* AJ$107) -> (20,330) | AK132: =IF(AK104=1,-Inputs!$L$104,-(AK130 *AK109+AK131)* AK$107) -> (16,761) | AL132: =IF(AL104=1,-Inputs!$L$104,-(AL130 *AL109+AL131)* AL$107) -> (12,416) | AM132: =IF(AM104=1,-Inputs!$L$104,-(AM130 *AM109+AM131)* AM$107) -> (6,917) | AN132: =IF(AN104=1,-Inputs!$L$104,-(AN130 *AN109+AN131)* AN$107) -> 0 | AO132: =IF(AO104=1,-Inputs!$L$104,-(AO130 *AO109+AO131)* AO$107) -> 0 | AP132: =IF(AP104=1,-Inputs!$L$104,-(AP130 *AP109+AP131)* AP$107) -> 0 | AQ132: =IF(AQ104=1,-Inputs!$L$104,-(AQ130 *AQ109+AQ131)* AQ$107) -> 0 | AR132: =IF(AR104=1,-Inputs!$L$104,-(AR130 *AR109+AR131)* AR$107) -> 0 | AS132: =IF(AS104=1,-Inputs!$L$104,-(AS130 *AS109+AS131)* AS$107) -> 0 | AT132: =IF(AT104=1,-Inputs!$L$104,-(AT130 *AT109+AT131)* AT$107) -> 0 | AU132: =IF(AU104=1,-Inputs!$L$104,-(AU130 *AU109+AU131)* AU$107) -> 0 | AV132: =IF(AV104=1,-Inputs!$L$104,-(AV130 *AV109+AV131)* AV$107) -> 0 | AW132: =IF(AW104=1,-Inputs!$L$104,-(AW130 *AW109+AW131)* AW$107) -> 0 | AX132: =IF(AX104=1,-Inputs!$L$104,-(AX130 *AX109+AX131)* AX$107) -> 0 | AY132: =IF(AY104=1,-Inputs!$L$104,-(AY130 *AY109+AY131)* AY$107) -> 0 | AZ132: =IF(AZ104=1,-Inputs!$L$104,-(AZ130 *AZ109+AZ131)* AZ$107) -> 0 | BA132: =IF(BA104=1,-Inputs!$L$104,-(BA130 *BA109+BA131)* BA$107) -> 0 | BB132: =IF(BB104=1,-Inputs!$L$104,-(BB130 *BB109+BB131)* BB$107) -> 0 | BC132: =IF(BC104=1,-Inputs!$L$104,-(BC130 *BC109+BC131)* BC$107) -> 0 | BD132: =IF(BD104=1,-Inputs!$L$104,-(BD130 *BD109+BD131)* BD$107) -> 0 | BE132: =IF(BE104=1,-Inputs!$L$104,-(BE130 *BE109+BE131)* BE$107) -> 0 | BF132: =IF(BF104=1,-Inputs!$L$104,-(BF130 *BF109+BF131)* BF$107) -> 0 | BG132: =IF(BG104=1,-Inputs!$L$104,-(BG130 *BG109+BG131)* BG$107) -> 0 | BH132: =IF(BH104=1,-Inputs!$L$104,-(BH130 *BH109+BH131)* BH$107) -> 0 | BI132: =IF(BI104=1,-Inputs!$L$104,-(BI130 *BI109+BI131)* BI$107) -> 0 | BJ132: =IF(BJ104=1,-Inputs!$L$104,-(BJ130 *BJ109+BJ131)* BJ$107) -> 0
C134: Mandatory Principal Paid | K134: $000s | N134: =SUM(Q134:BJ134) -> (14,917) | R134: =-MIN(SUM(R127:R128)+SUM(R130:R132),PPMT(R$115,1,$N$103+1-R$108,-R$127)) * (R$108>0) -> 0 | S134: 0 | T134: 0 | U134: 0 | V134: 0 | W134: 0 | X134: 0 | Y134: 0 | Z134: 0 | AA134: 0 | AB134: 0 | AC134: 0 | AD134: 0 | AE134: 0 | AF134: 0 | AG134: 0 | AH134: 0 | AI134: 0 | AJ134: 0 | AK134: 0 | AL134: 0 | AM134: 0 | AN134: (14,917) | AO134: 0 | AP134: 0 | AQ134: 0 | AR134: 0 | AS134: 0 | AT134: 0 | AU134: 0 | AV134: 0 | AW134: 0 | AX134: 0 | AY134: 0 | AZ134: 0 | BA134: 0 | BB134: 0 | BC134: 0 | BD134: 0 | BE134: 0 | BF134: 0 | BG134: 0 | BH134: 0 | BI134: 0 | BJ134: 0
C135: Scheduled Principal Paid | K135: $000s | N135: (90,000) | R135: =+-MIN(-R146,SUM(R127:R128)+SUM(R130:R134)) -> 0 | S135: 0 | T135: 0 | U135: 0 | V135: 0 | W135: 0 | X135: 0 | Y135: 0 | Z135: 0 | AA135: 0 | AB135: 0 | AC135: 0 | AD135: 0 | AE135: 0 | AF135: 0 | AG135: 0 | AH135: 0 | AI135: (5,000) | AJ135: (10,000) | AK135: (10,000) | AL135: (10,000) | AM135: (30,000) | AN135: (25,000) | AO135: 0 | AP135: 0 | AQ135: 0 | AR135: 0 | AS135: 0 | AT135: 0 | AU135: 0 | AV135: 0 | AW135: 0 | AX135: =+-MIN(-AX146,SUM(AX127:AX128)+SUM(AX130:AX134)) -> 0 | AY135: 0 | AZ135: 0 | BA135: 0 | BB135: 0 | BC135: 0 | BD135: 0 | BE135: 0 | BF135: 0 | BG135: 0 | BH135: 0 | BI135: 0 | BJ135: 0
C137: TIFIA Repayments from Refi | K137: $000s | N137: (104,917) | R137: =-MIN(R185* Inputs!$L$103,R127+R134+R135) -> 0 | S137: =-MIN(S185* Inputs!$L$103,S127+S134+S135) -> 0 | T137: =-MIN(T185* Inputs!$L$103,T127+T134+T135) -> 0 | U137: =-MIN(U185* Inputs!$L$103,U127+U134+U135) -> 0 | V137: =-MIN(V185* Inputs!$L$103,V127+V134+V135) -> 0 | W137: =-MIN(W185* Inputs!$L$103,W127+W134+W135) -> 0 | X137: =-MIN(X185* Inputs!$L$103,X127+X134+X135) -> 0 | Y137: =-MIN(Y185* Inputs!$L$103,Y127+Y134+Y135) -> 0 | Z137: =-MIN(Z185* Inputs!$L$103,Z127+Z134+Z135) -> 0 | AA137: =-MIN(AA185* Inputs!$L$103,AA127+AA134+AA135) -> 0 | AB137: =-MIN(AB185* Inputs!$L$103,AB127+AB134+AB135) -> 0 | AC137: =-MIN(AC185* Inputs!$L$103,AC127+AC134+AC135) -> 0 | AD137: =-MIN(AD185* Inputs!$L$103,AD127+AD134+AD135) -> 0 | AE137: =-MIN(AE185* Inputs!$L$103,AE127+AE134+AE135) -> 0 | AF137: =-MIN(AF185* Inputs!$L$103,AF127+AF134+AF135) -> 0 | AG137: =-MIN(AG185* Inputs!$L$103,AG127+AG134+AG135) -> 0 | AH137: =-MIN(AH185* Inputs!$L$103,AH127+AH134+AH135) -> 0 | AI137: =-MIN(AI185* Inputs!$L$103,AI127+AI134+AI135) -> (5,000) | AJ137: =-MIN(AJ185* Inputs!$L$103,AJ127+AJ134+AJ135) -> (10,000) | AK137: =-MIN(AK185* Inputs!$L$103,AK127+AK134+AK135) -> (10,000) | AL137: =-MIN(AL185* Inputs!$L$103,AL127+AL134+AL135) -> (10,000) | AM137: =-MIN(AM185* Inputs!$L$103,AM127+AM134+AM135) -> (30,000) | AN137: =-MIN(AN185* Inputs!$L$103,AN127+AN134+AN135) -> (39,917) | AO137: =-MIN(AO185* Inputs!$L$103,AO127+AO134+AO135) -> 0 | AP137: =-MIN(AP185* Inputs!$L$103,AP127+AP134+AP135) -> 0 | AQ137: =-MIN(AQ185* Inputs!$L$103,AQ127+AQ134+AQ135) -> 0 | AR137: =-MIN(AR185* Inputs!$L$103,AR127+AR134+AR135) -> 0 | AS137: =-MIN(AS185* Inputs!$L$103,AS127+AS134+AS135) -> 0 | AT137: =-MIN(AT185* Inputs!$L$103,AT127+AT134+AT135) -> 0 | AU137: =-MIN(AU185* Inputs!$L$103,AU127+AU134+AU135) -> 0 | AV137: =-MIN(AV185* Inputs!$L$103,AV127+AV134+AV135) -> 0 | AW137: =-MIN(AW185* Inputs!$L$103,AW127+AW134+AW135) -> 0 | AX137: =-MIN(AX185* Inputs!$L$103,AX127+AX134+AX135) -> 0 | AY137: =-MIN(AY185* Inputs!$L$103,AY127+AY134+AY135) -> 0 | AZ137: =-MIN(AZ185* Inputs!$L$103,AZ127+AZ134+AZ135) -> 0 | BA137: =-MIN(BA185* Inputs!$L$103,BA127+BA134+BA135) -> 0 | BB137: =-MIN(BB185* Inputs!$L$103,BB127+BB134+BB135) -> 0 | BC137: =-MIN(BC185* Inputs!$L$103,BC127+BC134+BC135) -> 0 | BD137: =-MIN(BD185* Inputs!$L$103,BD127+BD134+BD135) -> 0 | BE137: =-MIN(BE185* Inputs!$L$103,BE127+BE134+BE135) -> 0 | BF137: =-MIN(BF185* Inputs!$L$103,BF127+BF134+BF135) -> 0 | BG137: =-MIN(BG185* Inputs!$L$103,BG127+BG134+BG135) -> 0 | BH137: =-MIN(BH185* Inputs!$L$103,BH127+BH134+BH135) -> 0 | BI137: =-MIN(BI185* Inputs!$L$103,BI127+BI134+BI135) -> 0 | BJ137: =-MIN(BJ185* Inputs!$L$103,BJ127+BJ134+BJ135) -> 0
C139: TIFIA Revenue Sharing | K139: $000s | N139: (329,276) | R139: =-MIN(-R160,SUM(R127:R128)+SUM(R130:R137)) -> 0 | S139: 0 | T139: 0 | U139: 0 | V139: 0 | W139: 0 | X139: 0 | Y139: (1,145) | Z139: (6,531) | AA139: (6,608) | AB139: (4,698) | AC139: (2,761) | AD139: (804) | AE139: 0 | AF139: (7,360) | AG139: (11,373) | AH139: (16,454) | AI139: (22,522) | AJ139: (29,679) | AK139: (38,059) | AL139: (48,120) | AM139: (59,778) | AN139: (73,384) | AO139: 0 | AP139: 0 | AQ139: 0 | AR139: 0 | AS139: 0 | AT139: 0 | AU139: 0 | AV139: 0 | AW139: 0 | AX139: =-MIN(-AX160,SUM(AX127:AX128)+SUM(AX130:AX137)) -> 0 | AY139: 0 | AZ139: 0 | BA139: 0 | BB139: 0 | BC139: 0 | BD139: 0 | BE139: 0 | BF139: 0 | BG139: 0 | BH139: 0 | BI139: 0 | BJ139: 0
C140: TIFIA Repayments from Refi Rev Share | K140: $000s | N140: (309,355) | R140: =IF(ROUND(SUM(R127:R128)+SUM(R130:R139),0)=0,0,MAX(+R160,-SUM(R127:R128)-SUM(R130:R139))) * Inputs!$L$102 -> 0 | S140: =IF(ROUND(SUM(S127:S128)+SUM(S130:S139),0)=0,0,MAX(+S160,-SUM(S127:S128)-SUM(S130:S139))) * Inputs!$L$102 -> 0 | T140: =IF(ROUND(SUM(T127:T128)+SUM(T130:T139),0)=0,0,MAX(+T160,-SUM(T127:T128)-SUM(T130:T139))) * Inputs!$L$102 -> 0 | U140: =IF(ROUND(SUM(U127:U128)+SUM(U130:U139),0)=0,0,MAX(+U160,-SUM(U127:U128)-SUM(U130:U139))) * Inputs!$L$102 -> 0 | V140: =IF(ROUND(SUM(V127:V128)+SUM(V130:V139),0)=0,0,MAX(+V160,-SUM(V127:V128)-SUM(V130:V139))) * Inputs!$L$102 -> 0 | W140: =IF(ROUND(SUM(W127:W128)+SUM(W130:W139),0)=0,0,MAX(+W160,-SUM(W127:W128)-SUM(W130:W139))) * Inputs!$L$102 -> 0 | X140: =IF(ROUND(SUM(X127:X128)+SUM(X130:X139),0)=0,0,MAX(+X160,-SUM(X127:X128)-SUM(X130:X139))) * Inputs!$L$102 -> 0 | Y140: =IF(ROUND(SUM(Y127:Y128)+SUM(Y130:Y139),0)=0,0,MAX(+Y160,-SUM(Y127:Y128)-SUM(Y130:Y139))) * Inputs!$L$102 -> (1,145) | Z140: =IF(ROUND(SUM(Z127:Z128)+SUM(Z130:Z139),0)=0,0,MAX(+Z160,-SUM(Z127:Z128)-SUM(Z130:Z139))) * Inputs!$L$102 -> (6,531) | AA140: =IF(ROUND(SUM(AA127:AA128)+SUM(AA130:AA139),0)=0,0,MAX(+AA160,-SUM(AA127:AA128)-SUM(AA130:AA139))) * Inputs!$L$102 -> (6,608) | AB140: =IF(ROUND(SUM(AB127:AB128)+SUM(AB130:AB139),0)=0,0,MAX(+AB160,-SUM(AB127:AB128)-SUM(AB130:AB139))) * Inputs!$L$102 -> (4,698) | AC140: =IF(ROUND(SUM(AC127:AC128)+SUM(AC130:AC139),0)=0,0,MAX(+AC160,-SUM(AC127:AC128)-SUM(AC130:AC139))) * Inputs!$L$102 -> (2,761) | AD140: =IF(ROUND(SUM(AD127:AD128)+SUM(AD130:AD139),0)=0,0,MAX(+AD160,-SUM(AD127:AD128)-SUM(AD130:AD139))) * Inputs!$L$102 -> (804) | AE140: =IF(ROUND(SUM(AE127:AE128)+SUM(AE130:AE139),0)=0,0,MAX(+AE160,-SUM(AE127:AE128)-SUM(AE130:AE139))) * Inputs!$L$102 -> 0 | AF140: =IF(ROUND(SUM(AF127:AF128)+SUM(AF130:AF139),0)=0,0,MAX(+AF160,-SUM(AF127:AF128)-SUM(AF130:AF139))) * Inputs!$L$102 -> (7,360) | AG140: =IF(ROUND(SUM(AG127:AG128)+SUM(AG130:AG139),0)=0,0,MAX(+AG160,-SUM(AG127:AG128)-SUM(AG130:AG139))) * Inputs!$L$102 -> (11,373) | AH140: =IF(ROUND(SUM(AH127:AH128)+SUM(AH130:AH139),0)=0,0,MAX(+AH160,-SUM(AH127:AH128)-SUM(AH130:AH139))) * Inputs!$L$102 -> (16,454) | AI140: =IF(ROUND(SUM(AI127:AI128)+SUM(AI130:AI139),0)=0,0,MAX(+AI160,-SUM(AI127:AI128)-SUM(AI130:AI139))) * Inputs!$L$102 -> (22,522) | AJ140: =IF(ROUND(SUM(AJ127:AJ128)+SUM(AJ130:AJ139),0)=0,0,MAX(+AJ160,-SUM(AJ127:AJ128)-SUM(AJ130:AJ139))) * Inputs!$L$102 -> (29,679) | AK140: =IF(ROUND(SUM(AK127:AK128)+SUM(AK130:AK139),0)=0,0,MAX(+AK160,-SUM(AK127:AK128)-SUM(AK130:AK139))) * Inputs!$L$102 -> (38,059) | AL140: =IF(ROUND(SUM(AL127:AL128)+SUM(AL130:AL139),0)=0,0,MAX(+AL160,-SUM(AL127:AL128)-SUM(AL130:AL139))) * Inputs!$L$102 -> (48,120) | AM140: =IF(ROUND(SUM(AM127:AM128)+SUM(AM130:AM139),0)=0,0,MAX(+AM160,-SUM(AM127:AM128)-SUM(AM130:AM139))) * Inputs!$L$102 -> (59,778) | AN140: =IF(ROUND(SUM(AN127:AN128)+SUM(AN130:AN139),0)=0,0,MAX(+AN160,-SUM(AN127:AN128)-SUM(AN130:AN139))) * Inputs!$L$102 -> (53,463) | AO140: =IF(ROUND(SUM(AO127:AO128)+SUM(AO130:AO139),0)=0,0,MAX(+AO160,-SUM(AO127:AO128)-SUM(AO130:AO139))) * Inputs!$L$102 -> 0 | AP140: =IF(ROUND(SUM(AP127:AP128)+SUM(AP130:AP139),0)=0,0,MAX(+AP160,-SUM(AP127:AP128)-SUM(AP130:AP139))) * Inputs!$L$102 -> 0 | AQ140: =IF(ROUND(SUM(AQ127:AQ128)+SUM(AQ130:AQ139),0)=0,0,MAX(+AQ160,-SUM(AQ127:AQ128)-SUM(AQ130:AQ139))) * Inputs!$L$102 -> 0 | AR140: =IF(ROUND(SUM(AR127:AR128)+SUM(AR130:AR139),0)=0,0,MAX(+AR160,-SUM(AR127:AR128)-SUM(AR130:AR139))) * Inputs!$L$102 -> 0 | AS140: =IF(ROUND(SUM(AS127:AS128)+SUM(AS130:AS139),0)=0,0,MAX(+AS160,-SUM(AS127:AS128)-SUM(AS130:AS139))) * Inputs!$L$102 -> 0 | AT140: =IF(ROUND(SUM(AT127:AT128)+SUM(AT130:AT139),0)=0,0,MAX(+AT160,-SUM(AT127:AT128)-SUM(AT130:AT139))) * Inputs!$L$102 -> 0 | AU140: =IF(ROUND(SUM(AU127:AU128)+SUM(AU130:AU139),0)=0,0,MAX(+AU160,-SUM(AU127:AU128)-SUM(AU130:AU139))) * Inputs!$L$102 -> 0 | AV140: =IF(ROUND(SUM(AV127:AV128)+SUM(AV130:AV139),0)=0,0,MAX(+AV160,-SUM(AV127:AV128)-SUM(AV130:AV139))) * Inputs!$L$102 -> 0 | AW140: =IF(ROUND(SUM(AW127:AW128)+SUM(AW130:AW139),0)=0,0,MAX(+AW160,-SUM(AW127:AW128)-SUM(AW130:AW139))) * Inputs!$L$102 -> 0 | AX140: =IF(ROUND(SUM(AX127:AX128)+SUM(AX130:AX139),0)=0,0,MAX(+AX160,-SUM(AX127:AX128)-SUM(AX130:AX139))) * Inputs!$L$102 -> 0 | AY140: =IF(ROUND(SUM(AY127:AY128)+SUM(AY130:AY139),0)=0,0,MAX(+AY160,-SUM(AY127:AY128)-SUM(AY130:AY139))) * Inputs!$L$102 -> 0 | AZ140: =IF(ROUND(SUM(AZ127:AZ128)+SUM(AZ130:AZ139),0)=0,0,MAX(+AZ160,-SUM(AZ127:AZ128)-SUM(AZ130:AZ139))) * Inputs!$L$102 -> 0 | BA140: =IF(ROUND(SUM(BA127:BA128)+SUM(BA130:BA139),0)=0,0,MAX(+BA160,-SUM(BA127:BA128)-SUM(BA130:BA139))) * Inputs!$L$102 -> 0 | BB140: =IF(ROUND(SUM(BB127:BB128)+SUM(BB130:BB139),0)=0,0,MAX(+BB160,-SUM(BB127:BB128)-SUM(BB130:BB139))) * Inputs!$L$102 -> 0 | BC140: =IF(ROUND(SUM(BC127:BC128)+SUM(BC130:BC139),0)=0,0,MAX(+BC160,-SUM(BC127:BC128)-SUM(BC130:BC139))) * Inputs!$L$102 -> 0 | BD140: =IF(ROUND(SUM(BD127:BD128)+SUM(BD130:BD139),0)=0,0,MAX(+BD160,-SUM(BD127:BD128)-SUM(BD130:BD139))) * Inputs!$L$102 -> 0 | BE140: =IF(ROUND(SUM(BE127:BE128)+SUM(BE130:BE139),0)=0,0,MAX(+BE160,-SUM(BE127:BE128)-SUM(BE130:BE139))) * Inputs!$L$102 -> 0 | BF140: =IF(ROUND(SUM(BF127:BF128)+SUM(BF130:BF139),0)=0,0,MAX(+BF160,-SUM(BF127:BF128)-SUM(BF130:BF139))) * Inputs!$L$102 -> 0 | BG140: =IF(ROUND(SUM(BG127:BG128)+SUM(BG130:BG139),0)=0,0,MAX(+BG160,-SUM(BG127:BG128)-SUM(BG130:BG139))) * Inputs!$L$102 -> 0 | BH140: =IF(ROUND(SUM(BH127:BH128)+SUM(BH130:BH139),0)=0,0,MAX(+BH160,-SUM(BH127:BH128)-SUM(BH130:BH139))) * Inputs!$L$102 -> 0 | BI140: =IF(ROUND(SUM(BI127:BI128)+SUM(BI130:BI139),0)=0,0,MAX(+BI160,-SUM(BI127:BI128)-SUM(BI130:BI139))) * Inputs!$L$102 -> 0 | BJ140: =IF(ROUND(SUM(BJ127:BJ128)+SUM(BJ130:BJ139),0)=0,0,MAX(+BJ160,-SUM(BJ127:BJ128)-SUM(BJ130:BJ139))) * Inputs!$L$102 -> 0
C141: Closing Balance | N141: =IF(ROUND(SUM(N128:N140),0)<>0,1,0) -> 0 | R141: =SUM(R127:R128)+SUM(R130:R140) -> 793,974 | S141: 830,268 | T141: 848,465 | U141: 848,465 | V141: 848,465 | W141: 848,465 | X141: 848,465 | Y141: 846,175 | Z141: 833,112 | AA141: 819,895 | AB141: 810,500 | AC141: 804,979 | AD141: 803,370 | AE141: 803,370 | AF141: 788,650 | AG141: 765,904 | AH141: 732,996 | AI141: 677,953 | AJ141: 598,596 | AK141: 502,477 | AL141: 386,236 | AM141: 206,680 | AN141: 0 | AO141: 0 | AP141: 0 | AQ141: 0 | AR141: 0 | AS141: 0 | AT141: 0 | AU141: 0 | AV141: 0 | AW141: 0 | AX141: =SUM(AX127:AX128)+SUM(AX130:AX140) -> 0 | AY141: 0 | AZ141: 0 | BA141: 0 | BB141: 0 | BC141: 0 | BD141: 0 | BE141: 0 | BF141: 0 | BG141: 0 | BH141: 0 | BI141: 0 | BJ141: 0
C143: End TIFIA debt | K143: Flag | R143: =+IF(AND(ROUND(Q141,0)>0,ROUND(R141,0)=0), 1,0) -> 0 | S143: 0 | T143: 0 | U143: 0 | V143: 0 | W143: 0 | X143: 0 | Y143: 0 | Z143: 0 | AA143: 0 | AB143: 0 | AC143: 0 | AD143: 0 | AE143: 0 | AF143: 0 | AG143: 0 | AH143: 0 | AI143: 0 | AJ143: 0 | AK143: 0 | AL143: 0 | AM143: 0 | AN143: 1 | AO143: 0 | AP143: =+IF(AND(ROUND(AO141,0)>0,ROUND(AP141,0)=0), 1,0) -> 0 | AQ143: 0 | AR143: 0 | AS143: 0 | AT143: 0 | AU143: 0 | AV143: 0 | AW143: 0 | AX143: 0 | AY143: 0 | AZ143: 0 | BA143: 0 | BB143: 0 | BC143: 0 | BD143: 0 | BE143: 0 | BF143: 0 | BG143: 0 | BH143: 0 | BI143: 0 | BJ143: 0
D145: TIFIA Mandatory profile | K145: % | R145: 0 | S145: 0 | T145: 2,000 | U145: 5,485 | V145: 8,470 | W145: 9,950 | X145: 9,950 | Y145: 9,950 | Z145: 9,950 | AA145: 9,950 | AB145: 9,950 | AC145: 9,950 | AD145: 9,950 | AE145: 9,950 | AF145: 9,950 | AG145: 9,950 | AH145: 9,950 | AI145: 9,950 | AJ145: 9,865 | AK145: 9,752 | AL145: 9,639 | AM145: 9,526 | AN145: 22,546 | AO145: 33,561 | AP145: 30,563 | AQ145: 27,428 | AR145: 24,153 | AS145: 20,723
D146: Scheduled Principal Paid | K146: $000s | N146: =SUM(Q146:BJ146) -> (90,000) | R146: 0 | S146: 0 | T146: 0 | U146: 0 | V146: 0 | W146: 0 | X146: 0 | Y146: 0 | Z146: 0 | AA146: 0 | AB146: 0 | AC146: 0 | AD146: 0 | AE146: 0 | AF146: 0 | AG146: 0 | AH146: 0 | AI146: (5,000) | AJ146: (10,000) | AK146: (10,000) | AL146: (10,000) | AM146: (30,000) | AN146: (25,000) | AO146: 0 | AP146: 0 | AQ146: 0 | AR146: 0 | AS146: 0 | AT146: 0 | AU146: 0 | AV146: 0 | AW146: 0 | AX146: 0 | AY146: 0 | AZ146: 0 | BA146: 0 | BB146: 0 | BC146: 0 | BD146: 0 | BE146: 0 | BF146: 0 | BG146: 0 | BH146: 0 | BI146: 0 | BJ146: 0
C148: TIFIA Revenue Sharing
D150: Forecast Revenue by financial contract | K150: $000s | N150: =SUM(Q150:BJ150) -> 10,038,551 | R150: 89,048 | S150: 98,709 | T150: 102,981 | U150: 106,716 | V150: 111,256 | W150: 115,869 | X150: 120,555 | Y150: 125,314 | Z150: 125,391 | AA150: 133,673 | AB150: 142,089 | AC150: 150,638 | AD150: 159,322 | AE150: 167,798 | AF150: 164,055 | AG150: 171,951 | AH150: 179,705 | AI150: 187,555 | AJ150: 195,525 | AK150: 203,614 | AL150: 211,823 | AM150: 220,152 | AN150: 228,434 | AO150: 236,809 | AP150: 245,302 | AQ150: 253,832 | AR150: 262,080 | AS150: 270,154 | AT150: 278,218 | AU150: 285,339 | AV150: 291,508 | AW150: 297,607 | AX150: 303,713 | AY150: 309,881 | AZ150: 314,668 | BA150: 319,485 | BB150: 323,140 | BC150: 326,678 | BD150: 330,257 | BE150: 333,649 | BF150: 337,282 | BG150: 340,480 | BH150: 344,047 | BI150: 347,009 | BJ150: 175,240
D151: CPI Factor | R151: =Oper!R26 -> 117.3% | S151: =Oper!S26 -> 119.9% | T151: =Oper!T26 -> 122.6% | U151: =Oper!U26 -> 125.4% | V151: =Oper!V26 -> 128.2% | W151: =Oper!W26 -> 131.1% | X151: =Oper!X26 -> 134.1% | Y151: =Oper!Y26 -> 137.2% | Z151: =Oper!Z26 -> 140.4% | AA151: =Oper!AA26 -> 143.6% | AB151: =Oper!AB26 -> 146.9% | AC151: =Oper!AC26 -> 150.3% | AD151: =Oper!AD26 -> 153.8% | AE151: =Oper!AE26 -> 157.3% | AF151: =Oper!AF26 -> 160.9% | AG151: =Oper!AG26 -> 164.6% | AH151: =Oper!AH26 -> 168.4% | AI151: =Oper!AI26 -> 172.3% | AJ151: =Oper!AJ26 -> 176.2% | AK151: =Oper!AK26 -> 180.3% | AL151: =Oper!AL26 -> 184.4% | AM151: =Oper!AM26 -> 188.7% | AN151: =Oper!AN26 -> 193.0% | AO151: =Oper!AO26 -> 197.5% | AP151: =Oper!AP26 -> 202.0% | AQ151: =Oper!AQ26 -> 206.6% | AR151: =Oper!AR26 -> 211.4% | AS151: =Oper!AS26 -> 216.3% | AT151: =Oper!AT26 -> 221.2% | AU151: =Oper!AU26 -> 226.3% | AV151: =Oper!AV26 -> 231.5% | AW151: =Oper!AW26 -> 236.8% | AX151: =Oper!AX26 -> 242.3% | AY151: =Oper!AY26 -> 247.9% | AZ151: =Oper!AZ26 -> 253.6% | BA151: =Oper!BA26 -> 259.4% | BB151: =Oper!BB26 -> 265.4% | BC151: =Oper!BC26 -> 271.5% | BD151: =Oper!BD26 -> 277.7% | BE151: =Oper!BE26 -> 284.1% | BF151: =Oper!BF26 -> 290.6% | BG151: =Oper!BG26 -> 297.3% | BH151: =Oper!BH26 -> 304.2% | BI151: =Oper!BI26 -> 311.2% | BJ151: =Oper!BJ26 -> 318.3%
D152: Forecast Nominal Revenue | K152: $000s | N152: =SUM(Q152:BJ152) -> 22,237,957 | R152: =R150*R151 -> 104,423 | S152: 118,357 | T152: 126,257 | U152: 133,780 | V152: 142,610 | W152: 151,939 | X152: 161,720 | Y152: 171,970 | Z152: 176,033 | AA152: 191,977 | AB152: 208,756 | AC152: 226,407 | AD152: 244,966 | AE152: 263,932 | AF152: 263,980 | AG152: 283,049 | AH152: 302,617 | AI152: 323,101 | AJ152: 344,577 | AK152: 367,086 | AL152: 390,669 | AM152: 415,368 | AN152: 440,908 | AO152: 467,586 | AP152: 495,496 | AQ152: 524,518 | AR152: 554,017 | AS152: 584,220 | AT152: 615,498 | AU152: 645,771 | AV152: 674,905 | AW152: 704,872 | AX152: 735,879 | AY152: 768,094 | AZ152: 797,897 | BA152: 828,746 | BB152: 857,505 | BC152: 886,833 | BD152: 917,170 | BE152: 947,902 | BF152: 980,262 | BG152: 1,012,315 | BH152: 1,046,449 | BI152: 1,079,732 | BJ152: 557,807
D153: Actual Nominal Revenue | K153: $000s | N153: 31,617,620 | R153: =+Oper!R16 -> 0 | S153: =+Oper!S16 -> 99,995 | T153: =+Oper!T16 -> 110,893 | U153: =+Oper!U16 -> 122,977 | V153: =+Oper!V16 -> 136,379 | W153: =+Oper!W16 -> 147,990 | X153: =+Oper!X16 -> 160,589 | Y153: =+Oper!Y16 -> 174,260 | Z153: =+Oper!Z16 -> 189,095 | AA153: =+Oper!AA16 -> 205,194 | AB153: =+Oper!AB16 -> 218,152 | AC153: =+Oper!AC16 -> 231,928 | AD153: =+Oper!AD16 -> 246,574 | AE153: =+Oper!AE16 -> 262,146 | AF153: =+Oper!AF16 -> 278,700 | AG153: =+Oper!AG16 -> 305,795 | AH153: =+Oper!AH16 -> 335,525 | AI153: =+Oper!AI16 -> 368,144 | AJ153: =+Oper!AJ16 -> 403,935 | AK153: =+Oper!AK16 -> 443,205 | AL153: =+Oper!AL16 -> 486,910 | AM153: =+Oper!AM16 -> 534,925 | AN153: =+Oper!AN16 -> 587,675 | AO153: =+Oper!AO16 -> 645,626 | AP153: =+Oper!AP16 -> 709,292 | AQ153: =+Oper!AQ16 -> 750,383 | AR153: =+Oper!AR16 -> 793,854 | AS153: =+Oper!AS16 -> 839,843 | AT153: =+Oper!AT16 -> 888,497 | AU153: =+Oper!AU16 -> 939,969 | AV153: =+Oper!AV16 -> 993,785 | AW153: =+Oper!AW16 -> 1,050,682 | AX153: =+Oper!AX16 -> 1,110,837 | AY153: =+Oper!AY16 -> 1,174,435 | AZ153: =+Oper!AZ16 -> 1,241,675 | BA153: =+Oper!BA16 -> 1,299,492 | BB153: =+Oper!BB16 -> 1,360,002 | BC153: =+Oper!BC16 -> 1,423,329 | BD153: =+Oper!BD16 -> 1,489,605 | BE153: =+Oper!BE16 -> 1,558,968 | BF153: =+Oper!BF16 -> 1,616,728 | BG153: =+Oper!BG16 -> 1,676,628 | BH153: =+Oper!BH16 -> 1,738,747 | BI153: =+Oper!BI16 -> 1,803,168 | BJ153: =+Oper!BJ16 -> 461,090
D155: % to share | K155: % | L155: =+Inputs!$L$101 -> 50.00%
D157: Cashflow after TIFIA Cash Trapped | K157: $000s | N157: =SUM(Q157:BJ157) -> 24,809,313 | R157: =+CF!R51 -> 0 | S157: =+CF!S51 -> 0 | T157: =+CF!T51 -> 207,235 | U157: =+CF!U51 -> 34,432 | V157: =+CF!V51 -> 52,615 | W157: =+CF!W51 -> 64,711 | X157: =+CF!X51 -> 76,226 | Y157: =+CF!Y51 -> 88,728 | Z157: =+CF!Z51 -> 102,020 | AA157: =+CF!AA51 -> 117,218 | AB157: =+CF!AB51 -> 128,892 | AC157: =+CF!AC51 -> 141,386 | AD157: =+CF!AD51 -> 153,884 | AE157: =+CF!AE51 -> 163,894 | AF157: =+CF!AF51 -> 181,192 | AG157: =+CF!AG51 -> 205,409 | AH157: =+CF!AH51 -> 231,774 | AI157: =+CF!AI51 -> 260,155 | AJ157: =+CF!AJ51 -> 291,167 | AK157: =+CF!AK51 -> 325,769 | AL157: =+CF!AL51 -> 363,855 | AM157: =+CF!AM51 -> 390,909 | AN157: =+CF!AN51 -> 477,330 | AO157: =+CF!AO51 -> 518,212 | AP157: =+CF!AP51 -> 583,399 | AQ157: =+CF!AQ51 -> 620,712 | AR157: =+CF!AR51 -> 659,813 | AS157: =+CF!AS51 -> 701,350 | AT157: =+CF!AT51 -> 635,752 | AU157: =+CF!AU51 -> 683,697 | AV157: =+CF!AV51 -> 730,581 | AW157: =+CF!AW51 -> 775,838 | AX157: =+CF!AX51 -> 817,143 | AY157: =+CF!AY51 -> 879,298 | AZ157: =+CF!AZ51 -> 944,190 | BA157: =+CF!BA51 -> 999,585 | BB157: =+CF!BB51 -> 1,053,911 | BC157: =+CF!BC51 -> 1,086,080 | BD157: =+CF!BD51 -> 1,396,843 | BE157: =+CF!BE51 -> 1,270,006 | BF157: =+CF!BF51 -> 1,479,620 | BG157: =+CF!BG51 -> 1,534,181 | BH157: =+CF!BH51 -> 1,590,369 | BI157: =+CF!BI51 -> 1,510,144 | BJ157: =+CF!BJ51 -> 279,788
D158: TIFIA Revenue to share | K158: $000s | N158: (1,689,279) | R158: =IF(R143=1,(((MAX(R153-R152,0))) *- $L$155),(IF(R107=0,0,-MIN(MAX(0,R157),MAX(0,(R153-R152)) * $L$155))) * (IF(AND(Q107=0,R107=1),((R9-Inputs!$L$100)/365),1))) -> 0 | S158: =IF(S143=1,(((MAX(S153-S152,0))) *- $L$155),(IF(S107=0,0,-MIN(MAX(0,S157),MAX(0,(S153-S152)) * $L$155))) * (IF(AND(R107=0,S107=1),((S9-Inputs!$L$100)/365),1))) -> 0 | T158: =IF(T143=1,(((MAX(T153-T152,0))) *- $L$155),(IF(T107=0,0,-MIN(MAX(0,T157),MAX(0,(T153-T152)) * $L$155))) * (IF(AND(S107=0,T107=1),((T9-Inputs!$L$100)/365),1))) -> 0 | U158: =IF(U143=1,(((MAX(U153-U152,0))) *- $L$155),(IF(U107=0,0,-MIN(MAX(0,U157),MAX(0,(U153-U152)) * $L$155))) * (IF(AND(T107=0,U107=1),((U9-Inputs!$L$100)/365),1))) -> 0 | V158: =IF(V143=1,(((MAX(V153-V152,0))) *- $L$155),(IF(V107=0,0,-MIN(MAX(0,V157),MAX(0,(V153-V152)) * $L$155))) * (IF(AND(U107=0,V107=1),((V9-Inputs!$L$100)/365),1))) -> 0 | W158: =IF(W143=1,(((MAX(W153-W152,0))) *- $L$155),(IF(W107=0,0,-MIN(MAX(0,W157),MAX(0,(W153-W152)) * $L$155))) * (IF(AND(V107=0,W107=1),((W9-Inputs!$L$100)/365),1))) -> 0 | X158: =IF(X143=1,(((MAX(X153-X152,0))) *- $L$155),(IF(X107=0,0,-MIN(MAX(0,X157),MAX(0,(X153-X152)) * $L$155))) * (IF(AND(W107=0,X107=1),((X9-Inputs!$L$100)/365),1))) -> 0 | Y158: =IF(Y143=1,(((MAX(Y153-Y152,0))) *- $L$155),(IF(Y107=0,0,-MIN(MAX(0,Y157),MAX(0,(Y153-Y152)) * $L$155))) * (IF(AND(X107=0,Y107=1),((Y9-Inputs!$L$100)/365),1))) -> (1,145) | Z158: =IF(Z143=1,(((MAX(Z153-Z152,0))) *- $L$155),(IF(Z107=0,0,-MIN(MAX(0,Z157),MAX(0,(Z153-Z152)) * $L$155))) * (IF(AND(Y107=0,Z107=1),((Z9-Inputs!$L$100)/365),1))) -> (6,531) | AA158: =IF(AA143=1,(((MAX(AA153-AA152,0))) *- $L$155),(IF(AA107=0,0,-MIN(MAX(0,AA157),MAX(0,(AA153-AA152)) * $L$155))) * (IF(AND(Z107=0,AA107=1),((AA9-Inputs!$L$100)/365),1))) -> (6,608) | AB158: =IF(AB143=1,(((MAX(AB153-AB152,0))) *- $L$155),(IF(AB107=0,0,-MIN(MAX(0,AB157),MAX(0,(AB153-AB152)) * $L$155))) * (IF(AND(AA107=0,AB107=1),((AB9-Inputs!$L$100)/365),1))) -> (4,698) | AC158: =IF(AC143=1,(((MAX(AC153-AC152,0))) *- $L$155),(IF(AC107=0,0,-MIN(MAX(0,AC157),MAX(0,(AC153-AC152)) * $L$155))) * (IF(AND(AB107=0,AC107=1),((AC9-Inputs!$L$100)/365),1))) -> (2,761) | AD158: =IF(AD143=1,(((MAX(AD153-AD152,0))) *- $L$155),(IF(AD107=0,0,-MIN(MAX(0,AD157),MAX(0,(AD153-AD152)) * $L$155))) * (IF(AND(AC107=0,AD107=1),((AD9-Inputs!$L$100)/365),1))) -> (804) | AE158: =IF(AE143=1,(((MAX(AE153-AE152,0))) *- $L$155),(IF(AE107=0,0,-MIN(MAX(0,AE157),MAX(0,(AE153-AE152)) * $L$155))) * (IF(AND(AD107=0,AE107=1),((AE9-Inputs!$L$100)/365),1))) -> 0 | AF158: =IF(AF143=1,(((MAX(AF153-AF152,0))) *- $L$155),(IF(AF107=0,0,-MIN(MAX(0,AF157),MAX(0,(AF153-AF152)) * $L$155))) * (IF(AND(AE107=0,AF107=1),((AF9-Inputs!$L$100)/365),1))) -> (7,360) | AG158: =IF(AG143=1,(((MAX(AG153-AG152,0))) *- $L$155),(IF(AG107=0,0,-MIN(MAX(0,AG157),MAX(0,(AG153-AG152)) * $L$155))) * (IF(AND(AF107=0,AG107=1),((AG9-Inputs!$L$100)/365),1))) -> (11,373) | AH158: =IF(AH143=1,(((MAX(AH153-AH152,0))) *- $L$155),(IF(AH107=0,0,-MIN(MAX(0,AH157),MAX(0,(AH153-AH152)) * $L$155))) * (IF(AND(AG107=0,AH107=1),((AH9-Inputs!$L$100)/365),1))) -> (16,454) | AI158: =IF(AI143=1,(((MAX(AI153-AI152,0))) *- $L$155),(IF(AI107=0,0,-MIN(MAX(0,AI157),MAX(0,(AI153-AI152)) * $L$155))) * (IF(AND(AH107=0,AI107=1),((AI9-Inputs!$L$100)/365),1))) -> (22,522) | AJ158: =IF(AJ143=1,(((MAX(AJ153-AJ152,0))) *- $L$155),(IF(AJ107=0,0,-MIN(MAX(0,AJ157),MAX(0,(AJ153-AJ152)) * $L$155))) * (IF(AND(AI107=0,AJ107=1),((AJ9-Inputs!$L$100)/365),1))) -> (29,679) | AK158: =IF(AK143=1,(((MAX(AK153-AK152,0))) *- $L$155),(IF(AK107=0,0,-MIN(MAX(0,AK157),MAX(0,(AK153-AK152)) * $L$155))) * (IF(AND(AJ107=0,AK107=1),((AK9-Inputs!$L$100)/365),1))) -> (38,059) | AL158: =IF(AL143=1,(((MAX(AL153-AL152,0))) *- $L$155),(IF(AL107=0,0,-MIN(MAX(0,AL157),MAX(0,(AL153-AL152)) * $L$155))) * (IF(AND(AK107=0,AL107=1),((AL9-Inputs!$L$100)/365),1))) -> (48,120) | AM158: =IF(AM143=1,(((MAX(AM153-AM152,0))) *- $L$155),(IF(AM107=0,0,-MIN(MAX(0,AM157),MAX(0,(AM153-AM152)) * $L$155))) * (IF(AND(AL107=0,AM107=1),((AM9-Inputs!$L$100)/365),1))) -> (59,778) | AN158: =IF(AN143=1,(((MAX(AN153-AN152,0))) *- $L$155),(IF(AN107=0,0,-MIN(MAX(0,AN157),MAX(0,(AN153-AN152)) * $L$155))) * (IF(AND(AM107=0,AN107=1),((AN9-Inputs!$L$100)/365),1))) -> (73,384) | AO158: =IF(AO143=1,(((MAX(AO153-AO152,0))) *- $L$155),(IF(AO107=0,0,-MIN(MAX(0,AO157),MAX(0,(AO153-AO152)) * $L$155))) * (IF(AND(AN107=0,AO107=1),((AO9-Inputs!$L$100)/365),1))) -> (89,020) | AP158: =IF(AP143=1,(((MAX(AP153-AP152,0))) *- $L$155),(IF(AP107=0,0,-MIN(MAX(0,AP157),MAX(0,(AP153-AP152)) * $L$155))) * (IF(AND(AO107=0,AP107=1),((AP9-Inputs!$L$100)/365),1))) -> (106,898) | AQ158: =IF(AQ143=1,(((MAX(AQ153-AQ152,0))) *- $L$155),(IF(AQ107=0,0,-MIN(MAX(0,AQ157),MAX(0,(AQ153-AQ152)) * $L$155))) * (IF(AND(AP107=0,AQ107=1),((AQ9-Inputs!$L$100)/365),1))) -> (112,932) | AR158: =IF(AR143=1,(((MAX(AR153-AR152,0))) *- $L$155),(IF(AR107=0,0,-MIN(MAX(0,AR157),MAX(0,(AR153-AR152)) * $L$155))) * (IF(AND(AQ107=0,AR107=1),((AR9-Inputs!$L$100)/365),1))) -> (119,918) | AS158: =IF(AS143=1,(((MAX(AS153-AS152,0))) *- $L$155),(IF(AS107=0,0,-MIN(MAX(0,AS157),MAX(0,(AS153-AS152)) * $L$155))) * (IF(AND(AR107=0,AS107=1),((AS9-Inputs!$L$100)/365),1))) -> (127,811) | AT158: =IF(AT143=1,(((MAX(AT153-AT152,0))) *- $L$155),(IF(AT107=0,0,-MIN(MAX(0,AT157),MAX(0,(AT153-AT152)) * $L$155))) * (IF(AND(AS107=0,AT107=1),((AT9-Inputs!$L$100)/365),1))) -> (136,500) | AU158: =IF(AU143=1,(((MAX(AU153-AU152,0))) *- $L$155),(IF(AU107=0,0,-MIN(MAX(0,AU157),MAX(0,(AU153-AU152)) * $L$155))) * (IF(AND(AT107=0,AU107=1),((AU9-Inputs!$L$100)/365),1))) -> (147,099) | AV158: =IF(AV143=1,(((MAX(AV153-AV152,0))) *- $L$155),(IF(AV107=0,0,-MIN(MAX(0,AV157),MAX(0,(AV153-AV152)) * $L$155))) * (IF(AND(AU107=0,AV107=1),((AV9-Inputs!$L$100)/365),1))) -> (159,440) | AW158: =IF(AW143=1,(((MAX(AW153-AW152,0))) *- $L$155),(IF(AW107=0,0,-MIN(MAX(0,AW157),MAX(0,(AW153-AW152)) * $L$155))) * (IF(AND(AV107=0,AW107=1),((AW9-Inputs!$L$100)/365),1))) -> (172,905) | AX158: =IF(AX143=1,(((MAX(AX153-AX152,0))) *- $L$155),(IF(AX107=0,0,-MIN(MAX(0,AX157),MAX(0,(AX153-AX152)) * $L$155))) * (IF(AND(AW107=0,AX107=1),((AX9-Inputs!$L$100)/365),1))) -> (187,479) | AY158: =IF(AY143=1,(((MAX(AY153-AY152,0))) *- $L$155),(IF(AY107=0,0,-MIN(MAX(0,AY157),MAX(0,(AY153-AY152)) * $L$155))) * (IF(AND(AX107=0,AY107=1),((AY9-Inputs!$L$100)/365),1))) -> 0 | AZ158: =IF(AZ143=1,(((MAX(AZ153-AZ152,0))) *- $L$155),(IF(AZ107=0,0,-MIN(MAX(0,AZ157),MAX(0,(AZ153-AZ152)) * $L$155))) * (IF(AND(AY107=0,AZ107=1),((AZ9-Inputs!$L$100)/365),1))) -> 0 | BA158: =IF(BA143=1,(((MAX(BA153-BA152,0))) *- $L$155),(IF(BA107=0,0,-MIN(MAX(0,BA157),MAX(0,(BA153-BA152)) * $L$155))) * (IF(AND(AZ107=0,BA107=1),((BA9-Inputs!$L$100)/365),1))) -> 0 | BB158: =IF(BB143=1,(((MAX(BB153-BB152,0))) *- $L$155),(IF(BB107=0,0,-MIN(MAX(0,BB157),MAX(0,(BB153-BB152)) * $L$155))) * (IF(AND(BA107=0,BB107=1),((BB9-Inputs!$L$100)/365),1))) -> 0 | BC158: =IF(BC143=1,(((MAX(BC153-BC152,0))) *- $L$155),(IF(BC107=0,0,-MIN(MAX(0,BC157),MAX(0,(BC153-BC152)) * $L$155))) * (IF(AND(BB107=0,BC107=1),((BC9-Inputs!$L$100)/365),1))) -> 0 | BD158: =IF(BD143=1,(((MAX(BD153-BD152,0))) *- $L$155),(IF(BD107=0,0,-MIN(MAX(0,BD157),MAX(0,(BD153-BD152)) * $L$155))) * (IF(AND(BC107=0,BD107=1),((BD9-Inputs!$L$100)/365),1))) -> 0 | BE158: =IF(BE143=1,(((MAX(BE153-BE152,0))) *- $L$155),(IF(BE107=0,0,-MIN(MAX(0,BE157),MAX(0,(BE153-BE152)) * $L$155))) * (IF(AND(BD107=0,BE107=1),((BE9-Inputs!$L$100)/365),1))) -> 0 | BF158: =IF(BF143=1,(((MAX(BF153-BF152,0))) *- $L$155),(IF(BF107=0,0,-MIN(MAX(0,BF157),MAX(0,(BF153-BF152)) * $L$155))) * (IF(AND(BE107=0,BF107=1),((BF9-Inputs!$L$100)/365),1))) -> 0 | BG158: =IF(BG143=1,(((MAX(BG153-BG152,0))) *- $L$155),(IF(BG107=0,0,-MIN(MAX(0,BG157),MAX(0,(BG153-BG152)) * $L$155))) * (IF(AND(BF107=0,BG107=1),((BG9-Inputs!$L$100)/365),1))) -> 0 | BH158: =IF(BH143=1,(((MAX(BH153-BH152,0))) *- $L$155),(IF(BH107=0,0,-MIN(MAX(0,BH157),MAX(0,(BH153-BH152)) * $L$155))) * (IF(AND(BG107=0,BH107=1),((BH9-Inputs!$L$100)/365),1))) -> 0 | BI158: =IF(BI143=1,(((MAX(BI153-BI152,0))) *- $L$155),(IF(BI107=0,0,-MIN(MAX(0,BI157),MAX(0,(BI153-BI152)) * $L$155))) * (IF(AND(BH107=0,BI107=1),((BI9-Inputs!$L$100)/365),1))) -> 0 | BJ158: =IF(BJ143=1,(((MAX(BJ153-BJ152,0))) *- $L$155),(IF(BJ107=0,0,-MIN(MAX(0,BJ157),MAX(0,(BJ153-BJ152)) * $L$155))) * (IF(AND(BI107=0,BJ107=1),((BJ9-Inputs!$L$100)/365),1))) -> 0
D159: Total Revenue Share Repayment | K159: $000s | N159: (329,276) | R159: =IF(-MIN(-SUM(R158:R158),SUM(R127:R128)+SUM(R130:R137))>0,0, -MIN(-SUM(R158:R158),SUM(R127:R128)+SUM(R130:R137))) -> 0 | S159: 0 | T159: 0 | U159: 0 | V159: 0 | W159: 0 | X159: 0 | Y159: (1,145) | Z159: (6,531) | AA159: (6,608) | AB159: (4,698) | AC159: (2,761) | AD159: (804) | AE159: 0 | AF159: (7,360) | AG159: (11,373) | AH159: (16,454) | AI159: (22,522) | AJ159: (29,679) | AK159: (38,059) | AL159: (48,120) | AM159: (59,778) | AN159: (73,384) | AO159: 0 | AP159: =IF(-MIN(-SUM(AP158:AP158),SUM(AP127:AP128)+SUM(AP130:AP137))>0,0, -MIN(-SUM(AP158:AP158),SUM(AP127:AP128)+SUM(AP130:AP137))) -> 0 | AQ159: 0 | AR159: 0 | AS159: 0 | AT159: 0 | AU159: 0 | AV159: 0 | AW159: 0 | AX159: 0 | AY159: 0 | AZ159: 0 | BA159: 0 | BB159: 0 | BC159: 0 | BD159: 0 | BE159: 0 | BF159: 0 | BG159: 0 | BH159: 0 | BI159: 0 | BJ159: 0
D160: Total Revenue Share Repayment in values | K160: $000s | N160: =SUM(Q160:BU160) -> (329,276) | R160: =-Mac!R31 -> 0 | S160: =-Mac!S31 -> 0 | T160: =-Mac!T31 -> 0 | U160: =-Mac!U31 -> 0 | V160: =-Mac!V31 -> 0 | W160: =-Mac!W31 -> 0 | X160: =-Mac!X31 -> 0 | Y160: =-Mac!Y31 -> (1,145) | Z160: =-Mac!Z31 -> (6,531) | AA160: =-Mac!AA31 -> (6,608) | AB160: =-Mac!AB31 -> (4,698) | AC160: =-Mac!AC31 -> (2,761) | AD160: =-Mac!AD31 -> (804) | AE160: =-Mac!AE31 -> 0 | AF160: =-Mac!AF31 -> (7,360) | AG160: =-Mac!AG31 -> (11,373) | AH160: =-Mac!AH31 -> (16,454) | AI160: =-Mac!AI31 -> (22,522) | AJ160: =-Mac!AJ31 -> (29,679) | AK160: =-Mac!AK31 -> (38,059) | AL160: =-Mac!AL31 -> (48,120) | AM160: =-Mac!AM31 -> (59,778) | AN160: =-Mac!AN31 -> (73,384) | AO160: =-Mac!AO31 -> 0 | AP160: =-Mac!AP31 -> 0 | AQ160: =-Mac!AQ31 -> 0 | AR160: =-Mac!AR31 -> 0 | AS160: =-Mac!AS31 -> 0 | AT160: =-Mac!AT31 -> 0 | AU160: =-Mac!AU31 -> 0 | AV160: =-Mac!AV31 -> 0 | AW160: =-Mac!AW31 -> 0 | AX160: =-Mac!AX31 -> 0 | AY160: =-Mac!AY31 -> 0 | AZ160: =-Mac!AZ31 -> 0 | BA160: =-Mac!BA31 -> 0 | BB160: =-Mac!BB31 -> 0 | BC160: =-Mac!BC31 -> 0 | BD160: =-Mac!BD31 -> 0 | BE160: =-Mac!BE31 -> 0 | BF160: =-Mac!BF31 -> 0 | BG160: =-Mac!BG31 -> 0 | BH160: =-Mac!BH31 -> 0 | BI160: =-Mac!BI31 -> 0 | BJ160: =-Mac!BJ31 -> 0
B162: Refinancing Facility
B164: Setup
C165: Use? | K165: Switch | L165: =+Inputs!L134 -> 1
C166: Draw Date | K166: Flag | L166: =+Inputs!L135 -> 2019-12-31 | R166: =($L$166 <= R9) * ($L$166 >=R8) * $L$165 -> 0 | S166: 0 | T166: 1 | U166: 0 | V166: 0 | W166: 0 | X166: 0 | Y166: 0 | Z166: 0 | AA166: 0 | AB166: 0 | AC166: 0 | AD166: 0 | AE166: 0 | AF166: 0 | AG166: 0 | AH166: 0 | AI166: 0 | AJ166: 0 | AK166: 0 | AL166: 0 | AM166: 0 | AN166: 0 | AO166: 0 | AP166: 0 | AQ166: 0 | AR166: 0 | AS166: 0 | AT166: 0 | AU166: 0 | AV166: 0 | AW166: 0 | AX166: 0 | AY166: 0 | AZ166: 0 | BA166: 0 | BB166: 0 | BC166: 0 | BD166: 0 | BE166: 0 | BF166: 0 | BG166: 0 | BH166: 0 | BI166: 0 | BJ166: 0
C167: End Date | K167: Date | L167: =+Inputs!L136 -> 2055-12-31
C168: Concession Periods Remaining | K168: # | R168: =+R14 -> 45 | S168: 44 | T168: 43 | U168: 42 | V168: 41 | W168: 40 | X168: 39 | Y168: 38 | Z168: 37 | AA168: 36 | AB168: 35 | AC168: 34 | AD168: 33 | AE168: 32 | AF168: 31 | AG168: 30 | AH168: 29 | AI168: 28 | AJ168: 27 | AK168: 26 | AL168: 25 | AM168: 24 | AN168: 23 | AO168: 22 | AP168: 21 | AQ168: 20 | AR168: 19 | AS168: 18 | AT168: 17 | AU168: 16 | AV168: 15 | AW168: 14 | AX168: 13 | AY168: 12 | AZ168: 11 | BA168: 10 | BB168: 9 | BC168: 8 | BD168: 7 | BE168: 6 | BF168: 5 | BG168: 4 | BH168: 3 | BI168: 2 | BJ168: 1
C169: Tail Flag | K169: Years | L169: =+Inputs!L137 -> 6 | R169: =(($L$169 ) >= R168) * R$13 -> 0 | S169: 0 | T169: 0 | U169: 0 | V169: 0 | W169: 0 | X169: 0 | Y169: 0 | Z169: 0 | AA169: 0 | AB169: 0 | AC169: 0 | AD169: 0 | AE169: 0 | AF169: 0 | AG169: 0 | AH169: 0 | AI169: 0 | AJ169: 0 | AK169: 0 | AL169: 0 | AM169: 0 | AN169: 0 | AO169: 0 | AP169: 0 | AQ169: 0 | AR169: 0 | AS169: 0 | AT169: 0 | AU169: 0 | AV169: 0 | AW169: 0 | AX169: 0 | AY169: 0 | AZ169: 0 | BA169: 0 | BB169: 0 | BC169: 0 | BD169: 0 | BE169: 1 | BF169: 1 | BG169: 1 | BH169: 1 | BI169: 1 | BJ169: 1
C170: Repayment Flag | K170: Years | L170: =+Inputs!L138 -> 10 | N170: =SUM(Q170:BU170) -> 10 | R170: =(($L$170 + $L$169) >= R$168) * (1 - R$169) * R$13 -> 0 | S170: 0 | T170: 0 | U170: 0 | V170: 0 | W170: 0 | X170: 0 | Y170: 0 | Z170: 0 | AA170: 0 | AB170: 0 | AC170: 0 | AD170: 0 | AE170: 0 | AF170: 0 | AG170: 0 | AH170: 0 | AI170: 0 | AJ170: 0 | AK170: 0 | AL170: 0 | AM170: 0 | AN170: 0 | AO170: 0 | AP170: 0 | AQ170: 0 | AR170: 0 | AS170: 0 | AT170: 0 | AU170: 1 | AV170: 1 | AW170: 1 | AX170: =(($L$170 + $L$169) >= AX$168) * (1 - AX$169) * AX$13 -> 1 | AY170: 1 | AZ170: 1 | BA170: 1 | BB170: 1 | BC170: 1 | BD170: 1 | BE170: 0 | BF170: 0 | BG170: 0 | BH170: 0 | BI170: 0 | BJ170: 0
C171: Cumulative repayment counter | K171: # | R171: =IF(R170,Q171 + R170,0) -> 0 | S171: 0 | T171: 0 | U171: 0 | V171: 0 | W171: 0 | X171: 0 | Y171: 0 | Z171: 0 | AA171: 0 | AB171: 0 | AC171: 0 | AD171: 0 | AE171: 0 | AF171: 0 | AG171: 0 | AH171: 0 | AI171: 0 | AJ171: 0 | AK171: 0 | AL171: 0 | AM171: 0 | AN171: 0 | AO171: 0 | AP171: =IF(AP170,AO171 + AP170,0) -> 0 | AQ171: 0 | AR171: 0 | AS171: 0 | AT171: 0 | AU171: 1 | AV171: 2 | AW171: 3 | AX171: 4 | AY171: 5 | AZ171: 6 | BA171: 7 | BB171: 8 | BC171: 9 | BD171: 10 | BE171: 0 | BF171: 0 | BG171: 0 | BH171: 0 | BI171: 0 | BJ171: 0
C173: % Full Period | R173: =1-R82 -> 0% | S173: 0% | T173: 0% | U173: 100% | V173: 100% | W173: 100% | X173: 100% | Y173: 100% | Z173: 100% | AA173: 100% | AB173: 100% | AC173: 100% | AD173: 100% | AE173: 100% | AF173: 100% | AG173: 100% | AH173: 100% | AI173: 100% | AJ173: 100% | AK173: 100% | AL173: 100% | AM173: 100% | AN173: 100% | AO173: 100% | AP173: 100% | AQ173: 100% | AR173: 100% | AS173: 100% | AT173: 100% | AU173: 100% | AV173: 100% | AW173: 100% | AX173: 100% | AY173: 100% | AZ173: 100% | BA173: 100% | BB173: 100% | BC173: 100% | BD173: 100% | BE173: 100% | BF173: 100% | BG173: 100% | BH173: 100% | BI173: 100% | BJ173: 100%
B175: Interest
C176: Base rate | K176: % | R176: =+Inputs!$L$140 -> 5.25% | S176: =+Inputs!$L$140 -> 5.25% | T176: =+Inputs!$L$140 -> 5.25% | U176: =+Inputs!$L$140 -> 5.25% | V176: =+Inputs!$L$140 -> 5.25% | W176: =+Inputs!$L$140 -> 5.25% | X176: =+Inputs!$L$140 -> 5.25% | Y176: =+Inputs!$L$140 -> 5.25% | Z176: =+Inputs!$L$140 -> 5.25% | AA176: =+Inputs!$L$140 -> 5.25% | AB176: =+Inputs!$L$140 -> 5.25% | AC176: =+Inputs!$L$140 -> 5.25% | AD176: =+Inputs!$L$140 -> 5.25% | AE176: =+Inputs!$L$140 -> 5.25% | AF176: =+Inputs!$L$140 -> 5.25% | AG176: =+Inputs!$L$140 -> 5.25% | AH176: =+Inputs!$L$140 -> 5.25% | AI176: =+Inputs!$L$140 -> 5.25% | AJ176: =+Inputs!$L$140 -> 5.25% | AK176: =+Inputs!$L$140 -> 5.25% | AL176: =+Inputs!$L$140 -> 5.25% | AM176: =+Inputs!$L$140 -> 5.25% | AN176: =+Inputs!$L$140 -> 5.25% | AO176: =+Inputs!$L$140 -> 5.25% | AP176: =+Inputs!$L$140 -> 5.25% | AQ176: =+Inputs!$L$140 -> 5.25% | AR176: =+Inputs!$L$140 -> 5.25% | AS176: =+Inputs!$L$140 -> 5.25% | AT176: =+Inputs!$L$140 -> 5.25% | AU176: =+Inputs!$L$140 -> 5.25% | AV176: =+Inputs!$L$140 -> 5.25% | AW176: =+Inputs!$L$140 -> 5.25% | AX176: =+Inputs!$L$140 -> 5.25% | AY176: =+Inputs!$L$140 -> 5.25% | AZ176: =+Inputs!$L$140 -> 5.25% | BA176: =+Inputs!$L$140 -> 5.25% | BB176: =+Inputs!$L$140 -> 5.25% | BC176: =+Inputs!$L$140 -> 5.25% | BD176: =+Inputs!$L$140 -> 5.25% | BE176: =+Inputs!$L$140 -> 5.25% | BF176: =+Inputs!$L$140 -> 5.25% | BG176: =+Inputs!$L$140 -> 5.25% | BH176: =+Inputs!$L$140 -> 5.25% | BI176: =+Inputs!$L$140 -> 5.25% | BJ176: =+Inputs!$L$140 -> 5.25%
C177: Margin | K177: % | R177: =+Inputs!$L$141 -> 0.00% | S177: =+Inputs!$L$141 -> 0.00% | T177: =+Inputs!$L$141 -> 0.00% | U177: =+Inputs!$L$141 -> 0.00% | V177: =+Inputs!$L$141 -> 0.00% | W177: =+Inputs!$L$141 -> 0.00% | X177: =+Inputs!$L$141 -> 0.00% | Y177: =+Inputs!$L$141 -> 0.00% | Z177: =+Inputs!$L$141 -> 0.00% | AA177: =+Inputs!$L$141 -> 0.00% | AB177: =+Inputs!$L$141 -> 0.00% | AC177: =+Inputs!$L$141 -> 0.00% | AD177: =+Inputs!$L$141 -> 0.00% | AE177: =+Inputs!$L$141 -> 0.00% | AF177: =+Inputs!$L$141 -> 0.00% | AG177: =+Inputs!$L$141 -> 0.00% | AH177: =+Inputs!$L$141 -> 0.00% | AI177: =+Inputs!$L$141 -> 0.00% | AJ177: =+Inputs!$L$141 -> 0.00% | AK177: =+Inputs!$L$141 -> 0.00% | AL177: =+Inputs!$L$141 -> 0.00% | AM177: =+Inputs!$L$141 -> 0.00% | AN177: =+Inputs!$L$141 -> 0.00% | AO177: =+Inputs!$L$141 -> 0.00% | AP177: =+Inputs!$L$141 -> 0.00% | AQ177: =+Inputs!$L$141 -> 0.00% | AR177: =+Inputs!$L$141 -> 0.00% | AS177: =+Inputs!$L$141 -> 0.00% | AT177: =+Inputs!$L$141 -> 0.00% | AU177: =+Inputs!$L$141 -> 0.00% | AV177: =+Inputs!$L$141 -> 0.00% | AW177: =+Inputs!$L$141 -> 0.00% | AX177: =+Inputs!$L$141 -> 0.00% | AY177: =+Inputs!$L$141 -> 0.00% | AZ177: =+Inputs!$L$141 -> 0.00% | BA177: =+Inputs!$L$141 -> 0.00% | BB177: =+Inputs!$L$141 -> 0.00% | BC177: =+Inputs!$L$141 -> 0.00% | BD177: =+Inputs!$L$141 -> 0.00% | BE177: =+Inputs!$L$141 -> 0.00% | BF177: =+Inputs!$L$141 -> 0.00% | BG177: =+Inputs!$L$141 -> 0.00% | BH177: =+Inputs!$L$141 -> 0.00% | BI177: =+Inputs!$L$141 -> 0.00% | BJ177: =+Inputs!$L$141 -> 0.00%
C178: Credit Spread | R178: =+Inputs!$L$142 -> 0.00% | S178: =+Inputs!$L$142 -> 0.00% | T178: =+Inputs!$L$142 -> 0.00% | U178: =+Inputs!$L$142 -> 0.00% | V178: =+Inputs!$L$142 -> 0.00% | W178: =+Inputs!$L$142 -> 0.00% | X178: =+Inputs!$L$142 -> 0.00% | Y178: =+Inputs!$L$142 -> 0.00% | Z178: =+Inputs!$L$142 -> 0.00% | AA178: =+Inputs!$L$142 -> 0.00% | AB178: =+Inputs!$L$142 -> 0.00% | AC178: =+Inputs!$L$142 -> 0.00% | AD178: =+Inputs!$L$142 -> 0.00% | AE178: =+Inputs!$L$142 -> 0.00% | AF178: =+Inputs!$L$142 -> 0.00% | AG178: =+Inputs!$L$142 -> 0.00% | AH178: =+Inputs!$L$142 -> 0.00% | AI178: =+Inputs!$L$142 -> 0.00% | AJ178: =+Inputs!$L$142 -> 0.00% | AK178: =+Inputs!$L$142 -> 0.00% | AL178: =+Inputs!$L$142 -> 0.00% | AM178: =+Inputs!$L$142 -> 0.00% | AN178: =+Inputs!$L$142 -> 0.00% | AO178: =+Inputs!$L$142 -> 0.00% | AP178: =+Inputs!$L$142 -> 0.00% | AQ178: =+Inputs!$L$142 -> 0.00% | AR178: =+Inputs!$L$142 -> 0.00% | AS178: =+Inputs!$L$142 -> 0.00% | AT178: =+Inputs!$L$142 -> 0.00% | AU178: =+Inputs!$L$142 -> 0.00% | AV178: =+Inputs!$L$142 -> 0.00% | AW178: =+Inputs!$L$142 -> 0.00% | AX178: =+Inputs!$L$142 -> 0.00% | AY178: =+Inputs!$L$142 -> 0.00% | AZ178: =+Inputs!$L$142 -> 0.00% | BA178: =+Inputs!$L$142 -> 0.00% | BB178: =+Inputs!$L$142 -> 0.00% | BC178: =+Inputs!$L$142 -> 0.00% | BD178: =+Inputs!$L$142 -> 0.00% | BE178: =+Inputs!$L$142 -> 0.00% | BF178: =+Inputs!$L$142 -> 0.00% | BG178: =+Inputs!$L$142 -> 0.00% | BH178: =+Inputs!$L$142 -> 0.00% | BI178: =+Inputs!$L$142 -> 0.00% | BJ178: =+Inputs!$L$142 -> 0.00%
C179: All in interest rate | K179: % | R179: =(R176 + R177 + R178) -> 5.25% | S179: 5.25% | T179: 5.25% | U179: 5.25% | V179: 5.25% | W179: 5.25% | X179: 5.25% | Y179: 5.25% | Z179: 5.25% | AA179: 5.25% | AB179: 5.25% | AC179: 5.25% | AD179: 5.25% | AE179: 5.25% | AF179: 5.25% | AG179: 5.25% | AH179: 5.25% | AI179: 5.25% | AJ179: 5.25% | AK179: 5.25% | AL179: 5.25% | AM179: 5.25% | AN179: 5.25% | AO179: 5.25% | AP179: =(AP176 + AP177 + AP178) -> 5.25% | AQ179: 5.25% | AR179: 5.25% | AS179: 5.25% | AT179: 5.25% | AU179: 5.25% | AV179: 5.25% | AW179: 5.25% | AX179: 5.25% | AY179: 5.25% | AZ179: 5.25% | BA179: 5.25% | BB179: 5.25% | BC179: 5.25% | BD179: 5.25% | BE179: 5.25% | BF179: 5.25% | BG179: 5.25% | BH179: 5.25% | BI179: 5.25% | BJ179: 5.25%
B181: Facility
C182: Opening Balance | K182: $000s | R182: =Q190 -> 0 | S182: 0 | T182: 0 | U182: 400,000 | V182: 400,000 | W182: 400,000 | X182: 400,000 | Y182: 400,000 | Z182: 402,290 | AA182: 415,352 | AB182: 428,569 | AC182: 437,965 | AD182: 443,486 | AE182: 505,327 | AF182: 505,327 | AG182: 520,047 | AH182: 542,793 | AI182: 575,701 | AJ182: 630,744 | AK182: 710,102 | AL182: 806,220 | AM182: 922,461 | AN182: 1,102,017 | AO182: 1,406,087 | AP182: =AO190 -> 1,406,087 | AQ182: 1,406,087 | AR182: 1,406,087 | AS182: 1,406,087 | AT182: 1,406,087 | AU182: 1,406,087 | AV182: 1,295,594 | AW182: 1,179,301 | AX182: 1,056,902 | AY182: 1,029,319 | AZ182: 878,940 | BA182: 720,666 | BB182: 554,083 | BC182: 378,755 | BD182: 194,221 | BE182: 0 | BF182: 0 | BG182: 0 | BH182: 0 | BI182: 0 | BJ182: 0
C183: Draw Bond debt | K183: $000s | N183: =SUM(Q183:BJ183) -> 400,000 | R183: =-R92 * R$80 * $L$165 -> 0 | S183: =-S92 * S$80 * $L$165 -> 0 | T183: 400,000 | U183: 0 | V183: 0 | W183: 0 | X183: 0 | Y183: 0 | Z183: 0 | AA183: 0 | AB183: 0 | AC183: 0 | AD183: 0 | AE183: 0 | AF183: 0 | AG183: 0 | AH183: 0 | AI183: 0 | AJ183: 0 | AK183: 0 | AL183: 0 | AM183: 0 | AN183: 0 | AO183: 0 | AP183: 0 | AQ183: 0 | AR183: 0 | AS183: 0 | AT183: 0 | AU183: 0 | AV183: 0 | AW183: 0 | AX183: 0 | AY183: 0 | AZ183: 0 | BA183: 0 | BB183: 0 | BC183: 0 | BD183: 0 | BE183: 0 | BF183: 0 | BG183: 0 | BH183: 0 | BI183: 0 | BJ183: 0
C184: Draws Capex | K184: $000s | N184: 258,863 | R184: =-((R215)) -> 0 | S184: 0 | T184: 0 | U184: 0 | V184: 0 | W184: 0 | X184: 0 | Y184: 0 | Z184: 0 | AA184: 0 | AB184: 0 | AC184: 0 | AD184: 60,232 | AE184: =-((AE215)) -> 0 | AF184: =-((AF215)) -> 0 | AG184: 0 | AH184: 0 | AI184: 0 | AJ184: 0 | AK184: 0 | AL184: 0 | AM184: 0 | AN184: 97,389 | AO184: 0 | AP184: 0 | AQ184: 0 | AR184: 0 | AS184: 0 | AT184: 0 | AU184: 0 | AV184: 0 | AW184: 0 | AX184: 101,241 | AY184: 0 | AZ184: 0 | BA184: 0 | BB184: 0 | BC184: 0 | BD184: 0 | BE184: 0 | BF184: 0 | BG184: 0 | BH184: 0 | BI184: 0 | BJ184: 0
C185: Draws to Refi TIFIA Facility | K185: $000s | N185: 209,833 | R185: =(( - SUM(R134:R135) * Inputs!$L$102/Inputs!$L$103 )) * $L$165 -> 0 | S185: =(( - SUM(S134:S135) * Inputs!$L$102/Inputs!$L$103 )) * $L$165 -> 0 | T185: =(( - SUM(T134:T135) * Inputs!$L$102/Inputs!$L$103 )) * $L$165 -> 0 | U185: =(( - SUM(U134:U135) * Inputs!$L$102/Inputs!$L$103 )) * $L$165 -> 0 | V185: =(( - SUM(V134:V135) * Inputs!$L$102/Inputs!$L$103 )) * $L$165 -> 0 | W185: =(( - SUM(W134:W135) * Inputs!$L$102/Inputs!$L$103 )) * $L$165 -> 0 | X185: =(( - SUM(X134:X135) * Inputs!$L$102/Inputs!$L$103 )) * $L$165 -> 0 | Y185: =(( - SUM(Y134:Y135) * Inputs!$L$102/Inputs!$L$103 )) * $L$165 -> 0 | Z185: =(( - SUM(Z134:Z135) * Inputs!$L$102/Inputs!$L$103 )) * $L$165 -> 0 | AA185: =(( - SUM(AA134:AA135) * Inputs!$L$102/Inputs!$L$103 )) * $L$165 -> 0 | AB185: =(( - SUM(AB134:AB135) * Inputs!$L$102/Inputs!$L$103 )) * $L$165 -> 0 | AC185: =(( - SUM(AC134:AC135) * Inputs!$L$102/Inputs!$L$103 )) * $L$165 -> 0 | AD185: =(( - SUM(AD134:AD135) * Inputs!$L$102/Inputs!$L$103 )) * $L$165 -> 0 | AE185: =(( - SUM(AE134:AE135) * Inputs!$L$102/Inputs!$L$103 )) * $L$165 -> 0 | AF185: =(( - SUM(AF134:AF135) * Inputs!$L$102/Inputs!$L$103 )) * $L$165 -> 0 | AG185: =(( - SUM(AG134:AG135) * Inputs!$L$102/Inputs!$L$103 )) * $L$165 -> 0 | AH185: =(( - SUM(AH134:AH135) * Inputs!$L$102/Inputs!$L$103 )) * $L$165 -> 0 | AI185: =(( - SUM(AI134:AI135) * Inputs!$L$102/Inputs!$L$103 )) * $L$165 -> 10,000 | AJ185: =(( - SUM(AJ134:AJ135) * Inputs!$L$102/Inputs!$L$103 )) * $L$165 -> 20,000 | AK185: =(( - SUM(AK134:AK135) * Inputs!$L$102/Inputs!$L$103 )) * $L$165 -> 20,000 | AL185: =(( - SUM(AL134:AL135) * Inputs!$L$102/Inputs!$L$103 )) * $L$165 -> 20,000 | AM185: =(( - SUM(AM134:AM135) * Inputs!$L$102/Inputs!$L$103 )) * $L$165 -> 60,000 | AN185: =(( - SUM(AN134:AN135) * Inputs!$L$102/Inputs!$L$103 )) * $L$165 -> 79,833 | AO185: =(( - SUM(AO134:AO135) * Inputs!$L$102/Inputs!$L$103 )) * $L$165 -> 0 | AP185: =(( - SUM(AP134:AP135) * Inputs!$L$102/Inputs!$L$103 )) * $L$165 -> 0 | AQ185: =(( - SUM(AQ134:AQ135) * Inputs!$L$102/Inputs!$L$103 )) * $L$165 -> 0 | AR185: =(( - SUM(AR134:AR135) * Inputs!$L$102/Inputs!$L$103 )) * $L$165 -> 0 | AS185: =(( - SUM(AS134:AS135) * Inputs!$L$102/Inputs!$L$103 )) * $L$165 -> 0 | AT185: =(( - SUM(AT134:AT135) * Inputs!$L$102/Inputs!$L$103 )) * $L$165 -> 0 | AU185: =(( - SUM(AU134:AU135) * Inputs!$L$102/Inputs!$L$103 )) * $L$165 -> 0 | AV185: =(( - SUM(AV134:AV135) * Inputs!$L$102/Inputs!$L$103 )) * $L$165 -> 0 | AW185: =(( - SUM(AW134:AW135) * Inputs!$L$102/Inputs!$L$103 )) * $L$165 -> 0 | AX185: =(( - SUM(AX134:AX135) * Inputs!$L$102/Inputs!$L$103 )) * $L$165 -> 0 | AY185: =(( - SUM(AY134:AY135) * Inputs!$L$102/Inputs!$L$103 )) * $L$165 -> 0 | AZ185: =(( - SUM(AZ134:AZ135) * Inputs!$L$102/Inputs!$L$103 )) * $L$165 -> 0 | BA185: =(( - SUM(BA134:BA135) * Inputs!$L$102/Inputs!$L$103 )) * $L$165 -> 0 | BB185: =(( - SUM(BB134:BB135) * Inputs!$L$102/Inputs!$L$103 )) * $L$165 -> 0 | BC185: =(( - SUM(BC134:BC135) * Inputs!$L$102/Inputs!$L$103 )) * $L$165 -> 0 | BD185: =(( - SUM(BD134:BD135) * Inputs!$L$102/Inputs!$L$103 )) * $L$165 -> 0 | BE185: =(( - SUM(BE134:BE135) * Inputs!$L$102/Inputs!$L$103 )) * $L$165 -> 0 | BF185: =(( - SUM(BF134:BF135) * Inputs!$L$102/Inputs!$L$103 )) * $L$165 -> 0 | BG185: =(( - SUM(BG134:BG135) * Inputs!$L$102/Inputs!$L$103 )) * $L$165 -> 0 | BH185: =(( - SUM(BH134:BH135) * Inputs!$L$102/Inputs!$L$103 )) * $L$165 -> 0 | BI185: =(( - SUM(BI134:BI135) * Inputs!$L$102/Inputs!$L$103 )) * $L$165 -> 0 | BJ185: =(( - SUM(BJ134:BJ135) * Inputs!$L$102/Inputs!$L$103 )) * $L$165 -> 0
C186: Draws to Refi TIFIA Rev Share Facility | K186: $000s | N186: 638,631 | R186: =-SUM(R139:R140) * $L$165*Inputs!$L$102 -> 0 | S186: =-SUM(S139:S140) * $L$165*Inputs!$L$102 -> 0 | T186: =-SUM(T139:T140) * $L$165*Inputs!$L$102 -> 0 | U186: =-SUM(U139:U140) * $L$165*Inputs!$L$102 -> 0 | V186: =-SUM(V139:V140) * $L$165*Inputs!$L$102 -> 0 | W186: =-SUM(W139:W140) * $L$165*Inputs!$L$102 -> 0 | X186: =-SUM(X139:X140) * $L$165*Inputs!$L$102 -> 0 | Y186: =-SUM(Y139:Y140) * $L$165*Inputs!$L$102 -> 2,290 | Z186: =-SUM(Z139:Z140) * $L$165*Inputs!$L$102 -> 13,062 | AA186: =-SUM(AA139:AA140) * $L$165*Inputs!$L$102 -> 13,217 | AB186: =-SUM(AB139:AB140) * $L$165*Inputs!$L$102 -> 9,395 | AC186: =-SUM(AC139:AC140) * $L$165*Inputs!$L$102 -> 5,521 | AD186: =-SUM(AD139:AD140) * $L$165*Inputs!$L$102 -> 1,609 | AE186: =-SUM(AE139:AE140) * $L$165*Inputs!$L$102 -> 0 | AF186: =-SUM(AF139:AF140) * $L$165*Inputs!$L$102 -> 14,720 | AG186: =-SUM(AG139:AG140) * $L$165*Inputs!$L$102 -> 22,746 | AH186: =-SUM(AH139:AH140) * $L$165*Inputs!$L$102 -> 32,907 | AI186: =-SUM(AI139:AI140) * $L$165*Inputs!$L$102 -> 45,043 | AJ186: =-SUM(AJ139:AJ140) * $L$165*Inputs!$L$102 -> 59,357 | AK186: =-SUM(AK139:AK140) * $L$165*Inputs!$L$102 -> 76,119 | AL186: =-SUM(AL139:AL140) * $L$165*Inputs!$L$102 -> 96,241 | AM186: =-SUM(AM139:AM140) * $L$165*Inputs!$L$102 -> 119,557 | AN186: =-SUM(AN139:AN140) * $L$165*Inputs!$L$102 -> 126,846 | AO186: =-SUM(AO139:AO140) * $L$165*Inputs!$L$102 -> 0 | AP186: =-SUM(AP139:AP140) * $L$165*Inputs!$L$102 -> 0 | AQ186: =-SUM(AQ139:AQ140) * $L$165*Inputs!$L$102 -> 0 | AR186: =-SUM(AR139:AR140) * $L$165*Inputs!$L$102 -> 0 | AS186: =-SUM(AS139:AS140) * $L$165*Inputs!$L$102 -> 0 | AT186: =-SUM(AT139:AT140) * $L$165*Inputs!$L$102 -> 0 | AU186: =-SUM(AU139:AU140) * $L$165*Inputs!$L$102 -> 0 | AV186: =-SUM(AV139:AV140) * $L$165*Inputs!$L$102 -> 0 | AW186: =-SUM(AW139:AW140) * $L$165*Inputs!$L$102 -> 0 | AX186: =-SUM(AX139:AX140) * $L$165*Inputs!$L$102 -> 0 | AY186: =-SUM(AY139:AY140) * $L$165*Inputs!$L$102 -> 0 | AZ186: =-SUM(AZ139:AZ140) * $L$165*Inputs!$L$102 -> 0 | BA186: =-SUM(BA139:BA140) * $L$165*Inputs!$L$102 -> 0 | BB186: =-SUM(BB139:BB140) * $L$165*Inputs!$L$102 -> 0 | BC186: =-SUM(BC139:BC140) * $L$165*Inputs!$L$102 -> 0 | BD186: =-SUM(BD139:BD140) * $L$165*Inputs!$L$102 -> 0 | BE186: =-SUM(BE139:BE140) * $L$165*Inputs!$L$102 -> 0 | BF186: =-SUM(BF139:BF140) * $L$165*Inputs!$L$102 -> 0 | BG186: =-SUM(BG139:BG140) * $L$165*Inputs!$L$102 -> 0 | BH186: =-SUM(BH139:BH140) * $L$165*Inputs!$L$102 -> 0 | BI186: =-SUM(BI139:BI140) * $L$165*Inputs!$L$102 -> 0 | BJ186: =-SUM(BJ139:BJ140) * $L$165*Inputs!$L$102 -> 0
C187: Interest due | K187: $000s | N187: 1,486,884 | R187: =+R13*(R182+R183+R184/2+R185/4+R186/4+R189/4)*R179*YEARFRAC(R9,Q9,2)*R173 -> 0 | S187: =+S13*(S182+S183+S184/2+S185/4+S186/4+S189/4)*S179*YEARFRAC(S9,R9,2)*S173 -> 0 | T187: =+T13*(T182+T183+T184/2+T185/4+T186/4+T189/4)*T179*YEARFRAC(T9,S9,2)*T173 -> 0 | U187: =+U13*(U182+U183+U185/4+U186/4+U189/4)*U179*YEARFRAC(U9,T9,2)*U173 -> 21,350 | V187: 21,292 | W187: 21,292 | X187: 21,292 | Y187: 21,381 | Z187: 21,587 | AA187: 22,285 | AB187: 22,937 | AC187: 23,450 | AD187: 23,628 | AE187: 26,898 | AF187: 27,094 | AG187: 28,061 | AH187: 29,330 | AI187: 31,377 | AJ187: 34,630 | AK187: 39,184 | AL187: 44,461 | AM187: 51,491 | AN187: 61,410 | AO187: 75,050 | AP187: 74,845 | AQ187: 74,845 | AR187: 74,845 | AS187: 75,050 | AT187: 74,845 | AU187: 73,374 | AV187: 67,416 | AW187: 61,312 | AX187: 54,544 | AY187: 52,789 | AZ187: 44,679 | BA187: 36,243 | BB187: 27,160 | BC187: 17,705 | BD187: 7,754 | BE187: 0 | BF187: 0 | BG187: 0 | BH187: 0 | BI187: 0 | BJ187: 0
C188: Interest paid | K188: $000s | N188: (1,486,884) | R188: =-R187 -> 0 | S188: 0 | T188: 0 | U188: (21,350) | V188: (21,292) | W188: (21,292) | X188: (21,292) | Y188: (21,381) | Z188: (21,587) | AA188: (22,285) | AB188: (22,937) | AC188: (23,450) | AD188: (23,628) | AE188: (26,898) | AF188: (27,094) | AG188: (28,061) | AH188: (29,330) | AI188: (31,377) | AJ188: (34,630) | AK188: (39,184) | AL188: (44,461) | AM188: (51,491) | AN188: (61,410) | AO188: (75,050) | AP188: =-AP187 -> (74,845) | AQ188: (74,845) | AR188: (74,845) | AS188: (75,050) | AT188: (74,845) | AU188: (73,374) | AV188: (67,416) | AW188: (61,312) | AX188: (54,544) | AY188: (52,789) | AZ188: (44,679) | BA188: (36,243) | BB188: (27,160) | BC188: (17,705) | BD188: (7,754) | BE188: 0 | BF188: 0 | BG188: 0 | BH188: 0 | BI188: 0 | BJ188: 0
C189: Amortised | K189: $000s | N189: (1,507,328) | R189: =IF(R9<$L$167, - IF(R170,0 - PPMT(R179,1,$N170 - Q171,R182,0),0),-Q190) -> 0 | S189: 0 | T189: 0 | U189: 0 | V189: 0 | W189: 0 | X189: 0 | Y189: 0 | Z189: 0 | AA189: 0 | AB189: 0 | AC189: 0 | AD189: 0 | AE189: 0 | AF189: 0 | AG189: 0 | AH189: 0 | AI189: 0 | AJ189: 0 | AK189: 0 | AL189: 0 | AM189: 0 | AN189: 0 | AO189: 0 | AP189: 0 | AQ189: 0 | AR189: 0 | AS189: 0 | AT189: 0 | AU189: (110,492) | AV189: (116,293) | AW189: (122,399) | AX189: (128,825) | AY189: (150,379) | AZ189: (158,274) | BA189: (166,583) | BB189: (175,329) | BC189: (184,533) | BD189: (194,221) | BE189: 0 | BF189: 0 | BG189: 0 | BH189: 0 | BI189: 0 | BJ189: 0
C190: Closing Balance | K190: $000s | N190: =IF(ROUND(SUM(N183:N189),0)<>0,1,0) -> 0 | R190: =SUM(R182:R189) -> 0 | S190: 0 | T190: 400,000 | U190: 400,000 | V190: 400,000 | W190: 400,000 | X190: 400,000 | Y190: 402,290 | Z190: 415,352 | AA190: 428,569 | AB190: 437,965 | AC190: 443,486 | AD190: 505,327 | AE190: 505,327 | AF190: 520,047 | AG190: 542,793 | AH190: 575,701 | AI190: 630,744 | AJ190: 710,102 | AK190: 806,220 | AL190: 922,461 | AM190: 1,102,017 | AN190: 1,406,087 | AO190: 1,406,087 | AP190: =SUM(AP182:AP189) -> 1,406,087 | AQ190: 1,406,087 | AR190: 1,406,087 | AS190: 1,406,087 | AT190: 1,406,087 | AU190: 1,295,594 | AV190: 1,179,301 | AW190: 1,056,902 | AX190: 1,029,319 | AY190: 878,940 | AZ190: 720,666 | BA190: 554,083 | BB190: 378,755 | BC190: 194,221 | BD190: 0 | BE190: 0 | BF190: 0 | BG190: 0 | BH190: 0 | BI190: 0 | BJ190: 0
B192: Fees
C193: Upfront fee | K193: $000s | N193: =SUM(Q193:BJ193) -> 15,073 | R193: =+(SUM(R183:R186))*Inputs!$L$139 -> 0 | S193: =+(SUM(S183:S186))*Inputs!$L$139 -> 0 | T193: =+(SUM(T183:T186))*Inputs!$L$139 -> 4,000 | U193: =+(SUM(U183:U186))*Inputs!$L$139 -> 0 | V193: =+(SUM(V183:V186))*Inputs!$L$139 -> 0 | W193: =+(SUM(W183:W186))*Inputs!$L$139 -> 0 | X193: =+(SUM(X183:X186))*Inputs!$L$139 -> 0 | Y193: =+(SUM(Y183:Y186))*Inputs!$L$139 -> 23 | Z193: =+(SUM(Z183:Z186))*Inputs!$L$139 -> 131 | AA193: =+(SUM(AA183:AA186))*Inputs!$L$139 -> 132 | AB193: =+(SUM(AB183:AB186))*Inputs!$L$139 -> 94 | AC193: =+(SUM(AC183:AC186))*Inputs!$L$139 -> 55 | AD193: =+(SUM(AD183:AD186))*Inputs!$L$139 -> 618 | AE193: =+(SUM(AE183:AE186))*Inputs!$L$139 -> 0 | AF193: =+(SUM(AF183:AF186))*Inputs!$L$139 -> 147 | AG193: =+(SUM(AG183:AG186))*Inputs!$L$139 -> 227 | AH193: =+(SUM(AH183:AH186))*Inputs!$L$139 -> 329 | AI193: =+(SUM(AI183:AI186))*Inputs!$L$139 -> 550 | AJ193: =+(SUM(AJ183:AJ186))*Inputs!$L$139 -> 794 | AK193: =+(SUM(AK183:AK186))*Inputs!$L$139 -> 961 | AL193: =+(SUM(AL183:AL186))*Inputs!$L$139 -> 1,162 | AM193: =+(SUM(AM183:AM186))*Inputs!$L$139 -> 1,796 | AN193: =+(SUM(AN183:AN186))*Inputs!$L$139 -> 3,041 | AO193: =+(SUM(AO183:AO186))*Inputs!$L$139 -> 0 | AP193: =+(SUM(AP183:AP186))*Inputs!$L$139 -> 0 | AQ193: =+(SUM(AQ183:AQ186))*Inputs!$L$139 -> 0 | AR193: =+(SUM(AR183:AR186))*Inputs!$L$139 -> 0 | AS193: =+(SUM(AS183:AS186))*Inputs!$L$139 -> 0 | AT193: =+(SUM(AT183:AT186))*Inputs!$L$139 -> 0 | AU193: =+(SUM(AU183:AU186))*Inputs!$L$139 -> 0 | AV193: =+(SUM(AV183:AV186))*Inputs!$L$139 -> 0 | AW193: =+(SUM(AW183:AW186))*Inputs!$L$139 -> 0 | AX193: =+(SUM(AX183:AX186))*Inputs!$L$139 -> 1,012 | AY193: =+(SUM(AY183:AY186))*Inputs!$L$139 -> 0 | AZ193: =+(SUM(AZ183:AZ186))*Inputs!$L$139 -> 0 | BA193: =+(SUM(BA183:BA186))*Inputs!$L$139 -> 0 | BB193: =+(SUM(BB183:BB186))*Inputs!$L$139 -> 0 | BC193: =+(SUM(BC183:BC186))*Inputs!$L$139 -> 0 | BD193: =+(SUM(BD183:BD186))*Inputs!$L$139 -> 0 | BE193: =+(SUM(BE183:BE186))*Inputs!$L$139 -> 0 | BF193: =+(SUM(BF183:BF186))*Inputs!$L$139 -> 0 | BG193: =+(SUM(BG183:BG186))*Inputs!$L$139 -> 0 | BH193: =+(SUM(BH183:BH186))*Inputs!$L$139 -> 0 | BI193: =+(SUM(BI183:BI186))*Inputs!$L$139 -> 0 | BJ193: =+(SUM(BJ183:BJ186))*Inputs!$L$139 -> 0
B195: End Date | L195: =MIN(U195:BU195) -> 2055-12-31 | U195: =IF(U190=0,U9,"") ->  | BD195: 2055-12-31 | BE195: 2056-12-31 | BF195: 2057-12-31 | BG195: 2058-12-31 | BH195: 2059-12-31 | BI195: 2060-12-31 | BJ195: 2061-12-31
B197: Capex Facility
B199: Setup
C200: Use ? | K200: Switch | L200: =+Inputs!L145 -> 1
C201: Refinancing date 1 | L201: 2020
C203: Capex Facility End | L203: =+Inputs!L149 -> 2050-12-31
C204: Major Maintenance Capex | K204: $000s | N204: =SUM(Q204:BU204) -> 554,873 | R204: =+Oper!R50 -> 0 | S204: =+Oper!S50 -> 1,554 | T204: =+Oper!T50 -> 2,272 | U204: =+Oper!U50 -> 3,321 | V204: =+Oper!V50 -> 4,856 | W204: =+Oper!W50 -> 5,235 | X204: =+Oper!X50 -> 5,644 | Y204: =+Oper!Y50 -> 6,084 | Z204: =+Oper!Z50 -> 6,559 | AA204: =+Oper!AA50 -> 7,072 | AB204: =+Oper!AB50 -> 7,113 | AC204: =+Oper!AC50 -> 7,154 | AD204: =+Oper!AD50 -> 7,195 | AE204: =+Oper!AE50 -> 7,237 | AF204: =+Oper!AF50 -> 7,279 | AG204: =+Oper!AG50 -> 7,825 | AH204: =+Oper!AH50 -> 8,412 | AI204: =+Oper!AI50 -> 9,043 | AJ204: =+Oper!AJ50 -> 9,721 | AK204: =+Oper!AK50 -> 10,451 | AL204: =+Oper!AL50 -> 11,403 | AM204: =+Oper!AM50 -> 12,442 | AN204: =+Oper!AN50 -> 13,576 | AO204: =+Oper!AO50 -> 14,813 | AP204: =+Oper!AP50 -> 16,163 | AQ204: =+Oper!AQ50 -> 14,764 | AR204: =+Oper!AR50 -> 13,486 | AS204: =+Oper!AS50 -> 12,318 | AT204: =+Oper!AT50 -> 11,252 | AU204: =+Oper!AU50 -> 10,278 | AV204: =+Oper!AV50 -> 11,713 | AW204: =+Oper!AW50 -> 13,348 | AX204: =+Oper!AX50 -> 15,212 | AY204: =+Oper!AY50 -> 17,336 | AZ204: =+Oper!AZ50 -> 19,757 | BA204: =+Oper!BA50 -> 18,361 | BB204: =+Oper!BB50 -> 17,064 | BC204: =+Oper!BC50 -> 15,858 | BD204: =+Oper!BD50 -> 14,737 | BE204: =+Oper!BE50 -> 13,696 | BF204: =+Oper!BF50 -> 17,217 | BG204: =+Oper!BG50 -> 21,644 | BH204: =+Oper!BH50 -> 27,208 | BI204: =+Oper!BI50 -> 34,203 | BJ204: =+Oper!BJ50 -> 42,997
